Workbook

Sheet Lissage_Echéances
B2: Lissage échéances avec trois options d'assurances ( Sur capital initial - Capital restant dû technique "Out" - Capital restant dû technique "In") - Procédure d'optimisation plan de financement | CZ2: Sans amort négatif | DA2: Avec amort négatif
B3: Renseigner toutes les cellules matérialisées en vert (= saisies ou sélections) | CZ3: =MIN($F$22) -> 64022.3644 | DA3: =MIN($F$22) -> 64022.3644
B4: =IF($H$15<0,"IMPOSSIBLE - Les ressouces ne peuvent être supérieures aux besoins","Plan de financement") -> Plan de financement | I4: Options Prêt Taux Zéro | K4: =IF($B$15>360,"Impossible 360 mois maximum","Durée totale en mois") -> Durée totale en mois | L4: Taux prêts | M4: Options Assurances Décès Invalidité (ADI) | CZ4: =COUNT($H$14,$K$14,$K$15) -> 1 | DA4: =COUNT($H$14,$K$14,$K$15) -> 1
B5: Besoins = Emplois = Dépenses | E5: Origines | F5: Ressources = Recettes | I5: Pourcentage différé | J5: =IF(J10>W19,"IMPOSSIBLE dépasse durée prêt plus long",IF(AND(J10>=K10,H10<>0),"Impossible Revoir durées","Durée différé")) -> Durée différé | M5: Type ADI Base calcul | N5: Quotité Emprunteur 1 | O5: Quotité Emprunteur 2 | P5: Taux ADI | Q5: Taux ADI | CZ5: =$CW$388>=0 -> TRUE | DA5: =$H$15>=1000 -> TRUE
B6: Coût Achat | D6: 200000 | E6: Epargne | F6: Apport personnel | H6: 4700 | P6: Emprunteur 1 | Q6: Emprunteur 2 | CZ6: =$H$15>=1000 -> TRUE | DA6: =$K$14>=12 -> FALSE
B7: Frais négociation | D7: 10000 | E7: Organismes extérieurs à la banque | F7: Prêt exérieur N°1 | H7: 5000 | K7: 180 | L7: 0.015 | M7: Capital initial | N7: 1 | O7: 1 | P7: 0.003 | Q7: 0.003 | CZ7: =$K$14>=12 -> FALSE | DA7: =$K$15<=$H$19 -> TRUE
B8: Frais acte notarié | D8: 16000 | F8: Prêt exérieur N°2 | H8: 10000 | K8: 190 | L8: 0.016 | M8: Capital initial | N8: 1 | O8: 1 | P8: 0.003 | Q8: 0.003 | CZ8: =$K$15<=$H$19 -> TRUE | DA8: =$K$14=INT($K$14) -> TRUE
B9: Travaux | D9: 15000 | F9: Prêt exérieur N°3 | H9: 20000 | K9: 200 | L9: 0.017 | M9: Capital initial | N9: 1 | O9: 1 | P9: 0.003 | Q9: 0.003 | CZ9: =$K$14=INT($K$14) -> TRUE | DA9: =$K$14<=$H$19 -> TRUE
B10: Frais courtage | D10: 2000 | E10: Prêts consentis directement par la banque | F10: Prêt à Taux zéro | H10: 60000 | I10: 1 | J10: 180 | K10: 300 | L10: 0 | M10: Capital initial | N10: 1 | O10: 1 | P10: 0.003 | Q10: 0.003 | CZ10: =$K$14<=$H$19 -> TRUE | DA10: =$K$14<=$K$15 -> TRUE
B11: Frais dossier | D11: 500 | F11: Prêt interne N°1 (1) | H11: 11000 | I11: =IF(K15<=0,"Saisir la durée maximale du prêt lisseur",IF(K14>K15,"Le prêt ''emboîté'' ne doit être plus court que le ''prêt lisseur''",IF($CW$388<0,"Amortissements négatifs sur le prêt lisseur. Pour y remédier augmenter le montant ou/et réduire la durée.",IF(B15>360,"Durée maximale possible limitée à 360 mois","")))) ->  | K11: 210 | L11: 0.018 | CZ11: =$K$14<=$K$15 -> TRUE | DA11: =$K$15>=$K$14 -> TRUE
B12: Frais garantie | D12: 1000 | F12: Prêt interne N°2 (1) | H12: 13000 | K12: 220 | L12: 0.019 | CZ12: =$K$15>=$K$14 -> TRUE | DA12: =$K$15=INT($K$15) -> TRUE
B13: Parts sociales | D13: 200 | F13: Prêt interne N°3 (1) | H13: 14000 | K13: 230 | L13: 0.02 | CZ13: =$K$15=INT($K$15) -> TRUE | DA13: =$K$15>=12 -> TRUE
B14: Autres frais | F14: Prêt Interne "Emboîté" (2) | L14: =IF(K14<$L$25,$P$24,IF(K14<$L$26,$P$25,IF(K14<$L$27,$P$26,IF(K14<$L$28,$P$27,IF(K14<$L$29,$P$28,IF(K14<$L$30,$P$29,IF(K14<$L$31,$P$30,IF(K14<$L$32,$P$31,IF(K14<$L$33,$P$32,$P$33))))))))) -> 0.013 | CZ14: =$K$15>=12 -> TRUE | DA14: =$H$14>=1000 -> FALSE
B15: =MAX(K7:K15) -> 300 | F15: Prêt interne "Lisseur" (2) | H15: =D16-(SUM(H6:H14)) -> 107000 | K15: 240 | L15: =IF(K15<$L$25,$P$24,IF(K15<$L$26,$P$25,IF(K15<$L$27,$P$26,IF(K15<$L$28,$P$27,IF(K15<$L$29,$P$28,IF(K15<$L$30,$P$29,IF(K15<$L$31,$P$30,IF(K15<$L$32,$P$31,IF(K15<$L$33,$P$32,$P$33))))))))) -> 0.02 | CZ15: =$H$14>=1000 -> FALSE | DA15: =$H$14<=$F$19 -> TRUE
B16: Total Dépenses | D16: =SUM(D6:D15) -> 244700 | F16: Total Ressources = Recettes | H16: =SUM(H6:H15) -> 244700 | I16: =IF(AND(K24<>"",K14<>0),K24,"''Capital initial'' signifie que les primes d'assurances sont calculées sur le capital initial - Les échéances sont constantes") -> ''Capital initial'' signifie que les primes d'assurances sont calculées sur le capital initial - Les échéances sont constantes | CZ16: =$H$14<=$F$19 -> TRUE | DA16: =$C$22<=$C$19 -> TRUE
B17: (1) - Prêts à taux spécifiques type EL et/ou prêts avec taux d'appel indépendants de la durée | I17: "CRD Out" = les primes ADI sont calculées hors le taux d'intérêt sur le capital restant dû - Les échéances sont dégressives | CZ17: =$C$22<=$C$19 -> TRUE | DA17: =$F$22<=$E$19 -> FALSE
B18: (2) - Prêts internes dont les taux dépendent de la grille/hiérachie des taux donc fonction durée | I18: CRD In signifie que le taux ADI est ajouté au taux du prêt - Calcul sur capital restant dû - Les échéances sont constantes | CZ18: =$F$22<=$E$19 -> FALSE | DA18: =$C$22>=0 -> TRUE
C19: 1127.18 | D19: 0 | E19: 54482.8577 | F19: =D16-(H6+H7+H8+H9+H10+H11+H12+H13) -> 107000 | G19: =MAX(K14,K15) -> 240 | H19: 240 | W19: =MAX(K7,K8,K9,K11,K12,K13,K14,K15) -> 240 | CZ19: =$C$22>=0 -> TRUE | DA19: ={32767;32767;0.000001;0.01;FALSE;FALSE;TRUE;1;2;1;0.0001;TRUE} -> 32767
B20: Synthèse tous prêts confondus | K20: Capital initial | L20: Procédure d'optimisation du plan de financement | S20: Prêts extérieurs à la banque (Tels Prêts employeurs, Prêts CAF/MSA, Prêts Mutuelles, Prêts Caisses retraites, Prêts Fonctionnaires……) | AU20: Prêt à Taux Zéro éventuel plus autres Prêts internes à la banque (Tels Prêts CEL et PEL, Prêts à taux réduits, Prêt emboîtés, Prêt lisseur)+-+-+-+-+-+-+-+-+-+-+-+-+-+-+-++-+-+-+-+-+-+-+-+-+-+-+-+-+-+-+Prêt à Taux Zéro éventuel plus autres Prêts internes à la banque (Tels Prêts CEL et PEL, Prêts à taux réduits, Prêt emboîtés, Prêt lisseur)+-+-+-+-+-+-+-+-+-+-+-+-+-+-+-++-+-+-+-+-+-+-+-+-+-+-+-+-+-+-+Prêt à Taux Zéro éventuel plus autres Prêts internes à la banque (Tels Prêts CEL et PEL, Prêts à taux réduits, Prêt emboîtés, Prêt lisseur) | CZ20: ={32767;32767;0.000001;0.01;FALSE;FALSE;TRUE;1;2;1;0.0001;TRUE} -> 32767 | DA20: ={0;0;3;100;0;TRUE;FALSE;0.075;0;0;FALSE;30} -> 0
B21: Échéance lissée avec assurances | D21: Total intérêts | E21: Total assurances | F21: Coût total du crédit (***) | G21: Taux d'ensemble | H21: T.E.G (***) | I21: T.A.E.G (***) | K21: CRD Out | L21: Cliquer sur le bouton => => | S21: Prêt extérieur N°1 | AB21: =IF($M$7="Capital initial",1,IF($M$7="CRD Out",2,3)) -> 1 | AC21: Prêt extérieur N°2 | AK21: =IF($M$8="Capital initial",1,IF($M$8="CRD Out",2,3)) -> 1 | AL21: Prêt extérieur N°3 | AT21: =IF($M$9="Capital initial",1,IF($M$9="CRD Out",2,3)) -> 1 | AU21: Options Assurances ADI pour tous les prêts internes | AY21: Prêt à Taux Zéro (PTZ) | BI21: Prêt Interne N°1 à taux prédéfini indépendant de la grille/hiérarchie des taux (Type CEL, PEL ou autres à taux spécifique) | BQ21: Prêt Interne N°2 à taux prédéfini indépendant de la grille/hiérarchie des taux (Type CEL, PEL ou autres à taux spécifique) | BY21: Prêt Interne N°3 à taux prédéfini indépendant de la grille/hiérarchie des taux (Type CEL, PEL ou autres à taux spécifique) | CG21: Prêt Interne N°4 "emboîté" à taux dépendant de la grille/hiérarchie des taux (donc de la durée du prêt) | CO21: Prêt Interne N°5 "Lisseur" à taux dépendant de la grille/hiérarchie des taux (donc de la durée du prêt) | CZ21: ={0;0;3;100;0;TRUE;FALSE;0.075;0;0;FALSE;30} -> 0
B22: Rang échéance | C22: =ROUND(C28,2) -> 1127.18 | D22: =F388 -> 32887.3644 | E22: =D388 -> 29435 | F22: =D22+E22+D11+D12+D13 -> 64022.3644 | G22: =I388*12 -> 0.01147893336 | H22: =$J$388*12 -> 0.02191107056 | I22: =((1+$J$388)^(12))-1 -> 0.0221324589 | K22: CRD In | L22: =IF(D19=1,"Échéance cible retenue","Echéance cible assurances comprises maximale") -> Echéance cible assurances comprises maximale | Q22: =C19 -> 1127.18 | S22: Durée en mois | U22: Montant | V22: Taux | W22: Type ADI Base calcul | X22: Options Assurances ADI | AC22: Durée en mois | AD22: Montant | AE22: Taux | AF22: Type ADI Base calcul | AG22: Options Assurances ADI | AL22: Durée en mois | AM22: Montant | AN22: Taux | AO22: Type ADI Base calcul | AP22: Options Assurances ADI | AT22: =IF($M$10="Capital initial",1,IF($M$10="CRD Out",2,3)) -> 1 | AU22: Type ADI - Base calcul | AW22: =M10 -> Capital initial | AY22: Durée en mois | BB22: Montant | BC22: % Différé | BD22: % Amortissement | BE22: =$AP$22 -> Options Assurances ADI | BI22: Durée en mois | BJ22: Montant | BK22: Taux | BL22: =$AU$22 -> Type ADI - Base calcul | BM22: =$AP$22 -> Options Assurances ADI | BQ22: Durée en mois | BR22: Montant | BS22: Taux | BT22: =$AU$22 -> Type ADI - Base calcul | BU22: =$AP$22 -> Options Assurances ADI | BY22: Durée en mois | BZ22: Montant | CA22: Taux | CB22: =$AU$22 -> Type ADI - Base calcul | CC22: =$AP$22 -> Options Assurances ADI | CG22: Durée en mois | CH22: Montant | CI22: Taux | CJ22: =$AU$22 -> Type ADI - Base calcul | CK22: =$AP$22 -> Options Assurances ADI | CO22: Durée en mois | CP22: Montant | CQ22: Taux | CR22: =$AU$22 -> Type ADI - Base calcul | CS22: =$AP$22 -> Options Assurances ADI
C23: (***) - Ces résultats ne correspondent pas aux définitions légales qui ne prennent en compte que les seules charges rendues obligatoires par la banque. Il s'agit du "Coût du Crédit Financier", "T.E.G. Financier" et "T.A.E.G Financier" qui intègrent toutes les charges qu'elles soient obligatoires ou facultatives. | K23: =MIN(L14,L15) -> 0.013 | L23: Hiérarchie des Taux | Q23: Observations | X23: % Emprunteur 1 | Y23: =N7 -> 1 | Z23: % Emprunteur 2 | AA23: =O7 -> 1 | AG23: % Emprunteur 1 | AH23: =N8 -> 1 | AI23: % Emprunteur 2 | AJ23: =O8 -> 1 | AP23: % Emprunteur 1 | AQ23: =N9 -> 1 | AR23: % Emprunteur 2 | AS23: =O9 -> 1 | AU23: % Emprunteur 1 | AV23: =N10 -> 1 | AW23: % Emprunteur 2 | AX23: =O10 -> 1 | AY23: =IF(AY24>360,"IMPOSSIBLE","Totale") -> Totale | AZ23: =IF(J10>=AY24,"IMPOSSIBLE","Différé Total ou Partiel") -> Différé Total ou Partiel | BA23: Amortissement | BC23: =I10 -> 1 | BD23: =1-I10 -> 0 | BE23: =$AU$23 -> % Emprunteur 1 | BF23: =$N$10 -> 1 | BG23: =$AW$23 -> % Emprunteur 2 | BH23: =$O$10 -> 1 | BM23: =$AU$23 -> % Emprunteur 1 | BN23: =$N$10 -> 1 | BO23: =$AW$23 -> % Emprunteur 2 | BP23: =$O$10 -> 1 | BU23: =$AU$23 -> % Emprunteur 1 | BV23: =$N$10 -> 1 | BW23: =$AW$23 -> % Emprunteur 2 | BX23: =$O$10 -> 1 | CC23: =$AU$23 -> % Emprunteur 1 | CD23: =$N$10 -> 1 | CE23: =$AW$23 -> % Emprunteur 2 | CF23: =$O$10 -> 1 | CK23: =$AU$23 -> % Emprunteur 1 | CL23: =$N$10 -> 1 | CM23: =$AW$23 -> % Emprunteur 2 | CN23: =$O$10 -> 1 | CS23: =$AU$23 -> % Emprunteur 1 | CT23: =$N$10 -> 1 | CU23: =$AW$23 -> % Emprunteur 2 | CV23: =$O$10 -> 1
C24: Durée maximale | D24: Motant total | E24: =B11 -> Frais dossier | F24: =B12 -> Frais garantie | G24: =B13 -> Parts sociales | H24: =B14 -> Autres frais | I24: Total des frais bancaires | K24: =IF(L7>K23,"Pour une bonne optimisisation supprimer Prêt extérieur N°1 - Taux trop élevé",IF(L8>K23,"Pour une bonne optimisisation supprimer Prêt extérieur N°2 - Taux trop élevé",IF(L9>K23,"Pour une bonne optimisisation supprimer Prêt extérieur N°3 - Taux trop élevé",IF(L11>K23,"Pour une bonne optimisisation supprimer Prêt interne N°1 - Taux trop élevé",IF(L12>K23,"Pour une bonne optimisisation supprimer Prêt interne N°2 - Taux trop élevé",IF(L13>K23,"Pour une bonne optimisisation supprimer Prêt interne N°3 - Taux trop élevé","")))))) -> Pour une bonne optimisisation supprimer Prêt extérieur N°1 - Taux trop élevé | L24: 1 | M24: à | N24: 24 | O24: mois | P24: 0.013 | Q24: Renseigner les différents paliers de durées (Cellule "L23" et colonne "N") ainsi que les taux associés (Colonne "P") Puis cliquer sur le bouton "Optimisation" | S24: =K7 -> 180 | U24: =H7 -> 5000 | V24: =L7 -> 0.015 | W24: =M7 -> Capital initial | X24: Taux ADI 1 | Y24: =P7 -> 0.003 | Z24: Taux ADI 2 | AA24: =Q7 -> 0.003 | AC24: =K8 -> 190 | AD24: =H8 -> 10000 | AE24: =L8 -> 0.016 | AF24: =M8 -> Capital initial | AG24: Taux ADI 1 | AH24: =P8 -> 0.003 | AI24: Taux ADI 2 | AJ24: =Q8 -> 0.003 | AL24: =K9 -> 200 | AM24: =H9 -> 20000 | AN24: =L9 -> 0.017 | AO24: =M9 -> Capital initial | AP24: Taux ADI 1 | AQ24: =P9 -> 0.003 | AR24: Taux ADI 2 | AS24: =Q9 -> 0.003 | AU24: Taux ADI 1 | AV24: =P10 -> 0.003 | AW24: Taux ADI 2 | AX24: =Q10 -> 0.003 | AY24: =K10 -> 300 | AZ24: =J10 -> 180 | BA24: =AY24-J10 -> 120 | BB24: =H10 -> 60000 | BC24: =$BB$24*$I$10 -> 60000 | BD24: =BB24-BC24 -> 0 | BE24: =$AU$24 -> Taux ADI 1 | BF24: =$P$10 -> 0.003 | BG24: =$AW$24 -> Taux ADI 2 | BH24: =$Q$10 -> 0.003 | BI24: =K11 -> 210 | BJ24: =H11 -> 11000 | BK24: =L11 -> 0.018 | BL24: =$M$10 -> Capital initial | BM24: =$AU$24 -> Taux ADI 1 | BN24: =$P$10 -> 0.003 | BO24: =$AW$24 -> Taux ADI 2 | BP24: =$Q$10 -> 0.003 | BQ24: =K12 -> 220 | BR24: =H12 -> 13000 | BS24: =L12 -> 0.019 | BT24: =$M$10 -> Capital initial | BU24: =$AU$24 -> Taux ADI 1 | BV24: =$P$10 -> 0.003 | BW24: =$AW$24 -> Taux ADI 2 | BX24: =$Q$10 -> 0.003 | BY24: =K13 -> 230 | BZ24: =H13 -> 14000 | CA24: =L13 -> 0.02 | CB24: =$M$10 -> Capital initial | CC24: =$AU$24 -> Taux ADI 1 | CD24: =$P$10 -> 0.003 | CE24: =$AW$24 -> Taux ADI 2 | CF24: =$Q$10 -> 0.003 | CG24: =K14 -> 0 | CH24: =H14 -> 0 | CI24: =L14 -> 0.013 | CJ24: =$M$10 -> Capital initial | CK24: =$AU$24 -> Taux ADI 1 | CL24: =$P$10 -> 0.003 | CM24: =$AW$24 -> Taux ADI 2 | CN24: =$Q$10 -> 0.003 | CO24: =IF(K15=0,H15,K15) -> 240 | CP24: =H15 -> 107000 | CQ24: =L15 -> 0.02 | CR24: =$M$10 -> Capital initial | CS24: =$AU$24 -> Taux ADI 1 | CT24: =$P$10 -> 0.003 | CU24: =$AW$24 -> Taux ADI 2 | CV24: =$Q$10 -> 0.003
C25: =MAX(K7,K8,K9,K10,K11,K12,K13,K14,K15) -> 300 | D25: =H16-H6 -> 240000 | E25: =D11 -> 500 | F25: =D12 -> 1000 | G25: =D13 -> 200 | H25: =D14 -> 0 | I25: =E25+F25+G25+H25 -> 1700 | L25: =N24+1 -> 25 | M25: à | N25: 60 | O25: mois | P25: 0.014 | S25: Rang échéance | U25: Échéance avec ADI | V25: ADI | W25: Échéance hors ADI | X25: Intérêts | Y25: Capital amorti | Z25: Capital restant dû | AA25: Valeur actuelle échéances avec ADI | AC25: Rang échéance | AD25: Échéance avec ADI | AE25: ADI | AF25: Échéance hors ADI | AG25: Intérêts | AH25: Capital amorti | AI25: Capital restant dû | AJ25: Valeur actuelle échéances avec ADI | AL25: Rang échéance | AM25: Échéance avec ADI | AN25: ADI | AO25: Échéance hors ADI | AP25: Intérêts | AQ25: Capital amorti | AR25: Capital restant dû | AS25: Valeur actuelle échéances avec ADI | AU25: =IF($AT$22=2,"Type ADI - CRD Out signifie que le taux de prime ADI est hors du taux d'intérêt et s'applique sur le capital restant dû - Le montant des échéances ADI comprises n'est pas constant",IF($AT$22=3,"Type ADI - CRD In signifie que le taux de prime ADI s'ajoute au taux d'intérêt l'un et l'autre étant appliqué au capital restant dû - Le montant des échéances ADI compises est constant","Les primes ADI sont calculées sur le capital initial - Les échéances ADI comprises sont constantes")) -> Les primes ADI sont calculées sur le capital initial - Les échéances ADI comprises sont constantes | AY25: Rang échéance | BB25: Échéance avec ADI | BC25: ADI | BD25: Échéance hors ADI | BE25: Capital amorti | BF25: Capital restant dû | BG25: =$AU$22 -> Type ADI - Base calcul | BH25: =$M$10 -> Capital initial | BI25: Rang échéance | BJ25: Échéance avec ADI | BK25: ADI | BL25: Échéance hors ADI | BM25: Intérêts | BN25: Capital amorti | BO25: Capital restant dû | BP25: Valeur actuelle échéances avec ADI | BQ25: Rang échéance | BR25: Échéance avec ADI | BS25: ADI | BT25: Échéance hors ADI | BU25: Intérêts | BV25: Capital amorti | BW25: Capital restant dû | BX25: Valeur actuelle échéances avec ADI | BY25: Rang échéance | BZ25: Échéance avec ADI | CA25: ADI | CB25: Échéance hors ADI | CC25: Intérêts | CD25: Capital amorti | CE25: Capital restant dû | CF25: Valeur actuelle échéances avec ADI | CG25: Rang échéance | CH25: Échéance avec ADI | CI25: ADI | CJ25: Échéance hors ADI | CK25: Intérêts | CL25: Capital amorti | CM25: Capital restant dû | CN25: Valeur actuelle échéances avec ADI | CO25: Rang échéance | CP25: Échéance avec ADI | CQ25: ADI | CR25: Échéance hors ADI | CS25: Intérêts | CT25: Capital amorti | CU25: Capital restant dû | CV25: =IF($AT$22=2,"Si ADI CRD Out = Valeur actuelle ADI","") -> 
C26: Échéance avec ADI | D26: ADI | E26: Échéance hors ADI | F26: Intérêts | G26: Capital amorti | H26: Capital restant dû | J26: Net versé | L26: =N25+1 -> 61 | M26: à | N26: 84 | O26: mois | P26: 0.015 | S26: =IF($S$24>360,"IMPOSSIBLE - Durée maximale limitée à 360 mois",IF($AB$21=2,"Type ADI - CRD Out signifie que le taux de prime ADI est hors du taux d'intérêt et s'applique sur le capital restant dû - Le montant des échéances ADI comprises n'est pas constant",IF($AB$21=3,"Type ADI - CRD In signifie que le taux de prime ADI s'ajoute au taux d'intérêt l'un et l'autre étant appliqué au capital restant dû - Le montant des échéances ADI comprises est constant","Les primes ADI sont calculées sur le capital initial - Les échéances ADI comprises sont constantes"))) -> Les primes ADI sont calculées sur le capital initial - Les échéances ADI comprises sont constantes | AC26: =IF($AC$24>360,"IMPOSSIBLE - Durée maximale limitée à 360 mois",IF($AK$21=2,"Type ADI - CRD Out signifie que le taux de prime ADI est hors du taux d'intérêt et s'applique sur le capital restant dû - Le montant des échéances ADI comprises n'est pas constant",IF($AK$21=3,"Type ADI - CRD In signifie que le taux de prime ADI s'ajoute au taux d'intérêt l'un et l'autre étant appliqué au capital restant dû - Le montant des échéances ADI comprises est constant","Les primes ADI sont calculées sur le capital initial - Les échéances ADI comprises sont constantes"))) -> Les primes ADI sont calculées sur le capital initial - Les échéances ADI comprises sont constantes | AL26: =IF($AL$24>360,"IMPOSSIBLE - Durée maximale limitée à 360 mois",IF($AT$21=2,"Type ADI - CRD Out signifie que le taux de prime ADI est hors du taux d'intérêt et s'applique sur le capital restant dû - Le montant des échéances ADI comprises n'est pas constant",IF($AT$21=3,"Type ADI - CRD In signifie que le taux de prime ADI s'ajoute au taux d'intérêt l'un et l'autre étant appliqué au capital restant dû - Le montant des échéances ADI comprises est constant","Les primes ADI sont calculées sur le capital initial - Les échéances ADI comprises sont constantes"))) -> Les primes ADI sont calculées sur le capital initial - Les échéances ADI comprises sont constantes | AY26: =IF($AY$24>360,"IMPOSSIBLE - Durée maximale limitée à 360 mois",IF($AT$22=2,"Type ADI - CRD Out signifie que le taux de prime ADI est hors du taux d'intérêt et s'applique sur le capital restant dû - Le montant des échéances ADI comprises n'est pas constant",IF($AT$22=3,"Type ADI - CRD In signifie que le taux de prime ADI appliqué sur le capital restant dû","Les primes ADI sont calculées sur le capital initial - Les échéances ADI comprises sont constantes"))) -> Les primes ADI sont calculées sur le capital initial - Les échéances ADI comprises sont constantes | BG26: Valeur actuelle échéances avec ADI | BI26: =IF($BI$24>360,"IMPOSSIBLE - Durée maximale limitée à 360 mois",IF($AT$22=2,"Type ADI - CRD Out signifie que le taux de prime ADI est hors du taux d'intérêt et s'applique sur le capital restant dû - Le montant des échéances ADI comprises n'est pas constant",IF($AT$22=3,"Type ADI - CRD In signifie que le taux de prime ADI s'ajoute au taux d'intérêt l'un et l'autre étant appliqué au capital restant dû - Le montant des échéances ADI comprises est constant","Les primes ADI sont calculées sur le capital initial - Les échéances ADI comprises sont constantes"))) -> Les primes ADI sont calculées sur le capital initial - Les échéances ADI comprises sont constantes | BQ26: =IF($BQ$24>360,"IMPOSSIBLE - Durée maximale limitée à 360 mois",IF($AT$22=2,"Type ADI - CRD Out signifie que le taux de prime ADI est hors du taux d'intérêt et s'applique sur le capital restant dû - Le montant des échéances ADI comprises n'est pas constant",IF($AT$22=3,"Type ADI - CRD In signifie que le taux de prime ADI s'ajoute au taux d'intérêt l'un et l'autre étant au capital restant dû - Le montant des échéances ADI comprises est constant","Les primes ADI sont calculées sur le capital initial - Les échéances ADI comprises sont constantes"))) -> Les primes ADI sont calculées sur le capital initial - Les échéances ADI comprises sont constantes | BY26: =IF($BY$24>360,"IMPOSSIBLE - Durée maximale limitée à 360 mois",IF($AT$22=2,"Type ADI - CRD Out signifie que le taux de prime ADI est hors du taux d'intérêt et s'applique sur le capital restant dû - Le montant des échéances ADI comprises n'est pas constant",IF($AT$22=3,"Type ADI - CRD In signifie que le taux de prime ADI s'ajoute au taux d'intérêt l'un et l'autre étant appliqué au capital restant dû - Le montant des échéances ADI comprises est constant","Les primes ADI sont calculées sur le capital initial - Les échéances ADI comprises sont constantes"))) -> Les primes ADI sont calculées sur le capital initial - Les échéances ADI comprises sont constantes | CG26: =IF($CG$24>360,"IMPOSSIBLE - Durée maximale limitée à 360 mois",IF($AT$22=2,"Type ADI - CRD Out signifie que le taux de prime ADI est hors du taux d'intérêt et s'applique sur le capital restant dû - Le montant des échéances ADI comprises n'est pas constant",IF($AT$22=3,"Type ADI - CRD In signifie que le taux de prime ADI s'ajoute au taux d'intérêt l'un et l'autre étant appliqué au capital restant dû - Le montant des échéances ADI comprises est constant","Les primes ADI sont calculées sur le capital initial - Les échéances ADI comprises sont constantes"))) -> Les primes ADI sont calculées sur le capital initial - Les échéances ADI comprises sont constantes | CO26: =IF($CO$24>360,"IMPOSSIBLE - Durée maximale limitée à 360 mois",IF($AT$22=2,"Type ADI - CRD Out signifie que le taux de prime ADI est hors du taux d'intérêt et s'applique sur le capital restant dû - Le montant des échéances ADI comprises n'est pas constant",IF($AT$22=3,"Type ADI - CRD In signifie que le taux de prime ADI s'ajoute au taux d'intérêt l'un et l'autre étant appliqué au capital restant dû - Le montant des échéances ADI comprises est constant","Les primes ADI sont calculées sur le capital initial - Les échéances ADI comprises sont constantes"))) -> Les primes ADI sont calculées sur le capital initial - Les échéances ADI comprises sont constantes | CW26: Ech lisseur hors ADI | CX26: Ech globale avec ADI
B27: 0 | H27: =Z27+AI27+AR27+BF27+BO27+BW27+CE27+CM27+CU27 -> 240000 | I27: =D25 -> 240000 | J27: =D25-I25 -> 238300 | L27: 85 | M27: à | N27: 120 | O27: mois | P27: 0.016 | S27: 0 | T27: 0 | Z27: =U24 -> 5000 | AA27: =SUM(AA28:AA387) -> 5211.624895 | AC27: 0 | AI27: =AD24 -> 10000 | AJ27: =SUM(AJ28:AJ387) -> 10515.3511 | AL27: 0 | AR27: =AM24 -> 20000 | AS27: =SUM(AS28:AS387) -> 21229.13053 | AY27: =IF(S$227>$AY$24,0,AL27) -> 0 | AZ27: 0 | BA27: =IF(OR((AY27-$J$10)<0,AY27>$AY$24),0,AY27-$J$10) -> 0 | BF27: =BB24 -> 60000 | BG27: =SUM(BG28:BG387) -> 27068.21131 | BI27: 0 | BO27: =BJ24 -> 11000 | BP27: =SUM(BP28:BP387) -> 11792.8613 | BQ27: 0 | BW27: =BR24 -> 13000 | BX27: =SUM(BX28:BX387) -> 14084.36375 | BY27: 0 | CE27: =BZ24 -> 14000 | CF27: =SUM(CF28:CF387) -> 15336.42661 | CG27: 0 | CM27: =CH24 -> 0 | CN27: =SUM(CN28:CN387) -> 0 | CO27: 0 | CU27: =CP24 -> 107000 | CV27: =IF($AT$22=2,SUM(CV28:CV387),0) -> 0
B28: 1 | C28: =U28+AD28+AM28+BB28+BJ28+BR28+BZ28+CH28+CP28 -> 1127.176518 | D28: =V28+AE28+AN28+BC28+BK28+BS28+CA28+CI28+CQ28 -> 120 | E28: =W28+AF28+AO28+BD28+BL28+BT28+CB28+CJ28+CR28 -> 1007.176518 | F28: =X28+AG28+AP28+BM28+BU28+CC28+CK28+CS28 -> 286.6666667 | G28: =Y28+AH28+AQ28+BE28+BN28+BV28+CD28+CL28+CT28 -> 720.5098517 | H28: 239279.4901 | I28: =-(W28+AF28+AO28+BD28+BL28+BT28+CB28+CJ28+CR28) -> -1007.176518 | J28: =-C28 -> -1127.176518 | L28: 121 | M28: à | N28: 144 | O28: mois | P28: 0.017 | S28: 1 | T28: =IF($S28>$K$7,0,$S28) -> 1 | U28: =IF(S28>$S$24,0,IF($AB$21=3,IF(T28=$S$24,W28+V28,ROUND(-PMT(($V$24+($P$7*$N$7)+($Q$7*$O$7))/12,$S$24,$U$24,0,0),2)),W28+V28)) -> 33.54 | V28: =IF(S28>$S$24,0,IF($AB$21=1,TRUNC($U$24*$P$7*$N$7/12,2)+TRUNC($U$24*$Q$7*$O$7/12,2),IF($AB$21=2,TRUNC(Z27*$P$7*$N$7/12,2)+TRUNC(Z27*$Q$7*$O$7/12,2),TRUNC(Z27*$P$7*$N$7/12,2)+TRUNC(Z27*$Q$7*$O$7/12,2)))) -> 2.5 | W28: =IF(S28>$S$24,0,IF($AB$21=3,IF(T28=$S$24,Y28+X28,U28-V28),IF(T28=$S$24,Y28+X28,ROUND(-PMT($V$24/12,$S$24,$U$24,0,0),2)))) -> 31.04 | X28: =IF(S28>$S$24,0,Z27*$V$24/12) -> 6.25 | Y28: =IF(S28>$S$24,0,(IF(T28=$S$24,Z27,W28-X28))) -> 24.79 | Z28: =IF(S28>$S$24,0,Z27-Y28) -> 4975.21 | AA28: =IF(S28>$K$15,0,IF($AT$22<>3,U28*((1+($L$15/12))^(-T28)),U28*((1+(($L$15+($P$7*$N$7)+($Q$7*$O$7))/12))^(-T28)))) -> 33.48419301 | AC28: =IF($S28>$K$8,0,$S28) -> 1 | AD28: =IF(S28>$AC$24,0,IF($AK$21=3,IF(AC28=$AC$24,AF28+AE28,ROUND(-PMT(($AE$24+($P$8*$N$8)+($Q$8*$O$8))/12,$AC$24,$AD$24,0,0),2)),AF28+AE28)) -> 64.61 | AE28: =IF(S28>$AC$24,0,IF($AK$21=1,TRUNC($AD$24*$P$8*$N$8/12,2)+TRUNC($AD$24*$Q$8*$O$8/12,2),IF($AK$21=2,TRUNC(AI27*$P$8*$N$8/12,2)+TRUNC(AI27*$Q$8*$O$8/12,2),TRUNC(AI27*$P$8*$N$8/12,2)+TRUNC(AI27*$Q$8*$O$8/12,2)))) -> 5 | AF28: =IF(S28>$AC$24,0,IF($AK$21=3,IF(AC28=$AC$24,AH28+AG28,AD28-AE28),IF(AC28=$AC$24,AH28+AG28,ROUND(-PMT($AE$24/12,$AC$24,$AD$24,0,0),2)))) -> 59.61 | AG28: =IF(S28>$AC$24,0,AI27*$AE$24/12) -> 13.33333333 | AH28: =IF(S28>$AC$24,0,(IF(AC28=$AC$24,AI27,AF28-AG28))) -> 46.27666667 | AI28: =IF(S28>$AC$24,0,AI27-AH28) -> 9953.723333 | AJ28: =IF(AC28>$K$15,0,IF($AT$22<>3,AD28*((1+($L$15/12))^(-AC28)),AD28*((1+(($L$15+($P$7*$N$7)+($Q$7*$O$7))/12))^(-AC28)))) -> 64.50249584 | AL28: =IF($S28>$K$9,0,$S28) -> 1 | AM28: =IF(S28>$AL$24,0,IF($AT$21=3,IF(AL28=$AL$24,AO28+AN28,ROUND(-PMT(($AN$24+($P$9*$N$9)+($Q$9*$O$9))/12,$AL$24,$AM$24,0,0),2)),AO28+AN28)) -> 124.91 | AN28: =IF(S28>$AL$24,0,IF($AT$21=1,TRUNC($AM$24*$P$9*$N$9/12,2)+TRUNC($AM$24*$Q$9*$O$9/12,2),IF($AT$21=2,TRUNC(AR27*$P$9*$N$9/12,2)+TRUNC(AR27*$Q$9*$O$9/12,2),TRUNC(AR27*$P$9*$N$9/12,2)+TRUNC(AR27*$Q$9*$O$9/12,2)))) -> 10 | AO28: =IF(S28>$AL$24,0,IF($AT$21=3,IF(AL28=$AL$24,AQ28+AP28,AM28-AN28),IF(AL28=$AL$24,AQ28+AP28,ROUND(-PMT($AN$24/12,$AL$24,$AM$24,0,0),2)))) -> 114.91 | AP28: =IF(S28>$AL$24,0,AR27*$AN$24/12) -> 28.33333333 | AQ28: =IF(S28>$AL$24,0,(IF(AL28=$AL$24,AR27,AO28-AP28))) -> 86.57666667 | AR28: =IF(AL28>$AL$24,0,AR27-AQ28) -> 19913.42333 | AS28: =IF(AL28>$K$15,0,IF($AT$22<>3,AM28*((1+($L$15/12))^(-AL28)),AM28*((1+(($L$15+($P$7*$N$7)+($Q$7*$O$7))/12))^(-AL28)))) -> 124.7021631 | AY28: =IF($S28>$AY$24,0,$S28) -> 1 | AZ28: =IF(AY28>$J$10,0,AY28) -> 1 | BA28: 0 | BB28: =BD28+BC28 -> 30 | BC28: =IF(AY28=0,0,IF(AY28>$AY$24,0,IF($AT$22=1,TRUNC($BB$24*$P$10*$N$10/12,2)+TRUNC($BB$24*$Q$10*$O$10/12,2),IF($AT$22=2,TRUNC(BF27*$P$10*$N$10/12,2)+TRUNC(BF27*$Q$10*$O$10/12,2),TRUNC(BF27*$P$10*$N$10/12,2)+TRUNC(BF27*$Q$10*$O$10/12,2))))) -> 30 | BD28: =IF(AY28=0,0,IF(AY28<=$J$10,$BB$24*$BD$23/$J$10,$BB$24*$I$10/$BA$24)) -> 0 | BE28: =BD28 -> 0 | BF28: =BF27-BE28 -> 60000 | BG28: =IF(AY28>$K$15,0,IF($AT$22<>3,BB28*(1+($L$15/12))^(-AY28),BB28*((1+(($L$15+($P$10*$N$10)+($Q$10*$O$10))/12))^(-AY28)))) -> 29.95008319 | BI28: =IF($S28>$K$11,0,$S28) -> 1 | BJ28: =IF($S28>$BI$24,0,IF($AT$22=3,IF(BI28=$BI$24,BL28+BK28,ROUND(-PMT(($BK$24+($P$10*$N$10)+($Q$10*$O$10))/12,$BI$24,$BJ$24,0,0),2)),BL28+BK28)) -> 66.6 | BK28: =IF($S28>$BI$24,0,IF($AT$22=1,TRUNC($BJ$24*$P$10*$N$10/12,2)+TRUNC($BJ$24*$Q$10*$O$10/12,2),IF($AT$22=2,TRUNC(BO27*$P$10*$N$10/12,2)+TRUNC(BO27*$Q$10*$O$10/12,2),TRUNC(BO27*$P$10*$N$10/12,2)+TRUNC(BO27*$Q$10*$O$10/12,2)))) -> 5.5 | BL28: =IF($S28>$BI$24,0,IF($AT$22=3,IF(BI28=$BI$24,BN28+BM28,BJ28-BK28),IF(BI28=$BI$24,BN28+BM28,ROUND(-PMT($BK$24/12,$BI$24,$BJ$24,0,0),2)))) -> 61.1 | BM28: =IF($S28>$BI$24,0,BO27*$BK$24/12) -> 16.5 | BN28: =IF($S28>$BI$24,0,(IF(BI28=$BI$24,BO27,BL28-BM28))) -> 44.6 | BO28: =IF($S28>$BI$24,0,BO27-BN28) -> 10955.4 | BP28: =IF(BI28>$K$15,0,IF(BI28>$BI$24,0,IF($AT$22<>3,BJ28*(1+($L$15/12))^(-BI28),BJ28*((1+(($L$15+($P$10*$N$10)+($Q$10*$O$10))/12))^(-BI28))))) -> 66.48918469 | BQ28: =IF($S28>$K$12,0,$S28) -> 1 | BR28: =IF($S28>$BQ$24,0,IF($AT$22=3,IF(BQ28=$BQ$24,BT28+BS28,ROUND(-PMT(($BS$24+($P$10*$N$10)+($Q$10*$O$10))/12,$BQ$24,$BR$24,0,0),2)),BT28+BS28)) -> 76.53 | BS28: =IF($S28>$BQ$24,0,IF($AT$22=1,TRUNC($BR$24*$P$10*$N$10/12,2)+TRUNC($BR$24*$Q$10*$O$10/12,2),IF($AT$22=2,TRUNC(BW27*$P$10*$N$10/12,2)+TRUNC(BW27*$Q$10*$O$10/12,2),TRUNC(BW27*$P$10*$N$10/12,2)+TRUNC(BW27*$Q$10*$O$10/12,2)))) -> 6.5 | BT28: =IF($S28>$BQ$24,0,IF($AT$22=3,IF(BQ28=$BQ$24,BV28+BU28,BR28-BS28),IF(BQ28=$BQ$24,BV28+BU28,ROUND(-PMT($BS$24/12,$BQ$24,$BR$24,0,0),2)))) -> 70.03 | BU28: =IF($S28>$BQ$24,0,BW27*$BS$24/12) -> 20.58333333 | BV28: =IF($S28>$BQ$24,0,(IF(BQ28=$BQ$24,BW27,BT28-BU28))) -> 49.44666667 | BW28: =IF($S28>$BQ$24,0,BW27-BV28) -> 12950.55333 | BX28: =IF(BQ28>$K$15,0,IF(BQ28>$BQ$24,0,IF($AT$22<>3,BR28*(1+($L$15/12))^(-BQ28),BR28*((1+(($L$15+($P$10*$N$10)+($Q$10*$O$10))/12))^(-BQ28))))) -> 76.40266223 | BY28: =IF($S28>$K$13,0,$S28) -> 1 | BZ28: =IF($S28>$BY$24,0,IF($AT$22=3,IF(BY28=$BY$24,CB28+CA28,ROUND(-PMT(($CA$24+($P$10*$N$10)+($Q$10*$O$10))/12,$BY$24,$BZ$24,0,0),2)),CB28+CA28)) -> 80.33 | CA28: =IF($S28>$BY$24,0,IF($AT$22=1,TRUNC($BZ$24*$P$10*$N$10/12,2)+TRUNC($BZ$24*$Q$10*$O$10/12,2),IF($AT$22=2,TRUNC(CE27*$P$10*$N$10/12,2)+TRUNC(CE27*$Q$10*$O$10/12,2),TRUNC(CE27*$P$10*$N$10/12,2)+TRUNC(CE27*$Q$10*$O$10/12,2)))) -> 7 | CB28: =IF($S28>$BY$24,0,IF($AT$22=3,IF(BY28=$BY$24,CD28+CC28,BZ28-CA28),IF(BY28=$BY$24,CD28+CC28,ROUND(-PMT($CA$24/12,$BY$24,$BZ$24,0,0),2)))) -> 73.33 | CC28: =IF($S28>$BY$24,0,CE27*$CA$24/12) -> 23.33333333 | CD28: =IF($S28>$BY$24,0,(IF(BY28=$BY$24,CE27,CB28-CC28))) -> 49.99666667 | CE28: =IF($S28>$BY$24,0,CE27-CD28) -> 13950.00333 | CF28: =IF(BY28>$K$15,0,IF($AT$22<>3,BZ28*(1+($L$15/12))^(-BY28),BZ28*((1+(($L$15+($P$10*$N$10)+($Q$10*$O$10))/12))^(-BY28)))) -> 80.19633943 | CG28: =IF($S28>$K$14,0,$S28) -> 0 | CH28: =IF($S28>$CG$24,0,IF($AT$22=3,IF(CG28=$CG$24,CJ28+CI28,ROUND(-PMT(($CI$24+($P$10*$N$10)+($Q$10*$O$10))/12,$CG$24,$CH$24,0,0),2)),CJ28+CI28)) -> 0 | CI28: =IF($S28>$CG$24,0,IF($AT$22=1,TRUNC($CH$24*$P$10*$N$10/12,2)+TRUNC($CH$24*$Q$10*$O$10/12,2),IF($AT$22=2,TRUNC(CM27*$P$10*$N$10/12,2)+TRUNC(CM27*$Q$10*$O$10/12,2),TRUNC(CM27*$P$10*$N$10/12,2)+TRUNC(CM27*$Q$10*$O$10/12,2)))) -> 0 | CJ28: =IF($S28>$CG$24,0,IF($AT$22=3,IF(CG28=$CG$24,CL28+CK28,CH28-CI28),IF(CG28=$CG$24,CL28+CK28,ROUND(-PMT($CI$24/12,$CG$24,$CH$24,0,0),2)))) -> 0 | CK28: =IF($S28>$CG$24,0,CM27*$CI$24/12) -> 0 | CL28: =IF($S28>$CG$24,0,(IF(CG28=$CG$24,CM27,CJ28-CK28))) -> 0 | CM28: =IF($S28>$CG$24,0,CM27-CL28) -> 0 | CN28: =IF(CG28>$K$15,0,IF($AT$22<>3,CH28*(1+($L$15/12))^(-CG28),CH28*((1+(($L$15+($P$10*$N$10)+($Q$10*$O$10))/12))^(-CG28)))) -> 0 | CO28: =IF($S28>$K$15,0,$S28) -> 1 | CP28: =IF($S28>$F$402,0,IF($AT$22<>3,CW28+CQ28,IF(CO28=$CO$24,CR28+CQ28,CW28))) -> 650.6565183 | CQ28: =IF($S28>$CO$24,0,IF($AT$22=1,TRUNC($CP$24*$P$10*$N$10/12,2)+TRUNC($CP$24*$Q$10*$O$10/12,2),IF($AT$22=2,TRUNC(CU27*$P$10*$N$10/12,2)+TRUNC(CU27*$Q$10*$O$10/12,2),TRUNC(CU27*$P$10*$N$10/12,2)+TRUNC(CU27*$Q$10*$O$10/12,2)))) -> 53.5 | CR28: =IF($S28>$F$402,0,IF($AT$22<>3,CW28,IF(CO28=$CO$24,CT28+CS28,CP28-CQ28))) -> 597.1565183 | CS28: =IF($S28>$CO$24,0,CU27*$CQ$24/12) -> 178.3333333 | CT28: =IF($S28>$CO$24,0,(IF(CO28=$CO$24,CU27,CR28-CS28))) -> 418.823185 | CU28: =IF($S28>$CO$24,0,CU27-CT28) -> 106581.1768 | CV28: =IF($AT$22=2,CQ28*((1+($CQ$24/12))^(-CO28)),0) -> 0 | CW28: =IF($S28>$F$402,0,IF($AT$22<>2,$H$402-U28-AD28-AM28-BB28-BJ28-BR28-BZ28-CH28,$H$402-U28-AD28-AM28-BB28-BJ28-BR28-BZ28-CH28-CQ28)) -> 597.1565183 | CX28: =U28+AD28+AM28+BB28+BJ28+BR28+BZ28+CH28+CP28 -> 1127.176518
B29: 2 | C29: 1127.176518 | D29: 120 | E29: 1007.176518 | F29: 285.5247697 | G29: 721.6517487 | H29: 238557.8384 | I29: =-(W29+AF29+AO29+BD29+BL29+BT29+CB29+CJ29+CR29) -> -1007.176518 | J29: =-C29 -> -1127.176518 | L29: 145 | M29: à | N29: 180 | O29: mois | P29: 0.018 | S29: 2 | T29: 2 | U29: 33.54 | V29: 2.5 | W29: 31.04 | X29: 6.2190125 | Y29: 24.8209875 | Z29: 4950.389012 | AA29: 33.42847888 | AC29: 2 | AD29: 64.61 | AE29: 5 | AF29: 59.61 | AG29: 13.27163111 | AH29: 46.33836889 | AI29: 9907.384964 | AJ29: 64.39517056 | AL29: 2 | AM29: 124.91 | AN29: 10 | AO29: 114.91 | AP29: 28.21068306 | AQ29: 86.69931694 | AR29: 19826.72402 | AS29: 124.4946719 | AY29: 2 | AZ29: 2 | BA29: 0 | BB29: =BD29+BC29 -> 30 | BC29: 30 | BD29: 0 | BE29: =BD29 -> 0 | BF29: 60000 | BG29: 29.90024945 | BI29: 2 | BJ29: 66.6 | BK29: 5.5 | BL29: 61.1 | BM29: 16.4331 | BN29: 44.6669 | BO29: 10910.7331 | BP29: 66.37855377 | BQ29: 2 | BR29: 76.53 | BS29: 6.5 | BT29: 70.03 | BU29: 20.50504278 | BV29: 49.52495722 | BW29: 12901.02838 | BX29: 76.27553634 | BY29: 2 | BZ29: 80.33 | CA29: 7 | CB29: 73.33 | CC29: 23.25000556 | CD29: 50.07999444 | CE29: 13899.92334 | CF29: 80.06290127 | CG29: 0 | CH29: 0 | CI29: 0 | CJ29: 0 | CK29: 0 | CL29: 0 | CM29: 0 | CN29: 0 | CO29: 2 | CP29: 650.6565183 | CQ29: 53.5 | CR29: 597.1565183 | CS29: 177.6352947 | CT29: 419.5212237 | CU29: 106161.6556 | CV29: 0 | CW29: 597.1565183 | CX29: =U29+AD29+AM29+BB29+BJ29+BR29+BZ29+CH29+CP29 -> 1127.176518
B30: 3 | C30: 1127.176518 | D30: 120 | E30: 1007.176518 | F30: 284.3810514 | G30: 722.795467 | H30: 237835.0429 | I30: -1007.176518 | J30: -1127.176518 | L30: 181 | M30: à | N30: 216 | O30: mois | P30: 0.019 | S30: 3 | T30: 3 | U30: 33.54 | V30: 2.5 | W30: 31.04 | X30: 6.187986266 | Y30: 24.85201373 | Z30: 4925.536999 | AA30: 33.37285745 | AC30: 3 | AD30: 64.61 | AE30: 5 | AF30: 59.61 | AG30: 13.20984662 | AH30: 46.40015338 | AI30: 9860.984811 | AJ30: 64.28802385 | AL30: 3 | AM30: 124.91 | AN30: 10 | AO30: 114.91 | AP30: 28.08785902 | AQ30: 86.82214098 | AR30: 19739.90188 | AS30: 124.2875261 | AY30: 3 | AZ30: 3 | BA30: 0 | BB30: 30 | BC30: 30 | BD30: 0 | BE30: 0 | BF30: 60000 | BG30: 29.85049861 | BI30: 3 | BJ30: 66.6 | BK30: 5.5 | BL30: 61.1 | BM30: 16.36609965 | BN30: 44.73390035 | BO30: 10865.9992 | BP30: 66.26810692 | BQ30: 3 | BR30: 76.53 | BS30: 6.5 | BT30: 70.03 | BU30: 20.42662826 | BV30: 49.60337174 | BW30: 12851.425 | BX30: 76.14862197 | BY30: 3 | BZ30: 80.33 | CA30: 7 | CB30: 73.33 | CC30: 23.1665389 | CD30: 50.1634611 | CE30: 13849.75988 | CF30: 79.92968512 | CG30: 0 | CH30: 0 | CI30: 0 | CJ30: 0 | CK30: 0 | CL30: 0 | CM30: 0 | CN30: 0 | CO30: 3 | CP30: 650.6565183 | CQ30: 53.5 | CR30: 597.1565183 | CS30: 176.9360927 | CT30: 420.2204257 | CU30: 105741.4352 | CV30: 0 | CW30: 597.1565183 | CX30: 1127.176518
B31: 4 | C31: 1127.176518 | D31: 120 | E31: 1007.176518 | F31: 283.2355088 | G31: 723.9410096 | H31: 237111.1019 | I31: -1007.176518 | J31: -1127.176518 | L31: 217 | M31: à | N31: 240 | O31: mois | P31: 0.02 | S31: 4 | T31: 4 | U31: 33.54 | V31: 2.5 | W31: 31.04 | X31: 6.156921248 | Y31: 24.88307875 | Z31: 4900.65392 | AA31: 33.31732857 | AC31: 4 | AD31: 64.61 | AE31: 5 | AF31: 59.61 | AG31: 13.14797975 | AH31: 46.46202025 | AI31: 9814.522791 | AJ31: 64.18105542 | AL31: 4 | AM31: 124.91 | AN31: 10 | AO31: 114.91 | AP31: 27.96486099 | AQ31: 86.94513901 | AR31: 19652.95674 | AS31: 124.0807249 | AY31: 4 | AZ31: 4 | BA31: 0 | BB31: 30 | BC31: 30 | BD31: 0 | BE31: 0 | BF31: 60000 | BG31: 29.80083056 | BI31: 4 | BJ31: 66.6 | BK31: 5.5 | BL31: 61.1 | BM31: 16.2989988 | BN31: 44.8010012 | BO31: 10821.1982 | BP31: 66.15784385 | BQ31: 4 | BR31: 76.53 | BS31: 6.5 | BT31: 70.03 | BU31: 20.34808959 | BV31: 49.68191041 | BW31: 12801.74309 | BX31: 76.02191877 | BY31: 4 | BZ31: 80.33 | CA31: 7 | CB31: 73.33 | CC31: 23.08293313 | CD31: 50.24706687 | CE31: 13799.51281 | CF31: 79.79669064 | CG31: 0 | CH31: 0 | CI31: 0 | CJ31: 0 | CK31: 0 | CL31: 0 | CM31: 0 | CN31: 0 | CO31: 4 | CP31: 650.6565183 | CQ31: 53.5 | CR31: 597.1565183 | CS31: 176.2357253 | CT31: 420.9207931 | CU31: 105320.5144 | CV31: 0 | CW31: 597.1565183 | CX31: 1127.176518
B32: 5 | C32: 1127.176518 | D32: 120 | E32: 1007.176518 | F32: 282.088139 | G32: 725.0883793 | H32: 236386.0135 | I32: -1007.176518 | J32: -1127.176518 | L32: 241 | M32: à | N32: 300 | O32: mois | P32: 0.021 | S32: 5 | T32: 5 | U32: 33.54 | V32: 2.5 | W32: 31.04 | X32: 6.1258174 | Y32: 24.9141826 | Z32: 4875.739737 | AA32: 33.26189208 | AC32: 5 | AD32: 64.61 | AE32: 5 | AF32: 59.61 | AG32: 13.08603039 | AH32: 46.52396961 | AI32: 9767.998821 | AJ32: 64.07426498 | AL32: 5 | AM32: 124.91 | AN32: 10 | AO32: 114.91 | AP32: 27.84168871 | AQ32: 87.06831129 | AR32: 19565.88843 | AS32: 123.8742677 | AY32: 5 | AZ32: 5 | BA32: 0 | BB32: 30 | BC32: 30 | BD32: 0 | BE32: 0 | BF32: 60000 | BG32: 29.75124516 | BI32: 5 | BJ32: 66.6 | BK32: 5.5 | BL32: 61.1 | BM32: 16.2317973 | BN32: 44.8682027 | BO32: 10776.33 | BP32: 66.04776424 | BQ32: 5 | BR32: 76.53 | BS32: 6.5 | BT32: 70.03 | BU32: 20.26942657 | BV32: 49.76057343 | BW32: 12751.98252 | BX32: 75.89542639 | BY32: 5 | BZ32: 80.33 | CA32: 7 | CB32: 73.33 | CC32: 22.99918802 | CD32: 50.33081198 | CE32: 13749.182 | CF32: 79.66391744 | CG32: 0 | CH32: 0 | CI32: 0 | CJ32: 0 | CK32: 0 | CL32: 0 | CM32: 0 | CN32: 0 | CO32: 5 | CP32: 650.6565183 | CQ32: 53.5 | CR32: 597.1565183 | CS32: 175.5341906 | CT32: 421.6223277 | CU32: 104898.892 | CV32: 0 | CW32: 597.1565183 | CX32: 1127.176518
B33: 6 | C33: 1127.176518 | D33: 120 | E33: 1007.176518 | F33: 280.9389391 | G33: 726.2375793 | H33: 235659.776 | I33: -1007.176518 | J33: -1127.176518 | L33: 301 | M33: à | N33: 360 | O33: mois | P33: 0.022 | S33: 6 | T33: 6 | U33: 33.54 | V33: 2.5 | W33: 31.04 | X33: 6.094674672 | Y33: 24.94532533 | Z33: 4850.794412 | AA33: 33.20654784 | AC33: 6 | AD33: 64.61 | AE33: 5 | AF33: 59.61 | AG33: 13.02399843 | AH33: 46.58600157 | AI33: 9721.41282 | AJ33: 63.96765223 | AL33: 6 | AM33: 124.91 | AN33: 10 | AO33: 114.91 | AP33: 27.71834194 | AQ33: 87.19165806 | AR33: 19478.69677 | AS33: 123.6681542 | AY33: 6 | AZ33: 6 | BA33: 0 | BB33: 30 | BC33: 30 | BD33: 0 | BE33: 0 | BF33: 60000 | BG33: 29.70174225 | BI33: 6 | BJ33: 66.6 | BK33: 5.5 | BL33: 61.1 | BM33: 16.16449499 | BN33: 44.93550501 | BO33: 10731.39449 | BP33: 65.9378678 | BQ33: 6 | BR33: 76.53 | BS33: 6.5 | BT33: 70.03 | BU33: 20.19063899 | BV33: 49.83936101 | BW33: 12702.14316 | BX33: 75.76914448 | BY33: 6 | BZ33: 80.33 | CA33: 7 | CB33: 73.33 | CC33: 22.91530333 | CD33: 50.41469667 | CE33: 13698.7673 | CF33: 79.53136517 | CG33: 0 | CH33: 0 | CI33: 0 | CJ33: 0 | CK33: 0 | CL33: 0 | CM33: 0 | CN33: 0 | CO33: 6 | CP33: 650.6565183 | CQ33: 53.5 | CR33: 597.1565183 | CS33: 174.8314867 | CT33: 422.3250316 | CU33: 104476.567 | CV33: 0 | CW33: 597.1565183 | CX33: 1127.176518
B34: 7 | C34: 1127.176518 | D34: 120 | E34: 1007.176518 | F34: 279.7879061 | G34: 727.3886122 | H34: 234932.3874 | I34: -1007.176518 | J34: -1127.176518 | S34: 7 | T34: 7 | U34: 33.54 | V34: 2.5 | W34: 31.04 | X34: 6.063493015 | Y34: 24.97650698 | Z34: 4825.817905 | AA34: 33.15129568 | AC34: 7 | AD34: 64.61 | AE34: 5 | AF34: 59.61 | AG34: 12.96188376 | AH34: 46.64811624 | AI34: 9674.764703 | AJ34: 63.86121687 | AL34: 7 | AM34: 124.91 | AN34: 10 | AO34: 114.91 | AP34: 27.59482042 | AQ34: 87.31517958 | AR34: 19391.38159 | AS34: 123.4623835 | AY34: 7 | AZ34: 7 | BA34: 0 | BB34: 30 | BC34: 30 | BD34: 0 | BE34: 0 | BF34: 60000 | BG34: 29.65232172 | BI34: 7 | BJ34: 66.6 | BK34: 5.5 | BL34: 61.1 | BM34: 16.09709174 | BN34: 45.00290826 | BO34: 10686.39158 | BP34: 65.82815421 | BQ34: 7 | BR34: 76.53 | BS34: 6.5 | BT34: 70.03 | BU34: 20.11172667 | BV34: 49.91827333 | BW34: 12652.22489 | BX34: 75.6430727 | BY34: 7 | BZ34: 80.33 | CA34: 7 | CB34: 73.33 | CC34: 22.83127884 | CD34: 50.49872116 | CE34: 13648.26858 | CF34: 79.39903345 | CG34: 0 | CH34: 0 | CI34: 0 | CJ34: 0 | CK34: 0 | CL34: 0 | CM34: 0 | CN34: 0 | CO34: 7 | CP34: 650.6565183 | CQ34: 53.5 | CR34: 597.1565183 | CS34: 174.1276117 | CT34: 423.0289067 | CU34: 104053.5381 | CV34: 0 | CW34: 597.1565183 | CX34: 1127.176518
B35: 8 | C35: 1127.176518 | D35: 120 | E35: 1007.176518 | F35: 278.6350372 | G35: 728.5414812 | H35: 234203.8459 | I35: -1007.176518 | J35: -1127.176518 | S35: 8 | T35: 8 | U35: 33.54 | V35: 2.5 | W35: 31.04 | X35: 6.032272381 | Y35: 25.00772762 | Z35: 4800.810177 | AA35: 33.09613545 | AC35: 8 | AD35: 64.61 | AE35: 5 | AF35: 59.61 | AG35: 12.89968627 | AH35: 46.71031373 | AI35: 9628.05439 | AJ35: 63.7549586 | AL35: 8 | AM35: 124.91 | AN35: 10 | AO35: 114.91 | AP35: 27.47112392 | AQ35: 87.43887608 | AR35: 19303.94271 | AS35: 123.2569553 | AY35: 8 | AZ35: 8 | BA35: 0 | BB35: 30 | BC35: 30 | BD35: 0 | BE35: 0 | BF35: 60000 | BG35: 29.60298341 | BI35: 8 | BJ35: 66.6 | BK35: 5.5 | BL35: 61.1 | BM35: 16.02958737 | BN35: 45.07041263 | BO35: 10641.32117 | BP35: 65.71862317 | BQ35: 8 | BR35: 76.53 | BS35: 6.5 | BT35: 70.03 | BU35: 20.0326894 | BV35: 49.9973106 | BW35: 12602.22758 | BX35: 75.51721068 | BY35: 8 | BZ35: 80.33 | CA35: 7 | CB35: 73.33 | CC35: 22.7471143 | CD35: 50.5828857 | CE35: 13597.6857 | CF35: 79.26692191 | CG35: 0 | CH35: 0 | CI35: 0 | CJ35: 0 | CK35: 0 | CL35: 0 | CM35: 0 | CN35: 0 | CO35: 8 | CP35: 650.6565183 | CQ35: 53.5 | CR35: 597.1565183 | CS35: 173.4225635 | CT35: 423.7339548 | CU35: 103629.8042 | CV35: 0 | CW35: 597.1565183 | CX35: 1127.176518
B36: 9 | C36: 1127.176518 | D36: 120 | E36: 1007.176518 | F36: 277.4803292 | G36: 729.6961891 | H36: 233474.1497 | I36: -1007.176518 | J36: -1127.176518 | S36: 9 | T36: 9 | U36: 33.54 | V36: 2.5 | W36: 31.04 | X36: 6.001012722 | Y36: 25.03898728 | Z36: 4775.77119 | AA36: 33.04106701 | AC36: 9 | AD36: 64.61 | AE36: 5 | AF36: 59.61 | AG36: 12.83740585 | AH36: 46.77259415 | AI36: 9581.281796 | AJ36: 63.64887714 | AL36: 9 | AM36: 124.91 | AN36: 10 | AO36: 114.91 | AP36: 27.34725217 | AQ36: 87.56274783 | AR36: 19216.37996 | AS36: 123.0518688 | AY36: 9 | AZ36: 9 | BA36: 0 | BB36: 30 | BC36: 30 | BD36: 0 | BE36: 0 | BF36: 60000 | BG36: 29.5537272 | BI36: 9 | BJ36: 66.6 | BK36: 5.5 | BL36: 61.1 | BM36: 15.96198175 | BN36: 45.13801825 | BO36: 10596.18315 | BP36: 65.60927438 | BQ36: 9 | BR36: 76.53 | BS36: 6.5 | BT36: 70.03 | BU36: 19.95352699 | BV36: 50.07647301 | BW36: 12552.1511 | BX36: 75.39155808 | BY36: 9 | BZ36: 80.33 | CA36: 7 | CB36: 73.33 | CC36: 22.66280949 | CD36: 50.66719051 | CE36: 13547.0185 | CF36: 79.13503019 | CG36: 0 | CH36: 0 | CI36: 0 | CJ36: 0 | CK36: 0 | CL36: 0 | CM36: 0 | CN36: 0 | CO36: 9 | CP36: 650.6565183 | CQ36: 53.5 | CR36: 597.1565183 | CS36: 172.7163403 | CT36: 424.4401781 | CU36: 103205.364 | CV36: 0 | CW36: 597.1565183 | CX36: 1127.176518
B37: 10 | C37: 1127.176518 | D37: 120 | E37: 1007.176518 | F37: 276.3237794 | G37: 730.8527389 | H37: 232743.2969 | I37: -1007.176518 | J37: -1127.176518 | S37: 10 | T37: 10 | U37: 33.54 | V37: 2.5 | W37: 31.04 | X37: 5.969713988 | Y37: 25.07028601 | Z37: 4750.700904 | AA37: 32.98609019 | AC37: 10 | AD37: 64.61 | AE37: 5 | AF37: 59.61 | AG37: 12.77504239 | AH37: 46.83495761 | AI37: 9534.446838 | AJ37: 63.54297219 | AL37: 10 | AM37: 124.91 | AN37: 10 | AO37: 114.91 | AP37: 27.22320495 | AQ37: 87.68679505 | AR37: 19128.69317 | AS37: 122.8471236 | AY37: 10 | AZ37: 10 | BA37: 0 | BB37: 30 | BC37: 30 | BD37: 0 | BE37: 0 | BF37: 60000 | BG37: 29.50455294 | BI37: 10 | BJ37: 66.6 | BK37: 5.5 | BL37: 61.1 | BM37: 15.89427473 | BN37: 45.20572527 | BO37: 10550.97743 | BP37: 65.50010753 | BQ37: 10 | BR37: 76.53 | BS37: 6.5 | BT37: 70.03 | BU37: 19.87423925 | BV37: 50.15576075 | BW37: 12501.99534 | BX37: 75.26611456 | BY37: 10 | BZ37: 80.33 | CA37: 7 | CB37: 73.33 | CC37: 22.57836417 | CD37: 50.75163583 | CE37: 13496.26687 | CF37: 79.00335793 | CG37: 0 | CH37: 0 | CI37: 0 | CJ37: 0 | CK37: 0 | CL37: 0 | CM37: 0 | CN37: 0 | CO37: 10 | CP37: 650.6565183 | CQ37: 53.5 | CR37: 597.1565183 | CS37: 172.00894 | CT37: 425.1475784 | CU37: 102780.2164 | CV37: 0 | CW37: 597.1565183 | CX37: 1127.176518
B38: 11 | C38: 1127.176518 | D38: 120 | E38: 1007.176518 | F38: 275.1653848 | G38: 732.0111336 | H38: 232011.2858 | I38: -1007.176518 | J38: -1127.176518 | S38: 11 | T38: 11 | U38: 33.54 | V38: 2.5 | W38: 31.04 | X38: 5.93837613 | Y38: 25.10162387 | Z38: 4725.59928 | AA38: 32.93120485 | AC38: 11 | AD38: 64.61 | AE38: 5 | AF38: 59.61 | AG38: 12.71259578 | AH38: 46.89740422 | AI38: 9487.549434 | AJ38: 63.43724345 | AL38: 11 | AM38: 124.91 | AN38: 10 | AO38: 114.91 | AP38: 27.09898199 | AQ38: 87.81101801 | AR38: 19040.88215 | AS38: 122.6427191 | AY38: 11 | AZ38: 11 | BA38: 0 | BB38: 30 | BC38: 30 | BD38: 0 | BE38: 0 | BF38: 60000 | BG38: 29.45546051 | BI38: 11 | BJ38: 66.6 | BK38: 5.5 | BL38: 61.1 | BM38: 15.82646614 | BN38: 45.27353386 | BO38: 10505.70389 | BP38: 65.39112233 | BQ38: 11 | BR38: 76.53 | BS38: 6.5 | BT38: 70.03 | BU38: 19.79482596 | BV38: 50.23517404 | BW38: 12451.76017 | BX38: 75.14087976 | BY38: 11 | BZ38: 80.33 | CA38: 7 | CB38: 73.33 | CC38: 22.49377812 | CD38: 50.83622188 | CE38: 13445.43065 | CF38: 78.87190475 | CG38: 0 | CH38: 0 | CI38: 0 | CJ38: 0 | CK38: 0 | CL38: 0 | CM38: 0 | CN38: 0 | CO38: 11 | CP38: 650.6565183 | CQ38: 53.5 | CR38: 597.1565183 | CS38: 171.3003607 | CT38: 425.8561577 | CU38: 102354.3602 | CV38: 0 | CW38: 597.1565183 | CX38: 1127.176518
B39: 12 | C39: 1127.176518 | D39: 120 | E39: 1007.176518 | F39: 274.0051423 | G39: 733.171376 | H39: 231278.1144 | I39: -1007.176518 | J39: -1127.176518 | S39: 12 | T39: 12 | U39: 33.54 | V39: 2.5 | W39: 31.04 | X39: 5.9069991 | Y39: 25.1330009 | Z39: 4700.466279 | AA39: 32.87641083 | AC39: 12 | AD39: 64.61 | AE39: 5 | AF39: 59.61 | AG39: 12.65006591 | AH39: 46.95993409 | AI39: 9440.5895 | AJ39: 63.33169063 | AL39: 12 | AM39: 124.91 | AN39: 10 | AO39: 114.91 | AP39: 26.97458305 | AQ39: 87.93541695 | AR39: 18952.94673 | AS39: 122.4386546 | AY39: 12 | AZ39: 12 | BA39: 0 | BB39: 30 | BC39: 30 | BD39: 0 | BE39: 0 | BF39: 60000 | BG39: 29.40644976 | BI39: 12 | BJ39: 66.6 | BK39: 5.5 | BL39: 61.1 | BM39: 15.75855584 | BN39: 45.34144416 | BO39: 10460.36245 | BP39: 65.28231846 | BQ39: 12 | BR39: 76.53 | BS39: 6.5 | BT39: 70.03 | BU39: 19.71528693 | BV39: 50.31471307 | BW39: 12401.44545 | BX39: 75.01585333 | BY39: 12 | BZ39: 80.33 | CA39: 7 | CB39: 73.33 | CC39: 22.40905108 | CD39: 50.92094892 | CE39: 13394.5097 | CF39: 78.7406703 | CG39: 0 | CH39: 0 | CI39: 0 | CJ39: 0 | CK39: 0 | CL39: 0 | CM39: 0 | CN39: 0 | CO39: 12 | CP39: 650.6565183 | CQ39: 53.5 | CR39: 597.1565183 | CS39: 170.5906004 | CT39: 426.5659179 | CU39: 101927.7943 | CV39: 0 | CW39: 597.1565183 | CX39: 1127.176518
B40: 13 | C40: 1127.176518 | D40: 120 | E40: 1007.176518 | F40: 272.8430491 | G40: 734.3334693 | H40: 230543.781 | I40: -1007.176518 | J40: -1127.176518 | S40: 13 | T40: 13 | U40: 33.54 | V40: 2.5 | W40: 31.04 | X40: 5.875582849 | Y40: 25.16441715 | Z40: 4675.301862 | AA40: 32.82170798 | AC40: 13 | AD40: 64.61 | AE40: 5 | AF40: 59.61 | AG40: 12.58745267 | AH40: 47.02254733 | AI40: 9393.566952 | AJ40: 63.22631344 | AL40: 13 | AM40: 124.91 | AN40: 10 | AO40: 114.91 | AP40: 26.85000787 | AQ40: 88.05999213 | AR40: 18864.88674 | AS40: 122.2349298 | AY40: 13 | AZ40: 13 | BA40: 0 | BB40: 30 | BC40: 30 | BD40: 0 | BE40: 0 | BF40: 60000 | BG40: 29.35752056 | BI40: 13 | BJ40: 66.6 | BK40: 5.5 | BL40: 61.1 | BM40: 15.69054367 | BN40: 45.40945633 | BO40: 10414.95299 | BP40: 65.17369564 | BQ40: 13 | BR40: 76.53 | BS40: 6.5 | BT40: 70.03 | BU40: 19.63562197 | BV40: 50.39437803 | BW40: 12351.05108 | BX40: 74.89103494 | BY40: 13 | BZ40: 80.33 | CA40: 7 | CB40: 73.33 | CC40: 22.32418283 | CD40: 51.00581717 | CE40: 13343.50388 | CF40: 78.60965421 | CG40: 0 | CH40: 0 | CI40: 0 | CJ40: 0 | CK40: 0 | CL40: 0 | CM40: 0 | CN40: 0 | CO40: 13 | CP40: 650.6565183 | CQ40: 53.5 | CR40: 597.1565183 | CS40: 169.8796572 | CT40: 427.2768611 | CU40: 101500.5175 | CV40: 0 | CW40: 597.1565183 | CX40: 1127.176518
B41: 14 | C41: 1127.176518 | D41: 120 | E41: 1007.176518 | F41: 271.6791021 | G41: 735.4974163 | H41: 229808.2835 | I41: -1007.176518 | J41: -1127.176518 | S41: 14 | T41: 14 | U41: 33.54 | V41: 2.5 | W41: 31.04 | X41: 5.844127328 | Y41: 25.19587267 | Z41: 4650.10599 | AA41: 32.76709616 | AC41: 14 | AD41: 64.61 | AE41: 5 | AF41: 59.61 | AG41: 12.52475594 | AH41: 47.08524406 | AI41: 9346.481708 | AJ41: 63.12111159 | AL41: 14 | AM41: 124.91 | AN41: 10 | AO41: 114.91 | AP41: 26.72525622 | AQ41: 88.18474378 | AR41: 18776.702 | AS41: 122.0315439 | AY41: 14 | AZ41: 14 | BA41: 0 | BB41: 30 | BC41: 30 | BD41: 0 | BE41: 0 | BF41: 60000 | BG41: 29.30867277 | BI41: 14 | BJ41: 66.6 | BK41: 5.5 | BL41: 61.1 | BM41: 15.62242949 | BN41: 45.47757051 | BO41: 10369.47542 | BP41: 65.06525355 | BQ41: 14 | BR41: 76.53 | BS41: 6.5 | BT41: 70.03 | BU41: 19.55583087 | BV41: 50.47416913 | BW41: 12300.57691 | BX41: 74.76642424 | BY41: 14 | BZ41: 80.33 | CA41: 7 | CB41: 73.33 | CC41: 22.23917314 | CD41: 51.09082686 | CE41: 13292.41305 | CF41: 78.47885612 | CG41: 0 | CH41: 0 | CI41: 0 | CJ41: 0 | CK41: 0 | CL41: 0 | CM41: 0 | CN41: 0 | CO41: 14 | CP41: 650.6565183 | CQ41: 53.5 | CR41: 597.1565183 | CS41: 169.1675291 | CT41: 427.9889892 | CU41: 101072.5285 | CV41: 0 | CW41: 597.1565183 | CX41: 1127.176518
B42: 15 | C42: 1127.176518 | D42: 120 | E42: 1007.176518 | F42: 270.5132984 | G42: 736.66322 | H42: 229071.6203 | I42: -1007.176518 | J42: -1127.176518 | S42: 15 | T42: 15 | U42: 33.54 | V42: 2.5 | W42: 31.04 | X42: 5.812632487 | Y42: 25.22736751 | Z42: 4624.878622 | AA42: 32.7125752 | AC42: 15 | AD42: 64.61 | AE42: 5 | AF42: 59.61 | AG42: 12.46197561 | AH42: 47.14802439 | AI42: 9299.333684 | AJ42: 63.01608478 | AL42: 15 | AM42: 124.91 | AN42: 10 | AO42: 114.91 | AP42: 26.60032783 | AQ42: 88.30967217 | AR42: 18688.39233 | AS42: 121.8284964 | AY42: 15 | AZ42: 15 | BA42: 0 | BB42: 30 | BC42: 30 | BD42: 0 | BE42: 0 | BF42: 60000 | BG42: 29.25990626 | BI42: 15 | BJ42: 66.6 | BK42: 5.5 | BL42: 61.1 | BM42: 15.55421313 | BN42: 45.54578687 | BO42: 10323.92963 | BP42: 64.9569919 | BQ42: 15 | BR42: 76.53 | BS42: 6.5 | BT42: 70.03 | BU42: 19.47591344 | BV42: 50.55408656 | BW42: 12250.02282 | BX42: 74.64202087 | BY42: 15 | BZ42: 80.33 | CA42: 7 | CB42: 73.33 | CC42: 22.15402176 | CD42: 51.17597824 | CE42: 13241.23708 | CF42: 78.34827566 | CG42: 0 | CH42: 0 | CI42: 0 | CJ42: 0 | CK42: 0 | CL42: 0 | CM42: 0 | CN42: 0 | CO42: 15 | CP42: 650.6565183 | CQ42: 53.5 | CR42: 597.1565183 | CS42: 168.4542141 | CT42: 428.7023042 | CU42: 100643.8262 | CV42: 0 | CW42: 597.1565183 | CX42: 1127.176518
B43: 16 | C43: 1127.176518 | D43: 120 | E43: 1007.176518 | F43: 269.345635 | G43: 737.8308834 | H43: 228333.7894 | I43: -1007.176518 | J43: -1127.176518 | S43: 16 | T43: 16 | U43: 33.54 | V43: 2.5 | W43: 31.04 | X43: 5.781098278 | Y43: 25.25890172 | Z43: 4599.61972 | AA43: 32.65814496 | AC43: 16 | AD43: 64.61 | AE43: 5 | AF43: 59.61 | AG43: 12.39911158 | AH43: 47.21088842 | AI43: 9252.122795 | AJ43: 62.91123273 | AL43: 16 | AM43: 124.91 | AN43: 10 | AO43: 114.91 | AP43: 26.47522246 | AQ43: 88.43477754 | AR43: 18599.95755 | AS43: 121.6257867 | AY43: 16 | AZ43: 16 | BA43: 0 | BB43: 30 | BC43: 30 | BD43: 0 | BE43: 0 | BF43: 60000 | BG43: 29.21122089 | BI43: 16 | BJ43: 66.6 | BK43: 5.5 | BL43: 61.1 | BM43: 15.48589445 | BN43: 45.61410555 | BO43: 10278.31553 | BP43: 64.84891038 | BQ43: 16 | BR43: 76.53 | BS43: 6.5 | BT43: 70.03 | BU43: 19.39586947 | BV43: 50.63413053 | BW43: 12199.38869 | BX43: 74.51782449 | BY43: 16 | BZ43: 80.33 | CA43: 7 | CB43: 73.33 | CC43: 22.06872846 | CD43: 51.26127154 | CE43: 13189.9758 | CF43: 78.21791247 | CG43: 0 | CH43: 0 | CI43: 0 | CJ43: 0 | CK43: 0 | CL43: 0 | CM43: 0 | CN43: 0 | CO43: 16 | CP43: 650.6565183 | CQ43: 53.5 | CR43: 597.1565183 | CS43: 167.7397103 | CT43: 429.4168081 | CU43: 100214.4094 | CV43: 0 | CW43: 597.1565183 | CX43: 1127.176518
B44: 17 | C44: 1127.176518 | D44: 120 | E44: 1007.176518 | F44: 268.1761089 | G44: 739.0004095 | H44: 227594.789 | I44: -1007.176518 | J44: -1127.176518 | S44: 17 | T44: 17 | U44: 33.54 | V44: 2.5 | W44: 31.04 | X44: 5.74952465 | Y44: 25.29047535 | Z44: 4574.329245 | AA44: 32.60380528 | AC44: 17 | AD44: 64.61 | AE44: 5 | AF44: 59.61 | AG44: 12.33616373 | AH44: 47.27383627 | AI44: 9204.848959 | AJ44: 62.80655513 | AL44: 17 | AM44: 124.91 | AN44: 10 | AO44: 114.91 | AP44: 26.34993986 | AQ44: 88.56006014 | AR44: 18511.39749 | AS44: 121.4234144 | AY44: 17 | AZ44: 17 | BA44: 0 | BB44: 30 | BC44: 30 | BD44: 0 | BE44: 0 | BF44: 60000 | BG44: 29.16261653 | BI44: 17 | BJ44: 66.6 | BK44: 5.5 | BL44: 61.1 | BM44: 15.41747329 | BN44: 45.68252671 | BO44: 10232.633 | BP44: 64.7410087 | BQ44: 17 | BR44: 76.53 | BS44: 6.5 | BT44: 70.03 | BU44: 19.31569876 | BV44: 50.71430124 | BW44: 12148.67439 | BX44: 74.39383477 | BY44: 17 | BZ44: 80.33 | CA44: 7 | CB44: 73.33 | CC44: 21.98329301 | CD44: 51.34670699 | CE44: 13138.6291 | CF44: 78.0877662 | CG44: 0 | CH44: 0 | CI44: 0 | CJ44: 0 | CK44: 0 | CL44: 0 | CM44: 0 | CN44: 0 | CO44: 17 | CP44: 650.6565183 | CQ44: 53.5 | CR44: 597.1565183 | CS44: 167.0240156 | CT44: 430.1325027 | CU44: 99784.27685 | CV44: 0 | CW44: 597.1565183 | CX44: 1127.176518
B45: 18 | C45: 1127.176518 | D45: 120 | E45: 1007.176518 | F45: 267.0047171 | G45: 740.1718012 | H45: 226854.6172 | I45: -1007.176518 | J45: -1127.176518 | S45: 18 | T45: 18 | U45: 33.54 | V45: 2.5 | W45: 31.04 | X45: 5.717911556 | Y45: 25.32208844 | Z45: 4549.007157 | AA45: 32.54955602 | AC45: 18 | AD45: 64.61 | AE45: 5 | AF45: 59.61 | AG45: 12.27313195 | AH45: 47.33686805 | AI45: 9157.512091 | AJ45: 62.70205171 | AL45: 18 | AM45: 124.91 | AN45: 10 | AO45: 114.91 | AP45: 26.22447977 | AQ45: 88.68552023 | AR45: 18422.71197 | AS45: 121.2213787 | AY45: 18 | AZ45: 18 | BA45: 0 | BB45: 30 | BC45: 30 | BD45: 0 | BE45: 0 | BF45: 60000 | BG45: 29.11409304 | BI45: 18 | BJ45: 66.6 | BK45: 5.5 | BL45: 61.1 | BM45: 15.3489495 | BN45: 45.7510505 | BO45: 10186.88195 | BP45: 64.63328655 | BQ45: 18 | BR45: 76.53 | BS45: 6.5 | BT45: 70.03 | BU45: 19.23540112 | BV45: 50.79459888 | BW45: 12097.87979 | BX45: 74.27005135 | BY45: 18 | BZ45: 80.33 | CA45: 7 | CB45: 73.33 | CC45: 21.89771516 | CD45: 51.43228484 | CE45: 13087.19681 | CF45: 77.95783647 | CG45: 0 | CH45: 0 | CI45: 0 | CJ45: 0 | CK45: 0 | CL45: 0 | CM45: 0 | CN45: 0 | CO45: 18 | CP45: 650.6565183 | CQ45: 53.5 | CR45: 597.1565183 | CS45: 166.3071281 | CT45: 430.8493903 | CU45: 99353.42746 | CV45: 0 | CW45: 597.1565183 | CX45: 1127.176518
B46: 19 | C46: 1127.176518 | D46: 120 | E46: 1007.176518 | F46: 265.8314567 | G46: 741.3450616 | H46: 226113.2722 | I46: -1007.176518 | J46: -1127.176518 | S46: 19 | T46: 19 | U46: 33.54 | V46: 2.5 | W46: 31.04 | X46: 5.686258946 | Y46: 25.35374105 | Z46: 4523.653416 | AA46: 32.49539703 | AC46: 19 | AD46: 64.61 | AE46: 5 | AF46: 59.61 | AG46: 12.21001612 | AH46: 47.39998388 | AI46: 9110.112107 | AJ46: 62.59772218 | AL46: 19 | AM46: 124.91 | AN46: 10 | AO46: 114.91 | AP46: 26.09884195 | AQ46: 88.81115805 | AR46: 18333.90081 | AS46: 121.0196793 | AY46: 19 | AZ46: 19 | BA46: 0 | BB46: 30 | BC46: 30 | BD46: 0 | BE46: 0 | BF46: 60000 | BG46: 29.06565029 | BI46: 19 | BJ46: 66.6 | BK46: 5.5 | BL46: 61.1 | BM46: 15.28032293 | BN46: 45.81967707 | BO46: 10141.06227 | BP46: 64.52574365 | BQ46: 19 | BR46: 76.53 | BS46: 6.5 | BT46: 70.03 | BU46: 19.15497633 | BV46: 50.87502367 | BW46: 12047.00477 | BX46: 74.14647389 | BY46: 19 | BZ46: 80.33 | CA46: 7 | CB46: 73.33 | CC46: 21.81199469 | CD46: 51.51800531 | CE46: 13035.67881 | CF46: 77.82812293 | CG46: 0 | CH46: 0 | CI46: 0 | CJ46: 0 | CK46: 0 | CL46: 0 | CM46: 0 | CN46: 0 | CO46: 19 | CP46: 650.6565183 | CQ46: 53.5 | CR46: 597.1565183 | CS46: 165.5890458 | CT46: 431.5674726 | CU46: 98921.85999 | CV46: 0 | CW46: 597.1565183 | CX46: 1127.176518
B47: 20 | C47: 1127.176518 | D47: 120 | E47: 1007.176518 | F47: 264.6563247 | G47: 742.5201937 | H47: 225370.752 | I47: -1007.176518 | J47: -1127.176518 | S47: 20 | T47: 20 | U47: 33.54 | V47: 2.5 | W47: 31.04 | X47: 5.654566769 | Y47: 25.38543323 | Z47: 4498.267982 | AA47: 32.44132815 | AC47: 20 | AD47: 64.61 | AE47: 5 | AF47: 59.61 | AG47: 12.14681614 | AH47: 47.46318386 | AI47: 9062.648923 | AJ47: 62.49356623 | AL47: 20 | AM47: 124.91 | AN47: 10 | AO47: 114.91 | AP47: 25.97302615 | AQ47: 88.93697385 | AR47: 18244.96384 | AS47: 120.8183154 | AY47: 20 | AZ47: 20 | BA47: 0 | BB47: 30 | BC47: 30 | BD47: 0 | BE47: 0 | BF47: 60000 | BG47: 29.01728814 | BI47: 20 | BJ47: 66.6 | BK47: 5.5 | BL47: 61.1 | BM47: 15.21159341 | BN47: 45.88840659 | BO47: 10095.17387 | BP47: 64.41837968 | BQ47: 20 | BR47: 76.53 | BS47: 6.5 | BT47: 70.03 | BU47: 19.07442421 | BV47: 50.95557579 | BW47: 11996.04919 | BX47: 74.02310206 | BY47: 20 | BZ47: 80.33 | CA47: 7 | CB47: 73.33 | CC47: 21.72613135 | CD47: 51.60386865 | CE47: 12984.07494 | CF47: 77.69862522 | CG47: 0 | CH47: 0 | CI47: 0 | CJ47: 0 | CK47: 0 | CL47: 0 | CM47: 0 | CN47: 0 | CO47: 20 | CP47: 650.6565183 | CQ47: 53.5 | CR47: 597.1565183 | CS47: 164.8697667 | CT47: 432.2867517 | CU47: 98489.57324 | CV47: 0 | CW47: 597.1565183 | CX47: 1127.176518
B48: 21 | C48: 1127.176518 | D48: 120 | E48: 1007.176518 | F48: 263.479318 | G48: 743.6972004 | H48: 224627.0548 | I48: -1007.176518 | J48: -1127.176518 | S48: 21 | T48: 21 | U48: 33.54 | V48: 2.5 | W48: 31.04 | X48: 5.622834978 | Y48: 25.41716502 | Z48: 4472.850817 | AA48: 32.38734923 | AC48: 21 | AD48: 64.61 | AE48: 5 | AF48: 59.61 | AG48: 12.0835319 | AH48: 47.5264681 | AI48: 9015.122455 | AJ48: 62.38958359 | AL48: 21 | AM48: 124.91 | AN48: 10 | AO48: 114.91 | AP48: 25.8470321 | AQ48: 89.0629679 | AR48: 18155.90087 | AS48: 120.6172866 | AY48: 21 | AZ48: 21 | BA48: 0 | BB48: 30 | BC48: 30 | BD48: 0 | BE48: 0 | BF48: 60000 | BG48: 28.96900647 | BI48: 21 | BJ48: 66.6 | BK48: 5.5 | BL48: 61.1 | BM48: 15.1427608 | BN48: 45.9572392 | BO48: 10049.21663 | BP48: 64.31119436 | BQ48: 21 | BR48: 76.53 | BS48: 6.5 | BT48: 70.03 | BU48: 18.99374455 | BV48: 51.03625545 | BW48: 11945.01294 | BX48: 73.8999355 | BY48: 21 | BZ48: 80.33 | CA48: 7 | CB48: 73.33 | CC48: 21.6401249 | CD48: 51.6898751 | CE48: 12932.38506 | CF48: 77.56934298 | CG48: 0 | CH48: 0 | CI48: 0 | CJ48: 0 | CK48: 0 | CL48: 0 | CM48: 0 | CN48: 0 | CO48: 21 | CP48: 650.6565183 | CQ48: 53.5 | CR48: 597.1565183 | CS48: 164.1492887 | CT48: 433.0072296 | CU48: 98056.56601 | CV48: 0 | CW48: 597.1565183 | CX48: 1127.176518
B49: 22 | C49: 1127.176518 | D49: 120 | E49: 1007.176518 | F49: 262.3004336 | G49: 744.8760848 | H49: 223882.1787 | I49: -1007.176518 | J49: -1127.176518 | S49: 22 | T49: 22 | U49: 33.54 | V49: 2.5 | W49: 31.04 | X49: 5.591063522 | Y49: 25.44893648 | Z49: 4447.401881 | AA49: 32.33346013 | AC49: 22 | AD49: 64.61 | AE49: 5 | AF49: 59.61 | AG49: 12.02016327 | AH49: 47.58983673 | AI49: 8967.532619 | AJ49: 62.28577397 | AL49: 22 | AM49: 124.91 | AN49: 10 | AO49: 114.91 | AP49: 25.72085956 | AQ49: 89.18914044 | AR49: 18066.71173 | AS49: 120.4165923 | AY49: 22 | AZ49: 22 | BA49: 0 | BB49: 30 | BC49: 30 | BD49: 0 | BE49: 0 | BF49: 60000 | BG49: 28.92080513 | BI49: 22 | BJ49: 66.6 | BK49: 5.5 | BL49: 61.1 | BM49: 15.07382494 | BN49: 46.02617506 | BO49: 10003.19045 | BP49: 64.20418738 | BQ49: 22 | BR49: 76.53 | BS49: 6.5 | BT49: 70.03 | BU49: 18.91293715 | BV49: 51.11706285 | BW49: 11893.89587 | BX49: 73.77697387 | BY49: 22 | BZ49: 80.33 | CA49: 7 | CB49: 73.33 | CC49: 21.55397511 | CD49: 51.77602489 | CE49: 12880.60904 | CF49: 77.44027586 | CG49: 0 | CH49: 0 | CI49: 0 | CJ49: 0 | CK49: 0 | CL49: 0 | CM49: 0 | CN49: 0 | CO49: 22 | CP49: 650.6565183 | CQ49: 53.5 | CR49: 597.1565183 | CS49: 163.42761 | CT49: 433.7289083 | CU49: 97622.8371 | CV49: 0 | CW49: 597.1565183 | CX49: 1127.176518
B50: 23 | C50: 1127.176518 | D50: 120 | E50: 1007.176518 | F50: 261.1196685 | G50: 746.0568498 | H50: 223136.1218 | I50: -1007.176518 | J50: -1127.176518 | S50: 23 | T50: 23 | U50: 33.54 | V50: 2.5 | W50: 31.04 | X50: 5.559252351 | Y50: 25.48074765 | Z50: 4421.921133 | AA50: 32.2796607 | AC50: 23 | AD50: 64.61 | AE50: 5 | AF50: 59.61 | AG50: 11.95671016 | AH50: 47.65328984 | AI50: 8919.879329 | AJ50: 62.18213708 | AL50: 23 | AM50: 124.91 | AN50: 10 | AO50: 114.91 | AP50: 25.59450828 | AQ50: 89.31549172 | AR50: 17977.39624 | AS50: 120.2162319 | AY50: 23 | AZ50: 23 | BA50: 0 | BB50: 30 | BC50: 30 | BD50: 0 | BE50: 0 | BF50: 60000 | BG50: 28.87268399 | BI50: 23 | BJ50: 66.6 | BK50: 5.5 | BL50: 61.1 | BM50: 15.00478568 | BN50: 46.09521432 | BO50: 9957.09524 | BP50: 64.09735845 | BQ50: 23 | BR50: 76.53 | BS50: 6.5 | BT50: 70.03 | BU50: 18.8320018 | BV50: 51.1979982 | BW50: 11842.69787 | BX50: 73.65421685 | BY50: 23 | BZ50: 80.33 | CA50: 7 | CB50: 73.33 | CC50: 21.46768173 | CD50: 51.86231827 | CE50: 12828.74672 | CF50: 77.31142348 | CG50: 0 | CH50: 0 | CI50: 0 | CJ50: 0 | CK50: 0 | CL50: 0 | CM50: 0 | CN50: 0 | CO50: 23 | CP50: 650.6565183 | CQ50: 53.5 | CR50: 597.1565183 | CS50: 162.7047285 | CT50: 434.4517898 | CU50: 97188.38531 | CV50: 0 | CW50: 597.1565183 | CX50: 1127.176518
B51: 24 | C51: 1127.176518 | D51: 120 | E51: 1007.176518 | F51: 259.9370197 | G51: 747.2394986 | H51: 222388.8823 | I51: -1007.176518 | J51: -1127.176518 | S51: 24 | T51: 24 | U51: 33.54 | V51: 2.5 | W51: 31.04 | X51: 5.527401416 | Y51: 25.51259858 | Z51: 4396.408535 | AA51: 32.22595078 | AC51: 24 | AD51: 64.61 | AE51: 5 | AF51: 59.61 | AG51: 11.89317244 | AH51: 47.71682756 | AI51: 8872.162501 | AJ51: 62.07867262 | AL51: 24 | AM51: 124.91 | AN51: 10 | AO51: 114.91 | AP51: 25.467978 | AQ51: 89.442022 | AR51: 17887.95421 | AS51: 120.0162049 | AY51: 24 | AZ51: 24 | BA51: 0 | BB51: 30 | BC51: 30 | BD51: 0 | BE51: 0 | BF51: 60000 | BG51: 28.82464291 | BI51: 24 | BJ51: 66.6 | BK51: 5.5 | BL51: 61.1 | BM51: 14.93564286 | BN51: 46.16435714 | BO51: 9910.930882 | BP51: 63.99070727 | BQ51: 24 | BR51: 76.53 | BS51: 6.5 | BT51: 70.03 | BU51: 18.7509383 | BV51: 51.2790617 | BW51: 11791.41881 | BX51: 73.53166407 | BY51: 24 | BZ51: 80.33 | CA51: 7 | CB51: 73.33 | CC51: 21.38124453 | CD51: 51.94875547 | CE51: 12776.79796 | CF51: 77.18278551 | CG51: 0 | CH51: 0 | CI51: 0 | CJ51: 0 | CK51: 0 | CL51: 0 | CM51: 0 | CN51: 0 | CO51: 24 | CP51: 650.6565183 | CQ51: 53.5 | CR51: 597.1565183 | CS51: 161.9806422 | CT51: 435.1758762 | CU51: 96753.20944 | CV51: 0 | CW51: 597.1565183 | CX51: 1127.176518
B52: 25 | C52: 1127.176518 | D52: 120 | E52: 1007.176518 | F52: 258.7524843 | G52: 748.4240341 | H52: 221640.4583 | I52: -1007.176518 | J52: -1127.176518 | S52: 25 | T52: 25 | U52: 33.54 | V52: 2.5 | W52: 31.04 | X52: 5.495510668 | Y52: 25.54448933 | Z52: 4370.864045 | AA52: 32.17233023 | AC52: 25 | AD52: 64.61 | AE52: 5 | AF52: 59.61 | AG52: 11.82955 | AH52: 47.78045 | AI52: 8824.382051 | AJ52: 61.97538032 | AL52: 25 | AM52: 124.91 | AN52: 10 | AO52: 114.91 | AP52: 25.34126847 | AQ52: 89.56873153 | AR52: 17798.38548 | AS52: 119.8165107 | AY52: 25 | AZ52: 25 | BA52: 0 | BB52: 30 | BC52: 30 | BD52: 0 | BE52: 0 | BF52: 60000 | BG52: 28.77668178 | BI52: 25 | BJ52: 66.6 | BK52: 5.5 | BL52: 61.1 | BM52: 14.86639632 | BN52: 46.23360368 | BO52: 9864.697279 | BP52: 63.88423355 | BQ52: 25 | BR52: 76.53 | BS52: 6.5 | BT52: 70.03 | BU52: 18.66974645 | BV52: 51.36025355 | BW52: 11740.05856 | BX52: 73.40931521 | BY52: 25 | BZ52: 80.33 | CA52: 7 | CB52: 73.33 | CC52: 21.29466327 | CD52: 52.03533673 | CE52: 12724.76263 | CF52: 77.05436157 | CG52: 0 | CH52: 0 | CI52: 0 | CJ52: 0 | CK52: 0 | CL52: 0 | CM52: 0 | CN52: 0 | CO52: 25 | CP52: 650.6565183 | CQ52: 53.5 | CR52: 597.1565183 | CS52: 161.2553491 | CT52: 435.9011693 | CU52: 96317.30827 | CV52: 0 | CW52: 597.1565183 | CX52: 1127.176518
B53: 26 | C53: 1127.176518 | D53: 120 | E53: 1007.176518 | F53: 257.566059 | G53: 749.6104593 | H53: 220890.8479 | I53: -1007.176518 | J53: -1127.176518 | S53: 26 | T53: 26 | U53: 33.54 | V53: 2.5 | W53: 31.04 | X53: 5.463580057 | Y53: 25.57641994 | Z53: 4345.287625 | AA53: 32.1187989 | AC53: 26 | AD53: 64.61 | AE53: 5 | AF53: 59.61 | AG53: 11.76584273 | AH53: 47.84415727 | AI53: 8776.537894 | AJ53: 61.87225989 | AL53: 26 | AM53: 124.91 | AN53: 10 | AO53: 114.91 | AP53: 25.21437943 | AQ53: 89.69562057 | AR53: 17708.68986 | AS53: 119.6171488 | AY53: 26 | AZ53: 26 | BA53: 0 | BB53: 30 | BC53: 30 | BD53: 0 | BE53: 0 | BF53: 60000 | BG53: 28.72880044 | BI53: 26 | BJ53: 66.6 | BK53: 5.5 | BL53: 61.1 | BM53: 14.79704592 | BN53: 46.30295408 | BO53: 9818.394325 | BP53: 63.77793698 | BQ53: 26 | BR53: 76.53 | BS53: 6.5 | BT53: 70.03 | BU53: 18.58842605 | BV53: 51.44157395 | BW53: 11688.61699 | BX53: 73.28716993 | BY53: 26 | BZ53: 80.33 | CA53: 7 | CB53: 73.33 | CC53: 21.20793771 | CD53: 52.12206229 | CE53: 12672.64057 | CF53: 76.92615132 | CG53: 0 | CH53: 0 | CI53: 0 | CJ53: 0 | CK53: 0 | CL53: 0 | CM53: 0 | CN53: 0 | CO53: 26 | CP53: 650.6565183 | CQ53: 53.5 | CR53: 597.1565183 | CS53: 160.5288471 | CT53: 436.6276712 | CU53: 95880.6806 | CV53: 0 | CW53: 597.1565183 | CX53: 1127.176518
B54: 27 | C54: 1127.176518 | D54: 120 | E54: 1007.176518 | F54: 256.377741 | G54: 750.7987773 | H54: 220140.0491 | I54: -1007.176518 | J54: -1127.176518 | S54: 27 | T54: 27 | U54: 33.54 | V54: 2.5 | W54: 31.04 | X54: 5.431609532 | Y54: 25.60839047 | Z54: 4319.679235 | AA54: 32.06535663 | AC54: 27 | AD54: 64.61 | AE54: 5 | AF54: 59.61 | AG54: 11.70205053 | AH54: 47.90794947 | AI54: 8728.629944 | AJ54: 61.76931104 | AL54: 27 | AM54: 124.91 | AN54: 10 | AO54: 114.91 | AP54: 25.08731064 | AQ54: 89.82268936 | AR54: 17618.86717 | AS54: 119.4181186 | AY54: 27 | AZ54: 27 | BA54: 0 | BB54: 30 | BC54: 30 | BD54: 0 | BE54: 0 | BF54: 60000 | BG54: 28.68099878 | BI54: 27 | BJ54: 66.6 | BK54: 5.5 | BL54: 61.1 | BM54: 14.72759149 | BN54: 46.37240851 | BO54: 9772.021916 | BP54: 63.67181729 | BQ54: 27 | BR54: 76.53 | BS54: 6.5 | BT54: 70.03 | BU54: 18.50697689 | BV54: 51.52302311 | BW54: 11637.09396 | BX54: 73.16522788 | BY54: 27 | BZ54: 80.33 | CA54: 7 | CB54: 73.33 | CC54: 21.12106761 | CD54: 52.20893239 | CE54: 12620.43163 | CF54: 76.7981544 | CG54: 0 | CH54: 0 | CI54: 0 | CJ54: 0 | CK54: 0 | CL54: 0 | CM54: 0 | CN54: 0 | CO54: 27 | CP54: 650.6565183 | CQ54: 53.5 | CR54: 597.1565183 | CS54: 159.8011343 | CT54: 437.355384 | CU54: 95443.32521 | CV54: 0 | CW54: 597.1565183 | CX54: 1127.176518
B55: 28 | C55: 1127.176518 | D55: 120 | E55: 1007.176518 | F55: 255.1875272 | G55: 751.9889912 | H55: 219388.0601 | I55: -1007.176518 | J55: -1127.176518 | S55: 28 | T55: 28 | U55: 33.54 | V55: 2.5 | W55: 31.04 | X55: 5.399599044 | Y55: 25.64040096 | Z55: 4294.038834 | AA55: 32.0120033 | AC55: 28 | AD55: 64.61 | AE55: 5 | AF55: 59.61 | AG55: 11.63817326 | AH55: 47.97182674 | AI55: 8680.658118 | AJ55: 61.66653348 | AL55: 28 | AM55: 124.91 | AN55: 10 | AO55: 114.91 | AP55: 24.96006183 | AQ55: 89.94993817 | AR55: 17528.91723 | AS55: 119.2194195 | AY55: 28 | AZ55: 28 | BA55: 0 | BB55: 30 | BC55: 30 | BD55: 0 | BE55: 0 | BF55: 60000 | BG55: 28.63327665 | BI55: 28 | BJ55: 66.6 | BK55: 5.5 | BL55: 61.1 | BM55: 14.65803287 | BN55: 46.44196713 | BO55: 9725.579949 | BP55: 63.56587417 | BQ55: 28 | BR55: 76.53 | BS55: 6.5 | BT55: 70.03 | BU55: 18.42539877 | BV55: 51.60460123 | BW55: 11585.48936 | BX55: 73.04348874 | BY55: 28 | BZ55: 80.33 | CA55: 7 | CB55: 73.33 | CC55: 21.03405272 | CD55: 52.29594728 | CE55: 12568.13569 | CF55: 76.67037045 | CG55: 0 | CH55: 0 | CI55: 0 | CJ55: 0 | CK55: 0 | CL55: 0 | CM55: 0 | CN55: 0 | CO55: 28 | CP55: 650.6565183 | CQ55: 53.5 | CR55: 597.1565183 | CS55: 159.0722087 | CT55: 438.0843097 | CU55: 95005.2409 | CV55: 0 | CW55: 597.1565183 | CX55: 1127.176518
B56: 29 | C56: 1127.176518 | D56: 120 | E56: 1007.176518 | F56: 253.9954145 | G56: 753.1811038 | H56: 218634.879 | I56: -1007.176518 | J56: -1127.176518 | S56: 29 | T56: 29 | U56: 33.54 | V56: 2.5 | W56: 31.04 | X56: 5.367548542 | Y56: 25.67245146 | Z56: 4268.366382 | AA56: 31.95873873 | AC56: 29 | AD56: 64.61 | AE56: 5 | AF56: 59.61 | AG56: 11.57421082 | AH56: 48.03578918 | AI56: 8632.622328 | AJ56: 61.56392694 | AL56: 29 | AM56: 124.91 | AN56: 10 | AO56: 114.91 | AP56: 24.83263275 | AQ56: 90.07736725 | AR56: 17438.83987 | AS56: 119.0210511 | AY56: 29 | AZ56: 29 | BA56: 0 | BB56: 30 | BC56: 30 | BD56: 0 | BE56: 0 | BF56: 60000 | BG56: 28.58563393 | BI56: 29 | BJ56: 66.6 | BK56: 5.5 | BL56: 61.1 | BM56: 14.58836992 | BN56: 46.51163008 | BO56: 9679.068319 | BP56: 63.46010732 | BQ56: 29 | BR56: 76.53 | BS56: 6.5 | BT56: 70.03 | BU56: 18.34369149 | BV56: 51.68630851 | BW56: 11533.80305 | BX56: 72.92195215 | BY56: 29 | BZ56: 80.33 | CA56: 7 | CB56: 73.33 | CC56: 20.94689281 | CD56: 52.38310719 | CE56: 12515.75258 | CF56: 76.54279911 | CG56: 0 | CH56: 0 | CI56: 0 | CJ56: 0 | CK56: 0 | CL56: 0 | CM56: 0 | CN56: 0 | CO56: 29 | CP56: 650.6565183 | CQ56: 53.5 | CR56: 597.1565183 | CS56: 158.3420682 | CT56: 438.8144502 | CU56: 94566.42645 | CV56: 0 | CW56: 597.1565183 | CX56: 1127.176518
B57: 30 | C57: 1127.176518 | D57: 120 | E57: 1007.176518 | F57: 252.8013999 | G57: 754.3751184 | H57: 217880.5039 | I57: -1007.176518 | J57: -1127.176518 | S57: 30 | T57: 30 | U57: 33.54 | V57: 2.5 | W57: 31.04 | X57: 5.335457978 | Y57: 25.70454202 | Z57: 4242.66184 | AA57: 31.90556279 | AC57: 30 | AD57: 64.61 | AE57: 5 | AF57: 59.61 | AG57: 11.5101631 | AH57: 48.0998369 | AI57: 8584.522492 | AJ57: 61.46149112 | AL57: 30 | AM57: 124.91 | AN57: 10 | AO57: 114.91 | AP57: 24.70502314 | AQ57: 90.20497686 | AR57: 17348.63489 | AS57: 118.8230128 | AY57: 30 | AZ57: 30 | BA57: 0 | BB57: 30 | BC57: 30 | BD57: 0 | BE57: 0 | BF57: 60000 | BG57: 28.53807048 | BI57: 30 | BJ57: 66.6 | BK57: 5.5 | BL57: 61.1 | BM57: 14.51860248 | BN57: 46.58139752 | BO57: 9632.486921 | BP57: 63.35451646 | BQ57: 30 | BR57: 76.53 | BS57: 6.5 | BT57: 70.03 | BU57: 18.26185483 | BV57: 51.76814517 | BW57: 11482.03491 | BX57: 72.80061779 | BY57: 30 | BZ57: 80.33 | CA57: 7 | CB57: 73.33 | CC57: 20.85958763 | CD57: 52.47041237 | CE57: 12463.28217 | CF57: 76.41544005 | CG57: 0 | CH57: 0 | CI57: 0 | CJ57: 0 | CK57: 0 | CL57: 0 | CM57: 0 | CN57: 0 | CO57: 30 | CP57: 650.6565183 | CQ57: 53.5 | CR57: 597.1565183 | CS57: 157.6107108 | CT57: 439.5458076 | CU57: 94126.88064 | CV57: 0 | CW57: 597.1565183 | CX57: 1127.176518
B58: 31 | C58: 1127.176518 | D58: 120 | E58: 1007.176518 | F58: 251.6054804 | G58: 755.571038 | H58: 217124.9328 | I58: -1007.176518 | J58: -1127.176518 | S58: 31 | T58: 31 | U58: 33.54 | V58: 2.5 | W58: 31.04 | X58: 5.3033273 | Y58: 25.7366727 | Z58: 4216.925168 | AA58: 31.85247533 | AC58: 31 | AD58: 64.61 | AE58: 5 | AF58: 59.61 | AG58: 11.44602999 | AH58: 48.16397001 | AI58: 8536.358522 | AJ58: 61.35922574 | AL58: 31 | AM58: 124.91 | AN58: 10 | AO58: 114.91 | AP58: 24.57723276 | AQ58: 90.33276724 | AR58: 17258.30212 | AS58: 118.6253039 | AY58: 31 | AZ58: 31 | BA58: 0 | BB58: 30 | BC58: 30 | BD58: 0 | BE58: 0 | BF58: 60000 | BG58: 28.49058617 | BI58: 31 | BJ58: 66.6 | BK58: 5.5 | BL58: 61.1 | BM58: 14.44873038 | BN58: 46.65126962 | BO58: 9585.835652 | BP58: 63.24910129 | BQ58: 31 | BR58: 76.53 | BS58: 6.5 | BT58: 70.03 | BU58: 18.1798886 | BV58: 51.8501114 | BW58: 11430.1848 | BX58: 72.67948531 | BY58: 31 | BZ58: 80.33 | CA58: 7 | CB58: 73.33 | CC58: 20.77213694 | CD58: 52.55786306 | CE58: 12410.7243 | CF58: 76.28829289 | CG58: 0 | CH58: 0 | CI58: 0 | CJ58: 0 | CK58: 0 | CL58: 0 | CM58: 0 | CN58: 0 | CO58: 31 | CP58: 650.6565183 | CQ58: 53.5 | CR58: 597.1565183 | CS58: 156.8781344 | CT58: 440.2783839 | CU58: 93686.60226 | CV58: 0 | CW58: 597.1565183 | CX58: 1127.176518
B59: 32 | C59: 1127.176518 | D59: 120 | E59: 1007.176518 | F59: 250.4076528 | G59: 756.7688655 | H59: 216368.164 | I59: -1007.176518 | J59: -1127.176518 | S59: 32 | T59: 32 | U59: 33.54 | V59: 2.5 | W59: 31.04 | X59: 5.27115646 | Y59: 25.76884354 | Z59: 4191.156324 | AA59: 31.79947621 | AC59: 32 | AD59: 64.61 | AE59: 5 | AF59: 59.61 | AG59: 11.38181136 | AH59: 48.22818864 | AI59: 8488.130333 | AJ59: 61.25713052 | AL59: 32 | AM59: 124.91 | AN59: 10 | AO59: 114.91 | AP59: 24.44926134 | AQ59: 90.46073866 | AR59: 17167.84138 | AS59: 118.4279241 | AY59: 32 | AZ59: 32 | BA59: 0 | BB59: 30 | BC59: 30 | BD59: 0 | BE59: 0 | BF59: 60000 | BG59: 28.44318087 | BI59: 32 | BJ59: 66.6 | BK59: 5.5 | BL59: 61.1 | BM59: 14.37875348 | BN59: 46.72124652 | BO59: 9539.114405 | BP59: 63.14386152 | BQ59: 32 | BR59: 76.53 | BS59: 6.5 | BT59: 70.03 | BU59: 18.09779259 | BV59: 51.93220741 | BW59: 11378.25259 | BX59: 72.55855439 | BY59: 32 | BZ59: 80.33 | CA59: 7 | CB59: 73.33 | CC59: 20.68454051 | CD59: 52.64545949 | CE59: 12358.07884 | CF59: 76.1613573 | CG59: 0 | CH59: 0 | CI59: 0 | CJ59: 0 | CK59: 0 | CL59: 0 | CM59: 0 | CN59: 0 | CO59: 32 | CP59: 650.6565183 | CQ59: 53.5 | CR59: 597.1565183 | CS59: 156.1443371 | CT59: 441.0121812 | CU59: 93245.59008 | CV59: 0 | CW59: 597.1565183 | CX59: 1127.176518
B60: 33 | C60: 1127.176518 | D60: 120 | E60: 1007.176518 | F60: 249.2079142 | G60: 757.9686041 | H60: 215610.1954 | I60: -1007.176518 | J60: -1127.176518 | S60: 33 | T60: 33 | U60: 33.54 | V60: 2.5 | W60: 31.04 | X60: 5.238945405 | Y60: 25.80105459 | Z60: 4165.35527 | AA60: 31.74656527 | AC60: 33 | AD60: 64.61 | AE60: 5 | AF60: 59.61 | AG60: 11.31750711 | AH60: 48.29249289 | AI60: 8439.83784 | AJ60: 61.15520518 | AL60: 33 | AM60: 124.91 | AN60: 10 | AO60: 114.91 | AP60: 24.32110863 | AQ60: 90.58889137 | AR60: 17077.25249 | AS60: 118.2308726 | AY60: 33 | AZ60: 33 | BA60: 0 | BB60: 30 | BC60: 30 | BD60: 0 | BE60: 0 | BF60: 60000 | BG60: 28.39585444 | BI60: 33 | BJ60: 66.6 | BK60: 5.5 | BL60: 61.1 | BM60: 14.30867161 | BN60: 46.79132839 | BO60: 9492.323077 | BP60: 63.03879686 | BQ60: 33 | BR60: 76.53 | BS60: 6.5 | BT60: 70.03 | BU60: 18.0155666 | BV60: 52.0144334 | BW60: 11326.23815 | BX60: 72.43782468 | BY60: 33 | BZ60: 80.33 | CA60: 7 | CB60: 73.33 | CC60: 20.59679807 | CD60: 52.73320193 | CE60: 12305.34564 | CF60: 76.03463291 | CG60: 0 | CH60: 0 | CI60: 0 | CJ60: 0 | CK60: 0 | CL60: 0 | CM60: 0 | CN60: 0 | CO60: 33 | CP60: 650.6565183 | CQ60: 53.5 | CR60: 597.1565183 | CS60: 155.4093168 | CT60: 441.7472015 | CU60: 92803.84288 | CV60: 0 | CW60: 597.1565183 | CX60: 1127.176518
B61: 34 | C61: 1127.176518 | D61: 120 | E61: 1007.176518 | F61: 248.0062615 | G61: 759.1702569 | H61: 214851.0251 | I61: -1007.176518 | J61: -1127.176518 | S61: 34 | T61: 34 | U61: 33.54 | V61: 2.5 | W61: 31.04 | X61: 5.206694087 | Y61: 25.83330591 | Z61: 4139.521964 | AA61: 31.69374236 | AC61: 34 | AD61: 64.61 | AE61: 5 | AF61: 59.61 | AG61: 11.25311712 | AH61: 48.35688288 | AI61: 8391.480957 | AJ61: 61.05344943 | AL61: 34 | AM61: 124.91 | AN61: 10 | AO61: 114.91 | AP61: 24.19277436 | AQ61: 90.71722564 | AR61: 16986.53527 | AS61: 118.034149 | AY61: 34 | AZ61: 34 | BA61: 0 | BB61: 30 | BC61: 30 | BD61: 0 | BE61: 0 | BF61: 60000 | BG61: 28.34860676 | BI61: 34 | BJ61: 66.6 | BK61: 5.5 | BL61: 61.1 | BM61: 14.23848462 | BN61: 46.86151538 | BO61: 9445.461562 | BP61: 62.93390701 | BQ61: 34 | BR61: 76.53 | BS61: 6.5 | BT61: 70.03 | BU61: 17.93321041 | BV61: 52.09678959 | BW61: 11274.14137 | BX61: 72.31729585 | BY61: 34 | BZ61: 80.33 | CA61: 7 | CB61: 73.33 | CC61: 20.5089094 | CD61: 52.8210906 | CE61: 12252.52455 | CF61: 75.90811938 | CG61: 0 | CH61: 0 | CI61: 0 | CJ61: 0 | CK61: 0 | CL61: 0 | CM61: 0 | CN61: 0 | CO61: 34 | CP61: 650.6565183 | CQ61: 53.5 | CR61: 597.1565183 | CS61: 154.6730715 | CT61: 442.4834469 | CU61: 92361.35943 | CV61: 0 | CW61: 597.1565183 | CX61: 1127.176518
B62: 35 | C62: 1127.176518 | D62: 120 | E62: 1007.176518 | F62: 246.8026915 | G62: 760.3738268 | H62: 214090.6513 | I62: -1007.176518 | J62: -1127.176518 | S62: 35 | T62: 35 | U62: 33.54 | V62: 2.5 | W62: 31.04 | X62: 5.174402455 | Y62: 25.86559755 | Z62: 4113.656366 | AA62: 31.64100735 | AC62: 35 | AD62: 64.61 | AE62: 5 | AF62: 59.61 | AG62: 11.18864128 | AH62: 48.42135872 | AI62: 8343.059598 | AJ62: 60.95186299 | AL62: 35 | AM62: 124.91 | AN62: 10 | AO62: 114.91 | AP62: 24.06425829 | AQ62: 90.84574171 | AR62: 16895.68953 | AS62: 117.8377528 | AY62: 35 | AZ62: 35 | BA62: 0 | BB62: 30 | BC62: 30 | BD62: 0 | BE62: 0 | BF62: 60000 | BG62: 28.3014377 | BI62: 35 | BJ62: 66.6 | BK62: 5.5 | BL62: 61.1 | BM62: 14.16819234 | BN62: 46.93180766 | BO62: 9398.529754 | BP62: 62.8291917 | BQ62: 35 | BR62: 76.53 | BS62: 6.5 | BT62: 70.03 | BU62: 17.85072383 | BV62: 52.17927617 | BW62: 11221.96209 | BX62: 72.19696757 | BY62: 35 | BZ62: 80.33 | CA62: 7 | CB62: 73.33 | CC62: 20.42087425 | CD62: 52.90912575 | CE62: 12199.61543 | CF62: 75.78181635 | CG62: 0 | CH62: 0 | CI62: 0 | CJ62: 0 | CK62: 0 | CL62: 0 | CM62: 0 | CN62: 0 | CO62: 35 | CP62: 650.6565183 | CQ62: 53.5 | CR62: 597.1565183 | CS62: 153.9355991 | CT62: 443.2209193 | CU62: 91918.13851 | CV62: 0 | CW62: 597.1565183 | CX62: 1127.176518
B63: 36 | C63: 1127.176518 | D63: 120 | E63: 1007.176518 | F63: 245.5972012 | G63: 761.5793171 | H63: 213329.072 | I63: -1007.176518 | J63: -1127.176518 | S63: 36 | T63: 36 | U63: 33.54 | V63: 2.5 | W63: 31.04 | X63: 5.142070458 | Y63: 25.89792954 | Z63: 4087.758437 | AA63: 31.58836008 | AC63: 36 | AD63: 64.61 | AE63: 5 | AF63: 59.61 | AG63: 11.12407946 | AH63: 48.48592054 | AI63: 8294.573678 | AJ63: 60.85044558 | AL63: 36 | AM63: 124.91 | AN63: 10 | AO63: 114.91 | AP63: 23.93556016 | AQ63: 90.97443984 | AR63: 16804.71509 | AS63: 117.6416833 | AY63: 36 | AZ63: 36 | BA63: 0 | BB63: 30 | BC63: 30 | BD63: 0 | BE63: 0 | BF63: 60000 | BG63: 28.25434712 | BI63: 36 | BJ63: 66.6 | BK63: 5.5 | BL63: 61.1 | BM63: 14.09779463 | BN63: 47.00220537 | BO63: 9351.527549 | BP63: 62.72465061 | BQ63: 36 | BR63: 76.53 | BS63: 6.5 | BT63: 70.03 | BU63: 17.76810664 | BV63: 52.26189336 | BW63: 11169.7002 | BX63: 72.07683951 | BY63: 36 | BZ63: 80.33 | CA63: 7 | CB63: 73.33 | CC63: 20.33269238 | CD63: 52.99730762 | CE63: 12146.61812 | CF63: 75.65572348 | CG63: 0 | CH63: 0 | CI63: 0 | CJ63: 0 | CK63: 0 | CL63: 0 | CM63: 0 | CN63: 0 | CO63: 36 | CP63: 650.6565183 | CQ63: 53.5 | CR63: 597.1565183 | CS63: 153.1968975 | CT63: 443.9596208 | CU63: 91474.17889 | CV63: 0 | CW63: 597.1565183 | CX63: 1127.176518
B64: 37 | C64: 1127.176518 | D64: 120 | E64: 1007.176518 | F64: 244.3897876 | G64: 762.7867307 | H64: 212566.2852 | I64: -1007.176518 | J64: -1127.176518 | S64: 37 | T64: 37 | U64: 33.54 | V64: 2.5 | W64: 31.04 | X64: 5.109698046 | Y64: 25.93030195 | Z64: 4061.828135 | AA64: 31.53580041 | AC64: 37 | AD64: 64.61 | AE64: 5 | AF64: 59.61 | AG64: 11.05943157 | AH64: 48.55056843 | AI64: 8246.023109 | AJ64: 60.74919692 | AL64: 37 | AM64: 124.91 | AN64: 10 | AO64: 114.91 | AP64: 23.8066797 | AQ64: 91.1033203 | AR64: 16713.61177 | AS64: 117.4459401 | AY64: 37 | AZ64: 37 | BA64: 0 | BB64: 30 | BC64: 30 | BD64: 0 | BE64: 0 | BF64: 60000 | BG64: 28.2073349 | BI64: 37 | BJ64: 66.6 | BK64: 5.5 | BL64: 61.1 | BM64: 14.02729132 | BN64: 47.07270868 | BO64: 9304.45484 | BP64: 62.62028347 | BQ64: 37 | BR64: 76.53 | BS64: 6.5 | BT64: 70.03 | BU64: 17.68535864 | BV64: 52.34464136 | BW64: 11117.35555 | BX64: 71.95691132 | BY64: 37 | BZ64: 80.33 | CA64: 7 | CB64: 73.33 | CC64: 20.24436353 | CD64: 53.08563647 | CE64: 12093.53248 | CF64: 75.52984041 | CG64: 0 | CH64: 0 | CI64: 0 | CJ64: 0 | CK64: 0 | CL64: 0 | CM64: 0 | CN64: 0 | CO64: 37 | CP64: 650.6565183 | CQ64: 53.5 | CR64: 597.1565183 | CS64: 152.4569648 | CT64: 444.6995535 | CU64: 91029.47934 | CV64: 0 | CW64: 597.1565183 | CX64: 1127.176518
B65: 38 | C65: 1127.176518 | D65: 120 | E65: 1007.176518 | F65: 243.1804476 | G65: 763.9960708 | H65: 211802.2892 | I65: -1007.176518 | J65: -1127.176518 | S65: 38 | T65: 38 | U65: 33.54 | V65: 2.5 | W65: 31.04 | X65: 5.077285168 | Y65: 25.96271483 | Z65: 4035.86542 | AA65: 31.4833282 | AC65: 38 | AD65: 64.61 | AE65: 5 | AF65: 59.61 | AG65: 10.99469748 | AH65: 48.61530252 | AI65: 8197.407807 | AJ65: 60.64811673 | AL65: 38 | AM65: 124.91 | AN65: 10 | AO65: 114.91 | AP65: 23.67761667 | AQ65: 91.23238333 | AR65: 16622.37938 | AS65: 117.2505225 | AY65: 38 | AZ65: 38 | BA65: 0 | BB65: 30 | BC65: 30 | BD65: 0 | BE65: 0 | BF65: 60000 | BG65: 28.1604009 | BI65: 38 | BJ65: 66.6 | BK65: 5.5 | BL65: 61.1 | BM65: 13.95668226 | BN65: 47.14331774 | BO65: 9257.311522 | BP65: 62.51608999 | BQ65: 38 | BR65: 76.53 | BS65: 6.5 | BT65: 70.03 | BU65: 17.60247963 | BV65: 52.42752037 | BW65: 11064.92803 | BX65: 71.83718268 | BY65: 38 | BZ65: 80.33 | CA65: 7 | CB65: 73.33 | CC65: 20.15588747 | CD65: 53.17411253 | CE65: 12040.35837 | CF65: 75.4041668 | CG65: 0 | CH65: 0 | CI65: 0 | CJ65: 0 | CK65: 0 | CL65: 0 | CM65: 0 | CN65: 0 | CO65: 38 | CP65: 650.6565183 | CQ65: 53.5 | CR65: 597.1565183 | CS65: 151.7157989 | CT65: 445.4407194 | CU65: 90584.03862 | CV65: 0 | CW65: 597.1565183 | CX65: 1127.176518
B66: 39 | C66: 1127.176518 | D66: 120 | E66: 1007.176518 | F66: 241.969178 | G66: 765.2073404 | H66: 211037.0818 | I66: -1007.176518 | J66: -1127.176518 | S66: 39 | T66: 39 | U66: 33.54 | V66: 2.5 | W66: 31.04 | X66: 5.044831775 | Y66: 25.99516823 | Z66: 4009.870252 | AA66: 31.4309433 | AC66: 39 | AD66: 64.61 | AE66: 5 | AF66: 59.61 | AG66: 10.92987708 | AH66: 48.68012292 | AI66: 8148.727684 | AJ66: 60.54720472 | AL66: 39 | AM66: 124.91 | AN66: 10 | AO66: 114.91 | AP66: 23.54837079 | AQ66: 91.36162921 | AR66: 16531.01775 | AS66: 117.0554301 | AY66: 39 | AZ66: 39 | BA66: 0 | BB66: 30 | BC66: 30 | BD66: 0 | BE66: 0 | BF66: 60000 | BG66: 28.11354499 | BI66: 39 | BJ66: 66.6 | BK66: 5.5 | BL66: 61.1 | BM66: 13.88596728 | BN66: 47.21403272 | BO66: 9210.097489 | BP66: 62.41206987 | BQ66: 39 | BR66: 76.53 | BS66: 6.5 | BT66: 70.03 | BU66: 17.51946939 | BV66: 52.51053061 | BW66: 11012.4175 | BX66: 71.71765326 | BY66: 39 | BZ66: 80.33 | CA66: 7 | CB66: 73.33 | CC66: 20.06726395 | CD66: 53.26273605 | CE66: 11987.09563 | CF66: 75.27870229 | CG66: 0 | CH66: 0 | CI66: 0 | CJ66: 0 | CK66: 0 | CL66: 0 | CM66: 0 | CN66: 0 | CO66: 39 | CP66: 650.6565183 | CQ66: 53.5 | CR66: 597.1565183 | CS66: 150.9733977 | CT66: 446.1831206 | CU66: 90137.8555 | CV66: 0 | CW66: 597.1565183 | CX66: 1127.176518
B67: 40 | C67: 1127.176518 | D67: 120 | E67: 1007.176518 | F67: 240.7559757 | G67: 766.4205426 | H67: 210270.6613 | I67: -1007.176518 | J67: -1127.176518 | S67: 40 | T67: 40 | U67: 33.54 | V67: 2.5 | W67: 31.04 | X67: 5.012337814 | Y67: 26.02766219 | Z67: 3983.842589 | AA67: 31.37864555 | AC67: 40 | AD67: 64.61 | AE67: 5 | AF67: 59.61 | AG67: 10.86497025 | AH67: 48.74502975 | AI67: 8099.982654 | AJ67: 60.44646062 | AL67: 40 | AM67: 124.91 | AN67: 10 | AO67: 114.91 | AP67: 23.41894182 | AQ67: 91.49105818 | AR67: 16439.52669 | AS67: 116.8606624 | AY67: 40 | AZ67: 40 | BA67: 0 | BB67: 30 | BC67: 30 | BD67: 0 | BE67: 0 | BF67: 60000 | BG67: 28.06676704 | BI67: 40 | BJ67: 66.6 | BK67: 5.5 | BL67: 61.1 | BM67: 13.81514623 | BN67: 47.28485377 | BO67: 9162.812636 | BP67: 62.30822283 | BQ67: 40 | BR67: 76.53 | BS67: 6.5 | BT67: 70.03 | BU67: 17.43632771 | BV67: 52.59367229 | BW67: 10959.82383 | BX67: 71.59832272 | BY67: 40 | BZ67: 80.33 | CA67: 7 | CB67: 73.33 | CC67: 19.97849272 | CD67: 53.35150728 | CE67: 11933.74413 | CF67: 75.15344655 | CG67: 0 | CH67: 0 | CI67: 0 | CJ67: 0 | CK67: 0 | CL67: 0 | CM67: 0 | CN67: 0 | CO67: 40 | CP67: 650.6565183 | CQ67: 53.5 | CR67: 597.1565183 | CS67: 150.2297592 | CT67: 446.9267592 | CU67: 89690.92874 | CV67: 0 | CW67: 597.1565183 | CX67: 1127.176518
B68: 41 | C68: 1127.176518 | D68: 120 | E68: 1007.176518 | F68: 239.5408377 | G68: 767.6356806 | H68: 209503.0256 | I68: -1007.176518 | J68: -1127.176518 | S68: 41 | T68: 41 | U68: 33.54 | V68: 2.5 | W68: 31.04 | X68: 4.979803237 | Y68: 26.06019676 | Z68: 3957.782393 | AA68: 31.32643483 | AC68: 41 | AD68: 64.61 | AE68: 5 | AF68: 59.61 | AG68: 10.79997687 | AH68: 48.81002313 | AI68: 8051.172631 | AJ68: 60.34588415 | AL68: 41 | AM68: 124.91 | AN68: 10 | AO68: 114.91 | AP68: 23.28932948 | AQ68: 91.62067052 | AR68: 16347.90602 | AS68: 116.6662187 | AY68: 41 | AZ68: 41 | BA68: 0 | BB68: 30 | BC68: 30 | BD68: 0 | BE68: 0 | BF68: 60000 | BG68: 28.02006693 | BI68: 41 | BJ68: 66.6 | BK68: 5.5 | BL68: 61.1 | BM68: 13.74421895 | BN68: 47.35578105 | BO68: 9115.456855 | BP68: 62.20454859 | BQ68: 41 | BR68: 76.53 | BS68: 6.5 | BT68: 70.03 | BU68: 17.3530544 | BV68: 52.6769456 | BW68: 10907.14689 | BX68: 71.47919074 | BY68: 41 | BZ68: 80.33 | CA68: 7 | CB68: 73.33 | CC68: 19.88957354 | CD68: 53.44042646 | CE68: 11880.3037 | CF68: 75.02839922 | CG68: 0 | CH68: 0 | CI68: 0 | CJ68: 0 | CK68: 0 | CL68: 0 | CM68: 0 | CN68: 0 | CO68: 41 | CP68: 650.6565183 | CQ68: 53.5 | CR68: 597.1565183 | CS68: 149.4848812 | CT68: 447.6716371 | CU68: 89243.2571 | CV68: 0 | CW68: 597.1565183 | CX68: 1127.176518
B69: 42 | C69: 1127.176518 | D69: 120 | E69: 1007.176518 | F69: 238.3237609 | G69: 768.8527575 | H69: 208734.1728 | I69: -1007.176518 | J69: -1127.176518 | S69: 42 | T69: 42 | U69: 33.54 | V69: 2.5 | W69: 31.04 | X69: 4.947227991 | Y69: 26.09277201 | Z69: 3931.689621 | AA69: 31.27431098 | AC69: 42 | AD69: 64.61 | AE69: 5 | AF69: 59.61 | AG69: 10.73489684 | AH69: 48.87510316 | AI69: 8002.297528 | AJ69: 60.24547502 | AL69: 42 | AM69: 124.91 | AN69: 10 | AO69: 114.91 | AP69: 23.15953353 | AQ69: 91.75046647 | AR69: 16256.15556 | AS69: 116.4720985 | AY69: 42 | AZ69: 42 | BA69: 0 | BB69: 30 | BC69: 30 | BD69: 0 | BE69: 0 | BF69: 60000 | BG69: 27.97344452 | BI69: 42 | BJ69: 66.6 | BK69: 5.5 | BL69: 61.1 | BM69: 13.67318528 | BN69: 47.42681472 | BO69: 9068.03004 | BP69: 62.10104684 | BQ69: 42 | BR69: 76.53 | BS69: 6.5 | BT69: 70.03 | BU69: 17.26964924 | BV69: 52.76035076 | BW69: 10854.38653 | BX69: 71.36025698 | BY69: 42 | BZ69: 80.33 | CA69: 7 | CB69: 73.33 | CC69: 19.80050617 | CD69: 53.52949383 | CE69: 11826.77421 | CF69: 74.90355995 | CG69: 0 | CH69: 0 | CI69: 0 | CJ69: 0 | CK69: 0 | CL69: 0 | CM69: 0 | CN69: 0 | CO69: 42 | CP69: 650.6565183 | CQ69: 53.5 | CR69: 597.1565183 | CS69: 148.7387618 | CT69: 448.4177565 | CU69: 88794.83934 | CV69: 0 | CW69: 597.1565183 | CX69: 1127.176518
B70: 43 | C70: 1127.176518 | D70: 120 | E70: 1007.176518 | F70: 237.1047421 | G70: 770.0717763 | H70: 207964.1011 | I70: -1007.176518 | J70: -1127.176518 | S70: 43 | T70: 43 | U70: 33.54 | V70: 2.5 | W70: 31.04 | X70: 4.914612026 | Y70: 26.12538797 | Z70: 3905.564233 | AA70: 31.22227385 | AC70: 43 | AD70: 64.61 | AE70: 5 | AF70: 59.61 | AG70: 10.66973004 | AH70: 48.94026996 | AI70: 7953.357258 | AJ70: 60.14523297 | AL70: 43 | AM70: 124.91 | AN70: 10 | AO70: 114.91 | AP70: 23.02955371 | AQ70: 91.88044629 | AR70: 16164.27511 | AS70: 116.2783013 | AY70: 43 | AZ70: 43 | BA70: 0 | BB70: 30 | BC70: 30 | BD70: 0 | BE70: 0 | BF70: 60000 | BG70: 27.92689969 | BI70: 43 | BJ70: 66.6 | BK70: 5.5 | BL70: 61.1 | BM70: 13.60204506 | BN70: 47.49795494 | BO70: 9020.532085 | BP70: 61.99771731 | BQ70: 43 | BR70: 76.53 | BS70: 6.5 | BT70: 70.03 | BU70: 17.18611201 | BV70: 52.84388799 | BW70: 10801.54265 | BX70: 71.24152111 | BY70: 43 | BZ70: 80.33 | CA70: 7 | CB70: 73.33 | CC70: 19.71129034 | CD70: 53.61870966 | CE70: 11773.1555 | CF70: 74.7789284 | CG70: 0 | CH70: 0 | CI70: 0 | CJ70: 0 | CK70: 0 | CL70: 0 | CM70: 0 | CN70: 0 | CO70: 43 | CP70: 650.6565183 | CQ70: 53.5 | CR70: 597.1565183 | CS70: 147.9913989 | CT70: 449.1651194 | CU70: 88345.67422 | CV70: 0 | CW70: 597.1565183 | CX70: 1127.176518
B71: 44 | C71: 1127.176518 | D71: 120 | E71: 1007.176518 | F71: 235.8837782 | G71: 771.2927401 | H71: 207192.8083 | I71: -1007.176518 | J71: -1127.176518 | S71: 44 | T71: 44 | U71: 33.54 | V71: 2.5 | W71: 31.04 | X71: 4.881955291 | Y71: 26.15804471 | Z71: 3879.406188 | AA71: 31.17032331 | AC71: 44 | AD71: 64.61 | AE71: 5 | AF71: 59.61 | AG71: 10.60447634 | AH71: 49.00552366 | AI71: 7904.351734 | AJ71: 60.0451577 | AL71: 44 | AM71: 124.91 | AN71: 10 | AO71: 114.91 | AP71: 22.89938974 | AQ71: 92.01061026 | AR71: 16072.2645 | AS71: 116.0848266 | AY71: 44 | AZ71: 44 | BA71: 0 | BB71: 30 | BC71: 30 | BD71: 0 | BE71: 0 | BF71: 60000 | BG71: 27.8804323 | BI71: 44 | BJ71: 66.6 | BK71: 5.5 | BL71: 61.1 | BM71: 13.53079813 | BN71: 47.56920187 | BO71: 8972.962883 | BP71: 61.89455971 | BQ71: 44 | BR71: 76.53 | BS71: 6.5 | BT71: 70.03 | BU71: 17.10244252 | BV71: 52.92755748 | BW71: 10748.61509 | BX71: 71.12298281 | BY71: 44 | BZ71: 80.33 | CA71: 7 | CB71: 73.33 | CC71: 19.62192583 | CD71: 53.70807417 | CE71: 11719.44742 | CF71: 74.65450423 | CG71: 0 | CH71: 0 | CI71: 0 | CJ71: 0 | CK71: 0 | CL71: 0 | CM71: 0 | CN71: 0 | CO71: 44 | CP71: 650.6565183 | CQ71: 53.5 | CR71: 597.1565183 | CS71: 147.2427904 | CT71: 449.913728 | CU71: 87895.7605 | CV71: 0 | CW71: 597.1565183 | CX71: 1127.176518
B72: 45 | C72: 1127.176518 | D72: 120 | E72: 1007.176518 | F72: 234.6608662 | G72: 772.5156522 | H72: 206420.2927 | I72: -1007.176518 | J72: -1127.176518 | S72: 45 | T72: 45 | U72: 33.54 | V72: 2.5 | W72: 31.04 | X72: 4.849257735 | Y72: 26.19074227 | Z72: 3853.215446 | AA72: 31.11845922 | AC72: 45 | AD72: 64.61 | AE72: 5 | AF72: 59.61 | AG72: 10.53913565 | AH72: 49.07086435 | AI72: 7855.28087 | AJ72: 59.94524896 | AL72: 45 | AM72: 124.91 | AN72: 10 | AO72: 114.91 | AP72: 22.76904138 | AQ72: 92.14095862 | AR72: 15980.12354 | AS72: 115.8916738 | AY72: 45 | AZ72: 45 | BA72: 0 | BB72: 30 | BC72: 30 | BD72: 0 | BE72: 0 | BF72: 60000 | BG72: 27.83404223 | BI72: 45 | BJ72: 66.6 | BK72: 5.5 | BL72: 61.1 | BM72: 13.45944432 | BN72: 47.64055568 | BO72: 8925.322327 | BP72: 61.79157376 | BQ72: 45 | BR72: 76.53 | BS72: 6.5 | BT72: 70.03 | BU72: 17.01864056 | BV72: 53.01135944 | BW72: 10695.60373 | BX72: 71.00464174 | BY72: 45 | BZ72: 80.33 | CA72: 7 | CB72: 73.33 | CC72: 19.53241237 | CD72: 53.79758763 | CE72: 11665.64983 | CF72: 74.53028709 | CG72: 0 | CH72: 0 | CI72: 0 | CJ72: 0 | CK72: 0 | CL72: 0 | CM72: 0 | CN72: 0 | CO72: 45 | CP72: 650.6565183 | CQ72: 53.5 | CR72: 597.1565183 | CS72: 146.4929342 | CT72: 450.6635842 | CU72: 87445.09691 | CV72: 0 | CW72: 597.1565183 | CX72: 1127.176518
B73: 46 | C73: 1127.176518 | D73: 120 | E73: 1007.176518 | F73: 233.4360028 | G73: 773.7405156 | H73: 205646.5521 | I73: -1007.176518 | J73: -1127.176518 | S73: 46 | T73: 46 | U73: 33.54 | V73: 2.5 | W73: 31.04 | X73: 4.816519307 | Y73: 26.22348069 | Z73: 3826.991965 | AA73: 31.06668141 | AC73: 46 | AD73: 64.61 | AE73: 5 | AF73: 59.61 | AG73: 10.47370783 | AH73: 49.13629217 | AI73: 7806.144578 | AJ73: 59.84550644 | AL73: 46 | AM73: 124.91 | AN73: 10 | AO73: 114.91 | AP73: 22.63850835 | AQ73: 92.27149165 | AR73: 15887.85205 | AS73: 115.6988424 | AY73: 46 | AZ73: 46 | BA73: 0 | BB73: 30 | BC73: 30 | BD73: 0 | BE73: 0 | BF73: 60000 | BG73: 27.78772935 | BI73: 46 | BJ73: 66.6 | BK73: 5.5 | BL73: 61.1 | BM73: 13.38798349 | BN73: 47.71201651 | BO73: 8877.610311 | BP73: 61.68875916 | BQ73: 46 | BR73: 76.53 | BS73: 6.5 | BT73: 70.03 | BU73: 16.93470591 | BV73: 53.09529409 | BW73: 10642.50844 | BX73: 70.88649757 | BY73: 46 | BZ73: 80.33 | CA73: 7 | CB73: 73.33 | CC73: 19.44274972 | CD73: 53.88725028 | CE73: 11611.76258 | CF73: 74.40627662 | CG73: 0 | CH73: 0 | CI73: 0 | CJ73: 0 | CK73: 0 | CL73: 0 | CM73: 0 | CN73: 0 | CO73: 46 | CP73: 650.6565183 | CQ73: 53.5 | CR73: 597.1565183 | CS73: 145.7418282 | CT73: 451.4146902 | CU73: 86993.68222 | CV73: 0 | CW73: 597.1565183 | CX73: 1127.176518
B74: 47 | C74: 1127.176518 | D74: 120 | E74: 1007.176518 | F74: 232.209185 | G74: 774.9673334 | H74: 204871.5848 | I74: -1007.176518 | J74: -1127.176518 | S74: 47 | T74: 47 | U74: 33.54 | V74: 2.5 | W74: 31.04 | X74: 4.783739956 | Y74: 26.25626004 | Z74: 3800.735705 | AA74: 31.01498976 | AC74: 47 | AD74: 64.61 | AE74: 5 | AF74: 59.61 | AG74: 10.40819277 | AH74: 49.20180723 | AI74: 7756.942771 | AJ74: 59.74592989 | AL74: 47 | AM74: 124.91 | AN74: 10 | AO74: 114.91 | AP74: 22.5077904 | AQ74: 92.4022096 | AR74: 15795.44984 | AS74: 115.5063319 | AY74: 47 | AZ74: 47 | BA74: 0 | BB74: 30 | BC74: 30 | BD74: 0 | BE74: 0 | BF74: 60000 | BG74: 27.74149353 | BI74: 47 | BJ74: 66.6 | BK74: 5.5 | BL74: 61.1 | BM74: 13.31641547 | BN74: 47.78358453 | BO74: 8829.826726 | BP74: 61.58611563 | BQ74: 47 | BR74: 76.53 | BS74: 6.5 | BT74: 70.03 | BU74: 16.85063836 | BV74: 53.17936164 | BW74: 10589.32907 | BX74: 70.76854999 | BY74: 47 | BZ74: 80.33 | CA74: 7 | CB74: 73.33 | CC74: 19.35293764 | CD74: 53.97706236 | CE74: 11557.78552 | CF74: 74.2824725 | CG74: 0 | CH74: 0 | CI74: 0 | CJ74: 0 | CK74: 0 | CL74: 0 | CM74: 0 | CN74: 0 | CO74: 47 | CP74: 650.6565183 | CQ74: 53.5 | CR74: 597.1565183 | CS74: 144.9894704 | CT74: 452.167048 | CU74: 86541.51517 | CV74: 0 | CW74: 597.1565183 | CX74: 1127.176518
B75: 48 | C75: 1127.176518 | D75: 120 | E75: 1007.176518 | F75: 230.9804095 | G75: 776.1961088 | H75: 204095.3887 | I75: -1007.176518 | J75: -1127.176518 | S75: 48 | T75: 48 | U75: 33.54 | V75: 2.5 | W75: 31.04 | X75: 4.750919631 | Y75: 26.28908037 | Z75: 3774.446625 | AA75: 30.96338412 | AC75: 48 | AD75: 64.61 | AE75: 5 | AF75: 59.61 | AG75: 10.34259036 | AH75: 49.26740964 | AI75: 7707.675361 | AJ75: 59.64651903 | AL75: 48 | AM75: 124.91 | AN75: 10 | AO75: 114.91 | AP75: 22.37688727 | AQ75: 92.53311273 | AR75: 15702.91673 | AS75: 115.3141416 | AY75: 48 | AZ75: 48 | BA75: 0 | BB75: 30 | BC75: 30 | BD75: 0 | BE75: 0 | BF75: 60000 | BG75: 27.69533464 | BI75: 48 | BJ75: 66.6 | BK75: 5.5 | BL75: 61.1 | BM75: 13.24474009 | BN75: 47.85525991 | BO75: 8781.971466 | BP75: 61.48364289 | BQ75: 48 | BR75: 76.53 | BS75: 6.5 | BT75: 70.03 | BU75: 16.7664377 | BV75: 53.2635623 | BW75: 10536.06551 | BX75: 70.65079866 | BY75: 48 | BZ75: 80.33 | CA75: 7 | CB75: 73.33 | CC75: 19.26297587 | CD75: 54.06702413 | CE75: 11503.7185 | CF75: 74.15887438 | CG75: 0 | CH75: 0 | CI75: 0 | CJ75: 0 | CK75: 0 | CL75: 0 | CM75: 0 | CN75: 0 | CO75: 48 | CP75: 650.6565183 | CQ75: 53.5 | CR75: 597.1565183 | CS75: 144.2358586 | CT75: 452.9206597 | CU75: 86088.59451 | CV75: 0 | CW75: 597.1565183 | CX75: 1127.176518
B76: 49 | C76: 1127.176518 | D76: 120 | E76: 1007.176518 | F76: 229.7496734 | G76: 777.4268449 | H76: 203317.9619 | I76: -1007.176518 | J76: -1127.176518 | S76: 49 | T76: 49 | U76: 33.54 | V76: 2.5 | W76: 31.04 | X76: 4.718058281 | Y76: 26.32194172 | Z76: 3748.124683 | AA76: 30.91186435 | AC76: 49 | AD76: 64.61 | AE76: 5 | AF76: 59.61 | AG76: 10.27690048 | AH76: 49.33309952 | AI76: 7658.342261 | AJ76: 59.54727357 | AL76: 49 | AM76: 124.91 | AN76: 10 | AO76: 114.91 | AP76: 22.2457987 | AQ76: 92.6642013 | AR76: 15610.25253 | AS76: 115.1222712 | AY76: 49 | AZ76: 49 | BA76: 0 | BB76: 30 | BC76: 30 | BD76: 0 | BE76: 0 | BF76: 60000 | BG76: 27.64925255 | BI76: 49 | BJ76: 66.6 | BK76: 5.5 | BL76: 61.1 | BM76: 13.1729572 | BN76: 47.9270428 | BO76: 8734.044424 | BP76: 61.38134066 | BQ76: 49 | BR76: 76.53 | BS76: 6.5 | BT76: 70.03 | BU76: 16.68210373 | BV76: 53.34789627 | BW76: 10482.71762 | BX76: 70.53324325 | BY76: 49 | BZ76: 80.33 | CA76: 7 | CB76: 73.33 | CC76: 19.17286416 | CD76: 54.15713584 | CE76: 11449.56136 | CF76: 74.03548191 | CG76: 0 | CH76: 0 | CI76: 0 | CJ76: 0 | CK76: 0 | CL76: 0 | CM76: 0 | CN76: 0 | CO76: 49 | CP76: 650.6565183 | CQ76: 53.5 | CR76: 597.1565183 | CS76: 143.4809909 | CT76: 453.6755275 | CU76: 85634.91899 | CV76: 0 | CW76: 597.1565183 | CX76: 1127.176518
B77: 50 | C77: 1127.176518 | D77: 120 | E77: 1007.176518 | F77: 228.5169734 | G77: 778.659545 | H77: 202539.3023 | I77: -1007.176518 | J77: -1127.176518 | S77: 50 | T77: 50 | U77: 33.54 | V77: 2.5 | W77: 31.04 | X77: 4.685155853 | Y77: 26.35484415 | Z77: 3721.769839 | AA77: 30.8604303 | AC77: 50 | AD77: 64.61 | AE77: 5 | AF77: 59.61 | AG77: 10.21112302 | AH77: 49.39887698 | AI77: 7608.943384 | AJ77: 59.44819325 | AL77: 50 | AM77: 124.91 | AN77: 10 | AO77: 114.91 | AP77: 22.11452441 | AQ77: 92.79547559 | AR77: 15517.45705 | AS77: 114.93072 | AY77: 50 | AZ77: 50 | BA77: 0 | BB77: 30 | BC77: 30 | BD77: 0 | BE77: 0 | BF77: 60000 | BG77: 27.60324714 | BI77: 50 | BJ77: 66.6 | BK77: 5.5 | BL77: 61.1 | BM77: 13.10106664 | BN77: 47.99893336 | BO77: 8686.04549 | BP77: 61.27920865 | BQ77: 50 | BR77: 76.53 | BS77: 6.5 | BT77: 70.03 | BU77: 16.59763622 | BV77: 53.43236378 | BW77: 10429.28525 | BX77: 70.41588345 | BY77: 50 | BZ77: 80.33 | CA77: 7 | CB77: 73.33 | CC77: 19.08260227 | CD77: 54.24739773 | CE77: 11395.31396 | CF77: 73.91229475 | CG77: 0 | CH77: 0 | CI77: 0 | CJ77: 0 | CK77: 0 | CL77: 0 | CM77: 0 | CN77: 0 | CO77: 50 | CP77: 650.6565183 | CQ77: 53.5 | CR77: 597.1565183 | CS77: 142.724865 | CT77: 454.4316534 | CU77: 85180.48733 | CV77: 0 | CW77: 597.1565183 | CX77: 1127.176518
B78: 51 | C78: 1127.176518 | D78: 120 | E78: 1007.176518 | F78: 227.2823063 | G78: 779.894212 | H78: 201759.4081 | I78: -1007.176518 | J78: -1127.176518 | S78: 51 | T78: 51 | U78: 33.54 | V78: 2.5 | W78: 31.04 | X78: 4.652212298 | Y78: 26.3877877 | Z78: 3695.382051 | AA78: 30.80908183 | AC78: 51 | AD78: 64.61 | AE78: 5 | AF78: 59.61 | AG78: 10.14525785 | AH78: 49.46474215 | AI78: 7559.478642 | AJ78: 59.34927779 | AL78: 51 | AM78: 124.91 | AN78: 10 | AO78: 114.91 | AP78: 21.98306416 | AQ78: 92.92693584 | AR78: 15424.53012 | AS78: 114.7394875 | AY78: 51 | AZ78: 51 | BA78: 0 | BB78: 30 | BC78: 30 | BD78: 0 | BE78: 0 | BF78: 60000 | BG78: 27.55731827 | BI78: 51 | BJ78: 66.6 | BK78: 5.5 | BL78: 61.1 | BM78: 13.02906824 | BN78: 48.07093176 | BO78: 8637.974559 | BP78: 61.17724657 | BQ78: 51 | BR78: 76.53 | BS78: 6.5 | BT78: 70.03 | BU78: 16.51303498 | BV78: 53.51696502 | BW78: 10375.76829 | BX78: 70.29871892 | BY78: 51 | BZ78: 80.33 | CA78: 7 | CB78: 73.33 | CC78: 18.99218994 | CD78: 54.33781006 | CE78: 11340.97615 | CF78: 73.78931256 | CG78: 0 | CH78: 0 | CI78: 0 | CJ78: 0 | CK78: 0 | CL78: 0 | CM78: 0 | CN78: 0 | CO78: 51 | CP78: 650.6565183 | CQ78: 53.5 | CR78: 597.1565183 | CS78: 141.9674789 | CT78: 455.1890395 | CU78: 84725.29829 | CV78: 0 | CW78: 597.1565183 | CX78: 1127.176518
B79: 52 | C79: 1127.176518 | D79: 120 | E79: 1007.176518 | F79: 226.0456691 | G79: 781.1308492 | H79: 200978.2773 | I79: -1007.176518 | J79: -1127.176518 | S79: 52 | T79: 52 | U79: 33.54 | V79: 2.5 | W79: 31.04 | X79: 4.619227564 | Y79: 26.42077244 | Z79: 3668.961279 | AA79: 30.7578188 | AC79: 52 | AD79: 64.61 | AE79: 5 | AF79: 59.61 | AG79: 10.07930486 | AH79: 49.53069514 | AI79: 7509.947947 | AJ79: 59.25052691 | AL79: 52 | AM79: 124.91 | AN79: 10 | AO79: 114.91 | AP79: 21.85141766 | AQ79: 93.05858234 | AR79: 15331.47153 | AS79: 114.5485732 | AY79: 52 | AZ79: 52 | BA79: 0 | BB79: 30 | BC79: 30 | BD79: 0 | BE79: 0 | BF79: 60000 | BG79: 27.51146583 | BI79: 52 | BJ79: 66.6 | BK79: 5.5 | BL79: 61.1 | BM79: 12.95696184 | BN79: 48.14303816 | BO79: 8589.83152 | BP79: 61.07545414 | BQ79: 52 | BR79: 76.53 | BS79: 6.5 | BT79: 70.03 | BU79: 16.42829979 | BV79: 53.60170021 | BW79: 10322.16659 | BX79: 70.18174933 | BY79: 52 | BZ79: 80.33 | CA79: 7 | CB79: 73.33 | CC79: 18.90162692 | CD79: 54.42837308 | CE79: 11286.54778 | CF79: 73.66653501 | CG79: 0 | CH79: 0 | CI79: 0 | CJ79: 0 | CK79: 0 | CL79: 0 | CM79: 0 | CN79: 0 | CO79: 52 | CP79: 650.6565183 | CQ79: 53.5 | CR79: 597.1565183 | CS79: 141.2088305 | CT79: 455.9476879 | CU79: 84269.35061 | CV79: 0 | CW79: 597.1565183 | CX79: 1127.176518
B80: 53 | C80: 1127.176518 | D80: 120 | E80: 1007.176518 | F80: 224.8070586 | G80: 782.3694598 | H80: 200195.9078 | I80: -1007.176518 | J80: -1127.176518 | S80: 53 | T80: 53 | U80: 33.54 | V80: 2.5 | W80: 31.04 | X80: 4.586201598 | Y80: 26.4537984 | Z80: 3642.50748 | AA80: 30.70664106 | AC80: 53 | AD80: 64.61 | AE80: 5 | AF80: 59.61 | AG80: 10.01326393 | AH80: 49.59673607 | AI80: 7460.351211 | AJ80: 59.15194034 | AL80: 53 | AM80: 124.91 | AN80: 10 | AO80: 114.91 | AP80: 21.71958467 | AQ80: 93.19041533 | AR80: 15238.28112 | AS80: 114.3579766 | AY80: 53 | AZ80: 53 | BA80: 0 | BB80: 30 | BC80: 30 | BD80: 0 | BE80: 0 | BF80: 60000 | BG80: 27.46568968 | BI80: 53 | BJ80: 66.6 | BK80: 5.5 | BL80: 61.1 | BM80: 12.88474728 | BN80: 48.21525272 | BO80: 8541.616268 | BP80: 60.97383109 | BQ80: 53 | BR80: 76.53 | BS80: 6.5 | BT80: 70.03 | BU80: 16.34343043 | BV80: 53.68656957 | BW80: 10268.48002 | BX80: 70.06497438 | BY80: 53 | BZ80: 80.33 | CA80: 7 | CB80: 73.33 | CC80: 18.81091297 | CD80: 54.51908703 | CE80: 11232.02869 | CF80: 73.54396174 | CG80: 0 | CH80: 0 | CI80: 0 | CJ80: 0 | CK80: 0 | CL80: 0 | CM80: 0 | CN80: 0 | CO80: 53 | CP80: 650.6565183 | CQ80: 53.5 | CR80: 597.1565183 | CS80: 140.4489177 | CT80: 456.7076007 | CU80: 83812.64301 | CV80: 0 | CW80: 597.1565183 | CX80: 1127.176518
B81: 54 | C81: 1127.176518 | D81: 120 | E81: 1007.176518 | F81: 223.5664715 | G81: 783.6100469 | H81: 199412.2977 | I81: -1007.176518 | J81: -1127.176518 | S81: 54 | T81: 54 | U81: 33.54 | V81: 2.5 | W81: 31.04 | X81: 4.55313435 | Y81: 26.48686565 | Z81: 3616.020614 | AA81: 30.65554848 | AC81: 54 | AD81: 64.61 | AE81: 5 | AF81: 59.61 | AG81: 9.947134948 | AH81: 49.66286505 | AI81: 7410.688346 | AJ81: 59.05351781 | AL81: 54 | AM81: 124.91 | AN81: 10 | AO81: 114.91 | AP81: 21.58756492 | AQ81: 93.32243508 | AR81: 15144.95868 | AS81: 114.1676971 | AY81: 54 | AZ81: 54 | BA81: 0 | BB81: 30 | BC81: 30 | BD81: 0 | BE81: 0 | BF81: 60000 | BG81: 27.4199897 | BI81: 54 | BJ81: 66.6 | BK81: 5.5 | BL81: 61.1 | BM81: 12.8124244 | BN81: 48.2875756 | BO81: 8493.328692 | BP81: 60.87237713 | BQ81: 54 | BR81: 76.53 | BS81: 6.5 | BT81: 70.03 | BU81: 16.25842669 | BV81: 53.77157331 | BW81: 10214.70844 | BX81: 69.94839372 | BY81: 54 | BZ81: 80.33 | CA81: 7 | CB81: 73.33 | CC81: 18.72004782 | CD81: 54.60995218 | CE81: 11177.41874 | CF81: 73.42159242 | CG81: 0 | CH81: 0 | CI81: 0 | CJ81: 0 | CK81: 0 | CL81: 0 | CM81: 0 | CN81: 0 | CO81: 54 | CP81: 650.6565183 | CQ81: 53.5 | CR81: 597.1565183 | CS81: 139.6877383 | CT81: 457.46878 | CU81: 83355.17423 | CV81: 0 | CW81: 597.1565183 | CX81: 1127.176518
B82: 55 | C82: 1127.176518 | D82: 120 | E82: 1007.176518 | F82: 222.3239047 | G82: 784.8526136 | H82: 198627.4451 | I82: -1007.176518 | J82: -1127.176518 | S82: 55 | T82: 55 | U82: 33.54 | V82: 2.5 | W82: 31.04 | X82: 4.520025768 | Y82: 26.51997423 | Z82: 3589.50064 | AA82: 30.60454091 | AC82: 55 | AD82: 64.61 | AE82: 5 | AF82: 59.61 | AG82: 9.880917795 | AH82: 49.72908221 | AI82: 7360.959264 | AJ82: 58.95525905 | AL82: 55 | AM82: 124.91 | AN82: 10 | AO82: 114.91 | AP82: 21.45535813 | AQ82: 93.45464187 | AR82: 15051.50404 | AS82: 113.9777342 | AY82: 55 | AZ82: 55 | BA82: 0 | BB82: 30 | BC82: 30 | BD82: 0 | BE82: 0 | BF82: 60000 | BG82: 27.37436576 | BI82: 55 | BJ82: 66.6 | BK82: 5.5 | BL82: 61.1 | BM82: 12.73999304 | BN82: 48.36000696 | BO82: 8444.968685 | BP82: 60.77109198 | BQ82: 55 | BR82: 76.53 | BS82: 6.5 | BT82: 70.03 | BU82: 16.17328837 | BV82: 53.85671163 | BW82: 10160.85173 | BX82: 69.83200704 | BY82: 55 | BZ82: 80.33 | CA82: 7 | CB82: 73.33 | CC82: 18.62903124 | CD82: 54.70096876 | CE82: 11122.71777 | CF82: 73.2994267 | CG82: 0 | CH82: 0 | CI82: 0 | CJ82: 0 | CK82: 0 | CL82: 0 | CM82: 0 | CN82: 0 | CO82: 55 | CP82: 650.6565183 | CQ82: 53.5 | CR82: 597.1565183 | CS82: 138.9252904 | CT82: 458.231228 | CU82: 82896.943 | CV82: 0 | CW82: 597.1565183 | CX82: 1127.176518
B83: 56 | C83: 1127.176518 | D83: 120 | E83: 1007.176518 | F83: 221.0793551 | G83: 786.0971632 | H83: 197841.348 | I83: -1007.176518 | J83: -1127.176518 | S83: 56 | T83: 56 | U83: 33.54 | V83: 2.5 | W83: 31.04 | X83: 4.4868758 | Y83: 26.5531242 | Z83: 3562.947516 | AA83: 30.55361822 | AC83: 56 | AD83: 64.61 | AE83: 5 | AF83: 59.61 | AG83: 9.814612352 | AH83: 49.79538765 | AI83: 7311.163876 | AJ83: 58.85716378 | AL83: 56 | AM83: 124.91 | AN83: 10 | AO83: 114.91 | AP83: 21.32296406 | AQ83: 93.58703594 | AR83: 14957.917 | AS83: 113.7880874 | AY83: 56 | AZ83: 56 | BA83: 0 | BB83: 30 | BC83: 30 | BD83: 0 | BE83: 0 | BF83: 60000 | BG83: 27.32881773 | BI83: 56 | BJ83: 66.6 | BK83: 5.5 | BL83: 61.1 | BM83: 12.66745303 | BN83: 48.43254697 | BO83: 8396.536138 | BP83: 60.66997535 | BQ83: 56 | BR83: 76.53 | BS83: 6.5 | BT83: 70.03 | BU83: 16.08801524 | BV83: 53.94198476 | BW83: 10106.90975 | BX83: 69.71581402 | BY83: 56 | BZ83: 80.33 | CA83: 7 | CB83: 73.33 | CC83: 18.53786295 | CD83: 54.79213705 | CE83: 11067.92564 | CF83: 73.17746426 | CG83: 0 | CH83: 0 | CI83: 0 | CJ83: 0 | CK83: 0 | CL83: 0 | CM83: 0 | CN83: 0 | CO83: 56 | CP83: 650.6565183 | CQ83: 53.5 | CR83: 597.1565183 | CS83: 138.1615717 | CT83: 458.9949467 | CU83: 82437.94805 | CV83: 0 | CW83: 597.1565183 | CX83: 1127.176518
B84: 57 | C84: 1127.176518 | D84: 120 | E84: 1007.176518 | F84: 219.8328194 | G84: 787.3436989 | H84: 197054.0043 | I84: -1007.176518 | J84: -1127.176518 | S84: 57 | T84: 57 | U84: 33.54 | V84: 2.5 | W84: 31.04 | X84: 4.453684395 | Y84: 26.5863156 | Z84: 3536.3612 | AA84: 30.50278025 | AC84: 57 | AD84: 64.61 | AE84: 5 | AF84: 59.61 | AG84: 9.748218502 | AH84: 49.8617815 | AI84: 7261.302095 | AJ84: 58.75923172 | AL84: 57 | AM84: 124.91 | AN84: 10 | AO84: 114.91 | AP84: 21.19038242 | AQ84: 93.71961758 | AR84: 14864.19739 | AS84: 113.5987561 | AY84: 57 | AZ84: 57 | BA84: 0 | BB84: 30 | BC84: 30 | BD84: 0 | BE84: 0 | BF84: 60000 | BG84: 27.28334548 | BI84: 57 | BJ84: 66.6 | BK84: 5.5 | BL84: 61.1 | BM84: 12.59480421 | BN84: 48.50519579 | BO84: 8348.030942 | BP84: 60.56902697 | BQ84: 57 | BR84: 76.53 | BS84: 6.5 | BT84: 70.03 | BU84: 16.0026071 | BV84: 54.0273929 | BW84: 10052.88235 | BX84: 69.59981433 | BY84: 57 | BZ84: 80.33 | CA84: 7 | CB84: 73.33 | CC84: 18.44654273 | CD84: 54.88345727 | CE84: 11013.04218 | CF84: 73.05570476 | CG84: 0 | CH84: 0 | CI84: 0 | CJ84: 0 | CK84: 0 | CL84: 0 | CM84: 0 | CN84: 0 | CO84: 57 | CP84: 650.6565183 | CQ84: 53.5 | CR84: 597.1565183 | CS84: 137.3965801 | CT84: 459.7599383 | CU84: 81978.18811 | CV84: 0 | CW84: 597.1565183 | CX84: 1127.176518
B85: 58 | C85: 1127.176518 | D85: 120 | E85: 1007.176518 | F85: 218.5842946 | G85: 788.5922238 | H85: 196265.412 | I85: -1007.176518 | J85: -1127.176518 | S85: 58 | T85: 58 | U85: 33.54 | V85: 2.5 | W85: 31.04 | X85: 4.420451501 | Y85: 26.6195485 | Z85: 3509.741652 | AA85: 30.45202687 | AC85: 58 | AD85: 64.61 | AE85: 5 | AF85: 59.61 | AG85: 9.681736126 | AH85: 49.92826387 | AI85: 7211.373831 | AJ85: 58.66146262 | AL85: 58 | AM85: 124.91 | AN85: 10 | AO85: 114.91 | AP85: 21.05761297 | AQ85: 93.85238703 | AR85: 14770.345 | AS85: 113.4097399 | AY85: 58 | AZ85: 58 | BA85: 0 | BB85: 30 | BC85: 30 | BD85: 0 | BE85: 0 | BF85: 60000 | BG85: 27.2379489 | BI85: 58 | BJ85: 66.6 | BK85: 5.5 | BL85: 61.1 | BM85: 12.52204641 | BN85: 48.57795359 | BO85: 8299.452989 | BP85: 60.46824656 | BQ85: 58 | BR85: 76.53 | BS85: 6.5 | BT85: 70.03 | BU85: 15.91706373 | BV85: 54.11293627 | BW85: 9998.769418 | BX85: 69.48400765 | BY85: 58 | BZ85: 80.33 | CA85: 7 | CB85: 73.33 | CC85: 18.3550703 | CD85: 54.9749297 | CE85: 10958.06725 | CF85: 72.93414784 | CG85: 0 | CH85: 0 | CI85: 0 | CJ85: 0 | CK85: 0 | CL85: 0 | CM85: 0 | CN85: 0 | CO85: 58 | CP85: 650.6565183 | CQ85: 53.5 | CR85: 597.1565183 | CS85: 136.6303135 | CT85: 460.5262048 | CU85: 81517.66191 | CV85: 0 | CW85: 597.1565183 | CX85: 1127.176518
B86: 59 | C86: 1127.176518 | D86: 120 | E86: 1007.176518 | F86: 217.3337772 | G86: 789.8427411 | H86: 195475.5693 | I86: -1007.176518 | J86: -1127.176518 | S86: 59 | T86: 59 | U86: 33.54 | V86: 2.5 | W86: 31.04 | X86: 4.387177065 | Y86: 26.65282294 | Z86: 3483.088829 | AA86: 30.40135794 | AC86: 59 | AD86: 64.61 | AE86: 5 | AF86: 59.61 | AG86: 9.615165108 | AH86: 49.99483489 | AI86: 7161.378996 | AJ86: 58.56385619 | AL86: 59 | AM86: 124.91 | AN86: 10 | AO86: 114.91 | AP86: 20.92465542 | AQ86: 93.98534458 | AR86: 14676.35966 | AS86: 113.2210382 | AY86: 59 | AZ86: 59 | BA86: 0 | BB86: 30 | BC86: 30 | BD86: 0 | BE86: 0 | BF86: 60000 | BG86: 27.19262786 | BI86: 59 | BJ86: 66.6 | BK86: 5.5 | BL86: 61.1 | BM86: 12.44917948 | BN86: 48.65082052 | BO86: 8250.802168 | BP86: 60.36763384 | BQ86: 59 | BR86: 76.53 | BS86: 6.5 | BT86: 70.03 | BU86: 15.83138491 | BV86: 54.19861509 | BW86: 9944.570803 | BX86: 69.36839366 | BY86: 59 | BZ86: 80.33 | CA86: 7 | CB86: 73.33 | CC86: 18.26344541 | CD86: 55.06655459 | CE86: 10903.00069 | CF86: 72.81279319 | CG86: 0 | CH86: 0 | CI86: 0 | CJ86: 0 | CK86: 0 | CL86: 0 | CM86: 0 | CN86: 0 | CO86: 59 | CP86: 650.6565183 | CQ86: 53.5 | CR86: 597.1565183 | CS86: 135.8627698 | CT86: 461.2937485 | CU86: 81056.36816 | CV86: 0 | CW86: 597.1565183 | CX86: 1127.176518
B87: 60 | C87: 1127.176518 | D87: 120 | E87: 1007.176518 | F87: 216.0812643 | G87: 791.095254 | H87: 194684.4741 | I87: -1007.176518 | J87: -1127.176518 | S87: 60 | T87: 60 | U87: 33.54 | V87: 2.5 | W87: 31.04 | X87: 4.353861036 | Y87: 26.68613896 | Z87: 3456.40269 | AA87: 30.35077332 | AC87: 60 | AD87: 64.61 | AE87: 5 | AF87: 59.61 | AG87: 9.548505328 | AH87: 50.06149467 | AI87: 7111.317501 | AJ87: 58.46641217 | AL87: 60 | AM87: 124.91 | AN87: 10 | AO87: 114.91 | AP87: 20.79150951 | AQ87: 94.11849049 | AR87: 14582.24117 | AS87: 113.0326504 | AY87: 60 | AZ87: 60 | BA87: 0 | BB87: 30 | BC87: 30 | BD87: 0 | BE87: 0 | BF87: 60000 | BG87: 27.14738222 | BI87: 60 | BJ87: 66.6 | BK87: 5.5 | BL87: 61.1 | BM87: 12.37620325 | BN87: 48.72379675 | BO87: 8202.078371 | BP87: 60.26718852 | BQ87: 60 | BR87: 76.53 | BS87: 6.5 | BT87: 70.03 | BU87: 15.74557044 | BV87: 54.28442956 | BW87: 9890.286374 | BX87: 69.25297204 | BY87: 60 | BZ87: 80.33 | CA87: 7 | CB87: 73.33 | CC87: 18.17166782 | CD87: 55.15833218 | CE87: 10847.84236 | CF87: 72.69164045 | CG87: 0 | CH87: 0 | CI87: 0 | CJ87: 0 | CK87: 0 | CL87: 0 | CM87: 0 | CN87: 0 | CO87: 60 | CP87: 650.6565183 | CQ87: 53.5 | CR87: 597.1565183 | CS87: 135.0939469 | CT87: 462.0625714 | CU87: 80594.30559 | CV87: 0 | CW87: 597.1565183 | CX87: 1127.176518
B88: 61 | C88: 1127.176518 | D88: 120 | E88: 1007.176518 | F88: 214.8267526 | G88: 792.3497658 | H88: 193892.1243 | I88: -1007.176518 | J88: -1127.176518 | S88: 61 | T88: 61 | U88: 33.54 | V88: 2.5 | W88: 31.04 | X88: 4.320503363 | Y88: 26.71949664 | Z88: 3429.683193 | AA88: 30.30027287 | AC88: 61 | AD88: 64.61 | AE88: 5 | AF88: 59.61 | AG88: 9.481756668 | AH88: 50.12824333 | AI88: 7061.189258 | AJ88: 58.36913029 | AL88: 61 | AM88: 124.91 | AN88: 10 | AO88: 114.91 | AP88: 20.65817498 | AQ88: 94.25182502 | AR88: 14487.98934 | AS88: 112.8445761 | AY88: 61 | AZ88: 61 | BA88: 0 | BB88: 30 | BC88: 30 | BD88: 0 | BE88: 0 | BF88: 60000 | BG88: 27.10221187 | BI88: 61 | BJ88: 66.6 | BK88: 5.5 | BL88: 61.1 | BM88: 12.30311756 | BN88: 48.79688244 | BO88: 8153.281489 | BP88: 60.16691034 | BQ88: 61 | BR88: 76.53 | BS88: 6.5 | BT88: 70.03 | BU88: 15.65962009 | BV88: 54.37037991 | BW88: 9835.915994 | BX88: 69.13774247 | BY88: 61 | BZ88: 80.33 | CA88: 7 | CB88: 73.33 | CC88: 18.07973727 | CD88: 55.25026273 | CE88: 10792.5921 | CF88: 72.5706893 | CG88: 0 | CH88: 0 | CI88: 0 | CJ88: 0 | CK88: 0 | CL88: 0 | CM88: 0 | CN88: 0 | CO88: 61 | CP88: 650.6565183 | CQ88: 53.5 | CR88: 597.1565183 | CS88: 134.3238426 | CT88: 462.8326757 | CU88: 80131.47291 | CV88: 0 | CW88: 597.1565183 | CX88: 1127.176518
B89: 62 | C89: 1127.176518 | D89: 120 | E89: 1007.176518 | F89: 213.5702388 | G89: 793.6062795 | H89: 193098.518 | I89: -1007.176518 | J89: -1127.176518 | S89: 62 | T89: 62 | U89: 33.54 | V89: 2.5 | W89: 31.04 | X89: 4.287103992 | Y89: 26.75289601 | Z89: 3402.930297 | AA89: 30.24985644 | AC89: 62 | AD89: 64.61 | AE89: 5 | AF89: 59.61 | AG89: 9.414919011 | AH89: 50.19508099 | AI89: 7010.994177 | AJ89: 58.27201027 | AL89: 62 | AM89: 124.91 | AN89: 10 | AO89: 114.91 | AP89: 20.52465157 | AQ89: 94.38534843 | AR89: 14393.60399 | AS89: 112.6568148 | AY89: 62 | AZ89: 62 | BA89: 0 | BB89: 30 | BC89: 30 | BD89: 0 | BE89: 0 | BF89: 60000 | BG89: 27.05711667 | BI89: 62 | BJ89: 66.6 | BK89: 5.5 | BL89: 61.1 | BM89: 12.22992223 | BN89: 48.87007777 | BO89: 8104.411411 | BP89: 60.06679901 | BQ89: 62 | BR89: 76.53 | BS89: 6.5 | BT89: 70.03 | BU89: 15.57353366 | BV89: 54.45646634 | BW89: 9781.459527 | BX89: 69.02270463 | BY89: 62 | BZ89: 80.33 | CA89: 7 | CB89: 73.33 | CC89: 17.9876535 | CD89: 55.3423465 | CE89: 10737.24975 | CF89: 72.44993941 | CG89: 0 | CH89: 0 | CI89: 0 | CJ89: 0 | CK89: 0 | CL89: 0 | CM89: 0 | CN89: 0 | CO89: 62 | CP89: 650.6565183 | CQ89: 53.5 | CR89: 597.1565183 | CS89: 133.5524549 | CT89: 463.6040635 | CU89: 79667.86885 | CV89: 0 | CW89: 597.1565183 | CX89: 1127.176518
B90: 63 | C90: 1127.176518 | D90: 120 | E90: 1007.176518 | F90: 212.3117198 | G90: 794.8647985 | H90: 192303.6532 | I90: -1007.176518 | J90: -1127.176518 | S90: 63 | T90: 63 | U90: 33.54 | V90: 2.5 | W90: 31.04 | X90: 4.253662872 | Y90: 26.78633713 | Z90: 3376.14396 | AA90: 30.1995239 | AC90: 63 | AD90: 64.61 | AE90: 5 | AF90: 59.61 | AG90: 9.347992236 | AH90: 50.26200776 | AI90: 6960.732169 | AJ90: 58.17505185 | AL90: 63 | AM90: 124.91 | AN90: 10 | AO90: 114.91 | AP90: 20.39093899 | AQ90: 94.51906101 | AR90: 14299.08493 | AS90: 112.4693658 | AY90: 63 | AZ90: 63 | BA90: 0 | BB90: 30 | BC90: 30 | BD90: 0 | BE90: 0 | BF90: 60000 | BG90: 27.01209651 | BI90: 63 | BJ90: 66.6 | BK90: 5.5 | BL90: 61.1 | BM90: 12.15661712 | BN90: 48.94338288 | BO90: 8055.468028 | BP90: 59.96685425 | BQ90: 63 | BR90: 76.53 | BS90: 6.5 | BT90: 70.03 | BU90: 15.48731092 | BV90: 54.54268908 | BW90: 9726.916838 | BX90: 68.9078582 | BY90: 63 | BZ90: 80.33 | CA90: 7 | CB90: 73.33 | CC90: 17.89541625 | CD90: 55.43458375 | CE90: 10681.81517 | CF90: 72.32939042 | CG90: 0 | CH90: 0 | CI90: 0 | CJ90: 0 | CK90: 0 | CL90: 0 | CM90: 0 | CN90: 0 | CO90: 63 | CP90: 650.6565183 | CQ90: 53.5 | CR90: 597.1565183 | CS90: 132.7797814 | CT90: 464.3767369 | CU90: 79203.49211 | CV90: 0 | CW90: 597.1565183 | CX90: 1127.176518
B91: 64 | C91: 1127.176518 | D91: 120 | E91: 1007.176518 | F91: 211.0511923 | G91: 796.125326 | H91: =Z91+AI91+AR91+BF91+BO91+BW91+CE91+CM91+CU91 -> 191507.5279 | I91: -1007.176518 | J91: -1127.176518 | S91: 64 | T91: 64 | U91: 33.54 | V91: 2.5 | W91: 31.04 | X91: 4.22017995 | Y91: 26.81982005 | Z91: 3349.32414 | AA91: 30.14927511 | AC91: 64 | AD91: 64.61 | AE91: 5 | AF91: 59.61 | AG91: 9.280976226 | AH91: 50.32902377 | AI91: 6910.403145 | AJ91: 58.07825476 | AL91: 64 | AM91: 124.91 | AN91: 10 | AO91: 114.91 | AP91: 20.25703699 | AQ91: 94.65296301 | AR91: 14204.43197 | AS91: 112.2822288 | AY91: 64 | AZ91: 64 | BA91: =IF(OR((AY91-$J$10)<0,AY91>$AY$24),0,AY91-$J$10) -> 0 | BB91: 30 | BC91: 30 | BD91: 0 | BE91: 0 | BF91: 60000 | BG91: 26.96715126 | BI91: 64 | BJ91: 66.6 | BK91: 5.5 | BL91: 61.1 | BM91: 12.08320204 | BN91: 49.01679796 | BO91: 8006.45123 | BP91: 59.86707579 | BQ91: 64 | BR91: 76.53 | BS91: 6.5 | BT91: 70.03 | BU91: 15.40095166 | BV91: 54.62904834 | BW91: 9672.28779 | BX91: 68.79320286 | BY91: 64 | BZ91: 80.33 | CA91: 7 | CB91: 73.33 | CC91: 17.80302528 | CD91: 55.52697472 | CE91: 10626.28819 | CF91: 72.20904202 | CG91: 0 | CH91: 0 | CI91: 0 | CJ91: 0 | CK91: 0 | CL91: 0 | CM91: 0 | CN91: 0 | CO91: 64 | CP91: 650.6565183 | CQ91: 53.5 | CR91: 597.1565183 | CS91: 132.0058202 | CT91: 465.1506982 | CU91: 78738.34141 | CV91: 0 | CW91: 597.1565183 | CX91: 1127.176518
B92: 65 | C92: =U92+AD92+AM92+BB92+BJ92+BR92+BZ92+CH92+CP92 -> 1127.176518 | D92: =V92+AE92+AN92+BC92+BK92+BS92+CA92+CI92+CQ92 -> 120 | E92: =W92+AF92+AO92+BD92+BL92+BT92+CB92+CJ92+CR92 -> 1007.176518 | F92: =X92+AG92+AP92+BM92+BU92+CC92+CK92+CS92 -> 209.7886532 | G92: =Y92+AH92+AQ92+BE92+BN92+BV92+CD92+CL92+CT92 -> 797.3878652 | H92: 190710.14 | I92: -1007.176518 | J92: -1127.176518 | S92: 65 | T92: =IF($S92>$K$7,0,$S92) -> 65 | U92: =IF(S92>$S$24,0,IF($AB$21=3,IF(T92=$S$24,W92+V92,ROUND(-PMT(($V$24+($P$7*$N$7)+($Q$7*$O$7))/12,$S$24,$U$24,0,0),2)),W92+V92)) -> 33.54 | V92: =IF(S92>$S$24,0,IF($AB$21=1,TRUNC($U$24*$P$7*$N$7/12,2)+TRUNC($U$24*$Q$7*$O$7/12,2),IF($AB$21=2,TRUNC(Z91*$P$7*$N$7/12,2)+TRUNC(Z91*$Q$7*$O$7/12,2),TRUNC(Z91*$P$7*$N$7/12,2)+TRUNC(Z91*$Q$7*$O$7/12,2)))) -> 2.5 | W92: =IF(S92>$S$24,0,IF($AB$21=3,IF(T92=$S$24,Y92+X92,U92-V92),IF(T92=$S$24,Y92+X92,ROUND(-PMT($V$24/12,$S$24,$U$24,0,0),2)))) -> 31.04 | X92: =IF(S92>$S$24,0,Z91*$V$24/12) -> 4.186655175 | Y92: =IF(S92>$S$24,0,(IF(T92=$S$24,Z91,W92-X92))) -> 26.85334482 | Z92: =IF(S92>$S$24,0,Z91-Y92) -> 3322.470795 | AA92: =IF(S92>$K$15,0,IF($AT$22<>3,U92*((1+($L$15/12))^(-T92)),U92*((1+(($L$15+($P$7*$N$7)+($Q$7*$O$7))/12))^(-T92)))) -> 30.09910992 | AC92: =IF($S92>$K$8,0,$S92) -> 65 | AD92: =IF(S92>$AC$24,0,IF($AK$21=3,IF(AC92=$AC$24,AF92+AE92,ROUND(-PMT(($AE$24+($P$8*$N$8)+($Q$8*$O$8))/12,$AC$24,$AD$24,0,0),2)),AF92+AE92)) -> 64.61 | AE92: =IF(S92>$AC$24,0,IF($AK$21=1,TRUNC($AD$24*$P$8*$N$8/12,2)+TRUNC($AD$24*$Q$8*$O$8/12,2),IF($AK$21=2,TRUNC(AI91*$P$8*$N$8/12,2)+TRUNC(AI91*$Q$8*$O$8/12,2),TRUNC(AI91*$P$8*$N$8/12,2)+TRUNC(AI91*$Q$8*$O$8/12,2)))) -> 5 | AF92: =IF(S92>$AC$24,0,IF($AK$21=3,IF(AC92=$AC$24,AH92+AG92,AD92-AE92),IF(AC92=$AC$24,AH92+AG92,ROUND(-PMT($AE$24/12,$AC$24,$AD$24,0,0),2)))) -> 59.61 | AG92: =IF(S92>$AC$24,0,AI91*$AE$24/12) -> 9.21387086 | AH92: =IF(S92>$AC$24,0,(IF(AC92=$AC$24,AI91,AF92-AG92))) -> 50.39612914 | AI92: =IF(S92>$AC$24,0,AI91-AH92) -> 6860.007016 | AJ92: =IF(AC92>$K$15,0,IF($AT$22<>3,AD92*((1+($L$15/12))^(-AC92)),AD92*((1+(($L$15+($P$7*$N$7)+($Q$7*$O$7))/12))^(-AC92)))) -> 57.98161873 | AL92: =IF($S92>$K$9,0,$S92) -> 65 | AM92: =IF(S92>$AL$24,0,IF($AT$21=3,IF(AL92=$AL$24,AO92+AN92,ROUND(-PMT(($AN$24+($P$9*$N$9)+($Q$9*$O$9))/12,$AL$24,$AM$24,0,0),2)),AO92+AN92)) -> 124.91 | AN92: =IF(S92>$AL$24,0,IF($AT$21=1,TRUNC($AM$24*$P$9*$N$9/12,2)+TRUNC($AM$24*$Q$9*$O$9/12,2),IF($AT$21=2,TRUNC(AR91*$P$9*$N$9/12,2)+TRUNC(AR91*$Q$9*$O$9/12,2),TRUNC(AR91*$P$9*$N$9/12,2)+TRUNC(AR91*$Q$9*$O$9/12,2)))) -> 10 | AO92: =IF(S92>$AL$24,0,IF($AT$21=3,IF(AL92=$AL$24,AQ92+AP92,AM92-AN92),IF(AL92=$AL$24,AQ92+AP92,ROUND(-PMT($AN$24/12,$AL$24,$AM$24,0,0),2)))) -> 114.91 | AP92: =IF(S92>$AL$24,0,AR91*$AN$24/12) -> 20.12294529 | AQ92: =IF(S92>$AL$24,0,(IF(AL92=$AL$24,AR91,AO92-AP92))) -> 94.78705471 | AR92: =IF(AL92>$AL$24,0,AR91-AQ92) -> 14109.64491 | AS92: =IF(AL92>$K$15,0,IF($AT$22<>3,AM92*((1+($L$15/12))^(-AL92)),AM92*((1+(($L$15+($P$7*$N$7)+($Q$7*$O$7))/12))^(-AL92)))) -> 112.0954031 | AY92: =IF($S92>$AY$24,0,$S92) -> 65 | AZ92: =IF(AY92>$J$10,0,AY92) -> 65 | BA92: 0 | BB92: 30 | BC92: =IF(AY92=0,0,IF(AY92>$AY$24,0,IF($AT$22=1,TRUNC($BB$24*$P$10*$N$10/12,2)+TRUNC($BB$24*$Q$10*$O$10/12,2),IF($AT$22=2,TRUNC(BF91*$P$10*$N$10/12,2)+TRUNC(BF91*$Q$10*$O$10/12,2),TRUNC(BF91*$P$10*$N$10/12,2)+TRUNC(BF91*$Q$10*$O$10/12,2))))) -> 30 | BD92: =IF(AY92=0,0,IF(AY92<=$J$10,$BB$24*$BD$23/$J$10,$BB$24*$I$10/$BA$24)) -> 0 | BE92: 0 | BF92: =BF91-BE92 -> 60000 | BG92: =IF(AY92>$K$15,0,IF($AT$22<>3,BB92*(1+($L$15/12))^(-AY92),BB92*((1+(($L$15+($P$10*$N$10)+($Q$10*$O$10))/12))^(-AY92)))) -> 26.92228079 | BI92: =IF($S92>$K$11,0,$S92) -> 65 | BJ92: =IF($S92>$BI$24,0,IF($AT$22=3,IF(BI92=$BI$24,BL92+BK92,ROUND(-PMT(($BK$24+($P$10*$N$10)+($Q$10*$O$10))/12,$BI$24,$BJ$24,0,0),2)),BL92+BK92)) -> 66.6 | BK92: =IF($S92>$BI$24,0,IF($AT$22=1,TRUNC($BJ$24*$P$10*$N$10/12,2)+TRUNC($BJ$24*$Q$10*$O$10/12,2),IF($AT$22=2,TRUNC(BO91*$P$10*$N$10/12,2)+TRUNC(BO91*$Q$10*$O$10/12,2),TRUNC(BO91*$P$10*$N$10/12,2)+TRUNC(BO91*$Q$10*$O$10/12,2)))) -> 5.5 | BL92: =IF($S92>$BI$24,0,IF($AT$22=3,IF(BI92=$BI$24,BN92+BM92,BJ92-BK92),IF(BI92=$BI$24,BN92+BM92,ROUND(-PMT($BK$24/12,$BI$24,$BJ$24,0,0),2)))) -> 61.1 | BM92: =IF($S92>$BI$24,0,BO91*$BK$24/12) -> 12.00967685 | BN92: =IF($S92>$BI$24,0,(IF(BI92=$BI$24,BO91,BL92-BM92))) -> 49.09032315 | BO92: =IF($S92>$BI$24,0,BO91-BN92) -> 7957.360907 | BP92: =IF(BI92>$K$15,0,IF(BI92>$BI$24,0,IF($AT$22<>3,BJ92*(1+($L$15/12))^(-BI92),BJ92*((1+(($L$15+($P$10*$N$10)+($Q$10*$O$10))/12))^(-BI92))))) -> 59.76746335 | BQ92: =IF($S92>$K$12,0,$S92) -> 65 | BR92: =IF($S92>$BQ$24,0,IF($AT$22=3,IF(BQ92=$BQ$24,BT92+BS92,ROUND(-PMT(($BS$24+($P$10*$N$10)+($Q$10*$O$10))/12,$BQ$24,$BR$24,0,0),2)),BT92+BS92)) -> 76.53 | BS92: =IF($S92>$BQ$24,0,IF($AT$22=1,TRUNC($BR$24*$P$10*$N$10/12,2)+TRUNC($BR$24*$Q$10*$O$10/12,2),IF($AT$22=2,TRUNC(BW91*$P$10*$N$10/12,2)+TRUNC(BW91*$Q$10*$O$10/12,2),TRUNC(BW91*$P$10*$N$10/12,2)+TRUNC(BW91*$Q$10*$O$10/12,2)))) -> 6.5 | BT92: =IF($S92>$BQ$24,0,IF($AT$22=3,IF(BQ92=$BQ$24,BV92+BU92,BR92-BS92),IF(BQ92=$BQ$24,BV92+BU92,ROUND(-PMT($BS$24/12,$BQ$24,$BR$24,0,0),2)))) -> 70.03 | BU92: =IF($S92>$BQ$24,0,BW91*$BS$24/12) -> 15.31445567 | BV92: =IF($S92>$BQ$24,0,(IF(BQ92=$BQ$24,BW91,BT92-BU92))) -> 54.71554433 | BW92: =IF($S92>$BQ$24,0,BW91-BV92) -> 9617.572246 | BX92: =IF(BQ92>$K$15,0,IF(BQ92>$BQ$24,0,IF($AT$22<>3,BR92*(1+($L$15/12))^(-BQ92),BR92*((1+(($L$15+($P$10*$N$10)+($Q$10*$O$10))/12))^(-BQ92))))) -> 68.67873829 | BY92: =IF($S92>$K$13,0,$S92) -> 65 | BZ92: =IF($S92>$BY$24,0,IF($AT$22=3,IF(BY92=$BY$24,CB92+CA92,ROUND(-PMT(($CA$24+($P$10*$N$10)+($Q$10*$O$10))/12,$BY$24,$BZ$24,0,0),2)),CB92+CA92)) -> 80.33 | CA92: =IF($S92>$BY$24,0,IF($AT$22=1,TRUNC($BZ$24*$P$10*$N$10/12,2)+TRUNC($BZ$24*$Q$10*$O$10/12,2),IF($AT$22=2,TRUNC(CE91*$P$10*$N$10/12,2)+TRUNC(CE91*$Q$10*$O$10/12,2),TRUNC(CE91*$P$10*$N$10/12,2)+TRUNC(CE91*$Q$10*$O$10/12,2)))) -> 7 | CB92: =IF($S92>$BY$24,0,IF($AT$22=3,IF(BY92=$BY$24,CD92+CC92,BZ92-CA92),IF(BY92=$BY$24,CD92+CC92,ROUND(-PMT($CA$24/12,$BY$24,$BZ$24,0,0),2)))) -> 73.33 | CC92: =IF($S92>$BY$24,0,CE91*$CA$24/12) -> 17.71048032 | CD92: =IF($S92>$BY$24,0,(IF(BY92=$BY$24,CE91,CB92-CC92))) -> 55.61951968 | CE92: =IF($S92>$BY$24,0,CE91-CD92) -> 10570.66867 | CF92: =IF(BY92>$K$15,0,IF($AT$22<>3,BZ92*(1+($L$15/12))^(-BY92),BZ92*((1+(($L$15+($P$10*$N$10)+($Q$10*$O$10))/12))^(-BY92)))) -> 72.08889386 | CG92: =IF($S92>$K$14,0,$S92) -> 0 | CH92: =IF($S92>$CG$24,0,IF($AT$22=3,IF(CG92=$CG$24,CJ92+CI92,ROUND(-PMT(($CI$24+($P$10*$N$10)+($Q$10*$O$10))/12,$CG$24,$CH$24,0,0),2)),CJ92+CI92)) -> 0 | CI92: =IF($S92>$CG$24,0,IF($AT$22=1,TRUNC($CH$24*$P$10*$N$10/12,2)+TRUNC($CH$24*$Q$10*$O$10/12,2),IF($AT$22=2,TRUNC(CM91*$P$10*$N$10/12,2)+TRUNC(CM91*$Q$10*$O$10/12,2),TRUNC(CM91*$P$10*$N$10/12,2)+TRUNC(CM91*$Q$10*$O$10/12,2)))) -> 0 | CJ92: =IF($S92>$CG$24,0,IF($AT$22=3,IF(CG92=$CG$24,CL92+CK92,CH92-CI92),IF(CG92=$CG$24,CL92+CK92,ROUND(-PMT($CI$24/12,$CG$24,$CH$24,0,0),2)))) -> 0 | CK92: =IF($S92>$CG$24,0,CM91*$CI$24/12) -> 0 | CL92: =IF($S92>$CG$24,0,(IF(CG92=$CG$24,CM91,CJ92-CK92))) -> 0 | CM92: =IF($S92>$CG$24,0,CM91-CL92) -> 0 | CN92: =IF(CG92>$K$15,0,IF($AT$22<>3,CH92*(1+($L$15/12))^(-CG92),CH92*((1+(($L$15+($P$10*$N$10)+($Q$10*$O$10))/12))^(-CG92)))) -> 0 | CO92: =IF($S92>$K$15,0,$S92) -> 65 | CP92: =IF($S92>$F$402,0,IF($AT$22<>3,CW92+CQ92,IF(CO92=$CO$24,CR92+CQ92,CW92))) -> 650.6565183 | CQ92: =IF($S92>$CO$24,0,IF($AT$22=1,TRUNC($CP$24*$P$10*$N$10/12,2)+TRUNC($CP$24*$Q$10*$O$10/12,2),IF($AT$22=2,TRUNC(CU91*$P$10*$N$10/12,2)+TRUNC(CU91*$Q$10*$O$10/12,2),TRUNC(CU91*$P$10*$N$10/12,2)+TRUNC(CU91*$Q$10*$O$10/12,2)))) -> 53.5 | CR92: =IF($S92>$F$402,0,IF($AT$22<>3,CW92,IF(CO92=$CO$24,CT92+CS92,CP92-CQ92))) -> 597.1565183 | CS92: =IF($S92>$CO$24,0,CU91*$CQ$24/12) -> 131.230569 | CT92: =IF($S92>$CO$24,0,(IF(CO92=$CO$24,CU91,CR92-CS92))) -> 465.9259493 | CU92: =IF($S92>$CO$24,0,CU91-CT92) -> 78272.41546 | CV92: =IF($AT$22=2,CQ92*((1+($CQ$24/12))^(-CO92)),0) -> 0 | CW92: =IF($S92>$F$402,0,IF($AT$22<>2,$H$402-U92-AD92-AM92-BB92-BJ92-BR92-BZ92-CH92,$H$402-U92-AD92-AM92-BB92-BJ92-BR92-BZ92-CH92-CQ92)) -> 597.1565183 | CX92: 1127.176518
B93: 66 | C93: 1127.176518 | D93: 120 | E93: 1007.176518 | F93: 208.5240991 | G93: 798.6524192 | H93: 189911.4876 | I93: =-(W93+AF93+AO93+BD93+BL93+BT93+CB93+CJ93+CR93) -> -1007.176518 | J93: =-C93 -> -1127.176518 | S93: 66 | T93: 66 | U93: 33.54 | V93: 2.5 | W93: 31.04 | X93: 4.153088494 | Y93: 26.88691151 | Z93: 3295.583884 | AA93: 30.04902821 | AC93: 66 | AD93: 64.61 | AE93: 5 | AF93: 59.61 | AG93: 9.146676022 | AH93: 50.46332398 | AI93: 6809.543692 | AJ93: 57.88514349 | AL93: 66 | AM93: 124.91 | AN93: 10 | AO93: 114.91 | AP93: 19.98866363 | AQ93: 94.92133637 | AR93: 14014.72358 | AS93: 111.9088883 | AY93: 66 | AZ93: 66 | BA93: 0 | BB93: =BD93+BC93 -> 30 | BC93: 30 | BD93: 0 | BE93: =BD93 -> 0 | BF93: 60000 | BG93: 26.87748498 | BI93: 66 | BJ93: 66.6 | BK93: 5.5 | BL93: 61.1 | BM93: 11.93604136 | BN93: 49.16395864 | BO93: 7908.196949 | BP93: 59.66801666 | BQ93: 66 | BR93: 76.53 | BS93: 6.5 | BT93: 70.03 | BU93: 15.22782272 | BV93: 54.80217728 | BW93: 9562.770068 | BX93: 68.56446419 | BY93: 66 | BZ93: 80.33 | CA93: 7 | CB93: 73.33 | CC93: 17.61778112 | CD93: 55.71221888 | CE93: 10514.95646 | CF93: 71.96894562 | CG93: 0 | CH93: 0 | CI93: 0 | CJ93: 0 | CK93: 0 | CL93: 0 | CM93: 0 | CN93: 0 | CO93: 66 | CP93: 650.6565183 | CQ93: 53.5 | CR93: 597.1565183 | CS93: 130.4540258 | CT93: 466.7024926 | CU93: 77805.71297 | CV93: 0 | CW93: 597.1565183 | CX93: =U93+AD93+AM93+BB93+BJ93+BR93+BZ93+CH93+CP93 -> 1127.176518
B94: 67 | C94: 1127.176518 | D94: 120 | E94: 1007.176518 | F94: 207.2575269 | G94: 799.9189914 | H94: 189111.5686 | I94: -1007.176518 | J94: -1127.176518 | S94: 67 | T94: 67 | U94: 33.54 | V94: 2.5 | W94: 31.04 | X94: 4.119479855 | Y94: 26.92052015 | Z94: 3268.663364 | AA94: 29.99902983 | AC94: 67 | AD94: 64.61 | AE94: 5 | AF94: 59.61 | AG94: 9.07939159 | AH94: 50.53060841 | AI94: 6759.013084 | AJ94: 57.78882877 | AL94: 67 | AM94: 124.91 | AN94: 10 | AO94: 114.91 | AP94: 19.85419173 | AQ94: 95.05580827 | AR94: 13919.66777 | AS94: 111.7226838 | AY94: 67 | AZ94: 67 | BA94: 0 | BB94: 30 | BC94: 30 | BD94: 0 | BE94: 0 | BF94: 60000 | BG94: 26.83276371 | BI94: 67 | BJ94: 66.6 | BK94: 5.5 | BL94: 61.1 | BM94: 11.86229542 | BN94: 49.23770458 | BO94: 7858.959244 | BP94: 59.56873543 | BQ94: 67 | BR94: 76.53 | BS94: 6.5 | BT94: 70.03 | BU94: 15.14105261 | BV94: 54.88894739 | BW94: 9507.881121 | BX94: 68.45038022 | BY94: 67 | BZ94: 80.33 | CA94: 7 | CB94: 73.33 | CC94: 17.52492743 | CD94: 55.80507257 | CE94: 10459.15138 | CF94: 71.84919696 | CG94: 0 | CH94: 0 | CI94: 0 | CJ94: 0 | CK94: 0 | CL94: 0 | CM94: 0 | CN94: 0 | CO94: 67 | CP94: 650.6565183 | CQ94: 53.5 | CR94: 597.1565183 | CS94: 129.6761883 | CT94: 467.4803301 | CU94: 77338.23264 | CV94: 0 | CW94: 597.1565183 | CX94: 1127.176518
B95: 68 | C95: 1127.176518 | D95: 120 | E95: 1007.176518 | F95: 205.9889333 | G95: 801.187585 | H95: 188310.381 | I95: -1007.176518 | J95: -1127.176518 | S95: 68 | T95: 68 | U95: 33.54 | V95: 2.5 | W95: 31.04 | X95: 4.085829205 | Y95: 26.9541708 | Z95: 3241.709193 | AA95: 29.94911464 | AC95: 68 | AD95: 64.61 | AE95: 5 | AF95: 59.61 | AG95: 9.012017445 | AH95: 50.59798255 | AI95: 6708.415101 | AJ95: 57.69267432 | AL95: 68 | AM95: 124.91 | AN95: 10 | AO95: 114.91 | AP95: 19.71952934 | AQ95: 95.19047066 | AR95: 13824.4773 | AS95: 111.5367892 | AY95: 68 | AZ95: 68 | BA95: 0 | BB95: 30 | BC95: 30 | BD95: 0 | BE95: 0 | BF95: 60000 | BG95: 26.78811685 | BI95: 68 | BJ95: 66.6 | BK95: 5.5 | BL95: 61.1 | BM95: 11.78843887 | BN95: 49.31156113 | BO95: 7809.647683 | BP95: 59.4696194 | BQ95: 68 | BR95: 76.53 | BS95: 6.5 | BT95: 70.03 | BU95: 15.05414511 | BV95: 54.97585489 | BW95: 9452.905266 | BX95: 68.33648608 | BY95: 68 | BZ95: 80.33 | CA95: 7 | CB95: 73.33 | CC95: 17.43191897 | CD95: 55.89808103 | CE95: 10403.2533 | CF95: 71.72964754 | CG95: 0 | CH95: 0 | CI95: 0 | CJ95: 0 | CK95: 0 | CL95: 0 | CM95: 0 | CN95: 0 | CO95: 68 | CP95: 650.6565183 | CQ95: 53.5 | CR95: 597.1565183 | CS95: 128.8970544 | CT95: 468.2594639 | CU95: 76869.97318 | CV95: 0 | CW95: 597.1565183 | CX95: 1127.176518
B96: 69 | C96: 1127.176518 | D96: 120 | E96: 1007.176518 | F96: 204.7183151 | G96: 802.4582032 | H96: 187507.9228 | I96: -1007.176518 | J96: -1127.176518 | S96: 69 | T96: 69 | U96: 33.54 | V96: 2.5 | W96: 31.04 | X96: 4.052136491 | Y96: 26.98786351 | Z96: 3214.721329 | AA96: 29.8992825 | AC96: 69 | AD96: 64.61 | AE96: 5 | AF96: 59.61 | AG96: 8.944553468 | AH96: 50.66544653 | AI96: 6657.749655 | AJ96: 57.59667985 | AL96: 69 | AM96: 124.91 | AN96: 10 | AO96: 114.91 | AP96: 19.58467617 | AQ96: 95.32532383 | AR96: 13729.15197 | AS96: 111.3512038 | AY96: 69 | AZ96: 69 | BA96: 0 | BB96: 30 | BC96: 30 | BD96: 0 | BE96: 0 | BF96: 60000 | BG96: 26.74354427 | BI96: 69 | BJ96: 66.6 | BK96: 5.5 | BL96: 61.1 | BM96: 11.71447152 | BN96: 49.38552848 | BO96: 7760.262154 | BP96: 59.37066829 | BQ96: 69 | BR96: 76.53 | BS96: 6.5 | BT96: 70.03 | BU96: 14.9671 | BV96: 55.0629 | BW96: 9397.842366 | BX96: 68.22278144 | BY96: 69 | BZ96: 80.33 | CA96: 7 | CB96: 73.33 | CC96: 17.3387555 | CD96: 55.9912445 | CE96: 10347.26206 | CF96: 71.61029705 | CG96: 0 | CH96: 0 | CI96: 0 | CJ96: 0 | CK96: 0 | CL96: 0 | CM96: 0 | CN96: 0 | CO96: 69 | CP96: 650.6565183 | CQ96: 53.5 | CR96: 597.1565183 | CS96: 128.116622 | CT96: 469.0398964 | CU96: 76400.93328 | CV96: 0 | CW96: 597.1565183 | CX96: 1127.176518
B97: 70 | C97: 1127.176518 | D97: 120 | E97: 1007.176518 | F97: 203.445669 | G97: 803.7308493 | H97: 186704.192 | I97: -1007.176518 | J97: -1127.176518 | S97: 70 | T97: 70 | U97: 33.54 | V97: 2.5 | W97: 31.04 | X97: 4.018401662 | Y97: 27.02159834 | Z97: 3187.699731 | AA97: 29.84953328 | AC97: 70 | AD97: 64.61 | AE97: 5 | AF97: 59.61 | AG97: 8.87699954 | AH97: 50.73300046 | AI97: 6607.016654 | AJ97: 57.50084511 | AL97: 70 | AM97: 124.91 | AN97: 10 | AO97: 114.91 | AP97: 19.44963196 | AQ97: 95.46036804 | AR97: 13633.69161 | AS97: 111.1659273 | AY97: 70 | AZ97: 70 | BA97: 0 | BB97: 30 | BC97: 30 | BD97: 0 | BE97: 0 | BF97: 60000 | BG97: 26.69904586 | BI97: 70 | BJ97: 66.6 | BK97: 5.5 | BL97: 61.1 | BM97: 11.64039323 | BN97: 49.45960677 | BO97: 7710.802548 | BP97: 59.27188182 | BQ97: 70 | BR97: 76.53 | BS97: 6.5 | BT97: 70.03 | BU97: 14.87991708 | BV97: 55.15008292 | BW97: 9342.692283 | BX97: 68.109266 | BY97: 70 | BZ97: 80.33 | CA97: 7 | CB97: 73.33 | CC97: 17.24543676 | CD97: 56.08456324 | CE97: 10291.17749 | CF97: 71.49114514 | CG97: 0 | CH97: 0 | CI97: 0 | CJ97: 0 | CK97: 0 | CL97: 0 | CM97: 0 | CN97: 0 | CO97: 70 | CP97: 650.6565183 | CQ97: 53.5 | CR97: 597.1565183 | CS97: 127.3348888 | CT97: 469.8216295 | CU97: 75931.11165 | CV97: 0 | CW97: 597.1565183 | CX97: 1127.176518
B98: 71 | C98: 1127.176518 | D98: 120 | E98: 1007.176518 | F98: 202.1709918 | G98: 805.0055265 | H98: 185899.1864 | I98: -1007.176518 | J98: -1127.176518 | S98: 71 | T98: 71 | U98: 33.54 | V98: 2.5 | W98: 31.04 | X98: 3.984624664 | Y98: 27.05537534 | Z98: 3160.644356 | AA98: 29.79986683 | AC98: 71 | AD98: 64.61 | AE98: 5 | AF98: 59.61 | AG98: 8.809355539 | AH98: 50.80064446 | AI98: 6556.21601 | AJ98: 57.40516983 | AL98: 71 | AM98: 124.91 | AN98: 10 | AO98: 114.91 | AP98: 19.31439644 | AQ98: 95.59560356 | AR98: 13538.096 | AS98: 110.980959 | AY98: 71 | AZ98: 71 | BA98: 0 | BB98: 30 | BC98: 30 | BD98: 0 | BE98: 0 | BF98: 60000 | BG98: 26.65462149 | BI98: 71 | BJ98: 66.6 | BK98: 5.5 | BL98: 61.1 | BM98: 11.56620382 | BN98: 49.53379618 | BO98: 7661.268751 | BP98: 59.17325972 | BQ98: 71 | BR98: 76.53 | BS98: 6.5 | BT98: 70.03 | BU98: 14.79259611 | BV98: 55.23740389 | BW98: 9287.454879 | BX98: 67.99593943 | BY98: 71 | BZ98: 80.33 | CA98: 7 | CB98: 73.33 | CC98: 17.15196249 | CD98: 56.17803751 | CE98: 10234.99946 | CF98: 71.37219149 | CG98: 0 | CH98: 0 | CI98: 0 | CJ98: 0 | CK98: 0 | CL98: 0 | CM98: 0 | CN98: 0 | CO98: 71 | CP98: 650.6565183 | CQ98: 53.5 | CR98: 597.1565183 | CS98: 126.5518528 | CT98: 470.6046656 | CU98: 75460.50699 | CV98: 0 | CW98: 597.1565183 | CX98: 1127.176518
B99: 72 | C99: 1127.176518 | D99: 120 | E99: 1007.176518 | F99: 200.8942802 | G99: 806.2822381 | H99: 185092.9042 | I99: -1007.176518 | J99: -1127.176518 | S99: 72 | T99: 72 | U99: 33.54 | V99: 2.5 | W99: 31.04 | X99: 3.950805445 | Y99: 27.08919456 | Z99: 3133.555161 | AA99: 29.75028303 | AC99: 72 | AD99: 64.61 | AE99: 5 | AF99: 59.61 | AG99: 8.741621346 | AH99: 50.86837865 | AI99: 6505.347631 | AJ99: 57.30965374 | AL99: 72 | AM99: 124.91 | AN99: 10 | AO99: 114.91 | AP99: 19.17896934 | AQ99: 95.73103066 | AR99: 13442.36497 | AS99: 110.7962985 | AY99: 72 | AZ99: 72 | BA99: 0 | BB99: 30 | BC99: 30 | BD99: 0 | BE99: 0 | BF99: 60000 | BG99: 26.61027104 | BI99: 72 | BJ99: 66.6 | BK99: 5.5 | BL99: 61.1 | BM99: 11.49190313 | BN99: 49.60809687 | BO99: 7611.660655 | BP99: 59.07480172 | BQ99: 72 | BR99: 76.53 | BS99: 6.5 | BT99: 70.03 | BU99: 14.70513689 | BV99: 55.32486311 | BW99: 9232.130016 | BX99: 67.88280143 | BY99: 72 | BZ99: 80.33 | CA99: 7 | CB99: 73.33 | CC99: 17.05833243 | CD99: 56.27166757 | CE99: 10178.72779 | CF99: 71.25343576 | CG99: 0 | CH99: 0 | CI99: 0 | CJ99: 0 | CK99: 0 | CL99: 0 | CM99: 0 | CN99: 0 | CO99: 72 | CP99: 650.6565183 | CQ99: 53.5 | CR99: 597.1565183 | CS99: 125.7675116 | CT99: 471.3890067 | CU99: 74989.11798 | CV99: 0 | CW99: 597.1565183 | CX99: 1127.176518
B100: 73 | C100: 1127.176518 | D100: 120 | E100: 1007.176518 | F100: 199.615531 | G100: 807.5609874 | H100: 184285.3432 | I100: -1007.176518 | J100: -1127.176518 | S100: 73 | T100: 73 | U100: 33.54 | V100: 2.5 | W100: 31.04 | X100: 3.916943951 | Y100: 27.12305605 | Z100: 3106.432105 | AA100: 29.70078172 | AC100: 73 | AD100: 64.61 | AE100: 5 | AF100: 59.61 | AG100: 8.673796842 | AH100: 50.93620316 | AI100: 6454.411428 | AJ100: 57.21429658 | AL100: 73 | AM100: 124.91 | AN100: 10 | AO100: 114.91 | AP100: 19.04335038 | AQ100: 95.86664962 | AR100: 13346.49832 | AS100: 110.6119453 | AY100: 73 | AZ100: 73 | BA100: 0 | BB100: 30 | BC100: 30 | BD100: 0 | BE100: 0 | BF100: 60000 | BG100: 26.56599439 | BI100: 73 | BJ100: 66.6 | BK100: 5.5 | BL100: 61.1 | BM100: 11.41749098 | BN100: 49.68250902 | BO100: 7561.978146 | BP100: 58.97650754 | BQ100: 73 | BR100: 76.53 | BS100: 6.5 | BT100: 70.03 | BU100: 14.61753919 | BV100: 55.41246081 | BW100: 9176.717555 | BX100: 67.76985168 | BY100: 73 | BZ100: 80.33 | CA100: 7 | CB100: 73.33 | CC100: 16.96454632 | CD100: 56.36545368 | CE100: 10122.36234 | CF100: 71.13487763 | CG100: 0 | CH100: 0 | CI100: 0 | CJ100: 0 | CK100: 0 | CL100: 0 | CM100: 0 | CN100: 0 | CO100: 73 | CP100: 650.6565183 | CQ100: 53.5 | CR100: 597.1565183 | CS100: 124.9818633 | CT100: 472.174655 | CU100: 74516.94332 | CV100: 0 | CW100: 597.1565183 | CX100: 1127.176518
B101: 74 | C101: 1127.176518 | D101: 120 | E101: 1007.176518 | F101: 198.3347408 | G101: 808.8417776 | H101: 183476.5014 | I101: -1007.176518 | J101: -1127.176518 | S101: 74 | T101: 74 | U101: 33.54 | V101: 2.5 | W101: 31.04 | X101: 3.883040131 | Y101: 27.15695987 | Z101: 3079.275145 | AA101: 29.65136279 | AC101: 74 | AD101: 64.61 | AE101: 5 | AF101: 59.61 | AG101: 8.605881904 | AH101: 51.0041181 | AI101: 6403.40731 | AJ101: 57.11909808 | AL101: 74 | AM101: 124.91 | AN101: 10 | AO101: 114.91 | AP101: 18.90753929 | AQ101: 96.00246071 | AR101: 13250.49586 | AS101: 110.4278988 | AY101: 74 | AZ101: 74 | BA101: 0 | BB101: 30 | BC101: 30 | BD101: 0 | BE101: 0 | BF101: 60000 | BG101: 26.5217914 | BI101: 74 | BJ101: 66.6 | BK101: 5.5 | BL101: 61.1 | BM101: 11.34296722 | BN101: 49.75703278 | BO101: 7512.221113 | BP101: 58.87837691 | BQ101: 74 | BR101: 76.53 | BS101: 6.5 | BT101: 70.03 | BU101: 14.5298028 | BV101: 55.5001972 | BW101: 9121.217358 | BX101: 67.65708986 | BY101: 74 | BZ101: 80.33 | CA101: 7 | CB101: 73.33 | CC101: 16.87060389 | CD101: 56.45939611 | CE101: 10065.90294 | CF101: 71.01651677 | CG101: 0 | CH101: 0 | CI101: 0 | CJ101: 0 | CK101: 0 | CL101: 0 | CM101: 0 | CN101: 0 | CO101: 74 | CP101: 650.6565183 | CQ101: 53.5 | CR101: 597.1565183 | CS101: 124.1949055 | CT101: 472.9616128 | CU101: 74043.98171 | CV101: 0 | CW101: 597.1565183 | CX101: 1127.176518
B102: 75 | C102: 1127.176518 | D102: 120 | E102: 1007.176518 | F102: 197.0519064 | G102: 810.124612 | H102: 182666.3768 | I102: -1007.176518 | J102: -1127.176518 | S102: 75 | T102: 75 | U102: 33.54 | V102: 2.5 | W102: 31.04 | X102: 3.849093932 | Y102: 27.19090607 | Z102: 3052.084239 | AA102: 29.60202607 | AC102: 75 | AD102: 64.61 | AE102: 5 | AF102: 59.61 | AG102: 8.537876413 | AH102: 51.07212359 | AI102: 6352.335186 | AJ102: 57.02405798 | AL102: 75 | AM102: 124.91 | AN102: 10 | AO102: 114.91 | AP102: 18.7715358 | AQ102: 96.1384642 | AR102: 13154.3574 | AS102: 110.2441585 | AY102: 75 | AZ102: 75 | BA102: 0 | BB102: 30 | BC102: 30 | BD102: 0 | BE102: 0 | BF102: 60000 | BG102: 26.47766196 | BI102: 75 | BJ102: 66.6 | BK102: 5.5 | BL102: 61.1 | BM102: 11.26833167 | BN102: 49.83166833 | BO102: 7462.389444 | BP102: 58.78040956 | BQ102: 75 | BR102: 76.53 | BS102: 6.5 | BT102: 70.03 | BU102: 14.44192748 | BV102: 55.58807252 | BW102: 9065.629286 | BX102: 67.54451567 | BY102: 75 | BZ102: 80.33 | CA102: 7 | CB102: 73.33 | CC102: 16.7765049 | CD102: 56.5534951 | CE102: 10009.34944 | CF102: 70.89835285 | CG102: 0 | CH102: 0 | CI102: 0 | CJ102: 0 | CK102: 0 | CL102: 0 | CM102: 0 | CN102: 0 | CO102: 75 | CP102: 650.6565183 | CQ102: 53.5 | CR102: 597.1565183 | CS102: 123.4066362 | CT102: 473.7498822 | CU102: 73570.23183 | CV102: 0 | CW102: 597.1565183 | CX102: 1127.176518
B103: 76 | C103: 1127.176518 | D103: 120 | E103: 1007.176518 | F103: 195.7670245 | G103: 811.4094938 | H103: 181854.9673 | I103: -1007.176518 | J103: -1127.176518 | S103: 76 | T103: 76 | U103: 33.54 | V103: 2.5 | W103: 31.04 | X103: 3.815105299 | Y103: 27.2248947 | Z103: 3024.859345 | AA103: 29.55277146 | AC103: 76 | AD103: 64.61 | AE103: 5 | AF103: 59.61 | AG103: 8.469780248 | AH103: 51.14021975 | AI103: 6301.194967 | AJ103: 56.92917602 | AL103: 76 | AM103: 124.91 | AN103: 10 | AO103: 114.91 | AP103: 18.63533965 | AQ103: 96.27466035 | AR103: 13058.08274 | AS103: 110.060724 | AY103: 76 | AZ103: 76 | BA103: 0 | BB103: 30 | BC103: 30 | BD103: 0 | BE103: 0 | BF103: 60000 | BG103: 26.43360595 | BI103: 76 | BJ103: 66.6 | BK103: 5.5 | BL103: 61.1 | BM103: 11.19358417 | BN103: 49.90641583 | BO103: 7412.483029 | BP103: 58.68260522 | BQ103: 76 | BR103: 76.53 | BS103: 6.5 | BT103: 70.03 | BU103: 14.35391304 | BV103: 55.67608696 | BW103: 9009.953199 | BX103: 67.43212879 | BY103: 76 | BZ103: 80.33 | CA103: 7 | CB103: 73.33 | CC103: 16.68224907 | CD103: 56.64775093 | CE103: 9952.701693 | CF103: 70.78038554 | CG103: 0 | CH103: 0 | CI103: 0 | CJ103: 0 | CK103: 0 | CL103: 0 | CM103: 0 | CN103: 0 | CO103: 76 | CP103: 650.6565183 | CQ103: 53.5 | CR103: 597.1565183 | CS103: 122.617053 | CT103: 474.5394653 | CU103: 73095.69236 | CV103: 0 | CW103: 597.1565183 | CX103: 1127.176518
B104: 77 | C104: 1127.176518 | D104: 120 | E104: 1007.176518 | F104: 194.4800919 | G104: 812.6964265 | H104: 181042.2709 | I104: -1007.176518 | J104: -1127.176518 | S104: 77 | T104: 77 | U104: 33.54 | V104: 2.5 | W104: 31.04 | X104: 3.781074181 | Y104: 27.25892582 | Z104: 2997.600419 | AA104: 29.50359879 | AC104: 77 | AD104: 64.61 | AE104: 5 | AF104: 59.61 | AG104: 8.401593289 | AH104: 51.20840671 | AI104: 6249.98656 | AJ104: 56.83445193 | AL104: 77 | AM104: 124.91 | AN104: 10 | AO104: 114.91 | AP104: 18.49895054 | AQ104: 96.41104946 | AR104: 12961.67169 | AS104: 109.8775947 | AY104: 77 | AZ104: 77 | BA104: 0 | BB104: 30 | BC104: 30 | BD104: 0 | BE104: 0 | BF104: 60000 | BG104: 26.38962325 | BI104: 77 | BJ104: 66.6 | BK104: 5.5 | BL104: 61.1 | BM104: 11.11872454 | BN104: 49.98127546 | BO104: 7362.501753 | BP104: 58.58496361 | BQ104: 77 | BR104: 76.53 | BS104: 6.5 | BT104: 70.03 | BU104: 14.26575923 | BV104: 55.76424077 | BW104: 8954.188958 | BX104: 67.31992891 | BY104: 77 | BZ104: 80.33 | CA104: 7 | CB104: 73.33 | CC104: 16.58783616 | CD104: 56.74216384 | CE104: 9895.95953 | CF104: 70.66261452 | CG104: 0 | CH104: 0 | CI104: 0 | CJ104: 0 | CK104: 0 | CL104: 0 | CM104: 0 | CN104: 0 | CO104: 77 | CP104: 650.6565183 | CQ104: 53.5 | CR104: 597.1565183 | CS104: 121.8261539 | CT104: 475.3303644 | CU104: 72620.362 | CV104: 0 | CW104: 597.1565183 | CX104: 1127.176518
B105: 78 | C105: 1127.176518 | D105: 120 | E105: 1007.176518 | F105: 193.1911052 | G105: 813.9854132 | H105: 180228.2855 | I105: -1007.176518 | J105: -1127.176518 | S105: 78 | T105: 78 | U105: 33.54 | V105: 2.5 | W105: 31.04 | X105: 3.747000523 | Y105: 27.29299948 | Z105: 2970.307419 | AA105: 29.45450794 | AC105: 78 | AD105: 64.61 | AE105: 5 | AF105: 59.61 | AG105: 8.333315413 | AH105: 51.27668459 | AI105: 6198.709875 | AJ105: 56.73988546 | AL105: 78 | AM105: 124.91 | AN105: 10 | AO105: 114.91 | AP105: 18.36236822 | AQ105: 96.54763178 | AR105: 12865.12406 | AS105: 109.69477 | AY105: 78 | AZ105: 78 | BA105: 0 | BB105: 30 | BC105: 30 | BD105: 0 | BE105: 0 | BF105: 60000 | BG105: 26.34571373 | BI105: 78 | BJ105: 66.6 | BK105: 5.5 | BL105: 61.1 | BM105: 11.04375263 | BN105: 50.05624737 | BO105: 7312.445506 | BP105: 58.48748447 | BQ105: 78 | BR105: 76.53 | BS105: 6.5 | BT105: 70.03 | BU105: 14.17746585 | BV105: 55.85253415 | BW105: 8898.336424 | BX105: 67.20791571 | BY105: 78 | BZ105: 80.33 | CA105: 7 | CB105: 73.33 | CC105: 16.49326588 | CD105: 56.83673412 | CE105: 9839.122795 | CF105: 70.54503945 | CG105: 0 | CH105: 0 | CI105: 0 | CJ105: 0 | CK105: 0 | CL105: 0 | CM105: 0 | CN105: 0 | CO105: 78 | CP105: 650.6565183 | CQ105: 53.5 | CR105: 597.1565183 | CS105: 121.0339367 | CT105: 476.1225817 | CU105: 72144.23942 | CV105: 0 | CW105: 597.1565183 | CX105: 1127.176518
B106: 79 | C106: 1127.176518 | D106: 120 | E106: 1007.176518 | F106: 191.9000611 | G106: 815.2764572 | H106: 179413.009 | I106: -1007.176518 | J106: -1127.176518 | S106: 79 | T106: 79 | U106: 33.54 | V106: 2.5 | W106: 31.04 | X106: 3.712884274 | Y106: 27.32711573 | Z106: 2942.980303 | AA106: 29.40549878 | AC106: 79 | AD106: 64.61 | AE106: 5 | AF106: 59.61 | AG106: 8.2649465 | AH106: 51.3450535 | AI106: 6147.364822 | AJ106: 56.64547633 | AL106: 79 | AM106: 124.91 | AN106: 10 | AO106: 114.91 | AP106: 18.22559241 | AQ106: 96.68440759 | AR106: 12768.43965 | AS106: 109.5122496 | AY106: 79 | AZ106: 79 | BA106: 0 | BB106: 30 | BC106: 30 | BD106: 0 | BE106: 0 | BF106: 60000 | BG106: 26.30187726 | BI106: 79 | BJ106: 66.6 | BK106: 5.5 | BL106: 61.1 | BM106: 10.96866826 | BN106: 50.13133174 | BO106: 7262.314174 | BP106: 58.39016752 | BQ106: 79 | BR106: 76.53 | BS106: 6.5 | BT106: 70.03 | BU106: 14.08903267 | BV106: 55.94096733 | BW106: 8842.395456 | BX106: 67.0960889 | BY106: 79 | BZ106: 80.33 | CA106: 7 | CB106: 73.33 | CC106: 16.39853799 | CD106: 56.93146201 | CE106: 9782.191333 | CF106: 70.42766002 | CG106: 0 | CH106: 0 | CI106: 0 | CJ106: 0 | CK106: 0 | CL106: 0 | CM106: 0 | CN106: 0 | CO106: 79 | CP106: 650.6565183 | CQ106: 53.5 | CR106: 597.1565183 | CS106: 120.240399 | CT106: 476.9161193 | CU106: 71667.3233 | CV106: 0 | CW106: 597.1565183 | CX106: 1127.176518
B107: 80 | C107: 1127.176518 | D107: 120 | E107: 1007.176518 | F107: 190.6069564 | G107: 816.5695619 | H107: 178596.4395 | I107: -1007.176518 | J107: -1127.176518 | S107: 80 | T107: 80 | U107: 33.54 | V107: 2.5 | W107: 31.04 | X107: 3.678725379 | Y107: 27.36127462 | Z107: 2915.619029 | AA107: 29.35657116 | AC107: 80 | AD107: 64.61 | AE107: 5 | AF107: 59.61 | AG107: 8.196486429 | AH107: 51.41351357 | AI107: 6095.951308 | AJ107: 56.55122429 | AL107: 80 | AM107: 124.91 | AN107: 10 | AO107: 114.91 | AP107: 18.08862283 | AQ107: 96.82137717 | AR107: 12671.61827 | AS107: 109.3300329 | AY107: 80 | AZ107: 80 | BA107: 0 | BB107: 30 | BC107: 30 | BD107: 0 | BE107: 0 | BF107: 60000 | BG107: 26.25811374 | BI107: 80 | BJ107: 66.6 | BK107: 5.5 | BL107: 61.1 | BM107: 10.89347126 | BN107: 50.20652874 | BO107: 7212.107645 | BP107: 58.2930125 | BQ107: 80 | BR107: 76.53 | BS107: 6.5 | BT107: 70.03 | BU107: 14.00045947 | BV107: 56.02954053 | BW107: 8786.365916 | BX107: 66.98444815 | BY107: 80 | BZ107: 80.33 | CA107: 7 | CB107: 73.33 | CC107: 16.30365222 | CD107: 57.02634778 | CE107: 9725.164986 | CF107: 70.31047589 | CG107: 0 | CH107: 0 | CI107: 0 | CJ107: 0 | CK107: 0 | CL107: 0 | CM107: 0 | CN107: 0 | CO107: 80 | CP107: 650.6565183 | CQ107: 53.5 | CR107: 597.1565183 | CS107: 119.4455388 | CT107: 477.7109795 | CU107: 71189.61232 | CV107: 0 | CW107: 597.1565183 | CX107: 1127.176518
B108: 81 | C108: 1127.176518 | D108: 120 | E108: 1007.176518 | F108: 189.3117878 | G108: 817.8647306 | H108: 177778.5747 | I108: -1007.176518 | J108: -1127.176518 | S108: 81 | T108: 81 | U108: 33.54 | V108: 2.5 | W108: 31.04 | X108: 3.644523786 | Y108: 27.39547621 | Z108: 2888.223553 | AA108: 29.30772495 | AC108: 81 | AD108: 64.61 | AE108: 5 | AF108: 59.61 | AG108: 8.127935078 | AH108: 51.48206492 | AI108: 6044.469243 | AJ108: 56.45712908 | AL108: 81 | AM108: 124.91 | AN108: 10 | AO108: 114.91 | AP108: 17.95145922 | AQ108: 96.95854078 | AR108: 12574.65973 | AS108: 109.1481194 | AY108: 81 | AZ108: 81 | BA108: 0 | BB108: 30 | BC108: 30 | BD108: 0 | BE108: 0 | BF108: 60000 | BG108: 26.21442304 | BI108: 81 | BJ108: 66.6 | BK108: 5.5 | BL108: 61.1 | BM108: 10.81816147 | BN108: 50.28183853 | BO108: 7161.825807 | BP108: 58.19601914 | BQ108: 81 | BR108: 76.53 | BS108: 6.5 | BT108: 70.03 | BU108: 13.91174603 | BV108: 56.11825397 | BW108: 8730.247662 | BX108: 66.87299316 | BY108: 81 | BZ108: 80.33 | CA108: 7 | CB108: 73.33 | CC108: 16.20860831 | CD108: 57.12139169 | CE108: 9668.043594 | CF108: 70.19348675 | CG108: 0 | CH108: 0 | CI108: 0 | CJ108: 0 | CK108: 0 | CL108: 0 | CM108: 0 | CN108: 0 | CO108: 81 | CP108: 650.6565183 | CQ108: 53.5 | CR108: 597.1565183 | CS108: 118.6493539 | CT108: 478.5071645 | CU108: 70711.10515 | CV108: 0 | CW108: 597.1565183 | CX108: 1127.176518
B109: 82 | C109: 1127.176518 | D109: 120 | E109: 1007.176518 | F109: 188.0145518 | G109: 819.1619665 | H109: 176959.4128 | I109: -1007.176518 | J109: -1127.176518 | S109: 82 | T109: 82 | U109: 33.54 | V109: 2.5 | W109: 31.04 | X109: 3.610279441 | Y109: 27.42972056 | Z109: 2860.793832 | AA109: 29.25896002 | AC109: 82 | AD109: 64.61 | AE109: 5 | AF109: 59.61 | AG109: 8.059292324 | AH109: 51.55070768 | AI109: 5992.918536 | AJ109: 56.36319043 | AL109: 82 | AM109: 124.91 | AN109: 10 | AO109: 114.91 | AP109: 17.81410128 | AQ109: 97.09589872 | AR109: 12477.56383 | AS109: 108.9665085 | AY109: 82 | AZ109: 82 | BA109: 0 | BB109: 30 | BC109: 30 | BD109: 0 | BE109: 0 | BF109: 60000 | BG109: 26.17080503 | BI109: 82 | BJ109: 66.6 | BK109: 5.5 | BL109: 61.1 | BM109: 10.74273871 | BN109: 50.35726129 | BO109: 7111.468546 | BP109: 58.09918716 | BQ109: 82 | BR109: 76.53 | BS109: 6.5 | BT109: 70.03 | BU109: 13.82289213 | BV109: 56.20710787 | BW109: 8674.040554 | BX109: 66.76172362 | BY109: 82 | BZ109: 80.33 | CA109: 7 | CB109: 73.33 | CC109: 16.11340599 | CD109: 57.21659401 | CE109: 9610.827 | CF109: 70.07669226 | CG109: 0 | CH109: 0 | CI109: 0 | CJ109: 0 | CK109: 0 | CL109: 0 | CM109: 0 | CN109: 0 | CO109: 82 | CP109: 650.6565183 | CQ109: 53.5 | CR109: 597.1565183 | CS109: 117.8518419 | CT109: 479.3046764 | CU109: 70231.80048 | CV109: 0 | CW109: 597.1565183 | CX109: 1127.176518
B110: 83 | C110: 1127.176518 | D110: 120 | E110: 1007.176518 | F110: 186.7152453 | G110: 820.4612731 | H110: 176138.9515 | I110: -1007.176518 | J110: -1127.176518 | S110: 83 | T110: 83 | U110: 33.54 | V110: 2.5 | W110: 31.04 | X110: 3.57599229 | Y110: 27.46400771 | Z110: 2833.329824 | AA110: 29.21027623 | AC110: 83 | AD110: 64.61 | AE110: 5 | AF110: 59.61 | AG110: 7.990558047 | AH110: 51.61944195 | AI110: 5941.299094 | AJ110: 56.26940808 | AL110: 83 | AM110: 124.91 | AN110: 10 | AO110: 114.91 | AP110: 17.67654876 | AQ110: 97.23345124 | AR110: 12380.33038 | AS110: 108.7851999 | AY110: 83 | AZ110: 83 | BA110: 0 | BB110: 30 | BC110: 30 | BD110: 0 | BE110: 0 | BF110: 60000 | BG110: 26.12725959 | BI110: 83 | BJ110: 66.6 | BK110: 5.5 | BL110: 61.1 | BM110: 10.66720282 | BN110: 50.43279718 | BO110: 7061.035748 | BP110: 58.0025163 | BQ110: 83 | BR110: 76.53 | BS110: 6.5 | BT110: 70.03 | BU110: 13.73389754 | BV110: 56.29610246 | BW110: 8617.744452 | BX110: 66.65063922 | BY110: 83 | BZ110: 80.33 | CA110: 7 | CB110: 73.33 | CC110: 16.018045 | CD110: 57.311955 | CE110: 9553.515045 | CF110: 69.96009211 | CG110: 0 | CH110: 0 | CI110: 0 | CJ110: 0 | CK110: 0 | CL110: 0 | CM110: 0 | CN110: 0 | CO110: 83 | CP110: 650.6565183 | CQ110: 53.5 | CR110: 597.1565183 | CS110: 117.0530008 | CT110: 480.1035175 | CU110: 69751.69696 | CV110: 0 | CW110: 597.1565183 | CX110: 1127.176518
B111: 84 | C111: 1127.176518 | D111: 120 | E111: 1007.176518 | F111: 185.4138648 | G111: 821.7626536 | H111: 175317.1889 | I111: -1007.176518 | J111: -1127.176518 | S111: 84 | T111: 84 | U111: 33.54 | V111: 2.5 | W111: 31.04 | X111: 3.54166228 | Y111: 27.49833772 | Z111: 2805.831487 | AA111: 29.16167344 | AC111: 84 | AD111: 64.61 | AE111: 5 | AF111: 59.61 | AG111: 7.921732125 | AH111: 51.68826788 | AI111: 5889.610826 | AJ111: 56.17578178 | AL111: 84 | AM111: 124.91 | AN111: 10 | AO111: 114.91 | AP111: 17.53880137 | AQ111: 97.37119863 | AR111: 12282.95918 | AS111: 108.6041929 | AY111: 84 | AZ111: 84 | BA111: 0 | BB111: 30 | BC111: 30 | BD111: 0 | BE111: 0 | BF111: 60000 | BG111: 26.08378662 | BI111: 84 | BJ111: 66.6 | BK111: 5.5 | BL111: 61.1 | BM111: 10.59155362 | BN111: 50.50844638 | BO111: 7010.527302 | BP111: 57.90600629 | BQ111: 84 | BR111: 76.53 | BS111: 6.5 | BT111: 70.03 | BU111: 13.64476205 | BV111: 56.38523795 | BW111: 8561.359214 | BX111: 66.53973966 | BY111: 84 | BZ111: 80.33 | CA111: 7 | CB111: 73.33 | CC111: 15.92252507 | CD111: 57.40747493 | CE111: 9496.10757 | CF111: 69.84368596 | CG111: 0 | CH111: 0 | CI111: 0 | CJ111: 0 | CK111: 0 | CL111: 0 | CM111: 0 | CN111: 0 | CO111: 84 | CP111: 650.6565183 | CQ111: 53.5 | CR111: 597.1565183 | CS111: 116.2528283 | CT111: 480.9036901 | CU111: 69270.79327 | CV111: 0 | CW111: 597.1565183 | CX111: 1127.176518
B112: 85 | C112: 1127.176518 | D112: 120 | E112: 1007.176518 | F112: 184.1104071 | G112: 823.0661113 | H112: 174494.1227 | I112: -1007.176518 | J112: -1127.176518 | S112: 85 | T112: 85 | U112: 33.54 | V112: 2.5 | W112: 31.04 | X112: 3.507289358 | Y112: 27.53271064 | Z112: 2778.298776 | AA112: 29.11315152 | AC112: 85 | AD112: 64.61 | AE112: 5 | AF112: 59.61 | AG112: 7.852814434 | AH112: 51.75718557 | AI112: 5837.85364 | AJ112: 56.08231126 | AL112: 85 | AM112: 124.91 | AN112: 10 | AO112: 114.91 | AP112: 17.40085884 | AQ112: 97.50914116 | AR112: 12185.45004 | AS112: 108.4234871 | AY112: 85 | AZ112: 85 | BA112: 0 | BB112: 30 | BC112: 30 | BD112: 0 | BE112: 0 | BF112: 60000 | BG112: 26.04038597 | BI112: 85 | BJ112: 66.6 | BK112: 5.5 | BL112: 61.1 | BM112: 10.51579095 | BN112: 50.58420905 | BO112: 6959.943093 | BP112: 57.80965686 | BQ112: 85 | BR112: 76.53 | BS112: 6.5 | BT112: 70.03 | BU112: 13.55548542 | BV112: 56.47451458 | BW112: 8504.884699 | BX112: 66.42902462 | BY112: 85 | BZ112: 80.33 | CA112: 7 | CB112: 73.33 | CC112: 15.82684595 | CD112: 57.50315405 | CE112: 9438.604416 | CF112: 69.72747351 | CG112: 0 | CH112: 0 | CI112: 0 | CJ112: 0 | CK112: 0 | CL112: 0 | CM112: 0 | CN112: 0 | CO112: 85 | CP112: 650.6565183 | CQ112: 53.5 | CR112: 597.1565183 | CS112: 115.4513221 | CT112: 481.7051962 | CU112: 68789.08807 | CV112: 0 | CW112: 597.1565183 | CX112: 1127.176518
B113: 86 | C113: 1127.176518 | D113: 120 | E113: 1007.176518 | F113: 182.8048688 | G113: 824.3716496 | H113: 173669.7511 | I113: -1007.176518 | J113: -1127.176518 | S113: 86 | T113: 86 | U113: 33.54 | V113: 2.5 | W113: 31.04 | X113: 3.47287347 | Y113: 27.56712653 | Z113: 2750.731649 | AA113: 29.06471033 | AC113: 86 | AD113: 64.61 | AE113: 5 | AF113: 59.61 | AG113: 7.783804854 | AH113: 51.82619515 | AI113: 5786.027445 | AJ113: 55.98899626 | AL113: 86 | AM113: 124.91 | AN113: 10 | AO113: 114.91 | AP113: 17.26272089 | AQ113: 97.64727911 | AR113: 12087.80276 | AS113: 108.2430819 | AY113: 86 | AZ113: 86 | BA113: 0 | BB113: 30 | BC113: 30 | BD113: 0 | BE113: 0 | BF113: 60000 | BG113: 25.99705754 | BI113: 86 | BJ113: 66.6 | BK113: 5.5 | BL113: 61.1 | BM113: 10.43991464 | BN113: 50.66008536 | BO113: 6909.283008 | BP113: 57.71346775 | BQ113: 86 | BR113: 76.53 | BS113: 6.5 | BT113: 70.03 | BU113: 13.46606744 | BV113: 56.56393256 | BW113: 8448.320766 | BX113: 66.31849379 | BY113: 86 | BZ113: 80.33 | CA113: 7 | CB113: 73.33 | CC113: 15.73100736 | CD113: 57.59899264 | CE113: 9381.005423 | CF113: 69.61145442 | CG113: 0 | CH113: 0 | CI113: 0 | CJ113: 0 | CK113: 0 | CL113: 0 | CM113: 0 | CN113: 0 | CO113: 86 | CP113: 650.6565183 | CQ113: 53.5 | CR113: 597.1565183 | CS113: 114.6484801 | CT113: 482.5080382 | CU113: 68306.58004 | CV113: 0 | CW113: 597.1565183 | CX113: 1127.176518
B114: 87 | C114: 1127.176518 | D114: 120 | E114: 1007.176518 | F114: 181.4972466 | G114: 825.6792718 | H114: 172844.0718 | I114: -1007.176518 | J114: -1127.176518 | S114: 87 | T114: 87 | U114: 33.54 | V114: 2.5 | W114: 31.04 | X114: 3.438414562 | Y114: 27.60158544 | Z114: 2723.130064 | AA114: 29.01634975 | AC114: 87 | AD114: 64.61 | AE114: 5 | AF114: 59.61 | AG114: 7.71470326 | AH114: 51.89529674 | AI114: 5734.132148 | AJ114: 55.89583654 | AL114: 87 | AM114: 124.91 | AN114: 10 | AO114: 114.91 | AP114: 17.12438725 | AQ114: 97.78561275 | AR114: 11990.01715 | AS114: 108.062977 | AY114: 87 | AZ114: 87 | BA114: 0 | BB114: 30 | BC114: 30 | BD114: 0 | BE114: 0 | BF114: 60000 | BG114: 25.95380121 | BI114: 87 | BJ114: 66.6 | BK114: 5.5 | BL114: 61.1 | BM114: 10.36392451 | BN114: 50.73607549 | BO114: 6858.546932 | BP114: 57.61743868 | BQ114: 87 | BR114: 76.53 | BS114: 6.5 | BT114: 70.03 | BU114: 13.37650788 | BV114: 56.65349212 | BW114: 8391.667274 | BX114: 66.20814688 | BY114: 87 | BZ114: 80.33 | CA114: 7 | CB114: 73.33 | CC114: 15.63500904 | CD114: 57.69499096 | CE114: 9323.310432 | CF114: 69.49562837 | CG114: 0 | CH114: 0 | CI114: 0 | CJ114: 0 | CK114: 0 | CL114: 0 | CM114: 0 | CN114: 0 | CO114: 87 | CP114: 650.6565183 | CQ114: 53.5 | CR114: 597.1565183 | CS114: 113.8443001 | CT114: 483.3122183 | CU114: 67823.26782 | CV114: 0 | CW114: 597.1565183 | CX114: 1127.176518
B115: 88 | C115: 1127.176518 | D115: 120 | E115: 1007.176518 | F115: 180.1875371 | G115: 826.9889813 | H115: 172017.0828 | I115: -1007.176518 | J115: -1127.176518 | S115: 88 | T115: 88 | U115: 33.54 | V115: 2.5 | W115: 31.04 | X115: 3.40391258 | Y115: 27.63608742 | Z115: 2695.493977 | AA115: 28.96806963 | AC115: 88 | AD115: 64.61 | AE115: 5 | AF115: 59.61 | AG115: 7.645509531 | AH115: 51.96449047 | AI115: 5682.167658 | AJ115: 55.80283182 | AL115: 88 | AM115: 124.91 | AN115: 10 | AO115: 114.91 | AP115: 16.98585763 | AQ115: 97.92414237 | AR115: 11892.09301 | AS115: 107.8831717 | AY115: 88 | AZ115: 88 | BA115: 0 | BB115: 30 | BC115: 30 | BD115: 0 | BE115: 0 | BF115: 60000 | BG115: 25.91061685 | BI115: 88 | BJ115: 66.6 | BK115: 5.5 | BL115: 61.1 | BM115: 10.2878204 | BN115: 50.8121796 | BO115: 6807.734752 | BP115: 57.5215694 | BQ115: 88 | BR115: 76.53 | BS115: 6.5 | BT115: 70.03 | BU115: 13.28680652 | BV115: 56.74319348 | BW115: 8334.924081 | BX115: 66.09798358 | BY115: 88 | BZ115: 80.33 | CA115: 7 | CB115: 73.33 | CC115: 15.53885072 | CD115: 57.79114928 | CE115: 9265.519283 | CF115: 69.37999504 | CG115: 0 | CH115: 0 | CI115: 0 | CJ115: 0 | CK115: 0 | CL115: 0 | CM115: 0 | CN115: 0 | CO115: 88 | CP115: 650.6565183 | CQ115: 53.5 | CR115: 597.1565183 | CS115: 113.0387797 | CT115: 484.1177386 | CU115: 67339.15008 | CV115: 0 | CW115: 597.1565183 | CX115: 1127.176518
B116: 89 | C116: 1127.176518 | D116: 120 | E116: 1007.176518 | F116: 178.875737 | G116: 828.3007814 | H116: 171188.7821 | I116: -1007.176518 | J116: -1127.176518 | S116: 89 | T116: 89 | U116: 33.54 | V116: 2.5 | W116: 31.04 | X116: 3.369367471 | Y116: 27.67063253 | Z116: 2667.823344 | AA116: 28.91986985 | AC116: 89 | AD116: 64.61 | AE116: 5 | AF116: 59.61 | AG116: 7.576223544 | AH116: 52.03377646 | AI116: 5630.133881 | AJ116: 55.70998185 | AL116: 89 | AM116: 124.91 | AN116: 10 | AO116: 114.91 | AP116: 16.84713176 | AQ116: 98.06286824 | AR116: 11794.03014 | AS116: 107.7036656 | AY116: 89 | AZ116: 89 | BA116: 0 | BB116: 30 | BC116: 30 | BD116: 0 | BE116: 0 | BF116: 60000 | BG116: 25.86750434 | BI116: 89 | BJ116: 66.6 | BK116: 5.5 | BL116: 61.1 | BM116: 10.21160213 | BN116: 50.88839787 | BO116: 6756.846355 | BP116: 57.42585963 | BQ116: 89 | BR116: 76.53 | BS116: 6.5 | BT116: 70.03 | BU116: 13.19696313 | BV116: 56.83303687 | BW116: 8278.091044 | BX116: 65.98800357 | BY116: 89 | BZ116: 80.33 | CA116: 7 | CB116: 73.33 | CC116: 15.44253214 | CD116: 57.88746786 | CE116: 9207.631815 | CF116: 69.26455412 | CG116: 0 | CH116: 0 | CI116: 0 | CJ116: 0 | CK116: 0 | CL116: 0 | CM116: 0 | CN116: 0 | CO116: 89 | CP116: 650.6565183 | CQ116: 53.5 | CR116: 597.1565183 | CS116: 112.2319168 | CT116: 484.9246015 | CU116: 66854.22548 | CV116: 0 | CW116: 597.1565183 | CX116: 1127.176518
B117: 90 | C117: 1127.176518 | D117: 120 | E117: 1007.176518 | F117: 177.5618429 | G117: 829.6146755 | H117: 170359.1674 | I117: -1007.176518 | J117: -1127.176518 | S117: 90 | T117: 90 | U117: 33.54 | V117: 2.5 | W117: 31.04 | X117: 3.33477918 | Y117: 27.70522082 | Z117: 2640.118123 | AA117: 28.87175027 | AC117: 90 | AD117: 64.61 | AE117: 5 | AF117: 59.61 | AG117: 7.506845175 | AH117: 52.10315482 | AI117: 5578.030727 | AJ117: 55.61728637 | AL117: 90 | AM117: 124.91 | AN117: 10 | AO117: 114.91 | AP117: 16.70820936 | AQ117: 98.20179064 | AR117: 11695.82835 | AS117: 107.5244581 | AY117: 90 | AZ117: 90 | BA117: 0 | BB117: 30 | BC117: 30 | BD117: 0 | BE117: 0 | BF117: 60000 | BG117: 25.82446357 | BI117: 90 | BJ117: 66.6 | BK117: 5.5 | BL117: 61.1 | BM117: 10.13526953 | BN117: 50.96473047 | BO117: 6705.881624 | BP117: 57.33030912 | BQ117: 90 | BR117: 76.53 | BS117: 6.5 | BT117: 70.03 | BU117: 13.10697749 | BV117: 56.92302251 | BW117: 8221.168021 | BX117: 65.87820656 | BY117: 90 | BZ117: 80.33 | CA117: 7 | CB117: 73.33 | CC117: 15.34605303 | CD117: 57.98394697 | CE117: 9149.647868 | CF117: 69.14930528 | CG117: 0 | CH117: 0 | CI117: 0 | CJ117: 0 | CK117: 0 | CL117: 0 | CM117: 0 | CN117: 0 | CO117: 90 | CP117: 650.6565183 | CQ117: 53.5 | CR117: 597.1565183 | CS117: 111.4237091 | CT117: 485.7328092 | CU117: 66368.49267 | CV117: 0 | CW117: 597.1565183 | CX117: 1127.176518
B118: 91 | C118: 1127.176518 | D118: 120 | E118: 1007.176518 | F118: 176.2458515 | G118: 830.9306669 | H118: 169528.2367 | I118: -1007.176518 | J118: -1127.176518 | S118: 91 | T118: 91 | U118: 33.54 | V118: 2.5 | W118: 31.04 | X118: 3.300147654 | Y118: 27.73985235 | Z118: 2612.378271 | AA118: 28.82371075 | AC118: 91 | AD118: 64.61 | AE118: 5 | AF118: 59.61 | AG118: 7.437374302 | AH118: 52.1726257 | AI118: 5525.858101 | AJ118: 55.52474513 | AL118: 91 | AM118: 124.91 | AN118: 10 | AO118: 114.91 | AP118: 16.56909016 | AQ118: 98.34090984 | AR118: 11597.48744 | AS118: 107.3455489 | AY118: 91 | AZ118: 91 | BA118: 0 | BB118: 30 | BC118: 30 | BD118: 0 | BE118: 0 | BF118: 60000 | BG118: 25.78149441 | BI118: 91 | BJ118: 66.6 | BK118: 5.5 | BL118: 61.1 | BM118: 10.05882244 | BN118: 51.04117756 | BO118: 6654.840447 | BP118: 57.23491759 | BQ118: 91 | BR118: 76.53 | BS118: 6.5 | BT118: 70.03 | BU118: 13.01684937 | BV118: 57.01315063 | BW118: 8164.154871 | BX118: 65.76859224 | BY118: 91 | BZ118: 80.33 | CA118: 7 | CB118: 73.33 | CC118: 15.24941311 | CD118: 58.08058689 | CE118: 9091.567281 | CF118: 69.0342482 | CG118: 0 | CH118: 0 | CI118: 0 | CJ118: 0 | CK118: 0 | CL118: 0 | CM118: 0 | CN118: 0 | CO118: 91 | CP118: 650.6565183 | CQ118: 53.5 | CR118: 597.1565183 | CS118: 110.6141544 | CT118: 486.5423639 | CU118: 65881.9503 | CV118: 0 | CW118: 597.1565183 | CX118: 1127.176518
B119: 92 | C119: 1127.176518 | D119: 120 | E119: 1007.176518 | F119: 174.9277594 | G119: 832.248759 | H119: 168695.988 | I119: -1007.176518 | J119: -1127.176518 | S119: 92 | T119: 92 | U119: 33.54 | V119: 2.5 | W119: 31.04 | X119: 3.265472839 | Y119: 27.77452716 | Z119: 2584.603744 | AA119: 28.77575116 | AC119: 92 | AD119: 64.61 | AE119: 5 | AF119: 59.61 | AG119: 7.367810801 | AH119: 52.2421892 | AI119: 5473.615912 | AJ119: 55.43235786 | AL119: 92 | AM119: 124.91 | AN119: 10 | AO119: 114.91 | AP119: 16.42977387 | AQ119: 98.48022613 | AR119: 11499.00721 | AS119: 107.1669373 | AY119: 92 | AZ119: 92 | BA119: 0 | BB119: 30 | BC119: 30 | BD119: 0 | BE119: 0 | BF119: 60000 | BG119: 25.73859675 | BI119: 92 | BJ119: 66.6 | BK119: 5.5 | BL119: 61.1 | BM119: 9.98226067 | BN119: 51.11773933 | BO119: 6603.722707 | BP119: 57.13968478 | BQ119: 92 | BR119: 76.53 | BS119: 6.5 | BT119: 70.03 | BU119: 12.92657855 | BV119: 57.10342145 | BW119: 8107.051449 | BX119: 65.65916031 | BY119: 92 | BZ119: 80.33 | CA119: 7 | CB119: 73.33 | CC119: 15.15261214 | CD119: 58.17738786 | CE119: 9033.389894 | CF119: 68.91938256 | CG119: 0 | CH119: 0 | CI119: 0 | CJ119: 0 | CK119: 0 | CL119: 0 | CM119: 0 | CN119: 0 | CO119: 92 | CP119: 650.6565183 | CQ119: 53.5 | CR119: 597.1565183 | CS119: 109.8032505 | CT119: 487.3532678 | CU119: 65394.59704 | CV119: 0 | CW119: 597.1565183 | CX119: 1127.176518
B120: 93 | C120: 1127.176518 | D120: 120 | E120: 1007.176518 | F120: 173.6075632 | G120: 833.5689552 | H120: 167862.419 | I120: -1007.176518 | J120: -1127.176518 | S120: 93 | T120: 93 | U120: 33.54 | V120: 2.5 | W120: 31.04 | X120: 3.23075468 | Y120: 27.80924532 | Z120: 2556.794498 | AA120: 28.72787138 | AC120: 93 | AD120: 64.61 | AE120: 5 | AF120: 59.61 | AG120: 7.298154549 | AH120: 52.31184545 | AI120: 5421.304066 | AJ120: 55.34012432 | AL120: 93 | AM120: 124.91 | AN120: 10 | AO120: 114.91 | AP120: 16.29026022 | AQ120: 98.61973978 | AR120: 11400.38747 | AS120: 106.988623 | AY120: 93 | AZ120: 93 | BA120: 0 | BB120: 30 | BC120: 30 | BD120: 0 | BE120: 0 | BF120: 60000 | BG120: 25.69577046 | BI120: 93 | BJ120: 66.6 | BK120: 5.5 | BL120: 61.1 | BM120: 9.905584061 | BN120: 51.19441594 | BO120: 6552.528291 | BP120: 57.04461043 | BQ120: 93 | BR120: 76.53 | BS120: 6.5 | BT120: 70.03 | BU120: 12.83616479 | BV120: 57.19383521 | BW120: 8049.857614 | BX120: 65.54991045 | BY120: 93 | BZ120: 80.33 | CA120: 7 | CB120: 73.33 | CC120: 15.05564982 | CD120: 58.27435018 | CE120: 8975.115543 | CF120: 68.80470805 | CG120: 0 | CH120: 0 | CI120: 0 | CJ120: 0 | CK120: 0 | CL120: 0 | CM120: 0 | CN120: 0 | CO120: 93 | CP120: 650.6565183 | CQ120: 53.5 | CR120: 597.1565183 | CS120: 108.9909951 | CT120: 488.1655233 | CU120: 64906.43151 | CV120: 0 | CW120: 597.1565183 | CX120: 1127.176518
B121: 94 | C121: 1127.176518 | D121: 120 | E121: 1007.176518 | F121: 172.2852596 | G121: 834.8912588 | H121: 167027.5277 | I121: -1007.176518 | J121: -1127.176518 | S121: 94 | T121: 94 | U121: 33.54 | V121: 2.5 | W121: 31.04 | X121: 3.195993123 | Y121: 27.84400688 | Z121: 2528.950492 | AA121: 28.68007126 | AC121: 94 | AD121: 64.61 | AE121: 5 | AF121: 59.61 | AG121: 7.228405422 | AH121: 52.38159458 | AI121: 5368.922472 | AJ121: 55.24804425 | AL121: 94 | AM121: 124.91 | AN121: 10 | AO121: 114.91 | AP121: 16.15054892 | AQ121: 98.75945108 | AR121: 11301.62802 | AS121: 106.8106053 | AY121: 94 | AZ121: 94 | BA121: 0 | BB121: 30 | BC121: 30 | BD121: 0 | BE121: 0 | BF121: 60000 | BG121: 25.65301544 | BI121: 94 | BJ121: 66.6 | BK121: 5.5 | BL121: 61.1 | BM121: 9.828792437 | BN121: 51.27120756 | BO121: 6501.257084 | BP121: 56.94969427 | BQ121: 94 | BR121: 76.53 | BS121: 6.5 | BT121: 70.03 | BU121: 12.74560789 | BV121: 57.28439211 | BW121: 7992.573222 | BX121: 65.44084238 | BY121: 94 | BZ121: 80.33 | CA121: 7 | CB121: 73.33 | CC121: 14.95852591 | CD121: 58.37147409 | CE121: 8916.744069 | CF121: 68.69022434 | CG121: 0 | CH121: 0 | CI121: 0 | CJ121: 0 | CK121: 0 | CL121: 0 | CM121: 0 | CN121: 0 | CO121: 94 | CP121: 650.6565183 | CQ121: 53.5 | CR121: 597.1565183 | CS121: 108.1773859 | CT121: 488.9791325 | CU121: 64417.45238 | CV121: 0 | CW121: 597.1565183 | CX121: 1127.176518
B122: 95 | C122: 1127.176518 | D122: 120 | E122: 1007.176518 | F122: 170.9608451 | G122: 836.2156733 | H122: 166191.3121 | I122: -1007.176518 | J122: -1127.176518 | S122: 95 | T122: 95 | U122: 33.54 | V122: 2.5 | W122: 31.04 | X122: 3.161188114 | Y122: 27.87881189 | Z122: 2501.07168 | AA122: 28.63235068 | AC122: 95 | AD122: 64.61 | AE122: 5 | AF122: 59.61 | AG122: 7.158563296 | AH122: 52.4514367 | AI122: 5316.471035 | AJ122: 55.15611739 | AL122: 95 | AM122: 124.91 | AN122: 10 | AO122: 114.91 | AP122: 16.0106397 | AQ122: 98.8993603 | AR122: 11202.72866 | AS122: 106.6328838 | AY122: 95 | AZ122: 95 | BA122: 0 | BB122: 30 | BC122: 30 | BD122: 0 | BE122: 0 | BF122: 60000 | BG122: 25.61033155 | BI122: 95 | BJ122: 66.6 | BK122: 5.5 | BL122: 61.1 | BM122: 9.751885626 | BN122: 51.34811437 | BO122: 6449.908969 | BP122: 56.85493605 | BQ122: 95 | BR122: 76.53 | BS122: 6.5 | BT122: 70.03 | BU122: 12.6549076 | BV122: 57.3750924 | BW122: 7935.19813 | BX122: 65.33195579 | BY122: 95 | BZ122: 80.33 | CA122: 7 | CB122: 73.33 | CC122: 14.86124012 | CD122: 58.46875988 | CE122: 8858.275309 | CF122: 68.57593112 | CG122: 0 | CH122: 0 | CI122: 0 | CJ122: 0 | CK122: 0 | CL122: 0 | CM122: 0 | CN122: 0 | CO122: 95 | CP122: 650.6565183 | CQ122: 53.5 | CR122: 597.1565183 | CS122: 107.3624206 | CT122: 489.7940977 | CU122: 63927.65828 | CV122: 0 | CW122: 597.1565183 | CX122: 1127.176518
B123: 96 | C123: 1127.176518 | D123: 120 | E123: 1007.176518 | F123: 169.6343164 | G123: 837.5422019 | H123: 165353.7699 | I123: -1007.176518 | J123: -1127.176518 | S123: 96 | T123: 96 | U123: 33.54 | V123: 2.5 | W123: 31.04 | X123: 3.1263396 | Y123: 27.9136604 | Z123: 2473.158019 | AA123: 28.58470949 | AC123: 96 | AD123: 64.61 | AE123: 5 | AF123: 59.61 | AG123: 7.088628047 | AH123: 52.52137195 | AI123: 5263.949663 | AJ123: 55.06434348 | AL123: 96 | AM123: 124.91 | AN123: 10 | AO123: 114.91 | AP123: 15.87053227 | AQ123: 99.03946773 | AR123: 11103.68919 | AS123: 106.455458 | AY123: 96 | AZ123: 96 | BA123: 0 | BB123: 30 | BC123: 30 | BD123: 0 | BE123: 0 | BF123: 60000 | BG123: 25.56771869 | BI123: 96 | BJ123: 66.6 | BK123: 5.5 | BL123: 61.1 | BM123: 9.674863454 | BN123: 51.42513655 | BO123: 6398.483833 | BP123: 56.76033549 | BQ123: 96 | BR123: 76.53 | BS123: 6.5 | BT123: 70.03 | BU123: 12.56406371 | BV123: 57.46593629 | BW123: 7877.732193 | BX123: 65.22325037 | BY123: 96 | BZ123: 80.33 | CA123: 7 | CB123: 73.33 | CC123: 14.76379218 | CD123: 58.56620782 | CE123: 8799.709102 | CF123: 68.46182807 | CG123: 0 | CH123: 0 | CI123: 0 | CJ123: 0 | CK123: 0 | CL123: 0 | CM123: 0 | CN123: 0 | CO123: 96 | CP123: 650.6565183 | CQ123: 53.5 | CR123: 597.1565183 | CS123: 106.5460971 | CT123: 490.6104212 | CU123: 63437.04786 | CV123: 0 | CW123: 597.1565183 | CX123: 1127.176518
B124: 97 | C124: 1127.176518 | D124: 120 | E124: 1007.176518 | F124: 168.3056701 | G124: 838.8708483 | H124: 164514.899 | I124: -1007.176518 | J124: -1127.176518 | S124: 97 | T124: 97 | U124: 33.54 | V124: 2.5 | W124: 31.04 | X124: 3.091447524 | Y124: 27.94855248 | Z124: 2445.209467 | AA124: 28.53714758 | AC124: 97 | AD124: 64.61 | AE124: 5 | AF124: 59.61 | AG124: 7.018599551 | AH124: 52.59140045 | AI124: 5211.358263 | AJ124: 54.97272228 | AL124: 97 | AM124: 124.91 | AN124: 10 | AO124: 114.91 | AP124: 15.73022636 | AQ124: 99.17977364 | AR124: 11004.50942 | AS124: 106.2783275 | AY124: 97 | AZ124: 97 | BA124: 0 | BB124: 30 | BC124: 30 | BD124: 0 | BE124: 0 | BF124: 60000 | BG124: 25.52517673 | BI124: 97 | BJ124: 66.6 | BK124: 5.5 | BL124: 61.1 | BM124: 9.597725749 | BN124: 51.50227425 | BO124: 6346.981559 | BP124: 56.66589233 | BQ124: 97 | BR124: 76.53 | BS124: 6.5 | BT124: 70.03 | BU124: 12.47307597 | BV124: 57.55692403 | BW124: 7820.175269 | BX124: 65.11472583 | BY124: 97 | BZ124: 80.33 | CA124: 7 | CB124: 73.33 | CC124: 14.66618184 | CD124: 58.66381816 | CE124: 8741.045283 | CF124: 68.34791488 | CG124: 0 | CH124: 0 | CI124: 0 | CJ124: 0 | CK124: 0 | CL124: 0 | CM124: 0 | CN124: 0 | CO124: 97 | CP124: 650.6565183 | CQ124: 53.5 | CR124: 597.1565183 | CS124: 105.7284131 | CT124: 491.4281052 | CU124: 62945.61976 | CV124: 0 | CW124: 597.1565183 | CX124: 1127.176518
B125: 98 | C125: 1127.176518 | D125: 120 | E125: 1007.176518 | F125: 166.9749028 | G125: 840.2016156 | H125: 163674.6974 | I125: -1007.176518 | J125: -1127.176518 | S125: 98 | T125: 98 | U125: 33.54 | V125: 2.5 | W125: 31.04 | X125: 3.056511834 | Y125: 27.98348817 | Z125: 2417.225979 | AA125: 28.48966481 | AC125: 98 | AD125: 64.61 | AE125: 5 | AF125: 59.61 | AG125: 6.948477683 | AH125: 52.66152232 | AI125: 5158.69674 | AJ125: 54.88125352 | AL125: 98 | AM125: 124.91 | AN125: 10 | AO125: 114.91 | AP125: 15.58972168 | AQ125: 99.32027832 | AR125: 10905.18914 | AS125: 106.1014917 | AY125: 98 | AZ125: 98 | BA125: 0 | BB125: 30 | BC125: 30 | BD125: 0 | BE125: 0 | BF125: 60000 | BG125: 25.48270555 | BI125: 98 | BJ125: 66.6 | BK125: 5.5 | BL125: 61.1 | BM125: 9.520472338 | BN125: 51.57952766 | BO125: 6295.402031 | BP125: 56.57160632 | BQ125: 98 | BR125: 76.53 | BS125: 6.5 | BT125: 70.03 | BU125: 12.38194418 | BV125: 57.64805582 | BW125: 7762.527214 | BX125: 65.00638186 | BY125: 98 | BZ125: 80.33 | CA125: 7 | CB125: 73.33 | CC125: 14.56840881 | CD125: 58.76159119 | CE125: 8682.283692 | CF125: 68.23419123 | CG125: 0 | CH125: 0 | CI125: 0 | CJ125: 0 | CK125: 0 | CL125: 0 | CM125: 0 | CN125: 0 | CO125: 98 | CP125: 650.6565183 | CQ125: 53.5 | CR125: 597.1565183 | CS125: 104.9093663 | CT125: 492.2471521 | CU125: 62453.3726 | CV125: 0 | CW125: 597.1565183 | CX125: 1127.176518
B126: 99 | C126: 1127.176518 | D126: 120 | E126: 1007.176518 | F126: 165.642011 | G126: 841.5345073 | H126: 162833.1629 | I126: -1007.176518 | J126: -1127.176518 | S126: 99 | T126: 99 | U126: 33.54 | V126: 2.5 | W126: 31.04 | X126: 3.021532473 | Y126: 28.01846753 | Z126: 2389.207511 | AA126: 28.44226104 | AC126: 99 | AD126: 64.61 | AE126: 5 | AF126: 59.61 | AG126: 6.87826232 | AH126: 52.73173768 | AI126: 5105.965003 | AJ126: 54.78993696 | AL126: 99 | AM126: 124.91 | AN126: 10 | AO126: 114.91 | AP126: 15.44901795 | AQ126: 99.46098205 | AR126: 10805.72816 | AS126: 105.9249501 | AY126: 99 | AZ126: 99 | BA126: 0 | BB126: 30 | BC126: 30 | BD126: 0 | BE126: 0 | BF126: 60000 | BG126: 25.44030504 | BI126: 99 | BJ126: 66.6 | BK126: 5.5 | BL126: 61.1 | BM126: 9.443103046 | BN126: 51.65689695 | BO126: 6243.745134 | BP126: 56.47747719 | BQ126: 99 | BR126: 76.53 | BS126: 6.5 | BT126: 70.03 | BU126: 12.29066809 | BV126: 57.73933191 | BW126: 7704.787882 | BX126: 64.89821816 | BY126: 99 | BZ126: 80.33 | CA126: 7 | CB126: 73.33 | CC126: 14.47047282 | CD126: 58.85952718 | CE126: 8623.424165 | CF126: 68.1206568 | CG126: 0 | CH126: 0 | CI126: 0 | CJ126: 0 | CK126: 0 | CL126: 0 | CM126: 0 | CN126: 0 | CO126: 99 | CP126: =IF($S126>$F$402,0,IF($AT$22<>3,CW126+CQ126,IF(CO126=$CO$24,CR126+CQ126,CW126))) -> 650.6565183 | CQ126: =IF($S126>$CO$24,0,IF($AT$22=1,TRUNC($CP$24*$P$10*$N$10/12,2)+TRUNC($CP$24*$Q$10*$O$10/12,2),IF($AT$22=2,TRUNC(CU125*$P$10*$N$10/12,2)+TRUNC(CU125*$Q$10*$O$10/12,2),TRUNC(CU125*$P$10*$N$10/12,2)+TRUNC(CU125*$Q$10*$O$10/12,2)))) -> 53.5 | CR126: =IF($S126>$F$402,0,IF($AT$22<>3,CW126,IF(CO126=$CO$24,CT126+CS126,CP126-CQ126))) -> 597.1565183 | CS126: =IF($S126>$CO$24,0,CU125*$CQ$24/12) -> 104.0889543 | CT126: =IF($S126>$CO$24,0,(IF(CO126=$CO$24,CU125,CR126-CS126))) -> 493.067564 | CU126: =IF($S126>$CO$24,0,CU125-CT126) -> 61960.30504 | CV126: =IF($AT$22=2,CQ126*((1+($CQ$24/12))^(-CO126)),0) -> 0 | CW126: =IF($S126>$F$402,0,IF($AT$22<>2,$H$402-U126-AD126-AM126-BB126-BJ126-BR126-BZ126-CH126,$H$402-U126-AD126-AM126-BB126-BJ126-BR126-BZ126-CH126-CQ126)) -> 597.1565183 | CX126: =U126+AD126+AM126+BB126+BJ126+BR126+BZ126+CH126+CP126 -> 1127.176518
B127: 100 | C127: 1127.176518 | D127: 120 | E127: 1007.176518 | F127: 164.3069915 | G127: 842.8695269 | H127: 161990.2934 | I127: -1007.176518 | J127: -1127.176518 | S127: 100 | T127: 100 | U127: 33.54 | V127: 2.5 | W127: 31.04 | X127: 2.986509389 | Y127: 28.05349061 | Z127: 2361.154021 | AA127: 28.39493614 | AC127: 100 | AD127: 64.61 | AE127: 5 | AF127: 59.61 | AG127: 6.807953337 | AH127: 52.80204666 | AI127: 5053.162956 | AJ127: 54.69877234 | AL127: 100 | AM127: 124.91 | AN127: 10 | AO127: 114.91 | AP127: 15.30811489 | AQ127: 99.60188511 | AR127: 10706.12627 | AS127: 105.7487023 | AY127: 100 | AZ127: 100 | BA127: 0 | BB127: 30 | BC127: 30 | BD127: 0 | BE127: 0 | BF127: 60000 | BG127: 25.39797508 | BI127: 100 | BJ127: 66.6 | BK127: 5.5 | BL127: 61.1 | BM127: 9.365617701 | BN127: 51.7343823 | BO127: 6192.010752 | BP127: 56.38350469 | BQ127: 100 | BR127: 76.53 | BS127: 6.5 | BT127: 70.03 | BU127: 12.19924748 | BV127: 57.83075252 | BW127: 7646.957129 | BX127: 64.79023444 | BY127: 100 | BZ127: 80.33 | CA127: 7 | CB127: 73.33 | CC127: 14.37237361 | CD127: 58.95762639 | CE127: 8564.466539 | CF127: 68.00731128 | CG127: 0 | CH127: 0 | CI127: 0 | CJ127: 0 | CK127: 0 | CL127: 0 | CM127: 0 | CN127: 0 | CO127: 100 | CP127: 650.6565183 | CQ127: 53.5 | CR127: 597.1565183 | CS127: 103.2671751 | CT127: 493.8893433 | CU127: 61466.4157 | CV127: 0 | CW127: 597.1565183 | CX127: 1127.176518
B128: 101 | C128: 1127.176518 | D128: 120 | E128: 1007.176518 | F128: 162.9698407 | G128: 844.2066777 | H128: 161146.0867 | I128: -1007.176518 | J128: -1127.176518 | S128: 101 | T128: 101 | U128: 33.54 | V128: 2.5 | W128: 31.04 | X128: 2.951442526 | Y128: 28.08855747 | Z128: 2333.065463 | AA128: 28.34768999 | AC128: 101 | AD128: 64.61 | AE128: 5 | AF128: 59.61 | AG128: 6.737550608 | AH128: 52.87244939 | AI128: 5000.290507 | AJ128: 54.60775941 | AL128: 101 | AM128: 124.91 | AN128: 10 | AO128: 114.91 | AP128: 15.16701222 | AQ128: 99.74298778 | AR128: 10606.38329 | AS128: 105.5727477 | AY128: 101 | AZ128: 101 | BA128: 0 | BB128: 30 | BC128: 30 | BD128: 0 | BE128: 0 | BF128: 60000 | BG128: 25.35571556 | BI128: 101 | BJ128: 66.6 | BK128: 5.5 | BL128: 61.1 | BM128: 9.288016127 | BN128: 51.81198387 | BO128: 6140.198768 | BP128: 56.28968854 | BQ128: 101 | BR128: 76.53 | BS128: 6.5 | BT128: 70.03 | BU128: 12.10768212 | BV128: 57.92231788 | BW128: 7589.034811 | BX128: 64.68243039 | BY128: 101 | BZ128: 80.33 | CA128: 7 | CB128: 73.33 | CC128: 14.2741109 | CD128: 59.0558891 | CE128: 8505.41065 | CF128: 67.89415436 | CG128: 0 | CH128: 0 | CI128: 0 | CJ128: 0 | CK128: 0 | CL128: 0 | CM128: 0 | CN128: 0 | CO128: 101 | CP128: 650.6565183 | CQ128: 53.5 | CR128: 597.1565183 | CS128: 102.4440262 | CT128: 494.7124922 | CU128: 60971.70321 | CV128: 0 | CW128: 597.1565183 | CX128: 1127.176518
B129: 102 | C129: 1127.176518 | D129: 120 | E129: 1007.176518 | F129: 161.6305552 | G129: 845.5459632 | H129: 160300.5407 | I129: -1007.176518 | J129: -1127.176518 | S129: 102 | T129: 102 | U129: 33.54 | V129: 2.5 | W129: 31.04 | X129: 2.916331829 | Y129: 28.12366817 | Z129: 2304.941795 | AA129: 28.30052246 | AC129: 102 | AD129: 64.61 | AE129: 5 | AF129: 59.61 | AG129: 6.667054009 | AH129: 52.94294599 | AI129: 4947.347561 | AJ129: 54.51689791 | AL129: 102 | AM129: 124.91 | AN129: 10 | AO129: 114.91 | AP129: 15.02570965 | AQ129: 99.88429035 | AR129: 10506.499 | AS129: 105.3970859 | AY129: 102 | AZ129: 102 | BA129: 0 | BB129: 30 | BC129: 30 | BD129: 0 | BE129: 0 | BF129: 60000 | BG129: 25.31352635 | BI129: 102 | BJ129: 66.6 | BK129: 5.5 | BL129: 61.1 | BM129: 9.210298152 | BN129: 51.88970185 | BO129: 6088.309066 | BP129: 56.19602849 | BQ129: 102 | BR129: 76.53 | BS129: 6.5 | BT129: 70.03 | BU129: 12.01597178 | BV129: 58.01402822 | BW129: 7531.020783 | BX129: 64.57480571 | BY129: 102 | BZ129: 80.33 | CA129: 7 | CB129: 73.33 | CC129: 14.17568442 | CD129: 59.15431558 | CE129: 8446.256334 | CF129: 67.78118572 | CG129: 0 | CH129: 0 | CI129: 0 | CJ129: 0 | CK129: 0 | CL129: 0 | CM129: 0 | CN129: 0 | CO129: 102 | CP129: 650.6565183 | CQ129: 53.5 | CR129: 597.1565183 | CS129: 101.6195053 | CT129: 495.537013 | CU129: 60476.16619 | CV129: 0 | CW129: 597.1565183 | CX129: 1127.176518
B130: 103 | C130: 1127.176518 | D130: 120 | E130: 1007.176518 | F130: 160.2891316 | G130: 846.8873867 | H130: 159453.6533 | I130: -1007.176518 | J130: -1127.176518 | S130: 103 | T130: 103 | U130: 33.54 | V130: 2.5 | W130: 31.04 | X130: 2.881177244 | Y130: 28.15882276 | Z130: 2276.782972 | AA130: 28.2534334 | AC130: 103 | AD130: 64.61 | AE130: 5 | AF130: 59.61 | AG130: 6.596463414 | AH130: 53.01353659 | AI130: 4894.334024 | AJ130: 54.4261876 | AL130: 103 | AM130: 124.91 | AN130: 10 | AO130: 114.91 | AP130: 14.88420691 | AQ130: 100.0257931 | AR130: 10406.4732 | AS130: 105.2217163 | AY130: 103 | AZ130: 103 | BA130: 0 | BB130: 30 | BC130: 30 | BD130: 0 | BE130: 0 | BF130: 60000 | BG130: 25.27140734 | BI130: 103 | BJ130: 66.6 | BK130: 5.5 | BL130: 61.1 | BM130: 9.132463599 | BN130: 51.9675364 | BO130: 6036.34153 | BP130: 56.10252428 | BQ130: 103 | BR130: 76.53 | BS130: 6.5 | BT130: 70.03 | BU130: 11.92411624 | BV130: 58.10588376 | BW130: 7472.914899 | BX130: 64.46736011 | BY130: 103 | BZ130: 80.33 | CA130: 7 | CB130: 73.33 | CC130: 14.07709389 | CD130: 59.25290611 | CE130: 8387.003428 | CF130: 67.66840504 | CG130: 0 | CH130: 0 | CI130: 0 | CJ130: 0 | CK130: 0 | CL130: 0 | CM130: 0 | CN130: 0 | CO130: 103 | CP130: 650.6565183 | CQ130: 53.5 | CR130: 597.1565183 | CS130: 100.7936103 | CT130: 496.362908 | CU130: 59979.80328 | CV130: 0 | CW130: 597.1565183 | CX130: 1127.176518
B131: 104 | C131: 1127.176518 | D131: 120 | E131: 1007.176518 | F131: 158.9455665 | G131: 848.2309518 | H131: 158605.4224 | I131: -1007.176518 | J131: -1127.176518 | S131: 104 | T131: 104 | U131: 33.54 | V131: 2.5 | W131: 31.04 | X131: 2.845978715 | Y131: 28.19402128 | Z131: 2248.588951 | AA131: 28.2064227 | AC131: 104 | AD131: 64.61 | AE131: 5 | AF131: 59.61 | AG131: 6.525778699 | AH131: 53.0842213 | AI131: 4841.249803 | AJ131: 54.33562822 | AL131: 104 | AM131: 124.91 | AN131: 10 | AO131: 114.91 | AP131: 14.7425037 | AQ131: 100.1674963 | AR131: 10306.30571 | AS131: 105.0466386 | AY131: 104 | AZ131: 104 | BA131: 0 | BB131: 30 | BC131: 30 | BD131: 0 | BE131: 0 | BF131: 60000 | BG131: 25.2293584 | BI131: 104 | BJ131: 66.6 | BK131: 5.5 | BL131: 61.1 | BM131: 9.054512294 | BN131: 52.04548771 | BO131: 5984.296042 | BP131: 56.00917566 | BQ131: 104 | BR131: 76.53 | BS131: 6.5 | BT131: 70.03 | BU131: 11.83211526 | BV131: 58.19788474 | BW131: 7414.717014 | BX131: 64.36009329 | BY131: 104 | BZ131: 80.33 | CA131: 7 | CB131: 73.33 | CC131: 13.97833905 | CD131: 59.35166095 | CE131: 8327.651767 | CF131: 67.55581202 | CG131: 0 | CH131: 0 | CI131: 0 | CJ131: 0 | CK131: 0 | CL131: 0 | CM131: 0 | CN131: 0 | CO131: 104 | CP131: 650.6565183 | CQ131: 53.5 | CR131: 597.1565183 | CS131: 99.96633881 | CT131: 497.1901795 | CU131: 59482.6131 | CV131: 0 | CW131: 597.1565183 | CX131: 1127.176518
B132: 105 | C132: 1127.176518 | D132: 120 | E132: 1007.176518 | F132: 157.5998565 | G132: 849.5766619 | H132: 157755.8457 | I132: -1007.176518 | J132: -1127.176518 | S132: 105 | T132: 105 | U132: 33.54 | V132: 2.5 | W132: 31.04 | X132: 2.810736189 | Y132: 28.22926381 | Z132: 2220.359687 | AA132: 28.15949021 | AC132: 105 | AD132: 64.61 | AE132: 5 | AF132: 59.61 | AG132: 6.454999737 | AH132: 53.15500026 | AI132: 4788.094802 | AJ132: 54.24521952 | AL132: 105 | AM132: 124.91 | AN132: 10 | AO132: 114.91 | AP132: 14.60059975 | AQ132: 100.3094003 | AR132: 10205.99631 | AS132: 104.8718522 | AY132: 105 | AZ132: 105 | BA132: 0 | BB132: 30 | BC132: 30 | BD132: 0 | BE132: 0 | BF132: 60000 | BG132: 25.18737944 | BI132: 105 | BJ132: 66.6 | BK132: 5.5 | BL132: 61.1 | BM132: 8.976444063 | BN132: 52.12355594 | BO132: 5932.172486 | BP132: 55.91598235 | BQ132: 105 | BR132: 76.53 | BS132: 6.5 | BT132: 70.03 | BU132: 11.73996861 | BV132: 58.29003139 | BW132: 7356.426983 | BX132: 64.25300495 | BY132: 105 | BZ132: 80.33 | CA132: 7 | CB132: 73.33 | CC132: 13.87941961 | CD132: 59.45058039 | CE132: 8268.201187 | CF132: 67.44340634 | CG132: 0 | CH132: 0 | CI132: 0 | CJ132: 0 | CK132: 0 | CL132: 0 | CM132: 0 | CN132: 0 | CO132: 105 | CP132: 650.6565183 | CQ132: 53.5 | CR132: 597.1565183 | CS132: 99.13768851 | CT132: 498.0188298 | CU132: 58984.59427 | CV132: 0 | CW132: 597.1565183 | CX132: 1127.176518
B133: 106 | C133: 1127.176518 | D133: 120 | E133: 1007.176518 | F133: 156.251998 | G133: 850.9245203 | H133: 156904.9212 | I133: -1007.176518 | J133: -1127.176518 | S133: 106 | T133: 106 | U133: 33.54 | V133: 2.5 | W133: 31.04 | X133: 2.775449609 | Y133: 28.26455039 | Z133: 2192.095137 | AA133: 28.11263582 | AC133: 106 | AD133: 64.61 | AE133: 5 | AF133: 59.61 | AG133: 6.384126403 | AH133: 53.2258736 | AI133: 4734.868929 | AJ133: 54.15496125 | AL133: 106 | AM133: 124.91 | AN133: 10 | AO133: 114.91 | AP133: 14.45849477 | AQ133: 100.4515052 | AR133: 10105.5448 | AS133: 104.6973566 | AY133: 106 | AZ133: 106 | BA133: 0 | BB133: 30 | BC133: 30 | BD133: 0 | BE133: 0 | BF133: 60000 | BG133: 25.14547032 | BI133: 106 | BJ133: 66.6 | BK133: 5.5 | BL133: 61.1 | BM133: 8.898258729 | BN133: 52.20174127 | BO133: 5879.970745 | BP133: 55.82294411 | BQ133: 106 | BR133: 76.53 | BS133: 6.5 | BT133: 70.03 | BU133: 11.64767606 | BV133: 58.38232394 | BW133: 7298.044659 | BX133: 64.14609479 | BY133: 106 | BZ133: 80.33 | CA133: 7 | CB133: 73.33 | CC133: 13.78033531 | CD133: 59.54966469 | CE133: 8208.651522 | CF133: 67.3311877 | CG133: 0 | CH133: 0 | CI133: 0 | CJ133: 0 | CK133: 0 | CL133: 0 | CM133: 0 | CN133: 0 | CO133: 106 | CP133: 650.6565183 | CQ133: 53.5 | CR133: 597.1565183 | CS133: 98.30765712 | CT133: 498.8488612 | CU133: 58485.74541 | CV133: 0 | CW133: 597.1565183 | CX133: 1127.176518
B134: 107 | C134: 1127.176518 | D134: 120 | E134: 1007.176518 | F134: 154.9019877 | G134: 852.2745307 | H134: 156052.6467 | I134: -1007.176518 | J134: -1127.176518 | S134: 107 | T134: 107 | U134: 33.54 | V134: 2.5 | W134: 31.04 | X134: 2.740118921 | Y134: 28.29988108 | Z134: 2163.795256 | AA134: 28.06585939 | AC134: 107 | AD134: 64.61 | AE134: 5 | AF134: 59.61 | AG134: 6.313158572 | AH134: 53.29684143 | AI134: 4681.572087 | AJ134: 54.06485316 | AL134: 107 | AM134: 124.91 | AN134: 10 | AO134: 114.91 | AP134: 14.31618847 | AQ134: 100.5938115 | AR134: 10004.95099 | AS134: 104.5231513 | AY134: 107 | AZ134: 107 | BA134: 0 | BB134: 30 | BC134: 30 | BD134: 0 | BE134: 0 | BF134: 60000 | BG134: 25.10363094 | BI134: 107 | BJ134: 66.6 | BK134: 5.5 | BL134: 61.1 | BM134: 8.819956117 | BN134: 52.28004388 | BO134: 5827.690701 | BP134: 55.73006068 | BQ134: 107 | BR134: 76.53 | BS134: 6.5 | BT134: 70.03 | BU134: 11.55523738 | BV134: 58.47476262 | BW134: 7239.569897 | BX134: 64.03936252 | BY134: 107 | BZ134: 80.33 | CA134: 7 | CB134: 73.33 | CC134: 13.68108587 | CD134: 59.64891413 | CE134: 8149.002608 | CF134: 67.21915577 | CG134: 0 | CH134: 0 | CI134: 0 | CJ134: 0 | CK134: 0 | CL134: 0 | CM134: 0 | CN134: 0 | CO134: 107 | CP134: 650.6565183 | CQ134: 53.5 | CR134: 597.1565183 | CS134: 97.47624236 | CT134: 499.680276 | CU134: 57986.06514 | CV134: 0 | CW134: 597.1565183 | CX134: 1127.176518
B135: 108 | C135: 1127.176518 | D135: 120 | E135: 1007.176518 | F135: 153.549822 | G135: 853.6266963 | H135: 155199.02 | I135: -1007.176518 | J135: -1127.176518 | S135: 108 | T135: 108 | U135: 33.54 | V135: 2.5 | W135: 31.04 | X135: 2.704744069 | Y135: 28.33525593 | Z135: 2135.46 | AA135: 28.01916079 | AC135: 108 | AD135: 64.61 | AE135: 5 | AF135: 59.61 | AG135: 6.242096116 | AH135: 53.36790388 | AI135: 4628.204183 | AJ135: 53.974895 | AL135: 108 | AM135: 124.91 | AN135: 10 | AO135: 114.91 | AP135: 14.17368057 | AQ135: 100.7363194 | AR135: 9904.214669 | AS135: 104.349236 | AY135: 108 | AZ135: 108 | BA135: 0 | BB135: 30 | BC135: 30 | BD135: 0 | BE135: 0 | BF135: 60000 | BG135: 25.06186117 | BI135: 108 | BJ135: 66.6 | BK135: 5.5 | BL135: 61.1 | BM135: 8.741536051 | BN135: 52.35846395 | BO135: 5775.332237 | BP135: 55.63733179 | BQ135: 108 | BR135: 76.53 | BS135: 6.5 | BT135: 70.03 | BU135: 11.46265234 | BV135: 58.56734766 | BW135: 7181.002549 | BX135: 63.93280784 | BY135: 108 | BZ135: 80.33 | CA135: 7 | CB135: 73.33 | CC135: 13.58167101 | CD135: 59.74832899 | CE135: 8089.254279 | CF135: 67.10731026 | CG135: 0 | CH135: 0 | CI135: 0 | CJ135: 0 | CK135: 0 | CL135: 0 | CM135: 0 | CN135: 0 | CO135: 108 | CP135: 650.6565183 | CQ135: 53.5 | CR135: 597.1565183 | CS135: 96.6434419 | CT135: 500.5130764 | CU135: 57485.55206 | CV135: 0 | CW135: 597.1565183 | CX135: 1127.176518
B136: 109 | C136: 1127.176518 | D136: 120 | E136: 1007.176518 | F136: 152.1954976 | G136: 854.9810207 | H136: 154344.039 | I136: -1007.176518 | J136: -1127.176518 | S136: 109 | T136: 109 | U136: 33.54 | V136: 2.5 | W136: 31.04 | X136: 2.669325 | Y136: 28.370675 | Z136: 2107.089325 | AA136: 27.97253989 | AC136: 109 | AD136: 64.61 | AE136: 5 | AF136: 59.61 | AG136: 6.170938911 | AH136: 53.43906109 | AI136: 4574.765122 | AJ136: 53.88508653 | AL136: 109 | AM136: 124.91 | AN136: 10 | AO136: 114.91 | AP136: 14.03097078 | AQ136: 100.8790292 | AR136: 9803.33564 | AS136: 104.1756099 | AY136: 109 | AZ136: 109 | BA136: 0 | BB136: 30 | BC136: 30 | BD136: 0 | BE136: 0 | BF136: 60000 | BG136: 25.0201609 | BI136: 109 | BJ136: 66.6 | BK136: 5.5 | BL136: 61.1 | BM136: 8.662998355 | BN136: 52.43700164 | BO136: 5722.895235 | BP136: 55.5447572 | BQ136: 109 | BR136: 76.53 | BS136: 6.5 | BT136: 70.03 | BU136: 11.3699207 | BV136: 58.6600793 | BW136: 7122.34247 | BX136: 63.82643046 | BY136: 109 | BZ136: 80.33 | CA136: 7 | CB136: 73.33 | CC136: 13.48209046 | CD136: 59.84790954 | CE136: 8029.406369 | CF136: 66.99565084 | CG136: 0 | CH136: 0 | CI136: 0 | CJ136: 0 | CK136: 0 | CL136: 0 | CM136: 0 | CN136: 0 | CO136: 109 | CP136: 650.6565183 | CQ136: 53.5 | CR136: 597.1565183 | CS136: 95.80925344 | CT136: 501.3472649 | CU136: 56984.2048 | CV136: 0 | CW136: 597.1565183 | CX136: 1127.176518
B137: 110 | C137: 1127.176518 | D137: 120 | E137: 1007.176518 | F137: 150.839011 | G137: 856.3375073 | H137: 153487.7014 | I137: -1007.176518 | J137: -1127.176518 | S137: 110 | T137: 110 | U137: 33.54 | V137: 2.5 | W137: 31.04 | X137: 2.633861656 | Y137: 28.40613834 | Z137: 2078.683186 | AA137: 27.92599656 | AC137: 110 | AD137: 64.61 | AE137: 5 | AF137: 59.61 | AG137: 6.09968683 | AH137: 53.51031317 | AI137: 4521.254809 | AJ137: 53.79542748 | AL137: 110 | AM137: 124.91 | AN137: 10 | AO137: 114.91 | AP137: 13.88805882 | AQ137: 101.0219412 | AR137: 9702.313699 | AS137: 104.0022728 | AY137: 110 | AZ137: 110 | BA137: 0 | BB137: 30 | BC137: 30 | BD137: 0 | BE137: 0 | BF137: 60000 | BG137: 24.97853002 | BI137: 110 | BJ137: 66.6 | BK137: 5.5 | BL137: 61.1 | BM137: 8.584342853 | BN137: 52.51565715 | BO137: 5670.379578 | BP137: 55.45233664 | BQ137: 110 | BR137: 76.53 | BS137: 6.5 | BT137: 70.03 | BU137: 11.27704224 | BV137: 58.75295776 | BW137: 7063.589512 | BX137: 63.72023007 | BY137: 110 | BZ137: 80.33 | CA137: 7 | CB137: 73.33 | CC137: 13.38234395 | CD137: 59.94765605 | CE137: 7969.458713 | CF137: 66.88417721 | CG137: 0 | CH137: 0 | CI137: 0 | CJ137: 0 | CK137: 0 | CL137: 0 | CM137: 0 | CN137: 0 | CO137: 110 | CP137: 650.6565183 | CQ137: 53.5 | CR137: 597.1565183 | CS137: 94.97367466 | CT137: 502.1828437 | CU137: 56482.02195 | CV137: 0 | CW137: 597.1565183 | CX137: 1127.176518
B138: 111 | C138: 1127.176518 | D138: 120 | E138: 1007.176518 | F138: 149.4803587 | G138: 857.6961597 | H138: 152630.0053 | I138: -1007.176518 | J138: -1127.176518 | S138: 111 | T138: 111 | U138: 33.54 | V138: 2.5 | W138: 31.04 | X138: 2.598353983 | Y138: 28.44164602 | Z138: 2050.24154 | AA138: 27.87953067 | AC138: 111 | AD138: 64.61 | AE138: 5 | AF138: 59.61 | AG138: 6.028339746 | AH138: 53.58166025 | AI138: 4467.673149 | AJ138: 53.70591762 | AL138: 111 | AM138: 124.91 | AN138: 10 | AO138: 114.91 | AP138: 13.74494441 | AQ138: 101.1650556 | AR138: 9601.148643 | AS138: 103.8292241 | AY138: 111 | AZ138: 111 | BA138: 0 | BB138: 30 | BC138: 30 | BD138: 0 | BE138: 0 | BF138: 60000 | BG138: 24.9369684 | BI138: 111 | BJ138: 66.6 | BK138: 5.5 | BL138: 61.1 | BM138: 8.505569367 | BN138: 52.59443063 | BO138: 5617.785147 | BP138: 55.36006985 | BQ138: 111 | BR138: 76.53 | BS138: 6.5 | BT138: 70.03 | BU138: 11.18401673 | BV138: 58.84598327 | BW138: 7004.743529 | BX138: 63.6142064 | BY138: 111 | BZ138: 80.33 | CA138: 7 | CB138: 73.33 | CC138: 13.28243119 | CD138: 60.04756881 | CE138: 7909.411144 | CF138: 66.77288906 | CG138: 0 | CH138: 0 | CI138: 0 | CJ138: 0 | CK138: 0 | CL138: 0 | CM138: 0 | CN138: 0 | CO138: 111 | CP138: 650.6565183 | CQ138: 53.5 | CR138: 597.1565183 | CS138: 94.13670325 | CT138: 503.0198151 | CU138: 55979.00214 | CV138: 0 | CW138: 597.1565183 | CX138: 1127.176518
B139: 112 | C139: 1127.176518 | D139: 120 | E139: 1007.176518 | F139: 148.1195371 | G139: 859.0569812 | H139: 151770.9483 | I139: -1007.176518 | J139: -1127.176518 | S139: 112 | T139: 112 | U139: 33.54 | V139: 2.5 | W139: 31.04 | X139: 2.562801925 | Y139: 28.47719807 | Z139: 2021.764342 | AA139: 27.8331421 | AC139: 112 | AD139: 64.61 | AE139: 5 | AF139: 59.61 | AG139: 5.956897532 | AH139: 53.65310247 | AI139: 4414.020046 | AJ139: 53.61655669 | AL139: 112 | AM139: 124.91 | AN139: 10 | AO139: 114.91 | AP139: 13.60162724 | AQ139: 101.3083728 | AR139: 9499.84027 | AS139: 103.6564633 | AY139: 112 | AZ139: 112 | BA139: 0 | BB139: 30 | BC139: 30 | BD139: 0 | BE139: 0 | BF139: 60000 | BG139: 24.89547594 | BI139: 112 | BJ139: 66.6 | BK139: 5.5 | BL139: 61.1 | BM139: 8.426677721 | BN139: 52.67332228 | BO139: 5565.111825 | BP139: 55.26795659 | BQ139: 112 | BR139: 76.53 | BS139: 6.5 | BT139: 70.03 | BU139: 11.09084392 | BV139: 58.93915608 | BW139: 6945.804372 | BX139: 63.50835913 | BY139: 112 | BZ139: 80.33 | CA139: 7 | CB139: 73.33 | CC139: 13.18235191 | CD139: 60.14764809 | CE139: 7849.263496 | CF139: 66.66178608 | CG139: 0 | CH139: 0 | CI139: 0 | CJ139: 0 | CK139: 0 | CL139: 0 | CM139: 0 | CN139: 0 | CO139: 112 | CP139: 650.6565183 | CQ139: 53.5 | CR139: 597.1565183 | CS139: 93.2983369 | CT139: 503.8581814 | CU139: 55475.14396 | CV139: 0 | CW139: 597.1565183 | CX139: 1127.176518
B140: 113 | C140: 1127.176518 | D140: 120 | E140: 1007.176518 | F140: 146.756543 | G140: 860.4199754 | H140: 150910.5283 | I140: -1007.176518 | J140: -1127.176518 | S140: 113 | T140: 113 | U140: 33.54 | V140: 2.5 | W140: 31.04 | X140: 2.527205428 | Y140: 28.51279457 | Z140: 1993.251548 | AA140: 27.78683072 | AC140: 113 | AD140: 64.61 | AE140: 5 | AF140: 59.61 | AG140: 5.885360062 | AH140: 53.72463994 | AI140: 4360.295407 | AJ140: 53.52734445 | AL140: 113 | AM140: 124.91 | AN140: 10 | AO140: 114.91 | AP140: 13.45810705 | AQ140: 101.451893 | AR140: 9398.388378 | AS140: 103.48399 | AY140: 113 | AZ140: 113 | BA140: 0 | BB140: 30 | BC140: 30 | BD140: 0 | BE140: 0 | BF140: 60000 | BG140: 24.85405252 | BI140: 113 | BJ140: 66.6 | BK140: 5.5 | BL140: 61.1 | BM140: 8.347667738 | BN140: 52.75233226 | BO140: 5512.359493 | BP140: 55.1759966 | BQ140: 113 | BR140: 76.53 | BS140: 6.5 | BT140: 70.03 | BU140: 10.99752359 | BV140: 59.03247641 | BW140: 6886.771896 | BX140: 63.40268798 | BY140: 113 | BZ140: 80.33 | CA140: 7 | CB140: 73.33 | CC140: 13.08210583 | CD140: 60.24789417 | CE140: 7789.015602 | CF140: 66.55086797 | CG140: 0 | CH140: 0 | CI140: 0 | CJ140: 0 | CK140: 0 | CL140: 0 | CM140: 0 | CN140: 0 | CO140: 113 | CP140: 650.6565183 | CQ140: 53.5 | CR140: 597.1565183 | CS140: 92.45857326 | CT140: 504.6979451 | CU140: 54970.44601 | CV140: 0 | CW140: 597.1565183 | CX140: 1127.176518
B141: 114 | C141: 1127.176518 | D141: 120 | E141: 1007.176518 | F141: 145.3913726 | G141: 861.7851457 | H141: 150048.7432 | I141: -1007.176518 | J141: -1127.176518 | S141: 114 | T141: 114 | U141: 33.54 | V141: 2.5 | W141: 31.04 | X141: 2.491564435 | Y141: 28.54843557 | Z141: 1964.703112 | AA141: 27.74059639 | AC141: 114 | AD141: 64.61 | AE141: 5 | AF141: 59.61 | AG141: 5.813727209 | AH141: 53.79627279 | AI141: 4306.499134 | AJ141: 53.43828065 | AL141: 114 | AM141: 124.91 | AN141: 10 | AO141: 114.91 | AP141: 13.31438353 | AQ141: 101.5956165 | AR141: 9296.792761 | AS141: 103.3118037 | AY141: 114 | AZ141: 114 | BA141: 0 | BB141: 30 | BC141: 30 | BD141: 0 | BE141: 0 | BF141: 60000 | BG141: 24.81269803 | BI141: 114 | BJ141: 66.6 | BK141: 5.5 | BL141: 61.1 | BM141: 8.268539239 | BN141: 52.83146076 | BO141: 5459.528032 | BP141: 55.08418962 | BQ141: 114 | BR141: 76.53 | BS141: 6.5 | BT141: 70.03 | BU141: 10.9040555 | BV141: 59.1259445 | BW141: 6827.645952 | BX141: 63.29719266 | BY141: 114 | BZ141: 80.33 | CA141: 7 | CB141: 73.33 | CC141: 12.98169267 | CD141: 60.34830733 | CE141: 7728.667295 | CF141: 66.44013441 | CG141: 0 | CH141: 0 | CI141: 0 | CJ141: 0 | CK141: 0 | CL141: 0 | CM141: 0 | CN141: 0 | CO141: 114 | CP141: 650.6565183 | CQ141: 53.5 | CR141: 597.1565183 | CS141: 91.61741002 | CT141: 505.5391083 | CU141: 54464.9069 | CV141: 0 | CW141: 597.1565183 | CX141: 1127.176518
B142: 115 | C142: 1127.176518 | D142: 120 | E142: 1007.176518 | F142: 144.0240226 | G142: 863.1524957 | H142: 149185.5907 | I142: -1007.176518 | J142: -1127.176518 | S142: 115 | T142: 115 | U142: 33.54 | V142: 2.5 | W142: 31.04 | X142: 2.45587889 | Y142: 28.58412111 | Z142: 1936.118991 | AA142: 27.69443899 | AC142: 115 | AD142: 64.61 | AE142: 5 | AF142: 59.61 | AG142: 5.741998845 | AH142: 53.86800116 | AI142: 4252.631133 | AJ142: 53.34936504 | AL142: 115 | AM142: 124.91 | AN142: 10 | AO142: 114.91 | AP142: 13.17045641 | AQ142: 101.7395436 | AR142: 9195.053217 | AS142: 103.1399038 | AY142: 115 | AZ142: 115 | BA142: 0 | BB142: 30 | BC142: 30 | BD142: 0 | BE142: 0 | BF142: 60000 | BG142: 24.77141234 | BI142: 115 | BJ142: 66.6 | BK142: 5.5 | BL142: 61.1 | BM142: 8.189292048 | BN142: 52.91070795 | BO142: 5406.617324 | BP142: 54.99253539 | BQ142: 115 | BR142: 76.53 | BS142: 6.5 | BT142: 70.03 | BU142: 10.81043942 | BV142: 59.21956058 | BW142: 6768.426391 | BX142: 63.19187287 | BY142: 115 | BZ142: 80.33 | CA142: 7 | CB142: 73.33 | CC142: 12.88111216 | CD142: 60.44888784 | CE142: 7668.218407 | CF142: 66.3295851 | CG142: 0 | CH142: 0 | CI142: 0 | CJ142: 0 | CK142: 0 | CL142: 0 | CM142: 0 | CN142: 0 | CO142: 115 | CP142: 650.6565183 | CQ142: 53.5 | CR142: 597.1565183 | CS142: 90.77484484 | CT142: 506.3816735 | CU142: 53958.52523 | CV142: 0 | CW142: 597.1565183 | CX142: 1127.176518
B143: 116 | C143: 1127.176518 | D143: 120 | E143: 1007.176518 | F143: 142.6544895 | G143: 864.5220289 | H143: 148321.0687 | I143: -1007.176518 | J143: -1127.176518 | S143: 116 | T143: 116 | U143: 33.54 | V143: 2.5 | W143: 31.04 | X143: 2.420148739 | Y143: 28.61985126 | Z143: 1907.49914 | AA143: 27.6483584 | AC143: 116 | AD143: 64.61 | AE143: 5 | AF143: 59.61 | AG143: 5.670174843 | AH143: 53.93982516 | AI143: 4198.691307 | AJ143: 53.26059738 | AL143: 116 | AM143: 124.91 | AN143: 10 | AO143: 114.91 | AP143: 13.02632539 | AQ143: 101.8836746 | AR143: 9093.169543 | AS143: 102.96829 | AY143: 116 | AZ143: 116 | BA143: 0 | BB143: 30 | BC143: 30 | BD143: 0 | BE143: 0 | BF143: 60000 | BG143: 24.73019535 | BI143: 116 | BJ143: 66.6 | BK143: 5.5 | BL143: 61.1 | BM143: 8.109925986 | BN143: 52.99007401 | BO143: 5353.62725 | BP143: 54.90103367 | BQ143: 116 | BR143: 76.53 | BS143: 6.5 | BT143: 70.03 | BU143: 10.71667512 | BV143: 59.31332488 | BW143: 6709.113066 | BX143: 63.08672833 | BY143: 116 | BZ143: 80.33 | CA143: 7 | CB143: 73.33 | CC143: 12.78036401 | CD143: 60.54963599 | CE143: 7607.668771 | CF143: 66.21921974 | CG143: 0 | CH143: 0 | CI143: 0 | CJ143: 0 | CK143: 0 | CL143: 0 | CM143: 0 | CN143: 0 | CO143: 116 | CP143: 650.6565183 | CQ143: 53.5 | CR143: 597.1565183 | CS143: 89.93087538 | CT143: 507.225643 | CU143: 53451.29959 | CV143: 0 | CW143: 597.1565183 | CX143: 1127.176518
B144: 117 | C144: 1127.176518 | D144: 120 | E144: 1007.176518 | F144: 141.2827697 | G144: 865.8937487 | H144: 147455.1749 | I144: -1007.176518 | J144: -1127.176518 | S144: 117 | T144: 117 | U144: 33.54 | V144: 2.5 | W144: 31.04 | X144: 2.384373925 | Y144: 28.65562608 | Z144: 1878.843514 | AA144: 27.60235447 | AC144: 117 | AD144: 64.61 | AE144: 5 | AF144: 59.61 | AG144: 5.598255077 | AH144: 54.01174492 | AI144: 4144.679563 | AJ144: 53.17197741 | AL144: 117 | AM144: 124.91 | AN144: 10 | AO144: 114.91 | AP144: 12.88199019 | AQ144: 102.0280098 | AR144: 8991.141533 | AS144: 102.7969618 | AY144: 117 | AZ144: 117 | BA144: 0 | BB144: 30 | BC144: 30 | BD144: 0 | BE144: 0 | BF144: 60000 | BG144: 24.68904693 | BI144: 117 | BJ144: 66.6 | BK144: 5.5 | BL144: 61.1 | BM144: 8.030440875 | BN144: 53.06955912 | BO144: 5300.557691 | BP144: 54.80968419 | BQ144: 117 | BR144: 76.53 | BS144: 6.5 | BT144: 70.03 | BU144: 10.62276235 | BV144: 59.40723765 | BW144: 6649.705828 | BX144: 62.98175873 | BY144: 117 | BZ144: 80.33 | CA144: 7 | CB144: 73.33 | CC144: 12.67944795 | CD144: 60.65055205 | CE144: 7547.018219 | CF144: 66.10903801 | CG144: 0 | CH144: 0 | CI144: 0 | CJ144: 0 | CK144: 0 | CL144: 0 | CM144: 0 | CN144: 0 | CO144: 117 | CP144: 650.6565183 | CQ144: 53.5 | CR144: 597.1565183 | CS144: 89.08549931 | CT144: 508.071019 | CU144: 52943.22857 | CV144: 0 | CW144: 597.1565183 | CX144: 1127.176518
B145: 118 | C145: 1127.176518 | D145: 120 | E145: 1007.176518 | F145: 139.9088597 | G145: 867.2676586 | H145: 146587.9073 | I145: -1007.176518 | J145: -1127.176518 | S145: 118 | T145: 118 | U145: 33.54 | V145: 2.5 | W145: 31.04 | X145: 2.348554392 | Y145: 28.69144561 | Z145: 1850.152068 | AA145: 27.55642709 | AC145: 118 | AD145: 64.61 | AE145: 5 | AF145: 59.61 | AG145: 5.526239417 | AH145: 54.08376058 | AI145: 4090.595802 | AJ145: 53.08350491 | AL145: 118 | AM145: 124.91 | AN145: 10 | AO145: 114.91 | AP145: 12.73745051 | AQ145: 102.1725495 | AR145: 8888.968984 | AS145: 102.6259186 | AY145: 118 | AZ145: 118 | BA145: 0 | BB145: 30 | BC145: 30 | BD145: 0 | BE145: 0 | BF145: 60000 | BG145: 24.64796699 | BI145: 118 | BJ145: 66.6 | BK145: 5.5 | BL145: 61.1 | BM145: 7.950836536 | BN145: 53.14916346 | BO145: 5247.408527 | BP145: 54.71848672 | BQ145: 118 | BR145: 76.53 | BS145: 6.5 | BT145: 70.03 | BU145: 10.5287009 | BV145: 59.5012991 | BW145: 6590.204529 | BX145: 62.87696379 | BY145: 118 | BZ145: 80.33 | CA145: 7 | CB145: 73.33 | CC145: 12.5783637 | CD145: 60.7516363 | CE145: 7486.266583 | CF145: 65.99903961 | CG145: 0 | CH145: 0 | CI145: 0 | CJ145: 0 | CK145: 0 | CL145: 0 | CM145: 0 | CN145: 0 | CO145: 118 | CP145: 650.6565183 | CQ145: 53.5 | CR145: 597.1565183 | CS145: 88.23871428 | CT145: 508.9178041 | CU145: 52434.31076 | CV145: 0 | CW145: 597.1565183 | CX145: 1127.176518
B146: 119 | C146: 1127.176518 | D146: 120 | E146: 1007.176518 | F146: 138.5327561 | G146: 868.6437623 | H146: 145719.2635 | I146: -1007.176518 | J146: -1127.176518 | S146: 119 | T146: 119 | U146: 33.54 | V146: 2.5 | W146: 31.04 | X146: 2.312690085 | Y146: 28.72730992 | Z146: 1821.424758 | AA146: 27.51057613 | AC146: 119 | AD146: 64.61 | AE146: 5 | AF146: 59.61 | AG146: 5.454127736 | AH146: 54.15587226 | AI146: 4036.43993 | AJ146: 52.99517961 | AL146: 119 | AM146: 124.91 | AN146: 10 | AO146: 114.91 | AP146: 12.59270606 | AQ146: 102.3172939 | AR146: 8786.65169 | AS146: 102.45516 | AY146: 119 | AZ146: 119 | BA146: 0 | BB146: 30 | BC146: 30 | BD146: 0 | BE146: 0 | BF146: 60000 | BG146: 24.6069554 | BI146: 119 | BJ146: 66.6 | BK146: 5.5 | BL146: 61.1 | BM146: 7.871112791 | BN146: 53.22888721 | BO146: 5194.17964 | BP146: 54.62744098 | BQ146: 119 | BR146: 76.53 | BS146: 6.5 | BT146: 70.03 | BU146: 10.4344905 | BV146: 59.5955095 | BW146: 6530.60902 | BX146: 62.77234322 | BY146: 119 | BZ146: 80.33 | CA146: 7 | CB146: 73.33 | CC146: 12.47711097 | CD146: 60.85288903 | CE146: 7425.413694 | CF146: 65.88922423 | CG146: 0 | CH146: 0 | CI146: 0 | CJ146: 0 | CK146: 0 | CL146: 0 | CM146: 0 | CN146: 0 | CO146: 119 | CP146: 650.6565183 | CQ146: 53.5 | CR146: 597.1565183 | CS146: 87.39051794 | CT146: 509.7660004 | CU146: 51924.54476 | CV146: 0 | CW146: 597.1565183 | CX146: 1127.176518
B147: 120 | C147: 1127.176518 | D147: 120 | E147: 1007.176518 | F147: 137.1544552 | G147: 870.0220631 | H147: 144849.2414 | I147: -1007.176518 | J147: -1127.176518 | S147: 120 | T147: 120 | U147: 33.54 | V147: 2.5 | W147: 31.04 | X147: 2.276780948 | Y147: 28.76321905 | Z147: 1792.661539 | AA147: 27.46480146 | AC147: 120 | AD147: 64.61 | AE147: 5 | AF147: 59.61 | AG147: 5.381919906 | AH147: 54.22808009 | AI147: 3982.21185 | AJ147: 52.90700127 | AL147: 120 | AM147: 124.91 | AN147: 10 | AO147: 114.91 | AP147: 12.44775656 | AQ147: 102.4622434 | AR147: 8684.189446 | AS147: 102.2846855 | AY147: 120 | AZ147: 120 | BA147: 0 | BB147: 30 | BC147: 30 | BD147: 0 | BE147: 0 | BF147: 60000 | BG147: 24.56601204 | BI147: 120 | BJ147: 66.6 | BK147: 5.5 | BL147: 61.1 | BM147: 7.79126946 | BN147: 53.30873054 | BO147: 5140.87091 | BP147: 54.53654674 | BQ147: 120 | BR147: 76.53 | BS147: 6.5 | BT147: 70.03 | BU147: 10.34013095 | BV147: 59.68986905 | BW147: 6470.919151 | BX147: 62.66789672 | BY147: 120 | BZ147: 80.33 | CA147: 7 | CB147: 73.33 | CC147: 12.37568949 | CD147: 60.95431051 | CE147: 7364.459383 | CF147: 65.77959158 | CG147: 0 | CH147: 0 | CI147: 0 | CJ147: 0 | CK147: 0 | CL147: 0 | CM147: 0 | CN147: 0 | CO147: 120 | CP147: 650.6565183 | CQ147: 53.5 | CR147: 597.1565183 | CS147: 86.54090794 | CT147: 510.6156104 | CU147: 51413.92915 | CV147: 0 | CW147: 597.1565183 | CX147: 1127.176518
B148: 121 | C148: 1127.176518 | D148: 120 | E148: 1007.176518 | F148: 135.7739537 | G148: 871.4025647 | H148: 143977.8389 | I148: -1007.176518 | J148: -1127.176518 | S148: 121 | T148: 121 | U148: 33.54 | V148: 2.5 | W148: 31.04 | X148: 2.240826924 | Y148: 28.79917308 | Z148: 1763.862366 | AA148: 27.41910296 | AC148: 121 | AD148: 64.61 | AE148: 5 | AF148: 59.61 | AG148: 5.309615799 | AH148: 54.3003842 | AI148: 3927.911465 | AJ148: 52.81896966 | AL148: 121 | AM148: 124.91 | AN148: 10 | AO148: 114.91 | AP148: 12.30260172 | AQ148: 102.6073983 | AR148: 8581.582048 | AS148: 102.1144947 | AY148: 121 | AZ148: 121 | BA148: 0 | BB148: 30 | BC148: 30 | BD148: 0 | BE148: 0 | BF148: 60000 | BG148: 24.52513682 | BI148: 121 | BJ148: 66.6 | BK148: 5.5 | BL148: 61.1 | BM148: 7.711306365 | BN148: 53.38869364 | BO148: 5087.482216 | BP148: 54.44580373 | BQ148: 121 | BR148: 76.53 | BS148: 6.5 | BT148: 70.03 | BU148: 10.24562199 | BV148: 59.78437801 | BW148: 6411.134773 | BX148: 62.56362402 | BY148: 121 | BZ148: 80.33 | CA148: 7 | CB148: 73.33 | CC148: 12.27409897 | CD148: 61.05590103 | CE148: 7303.403482 | CF148: 65.67014135 | CG148: 0 | CH148: 0 | CI148: 0 | CJ148: 0 | CK148: 0 | CL148: 0 | CM148: 0 | CN148: 0 | CO148: 121 | CP148: 650.6565183 | CQ148: 53.5 | CR148: 597.1565183 | CS148: 85.68988192 | CT148: 511.4666364 | CU148: 50902.46252 | CV148: 0 | CW148: 597.1565183 | CX148: 1127.176518
B149: 122 | C149: 1127.176518 | D149: 120 | E149: 1007.176518 | F149: 134.3912479 | G149: 872.7852705 | H149: 143105.0536 | I149: -1007.176518 | J149: -1127.176518 | S149: 122 | T149: 122 | U149: 33.54 | V149: 2.5 | W149: 31.04 | X149: 2.204827957 | Y149: 28.83517204 | Z149: 1735.027194 | AA149: 27.37348049 | AC149: 122 | AD149: 64.61 | AE149: 5 | AF149: 59.61 | AG149: 5.237215287 | AH149: 54.37278471 | AI149: 3873.538681 | AJ149: 52.73108451 | AL149: 122 | AM149: 124.91 | AN149: 10 | AO149: 114.91 | AP149: 12.15724123 | AQ149: 102.7527588 | AR149: 8478.829289 | AS149: 101.944587 | AY149: 122 | AZ149: 122 | BA149: 0 | BB149: 30 | BC149: 30 | BD149: 0 | BE149: 0 | BF149: 60000 | BG149: 24.4843296 | BI149: 122 | BJ149: 66.6 | BK149: 5.5 | BL149: 61.1 | BM149: 7.631223324 | BN149: 53.46877668 | BO149: 5034.013439 | BP149: 54.35521171 | BQ149: 122 | BR149: 76.53 | BS149: 6.5 | BT149: 70.03 | BU149: 10.15096339 | BV149: 59.87903661 | BW149: 6351.255736 | BX149: 62.45952481 | BY149: 122 | BZ149: 80.33 | CA149: 7 | CB149: 73.33 | CC149: 12.17233914 | CD149: 61.15766086 | CE149: 7242.245821 | CF149: 65.56087322 | CG149: 0 | CH149: 0 | CI149: 0 | CJ149: 0 | CK149: 0 | CL149: 0 | CM149: 0 | CN149: 0 | CO149: 122 | CP149: 650.6565183 | CQ149: 53.5 | CR149: 597.1565183 | CS149: 84.83743753 | CT149: 512.3190808 | CU149: 50390.14344 | CV149: 0 | CW149: 597.1565183 | CX149: 1127.176518
B150: 123 | C150: 1127.176518 | D150: 120 | E150: 1007.176518 | F150: 133.0063342 | G150: 874.1701841 | H150: 142230.8834 | I150: -1007.176518 | J150: -1127.176518 | S150: 123 | T150: 123 | U150: 33.54 | V150: 2.5 | W150: 31.04 | X150: 2.168783992 | Y150: 28.87121601 | Z150: 1706.155978 | AA150: 27.32793394 | AC150: 123 | AD150: 64.61 | AE150: 5 | AF150: 59.61 | AG150: 5.164718241 | AH150: 54.44528176 | AI150: 3819.093399 | AJ150: 52.64334561 | AL150: 123 | AM150: 124.91 | AN150: 10 | AO150: 114.91 | AP150: 12.01167483 | AQ150: 102.8983252 | AR150: 8375.930964 | AS150: 101.7749621 | AY150: 123 | AZ150: 123 | BA150: 0 | BB150: 30 | BC150: 30 | BD150: 0 | BE150: 0 | BF150: 60000 | BG150: 24.44359028 | BI150: 123 | BJ150: 66.6 | BK150: 5.5 | BL150: 61.1 | BM150: 7.551020159 | BN150: 53.54897984 | BO150: 4980.46446 | BP150: 54.26477043 | BQ150: 123 | BR150: 76.53 | BS150: 6.5 | BT150: 70.03 | BU150: 10.05615492 | BV150: 59.97384508 | BW150: 6291.281891 | BX150: 62.35559881 | BY150: 123 | BZ150: 80.33 | CA150: 7 | CB150: 73.33 | CC150: 12.0704097 | CD150: 61.2595903 | CE150: 7180.986231 | CF150: 65.45178691 | CG150: 0 | CH150: 0 | CI150: 0 | CJ150: 0 | CK150: 0 | CL150: 0 | CM150: 0 | CN150: 0 | CO150: 123 | CP150: 650.6565183 | CQ150: 53.5 | CR150: 597.1565183 | CS150: 83.98357239 | CT150: 513.172946 | CU150: 49876.97049 | CV150: 0 | CW150: 597.1565183 | CX150: 1127.176518
B151: 124 | C151: 1127.176518 | D151: 120 | E151: 1007.176518 | F151: 131.6192093 | G151: 875.5573091 | H151: 141355.3261 | I151: -1007.176518 | J151: -1127.176518 | S151: 124 | T151: 124 | U151: 33.54 | V151: 2.5 | W151: 31.04 | X151: 2.132694972 | Y151: 28.90730503 | Z151: 1677.248673 | AA151: 27.28246316 | AC151: 124 | AD151: 64.61 | AE151: 5 | AF151: 59.61 | AG151: 5.092124532 | AH151: 54.51787547 | AI151: 3764.575523 | AJ151: 52.55575268 | AL151: 124 | AM151: 124.91 | AN151: 10 | AO151: 114.91 | AP151: 11.8659022 | AQ151: 103.0440978 | AR151: 8272.886866 | AS151: 101.6056194 | AY151: 124 | AZ151: 124 | BA151: 0 | BB151: 30 | BC151: 30 | BD151: 0 | BE151: 0 | BF151: 60000 | BG151: 24.40291875 | BI151: 124 | BJ151: 66.6 | BK151: 5.5 | BL151: 61.1 | BM151: 7.470696689 | BN151: 53.62930331 | BO151: 4926.835156 | BP151: 54.17447963 | BQ151: 124 | BR151: 76.53 | BS151: 6.5 | BT151: 70.03 | BU151: 9.961196328 | BV151: 60.06880367 | BW151: 6231.213087 | BX151: 62.25184573 | BY151: 124 | BZ151: 80.33 | CA151: 7 | CB151: 73.33 | CC151: 11.96831038 | CD151: 61.36168962 | CE151: 7119.624541 | CF151: 65.34288211 | CG151: 0 | CH151: 0 | CI151: 0 | CJ151: 0 | CK151: 0 | CL151: 0 | CM151: 0 | CN151: 0 | CO151: 124 | CP151: 650.6565183 | CQ151: 53.5 | CR151: 597.1565183 | CS151: 83.12828415 | CT151: 514.0282342 | CU151: 49362.94226 | CV151: 0 | CW151: 597.1565183 | CX151: 1127.176518
B152: 125 | C152: 1127.176518 | D152: 120 | E152: 1007.176518 | F152: 130.2298694 | G152: 876.946649 | H152: 140478.3795 | I152: -1007.176518 | J152: -1127.176518 | S152: 125 | T152: 125 | U152: 33.54 | V152: 2.5 | W152: 31.04 | X152: 2.096560841 | Y152: 28.94343916 | Z152: 1648.305234 | AA152: 27.23706805 | AC152: 125 | AD152: 64.61 | AE152: 5 | AF152: 59.61 | AG152: 5.019434031 | AH152: 54.59056597 | AI152: 3709.984957 | AJ152: 52.46830551 | AL152: 125 | AM152: 124.91 | AN152: 10 | AO152: 114.91 | AP152: 11.71992306 | AQ152: 103.1900769 | AR152: 8169.696789 | AS152: 101.4365584 | AY152: 125 | AZ152: 125 | BA152: 0 | BB152: 30 | BC152: 30 | BD152: 0 | BE152: 0 | BF152: 60000 | BG152: 24.36231489 | BI152: 125 | BJ152: 66.6 | BK152: 5.5 | BL152: 61.1 | BM152: 7.390252734 | BN152: 53.70974727 | BO152: 4873.125409 | BP152: 54.08433906 | BQ152: 125 | BR152: 76.53 | BS152: 6.5 | BT152: 70.03 | BU152: 9.866087388 | BV152: 60.16391261 | BW152: 6171.049175 | BX152: 62.14826529 | BY152: 125 | BZ152: 80.33 | CA152: 7 | CB152: 73.33 | CC152: 11.8660409 | CD152: 61.4639591 | CE152: 7058.160582 | CF152: 65.23415851 | CG152: 0 | CH152: 0 | CI152: 0 | CJ152: 0 | CK152: 0 | CL152: 0 | CM152: 0 | CN152: 0 | CO152: 125 | CP152: 650.6565183 | CQ152: 53.5 | CR152: 597.1565183 | CS152: 82.27157043 | CT152: 514.8849479 | CU152: 48848.05731 | CV152: 0 | CW152: 597.1565183 | CX152: 1127.176518
B153: 126 | C153: 1127.176518 | D153: 120 | E153: 1007.176518 | F153: 128.8383111 | G153: 878.3382073 | H153: 139600.0412 | I153: -1007.176518 | J153: -1127.176518 | S153: 126 | T153: 126 | U153: 33.54 | V153: 2.5 | W153: 31.04 | X153: 2.060381542 | Y153: 28.97961846 | Z153: 1619.325615 | AA153: 27.19174847 | AC153: 126 | AD153: 64.61 | AE153: 5 | AF153: 59.61 | AG153: 4.94664661 | AH153: 54.66335339 | AI153: 3655.321604 | AJ153: 52.38100384 | AL153: 126 | AM153: 124.91 | AN153: 10 | AO153: 114.91 | AP153: 11.57373712 | AQ153: 103.3362629 | AR153: 8066.360526 | AS153: 101.2677788 | AY153: 126 | AZ153: 126 | BA153: 0 | BB153: 30 | BC153: 30 | BD153: 0 | BE153: 0 | BF153: 60000 | BG153: 24.3217786 | BI153: 126 | BJ153: 66.6 | BK153: 5.5 | BL153: 61.1 | BM153: 7.309688113 | BN153: 53.79031189 | BO153: 4819.335097 | BP153: 53.99434848 | BQ153: 126 | BR153: 76.53 | BS153: 6.5 | BT153: 70.03 | BU153: 9.77082786 | BV153: 60.25917214 | BW153: 6110.790003 | BX153: 62.0448572 | BY153: 126 | BZ153: 80.33 | CA153: 7 | CB153: 73.33 | CC153: 11.76360097 | CD153: 61.56639903 | CE153: 6996.594183 | CF153: 65.12561582 | CG153: 0 | CH153: 0 | CI153: 0 | CJ153: 0 | CK153: 0 | CL153: 0 | CM153: 0 | CN153: 0 | CO153: 126 | CP153: 650.6565183 | CQ153: 53.5 | CR153: 597.1565183 | CS153: 81.41342885 | CT153: 515.7430895 | CU153: 48332.31422 | CV153: 0 | CW153: 597.1565183 | CX153: 1127.176518
B154: 127 | C154: 1127.176518 | D154: 120 | E154: 1007.176518 | F154: 127.4445307 | G154: 879.7319876 | H154: 138720.3093 | I154: -1007.176518 | J154: -1127.176518 | S154: 127 | T154: 127 | U154: 33.54 | V154: 2.5 | W154: 31.04 | X154: 2.024157019 | Y154: 29.01584298 | Z154: 1590.309772 | AA154: 27.1465043 | AC154: 127 | AD154: 64.61 | AE154: 5 | AF154: 59.61 | AG154: 4.873762139 | AH154: 54.73623786 | AI154: 3600.585366 | AJ154: 52.29384742 | AL154: 127 | AM154: 124.91 | AN154: 10 | AO154: 114.91 | AP154: 11.42734408 | AQ154: 103.4826559 | AR154: 7962.87787 | AS154: 101.09928 | AY154: 127 | AZ154: 127 | BA154: 0 | BB154: 30 | BC154: 30 | BD154: 0 | BE154: 0 | BF154: 60000 | BG154: 24.28130975 | BI154: 127 | BJ154: 66.6 | BK154: 5.5 | BL154: 61.1 | BM154: 7.229002646 | BN154: 53.87099735 | BO154: 4765.4641 | BP154: 53.90450764 | BQ154: 127 | BR154: 76.53 | BS154: 6.5 | BT154: 70.03 | BU154: 9.675417504 | BV154: 60.3545825 | BW154: 6050.43542 | BX154: 61.94162116 | BY154: 127 | BZ154: 80.33 | CA154: 7 | CB154: 73.33 | CC154: 11.66099031 | CD154: 61.66900969 | CE154: 6934.925173 | CF154: 65.01725373 | CG154: 0 | CH154: 0 | CI154: 0 | CJ154: 0 | CK154: 0 | CL154: 0 | CM154: 0 | CN154: 0 | CO154: 127 | CP154: 650.6565183 | CQ154: 53.5 | CR154: 597.1565183 | CS154: 80.55385703 | CT154: 516.6026613 | CU154: 47815.71156 | CV154: 0 | CW154: 597.1565183 | CX154: 1127.176518
B155: 128 | C155: 1127.176518 | D155: 120 | E155: 1007.176518 | F155: 126.0485248 | G155: 881.1279935 | H155: =Z155+AI155+AR155+BF155+BO155+BW155+CE155+CM155+CU155 -> 137839.1813 | I155: -1007.176518 | J155: -1127.176518 | S155: 128 | T155: 128 | U155: 33.54 | V155: 2.5 | W155: 31.04 | X155: 1.987887215 | Y155: 29.05211278 | Z155: 1561.257659 | AA155: 27.1013354 | AC155: 128 | AD155: 64.61 | AE155: 5 | AF155: 59.61 | AG155: 4.800780488 | AH155: 54.80921951 | AI155: 3545.776147 | AJ155: 52.20683603 | AL155: 128 | AM155: 124.91 | AN155: 10 | AO155: 114.91 | AP155: 11.28074365 | AQ155: 103.6292564 | AR155: 7859.248614 | AS155: 100.9310616 | AY155: 128 | AZ155: 128 | BA155: =IF(OR((AY155-$J$10)<0,AY155>$AY$24),0,AY155-$J$10) -> 0 | BB155: 30 | BC155: 30 | BD155: 0 | BE155: 0 | BF155: 60000 | BG155: 24.24090823 | BI155: 128 | BJ155: 66.6 | BK155: 5.5 | BL155: 61.1 | BM155: 7.14819615 | BN155: 53.95180385 | BO155: 4711.512296 | BP155: 53.81481628 | BQ155: 128 | BR155: 76.53 | BS155: 6.5 | BT155: 70.03 | BU155: 9.579856082 | BV155: 60.45014392 | BW155: 5989.985276 | BX155: 61.8385569 | BY155: 128 | BZ155: 80.33 | CA155: 7 | CB155: 73.33 | CC155: 11.55820862 | CD155: 61.77179138 | CE155: 6873.153382 | CF155: 64.90907194 | CG155: 0 | CH155: 0 | CI155: 0 | CJ155: 0 | CK155: 0 | CL155: 0 | CM155: 0 | CN155: 0 | CO155: 128 | CP155: 650.6565183 | CQ155: 53.5 | CR155: 597.1565183 | CS155: 79.69285259 | CT155: 517.4636657 | CU155: 47298.24789 | CV155: 0 | CW155: 597.1565183 | CX155: 1127.176518
B156: 129 | C156: =U156+AD156+AM156+BB156+BJ156+BR156+BZ156+CH156+CP156 -> 1127.176518 | D156: =V156+AE156+AN156+BC156+BK156+BS156+CA156+CI156+CQ156 -> 120 | E156: =W156+AF156+AO156+BD156+BL156+BT156+CB156+CJ156+CR156 -> 1007.176518 | F156: =X156+AG156+AP156+BM156+BU156+CC156+CK156+CS156 -> 124.6502897 | G156: =Y156+AH156+AQ156+BE156+BN156+BV156+CD156+CL156+CT156 -> 882.5262286 | H156: 136956.655 | I156: -1007.176518 | J156: -1127.176518 | S156: 129 | T156: =IF($S156>$K$7,0,$S156) -> 129 | U156: =IF(S156>$S$24,0,IF($AB$21=3,IF(T156=$S$24,W156+V156,ROUND(-PMT(($V$24+($P$7*$N$7)+($Q$7*$O$7))/12,$S$24,$U$24,0,0),2)),W156+V156)) -> 33.54 | V156: =IF(S156>$S$24,0,IF($AB$21=1,TRUNC($U$24*$P$7*$N$7/12,2)+TRUNC($U$24*$Q$7*$O$7/12,2),IF($AB$21=2,TRUNC(Z155*$P$7*$N$7/12,2)+TRUNC(Z155*$Q$7*$O$7/12,2),TRUNC(Z155*$P$7*$N$7/12,2)+TRUNC(Z155*$Q$7*$O$7/12,2)))) -> 2.5 | W156: =IF(S156>$S$24,0,IF($AB$21=3,IF(T156=$S$24,Y156+X156,U156-V156),IF(T156=$S$24,Y156+X156,ROUND(-PMT($V$24/12,$S$24,$U$24,0,0),2)))) -> 31.04 | X156: =IF(S156>$S$24,0,Z155*$V$24/12) -> 1.951572074 | Y156: =IF(S156>$S$24,0,(IF(T156=$S$24,Z155,W156-X156))) -> 29.08842793 | Z156: =IF(S156>$S$24,0,Z155-Y156) -> 1532.169232 | AA156: =IF(S156>$K$15,0,IF($AT$22<>3,U156*((1+($L$15/12))^(-T156)),U156*((1+(($L$15+($P$7*$N$7)+($Q$7*$O$7))/12))^(-T156)))) -> 27.05624167 | AC156: =IF($S156>$K$8,0,$S156) -> 129 | AD156: =IF(S156>$AC$24,0,IF($AK$21=3,IF(AC156=$AC$24,AF156+AE156,ROUND(-PMT(($AE$24+($P$8*$N$8)+($Q$8*$O$8))/12,$AC$24,$AD$24,0,0),2)),AF156+AE156)) -> 64.61 | AE156: =IF(S156>$AC$24,0,IF($AK$21=1,TRUNC($AD$24*$P$8*$N$8/12,2)+TRUNC($AD$24*$Q$8*$O$8/12,2),IF($AK$21=2,TRUNC(AI155*$P$8*$N$8/12,2)+TRUNC(AI155*$Q$8*$O$8/12,2),TRUNC(AI155*$P$8*$N$8/12,2)+TRUNC(AI155*$Q$8*$O$8/12,2)))) -> 5 | AF156: =IF(S156>$AC$24,0,IF($AK$21=3,IF(AC156=$AC$24,AH156+AG156,AD156-AE156),IF(AC156=$AC$24,AH156+AG156,ROUND(-PMT($AE$24/12,$AC$24,$AD$24,0,0),2)))) -> 59.61 | AG156: =IF(S156>$AC$24,0,AI155*$AE$24/12) -> 4.727701529 | AH156: =IF(S156>$AC$24,0,(IF(AC156=$AC$24,AI155,AF156-AG156))) -> 54.88229847 | AI156: =IF(S156>$AC$24,0,AI155-AH156) -> 3490.893848 | AJ156: =IF(AC156>$K$15,0,IF($AT$22<>3,AD156*((1+($L$15/12))^(-AC156)),AD156*((1+(($L$15+($P$7*$N$7)+($Q$7*$O$7))/12))^(-AC156)))) -> 52.11996941 | AL156: =IF($S156>$K$9,0,$S156) -> 129 | AM156: =IF(S156>$AL$24,0,IF($AT$21=3,IF(AL156=$AL$24,AO156+AN156,ROUND(-PMT(($AN$24+($P$9*$N$9)+($Q$9*$O$9))/12,$AL$24,$AM$24,0,0),2)),AO156+AN156)) -> 124.91 | AN156: =IF(S156>$AL$24,0,IF($AT$21=1,TRUNC($AM$24*$P$9*$N$9/12,2)+TRUNC($AM$24*$Q$9*$O$9/12,2),IF($AT$21=2,TRUNC(AR155*$P$9*$N$9/12,2)+TRUNC(AR155*$Q$9*$O$9/12,2),TRUNC(AR155*$P$9*$N$9/12,2)+TRUNC(AR155*$Q$9*$O$9/12,2)))) -> 10 | AO156: =IF(S156>$AL$24,0,IF($AT$21=3,IF(AL156=$AL$24,AQ156+AP156,AM156-AN156),IF(AL156=$AL$24,AQ156+AP156,ROUND(-PMT($AN$24/12,$AL$24,$AM$24,0,0),2)))) -> 114.91 | AP156: =IF(S156>$AL$24,0,AR155*$AN$24/12) -> 11.13393554 | AQ156: =IF(S156>$AL$24,0,(IF(AL156=$AL$24,AR155,AO156-AP156))) -> 103.7760645 | AR156: =IF(AL156>$AL$24,0,AR155-AQ156) -> 7755.47255 | AS156: =IF(AL156>$K$15,0,IF($AT$22<>3,AM156*((1+($L$15/12))^(-AL156)),AM156*((1+(($L$15+($P$7*$N$7)+($Q$7*$O$7))/12))^(-AL156)))) -> 100.763123 | AY156: =IF($S156>$AY$24,0,$S156) -> 129 | AZ156: =IF(AY156>$J$10,0,AY156) -> 129 | BA156: 0 | BB156: 30 | BC156: =IF(AY156=0,0,IF(AY156>$AY$24,0,IF($AT$22=1,TRUNC($BB$24*$P$10*$N$10/12,2)+TRUNC($BB$24*$Q$10*$O$10/12,2),IF($AT$22=2,TRUNC(BF155*$P$10*$N$10/12,2)+TRUNC(BF155*$Q$10*$O$10/12,2),TRUNC(BF155*$P$10*$N$10/12,2)+TRUNC(BF155*$Q$10*$O$10/12,2))))) -> 30 | BD156: =IF(AY156=0,0,IF(AY156<=$J$10,$BB$24*$BD$23/$J$10,$BB$24*$I$10/$BA$24)) -> 0 | BE156: 0 | BF156: =BF155-BE156 -> 60000 | BG156: =IF(AY156>$K$15,0,IF($AT$22<>3,BB156*(1+($L$15/12))^(-AY156),BB156*((1+(($L$15+($P$10*$N$10)+($Q$10*$O$10))/12))^(-AY156)))) -> 24.20057394 | BI156: =IF($S156>$K$11,0,$S156) -> 129 | BJ156: =IF($S156>$BI$24,0,IF($AT$22=3,IF(BI156=$BI$24,BL156+BK156,ROUND(-PMT(($BK$24+($P$10*$N$10)+($Q$10*$O$10))/12,$BI$24,$BJ$24,0,0),2)),BL156+BK156)) -> 66.6 | BK156: =IF($S156>$BI$24,0,IF($AT$22=1,TRUNC($BJ$24*$P$10*$N$10/12,2)+TRUNC($BJ$24*$Q$10*$O$10/12,2),IF($AT$22=2,TRUNC(BO155*$P$10*$N$10/12,2)+TRUNC(BO155*$Q$10*$O$10/12,2),TRUNC(BO155*$P$10*$N$10/12,2)+TRUNC(BO155*$Q$10*$O$10/12,2)))) -> 5.5 | BL156: =IF($S156>$BI$24,0,IF($AT$22=3,IF(BI156=$BI$24,BN156+BM156,BJ156-BK156),IF(BI156=$BI$24,BN156+BM156,ROUND(-PMT($BK$24/12,$BI$24,$BJ$24,0,0),2)))) -> 61.1 | BM156: =IF($S156>$BI$24,0,BO155*$BK$24/12) -> 7.067268444 | BN156: =IF($S156>$BI$24,0,(IF(BI156=$BI$24,BO155,BL156-BM156))) -> 54.03273156 | BO156: =IF($S156>$BI$24,0,BO155-BN156) -> 4657.479564 | BP156: =IF(BI156>$K$15,0,IF(BI156>$BI$24,0,IF($AT$22<>3,BJ156*(1+($L$15/12))^(-BI156),BJ156*((1+(($L$15+($P$10*$N$10)+($Q$10*$O$10))/12))^(-BI156))))) -> 53.72527415 | BQ156: =IF($S156>$K$12,0,$S156) -> 129 | BR156: =IF($S156>$BQ$24,0,IF($AT$22=3,IF(BQ156=$BQ$24,BT156+BS156,ROUND(-PMT(($BS$24+($P$10*$N$10)+($Q$10*$O$10))/12,$BQ$24,$BR$24,0,0),2)),BT156+BS156)) -> 76.53 | BS156: =IF($S156>$BQ$24,0,IF($AT$22=1,TRUNC($BR$24*$P$10*$N$10/12,2)+TRUNC($BR$24*$Q$10*$O$10/12,2),IF($AT$22=2,TRUNC(BW155*$P$10*$N$10/12,2)+TRUNC(BW155*$Q$10*$O$10/12,2),TRUNC(BW155*$P$10*$N$10/12,2)+TRUNC(BW155*$Q$10*$O$10/12,2)))) -> 6.5 | BT156: =IF($S156>$BQ$24,0,IF($AT$22=3,IF(BQ156=$BQ$24,BV156+BU156,BR156-BS156),IF(BQ156=$BQ$24,BV156+BU156,ROUND(-PMT($BS$24/12,$BQ$24,$BR$24,0,0),2)))) -> 70.03 | BU156: =IF($S156>$BQ$24,0,BW155*$BS$24/12) -> 9.484143354 | BV156: =IF($S156>$BQ$24,0,(IF(BQ156=$BQ$24,BW155,BT156-BU156))) -> 60.54585665 | BW156: =IF($S156>$BQ$24,0,BW155-BV156) -> 5929.43942 | BX156: =IF(BQ156>$K$15,0,IF(BQ156>$BQ$24,0,IF($AT$22<>3,BR156*(1+($L$15/12))^(-BQ156),BR156*((1+(($L$15+($P$10*$N$10)+($Q$10*$O$10))/12))^(-BQ156))))) -> 61.73566413 | BY156: =IF($S156>$K$13,0,$S156) -> 129 | BZ156: =IF($S156>$BY$24,0,IF($AT$22=3,IF(BY156=$BY$24,CB156+CA156,ROUND(-PMT(($CA$24+($P$10*$N$10)+($Q$10*$O$10))/12,$BY$24,$BZ$24,0,0),2)),CB156+CA156)) -> 80.33 | CA156: =IF($S156>$BY$24,0,IF($AT$22=1,TRUNC($BZ$24*$P$10*$N$10/12,2)+TRUNC($BZ$24*$Q$10*$O$10/12,2),IF($AT$22=2,TRUNC(CE155*$P$10*$N$10/12,2)+TRUNC(CE155*$Q$10*$O$10/12,2),TRUNC(CE155*$P$10*$N$10/12,2)+TRUNC(CE155*$Q$10*$O$10/12,2)))) -> 7 | CB156: =IF($S156>$BY$24,0,IF($AT$22=3,IF(BY156=$BY$24,CD156+CC156,BZ156-CA156),IF(BY156=$BY$24,CD156+CC156,ROUND(-PMT($CA$24/12,$BY$24,$BZ$24,0,0),2)))) -> 73.33 | CC156: =IF($S156>$BY$24,0,CE155*$CA$24/12) -> 11.45525564 | CD156: =IF($S156>$BY$24,0,(IF(BY156=$BY$24,CE155,CB156-CC156))) -> 61.87474436 | CE156: =IF($S156>$BY$24,0,CE155-CD156) -> 6811.278638 | CF156: =IF(BY156>$K$15,0,IF($AT$22<>3,BZ156*(1+($L$15/12))^(-BY156),BZ156*((1+(($L$15+($P$10*$N$10)+($Q$10*$O$10))/12))^(-BY156)))) -> 64.80107016 | CG156: =IF($S156>$K$14,0,$S156) -> 0 | CH156: =IF($S156>$CG$24,0,IF($AT$22=3,IF(CG156=$CG$24,CJ156+CI156,ROUND(-PMT(($CI$24+($P$10*$N$10)+($Q$10*$O$10))/12,$CG$24,$CH$24,0,0),2)),CJ156+CI156)) -> 0 | CI156: =IF($S156>$CG$24,0,IF($AT$22=1,TRUNC($CH$24*$P$10*$N$10/12,2)+TRUNC($CH$24*$Q$10*$O$10/12,2),IF($AT$22=2,TRUNC(CM155*$P$10*$N$10/12,2)+TRUNC(CM155*$Q$10*$O$10/12,2),TRUNC(CM155*$P$10*$N$10/12,2)+TRUNC(CM155*$Q$10*$O$10/12,2)))) -> 0 | CJ156: =IF($S156>$CG$24,0,IF($AT$22=3,IF(CG156=$CG$24,CL156+CK156,CH156-CI156),IF(CG156=$CG$24,CL156+CK156,ROUND(-PMT($CI$24/12,$CG$24,$CH$24,0,0),2)))) -> 0 | CK156: =IF($S156>$CG$24,0,CM155*$CI$24/12) -> 0 | CL156: =IF($S156>$CG$24,0,(IF(CG156=$CG$24,CM155,CJ156-CK156))) -> 0 | CM156: =IF($S156>$CG$24,0,CM155-CL156) -> 0 | CN156: =IF(CG156>$K$15,0,IF($AT$22<>3,CH156*(1+($L$15/12))^(-CG156),CH156*((1+(($L$15+($P$10*$N$10)+($Q$10*$O$10))/12))^(-CG156)))) -> 0 | CO156: =IF($S156>$K$15,0,$S156) -> 129 | CP156: =IF($S156>$F$402,0,IF($AT$22<>3,CW156+CQ156,IF(CO156=$CO$24,CR156+CQ156,CW156))) -> 650.6565183 | CQ156: 53.5 | CR156: 597.1565183 | CS156: 78.83041315 | CT156: 518.3261052 | CU156: 46779.92179 | CV156: 0 | CW156: 597.1565183 | CX156: 1127.176518
B157: 130 | C157: 1127.176518 | D157: 120 | E157: 1007.176518 | F157: 123.2498219 | G157: 883.9266964 | H157: 136072.7283 | I157: =-(W157+AF157+AO157+BD157+BL157+BT157+CB157+CJ157+CR157) -> -1007.176518 | J157: =-C157 -> -1127.176518 | S157: 130 | T157: 130 | U157: 33.54 | V157: 2.5 | W157: 31.04 | X157: 1.915211539 | Y157: 29.12478846 | Z157: 1503.044443 | AA157: 27.01122296 | AC157: 130 | AD157: 64.61 | AE157: 5 | AF157: 59.61 | AG157: 4.654525131 | AH157: 54.95547487 | AI157: 3435.938373 | AJ157: 52.03324733 | AL157: 130 | AM157: 124.91 | AN157: 10 | AO157: 114.91 | AP157: 10.98691945 | AQ157: 103.9230806 | AR157: 7651.549469 | AS157: 100.5954639 | AY157: 130 | AZ157: 130 | BA157: 0 | BB157: =BD157+BC157 -> 30 | BC157: 30 | BD157: 0 | BE157: =BD157 -> 0 | BF157: 60000 | BG157: 24.16030676 | BI157: 130 | BJ157: 66.6 | BK157: 5.5 | BL157: 61.1 | BM157: 6.986219347 | BN157: 54.11378065 | BO157: 4603.365784 | BP157: 53.63588102 | BQ157: 130 | BR157: 76.53 | BS157: 6.5 | BT157: 70.03 | BU157: 9.388279081 | BV157: 60.64172092 | BW157: 5868.797699 | BX157: 61.63294256 | BY157: 130 | BZ157: 80.33 | CA157: 7 | CB157: 73.33 | CC157: 11.35213106 | CD157: 61.97786894 | CE157: 6749.300769 | CF157: 64.69324808 | CG157: 0 | CH157: 0 | CI157: 0 | CJ157: 0 | CK157: 0 | CL157: 0 | CM157: 0 | CN157: 0 | CO157: 130 | CP157: 650.6565183 | CQ157: 53.5 | CR157: 597.1565183 | CS157: 77.96653631 | CT157: 519.189982 | CU157: 46260.7318 | CV157: 0 | CW157: 597.1565183 | CX157: 1127.176518
B158: 131 | C158: 1127.176518 | D158: 120 | E158: 1007.176518 | F158: 121.8471178 | G158: 885.3294006 | H158: 135187.3989 | I158: -1007.176518 | J158: -1127.176518 | S158: 131 | T158: 131 | U158: 33.54 | V158: 2.5 | W158: 31.04 | X158: 1.878805554 | Y158: 29.16119445 | Z158: 1473.883249 | AA158: 26.96627916 | AC158: 131 | AD158: 64.61 | AE158: 5 | AF158: 59.61 | AG158: 4.581251164 | AH158: 55.02874884 | AI158: 3380.909625 | AJ158: 51.94666955 | AL158: 131 | AM158: 124.91 | AN158: 10 | AO158: 114.91 | AP158: 10.83969508 | AQ158: 104.0703049 | AR158: 7547.479164 | AS158: 100.4280838 | AY158: 131 | AZ158: 131 | BA158: 0 | BB158: 30 | BC158: 30 | BD158: 0 | BE158: 0 | BF158: 60000 | BG158: 24.12010659 | BI158: 131 | BJ158: 66.6 | BK158: 5.5 | BL158: 61.1 | BM158: 6.905048676 | BN158: 54.19495132 | BO158: 4549.170832 | BP158: 53.54663662 | BQ158: 131 | BR158: 76.53 | BS158: 6.5 | BT158: 70.03 | BU158: 9.292263023 | BV158: 60.73773698 | BW158: 5808.059962 | BX158: 61.5303919 | BY158: 131 | BZ158: 80.33 | CA158: 7 | CB158: 73.33 | CC158: 11.24883461 | CD158: 62.08116539 | CE158: 6687.219603 | CF158: 64.5856054 | CG158: 0 | CH158: 0 | CI158: 0 | CJ158: 0 | CK158: 0 | CL158: 0 | CM158: 0 | CN158: 0 | CO158: 131 | CP158: 650.6565183 | CQ158: 53.5 | CR158: 597.1565183 | CS158: 77.10121967 | CT158: 520.0552987 | CU158: 45740.6765 | CV158: 0 | CW158: 597.1565183 | CX158: 1127.176518
B159: 132 | C159: 1127.176518 | D159: 120 | E159: 1007.176518 | F159: 120.4421737 | G159: 886.7343446 | H159: 134300.6646 | I159: -1007.176518 | J159: -1127.176518 | S159: 132 | T159: 132 | U159: 33.54 | V159: 2.5 | W159: 31.04 | X159: 1.842354061 | Y159: 29.19764594 | Z159: 1444.685603 | AA159: 26.92141015 | AC159: 132 | AD159: 64.61 | AE159: 5 | AF159: 59.61 | AG159: 4.507879499 | AH159: 55.1021205 | AI159: 3325.807504 | AJ159: 51.86023583 | AL159: 132 | AM159: 124.91 | AN159: 10 | AO159: 114.91 | AP159: 10.69226215 | AQ159: 104.2177379 | AR159: 7443.261426 | AS159: 100.2609822 | AY159: 132 | AZ159: 132 | BA159: 0 | BB159: 30 | BC159: 30 | BD159: 0 | BE159: 0 | BF159: 60000 | BG159: 24.0799733 | BI159: 132 | BJ159: 66.6 | BK159: 5.5 | BL159: 61.1 | BM159: 6.823756249 | BN159: 54.27624375 | BO159: 4494.894589 | BP159: 53.45754072 | BQ159: 132 | BR159: 76.53 | BS159: 6.5 | BT159: 70.03 | BU159: 9.196094939 | BV159: 60.83390506 | BW159: 5747.226057 | BX159: 61.42801188 | BY159: 132 | BZ159: 80.33 | CA159: 7 | CB159: 73.33 | CC159: 11.14536601 | CD159: 62.18463399 | CE159: 6625.034969 | CF159: 64.47814183 | CG159: 0 | CH159: 0 | CI159: 0 | CJ159: 0 | CK159: 0 | CL159: 0 | CM159: 0 | CN159: 0 | CO159: 132 | CP159: 650.6565183 | CQ159: 53.5 | CR159: 597.1565183 | CS159: 76.23446084 | CT159: 520.9220575 | CU159: 45219.75445 | CV159: 0 | CW159: 597.1565183 | CX159: 1127.176518
B160: 133 | C160: 1127.176518 | D160: 120 | E160: 1007.176518 | F160: 119.0349862 | G160: 888.1415321 | H160: 133412.5231 | I160: -1007.176518 | J160: -1127.176518 | S160: 133 | T160: 133 | U160: 33.54 | V160: 2.5 | W160: 31.04 | X160: 1.805857003 | Y160: 29.234143 | Z160: 1415.45146 | AA160: 26.87661579 | AC160: 133 | AD160: 64.61 | AE160: 5 | AF160: 59.61 | AG160: 4.434410005 | AH160: 55.17558999 | AI160: 3270.631914 | AJ160: 51.77394592 | AL160: 133 | AM160: 124.91 | AN160: 10 | AO160: 114.91 | AP160: 10.54462035 | AQ160: 104.3653796 | AR160: 7338.896047 | AS160: 100.0941586 | AY160: 133 | AZ160: 133 | BA160: 0 | BB160: 30 | BC160: 30 | BD160: 0 | BE160: 0 | BF160: 60000 | BG160: 24.03990679 | BI160: 133 | BJ160: 66.6 | BK160: 5.5 | BL160: 61.1 | BM160: 6.742341883 | BN160: 54.35765812 | BO160: 4440.536931 | BP160: 53.36859307 | BQ160: 133 | BR160: 76.53 | BS160: 6.5 | BT160: 70.03 | BU160: 9.09977459 | BV160: 60.93022541 | BW160: 5686.295831 | BX160: 61.32580221 | BY160: 133 | BZ160: 80.33 | CA160: 7 | CB160: 73.33 | CC160: 11.04172495 | CD160: 62.28827505 | CE160: 6562.746694 | CF160: 64.37085707 | CG160: 0 | CH160: 0 | CI160: 0 | CJ160: 0 | CK160: 0 | CL160: 0 | CM160: 0 | CN160: 0 | CO160: 133 | CP160: 650.6565183 | CQ160: 53.5 | CR160: 597.1565183 | CS160: 75.36625741 | CT160: 521.7902609 | CU160: 44697.96419 | CV160: 0 | CW160: 597.1565183 | CX160: 1127.176518
B161: 134 | C161: 1127.176518 | D161: 120 | E161: 1007.176518 | F161: 117.6255515 | G161: 889.5509668 | H161: 132522.9721 | I161: -1007.176518 | J161: -1127.176518 | S161: 134 | T161: 134 | U161: 33.54 | V161: 2.5 | W161: 31.04 | X161: 1.769314325 | Y161: 29.27068568 | Z161: 1386.180774 | AA161: 26.83189596 | AC161: 134 | AD161: 64.61 | AE161: 5 | AF161: 59.61 | AG161: 4.360842552 | AH161: 55.24915745 | AI161: 3215.382757 | AJ161: 51.68779958 | AL161: 134 | AM161: 124.91 | AN161: 10 | AO161: 114.91 | AP161: 10.3967694 | AQ161: 104.5132306 | AR161: 7234.382816 | AS161: 99.92761254 | AY161: 134 | AZ161: 134 | BA161: 0 | BB161: 30 | BC161: 30 | BD161: 0 | BE161: 0 | BF161: 60000 | BG161: 23.99990694 | BI161: 134 | BJ161: 66.6 | BK161: 5.5 | BL161: 61.1 | BM161: 6.660805396 | BN161: 54.4391946 | BO161: 4386.097736 | BP161: 53.27979341 | BQ161: 134 | BR161: 76.53 | BS161: 6.5 | BT161: 70.03 | BU161: 9.003301733 | BV161: 61.02669827 | BW161: 5625.269133 | BX161: 61.22376261 | BY161: 134 | BZ161: 80.33 | CA161: 7 | CB161: 73.33 | CC161: 10.93791116 | CD161: 62.39208884 | CE161: 6500.354605 | CF161: 64.26375082 | CG161: 0 | CH161: 0 | CI161: 0 | CJ161: 0 | CK161: 0 | CL161: 0 | CM161: 0 | CN161: 0 | CO161: 134 | CP161: 650.6565183 | CQ161: 53.5 | CR161: 597.1565183 | CS161: 74.49660698 | CT161: 522.6599114 | CU161: 44175.30427 | CV161: 0 | CW161: 597.1565183 | CX161: 1127.176518
B162: 135 | C162: 1127.176518 | D162: 120 | E162: 1007.176518 | F162: 116.2138662 | G162: 890.9626522 | H162: 131632.0094 | I162: -1007.176518 | J162: -1127.176518 | S162: 135 | T162: 135 | U162: 33.54 | V162: 2.5 | W162: 31.04 | X162: 1.732725968 | Y162: 29.30727403 | Z162: 1356.8735 | AA162: 26.78725054 | AC162: 135 | AD162: 64.61 | AE162: 5 | AF162: 59.61 | AG162: 4.287177009 | AH162: 55.32282299 | AI162: 3160.059934 | AJ162: 51.60179659 | AL162: 135 | AM162: 124.91 | AN162: 10 | AO162: 114.91 | AP162: 10.24870899 | AQ162: 104.661291 | AR162: 7129.721525 | AS162: 99.76134363 | AY162: 135 | AZ162: 135 | BA162: 0 | BB162: 30 | BC162: 30 | BD162: 0 | BE162: 0 | BF162: 60000 | BG162: 23.95997365 | BI162: 135 | BJ162: 66.6 | BK162: 5.5 | BL162: 61.1 | BM162: 6.579146604 | BN162: 54.5208534 | BO162: 4331.576883 | BP162: 53.19114151 | BQ162: 135 | BR162: 76.53 | BS162: 6.5 | BT162: 70.03 | BU162: 8.906676127 | BV162: 61.12332387 | BW162: 5564.145809 | BX162: 61.12189279 | BY162: 135 | BZ162: 80.33 | CA162: 7 | CB162: 73.33 | CC162: 10.83392434 | CD162: 62.49607566 | CE162: 6437.85853 | CF162: 64.15682278 | CG162: 0 | CH162: 0 | CI162: 0 | CJ162: 0 | CK162: 0 | CL162: 0 | CM162: 0 | CN162: 0 | CO162: 135 | CP162: 650.6565183 | CQ162: 53.5 | CR162: 597.1565183 | CS162: 73.62550712 | CT162: 523.5310112 | CU162: 43651.77326 | CV162: 0 | CW162: 597.1565183 | CX162: 1127.176518
B163: 136 | C163: 1127.176518 | D163: 120 | E163: 1007.176518 | F163: 114.7999265 | G163: 892.3765919 | H163: 130739.6329 | I163: -1007.176518 | J163: -1127.176518 | S163: 136 | T163: 136 | U163: 33.54 | V163: 2.5 | W163: 31.04 | X163: 1.696091875 | Y163: 29.34390812 | Z163: 1327.529592 | AA163: 26.74267941 | AC163: 136 | AD163: 64.61 | AE163: 5 | AF163: 59.61 | AG163: 4.213413245 | AH163: 55.39658676 | AI163: 3104.663347 | AJ163: 51.51593669 | AL163: 136 | AM163: 124.91 | AN163: 10 | AO163: 114.91 | AP163: 10.10043883 | AQ163: 104.8095612 | AR163: 7024.911964 | AS163: 99.59535138 | AY163: 136 | AZ163: 136 | BA163: 0 | BB163: 30 | BC163: 30 | BD163: 0 | BE163: 0 | BF163: 60000 | BG163: 23.92010681 | BI163: 136 | BJ163: 66.6 | BK163: 5.5 | BL163: 61.1 | BM163: 6.497365324 | BN163: 54.60263468 | BO163: 4276.974248 | BP163: 53.10263711 | BQ163: 136 | BR163: 76.53 | BS163: 6.5 | BT163: 70.03 | BU163: 8.809897531 | BV163: 61.22010247 | BW163: 5502.925707 | BX163: 61.02019247 | BY163: 136 | BZ163: 80.33 | CA163: 7 | CB163: 73.33 | CC163: 10.72976422 | CD163: 62.60023578 | CE163: 6375.258294 | CF163: 64.05007266 | CG163: 0 | CH163: 0 | CI163: 0 | CJ163: 0 | CK163: 0 | CL163: 0 | CM163: 0 | CN163: 0 | CO163: 136 | CP163: 650.6565183 | CQ163: 53.5 | CR163: 597.1565183 | CS163: 72.75295544 | CT163: 524.4035629 | CU163: 43127.3697 | CV163: 0 | CW163: 597.1565183 | CX163: 1127.176518
B164: 137 | C164: 1127.176518 | D164: 120 | E164: 1007.176518 | F164: 113.3837288 | G164: 893.7927895 | H164: 129845.8401 | I164: -1007.176518 | J164: -1127.176518 | S164: 137 | T164: 137 | U164: 33.54 | V164: 2.5 | W164: 31.04 | X164: 1.65941199 | Y164: 29.38058801 | Z164: 1298.149004 | AA164: 26.69818244 | AC164: 137 | AD164: 64.61 | AE164: 5 | AF164: 59.61 | AG164: 4.139551129 | AH164: 55.47044887 | AI164: 3049.192898 | AJ164: 51.43021966 | AL164: 137 | AM164: 124.91 | AN164: 10 | AO164: 114.91 | AP164: 9.951958615 | AQ164: 104.9580414 | AR164: 6919.953922 | AS164: 99.42963532 | AY164: 137 | AZ164: 137 | BA164: 0 | BB164: 30 | BC164: 30 | BD164: 0 | BE164: 0 | BF164: 60000 | BG164: 23.8803063 | BI164: 137 | BJ164: 66.6 | BK164: 5.5 | BL164: 61.1 | BM164: 6.415461372 | BN164: 54.68453863 | BO164: 4222.289709 | BP164: 53.01427998 | BQ164: 137 | BR164: 76.53 | BS164: 6.5 | BT164: 70.03 | BU164: 8.712965702 | BV164: 61.3170343 | BW164: 5441.608672 | BX164: 60.91866136 | BY164: 137 | BZ164: 80.33 | CA164: 7 | CB164: 73.33 | CC164: 10.62543049 | CD164: 62.70456951 | CE164: 6312.553724 | CF164: 63.94350016 | CG164: 0 | CH164: 0 | CI164: 0 | CJ164: 0 | CK164: 0 | CL164: 0 | CM164: 0 | CN164: 0 | CO164: 137 | CP164: 650.6565183 | CQ164: 53.5 | CR164: 597.1565183 | CS164: 71.8789495 | CT164: 525.2775688 | CU164: 42602.09213 | CV164: 0 | CW164: 597.1565183 | CX164: 1127.176518
B165: 138 | C165: 1127.176518 | D165: 120 | E165: 1007.176518 | F165: 111.9652696 | G165: 895.2112488 | H165: 128950.6288 | I165: -1007.176518 | J165: -1127.176518 | S165: 138 | T165: 138 | U165: 33.54 | V165: 2.5 | W165: 31.04 | X165: 1.622686255 | Y165: 29.41731375 | Z165: 1268.73169 | AA165: 26.65375951 | AC165: 138 | AD165: 64.61 | AE165: 5 | AF165: 59.61 | AG165: 4.065590531 | AH165: 55.54440947 | AI165: 2993.648488 | AJ165: 51.34464525 | AL165: 138 | AM165: 124.91 | AN165: 10 | AO165: 114.91 | AP165: 9.803268057 | AQ165: 105.1067319 | AR165: 6814.847191 | AS165: 99.26419499 | AY165: 138 | AZ165: 138 | BA165: 0 | BB165: 30 | BC165: 30 | BD165: 0 | BE165: 0 | BF165: 60000 | BG165: 23.84057201 | BI165: 138 | BJ165: 66.6 | BK165: 5.5 | BL165: 61.1 | BM165: 6.333434564 | BN165: 54.76656544 | BO165: 4167.523144 | BP165: 52.92606986 | BQ165: 138 | BR165: 76.53 | BS165: 6.5 | BT165: 70.03 | BU165: 8.615880398 | BV165: 61.4141196 | BW165: 5380.194553 | BX165: 60.8172992 | BY165: 138 | BZ165: 80.33 | CA165: 7 | CB165: 73.33 | CC165: 10.52092287 | CD165: 62.80907713 | CE165: 6249.744647 | CF165: 63.83710499 | CG165: 0 | CH165: 0 | CI165: 0 | CJ165: 0 | CK165: 0 | CL165: 0 | CM165: 0 | CN165: 0 | CO165: 138 | CP165: 650.6565183 | CQ165: 53.5 | CR165: 597.1565183 | CS165: 71.00348689 | CT165: 526.1530315 | CU165: 42075.9391 | CV165: 0 | CW165: 597.1565183 | CX165: 1127.176518
B166: 139 | C166: 1127.176518 | D166: 120 | E166: 1007.176518 | F166: 110.5445451 | G166: 896.6319732 | H166: 128053.9968 | I166: -1007.176518 | J166: -1127.176518 | S166: 139 | T166: 139 | U166: 33.54 | V166: 2.5 | W166: 31.04 | X166: 1.585914613 | Y166: 29.45408539 | Z166: 1239.277605 | AA166: 26.60941049 | AC166: 139 | AD166: 64.61 | AE166: 5 | AF166: 59.61 | AG166: 3.991531318 | AH166: 55.61846868 | AI166: 2938.03002 | AJ166: 51.25921323 | AL166: 139 | AM166: 124.91 | AN166: 10 | AO166: 114.91 | AP166: 9.654366853 | AQ166: 105.2556331 | AR166: 6709.591557 | AS166: 99.09902994 | AY166: 139 | AZ166: 139 | BA166: 0 | BB166: 30 | BC166: 30 | BD166: 0 | BE166: 0 | BF166: 60000 | BG166: 23.80090384 | BI166: 139 | BJ166: 66.6 | BK166: 5.5 | BL166: 61.1 | BM166: 6.251284716 | BN166: 54.84871528 | BO166: 4112.674428 | BP166: 52.83800652 | BQ166: 139 | BR166: 76.53 | BS166: 6.5 | BT166: 70.03 | BU166: 8.518641375 | BV166: 61.51135862 | BW166: 5318.683194 | BX166: 60.71610569 | BY166: 139 | BZ166: 80.33 | CA166: 7 | CB166: 73.33 | CC166: 10.41624108 | CD166: 62.91375892 | CE166: 6186.830888 | CF166: 63.73088684 | CG166: 0 | CH166: 0 | CI166: 0 | CJ166: 0 | CK166: 0 | CL166: 0 | CM166: 0 | CN166: 0 | CO166: 139 | CP166: 650.6565183 | CQ166: 53.5 | CR166: 597.1565183 | CS166: 70.12656517 | CT166: 527.0299532 | CU166: 41548.90915 | CV166: 0 | CW166: 597.1565183 | CX166: 1127.176518
B167: 140 | C167: 1127.176518 | D167: 120 | E167: 1007.176518 | F167: 109.1215518 | G167: 898.0549665 | H167: 127155.9419 | I167: -1007.176518 | J167: -1127.176518 | S167: 140 | T167: 140 | U167: 33.54 | V167: 2.5 | W167: 31.04 | X167: 1.549097006 | Y167: 29.49090299 | Z167: 1209.786702 | AA167: 26.56513526 | AC167: 140 | AD167: 64.61 | AE167: 5 | AF167: 59.61 | AG167: 3.91737336 | AH167: 55.69262664 | AI167: 2882.337393 | AJ167: 51.17392336 | AL167: 140 | AM167: 124.91 | AN167: 10 | AO167: 114.91 | AP167: 9.505254706 | AQ167: 105.4047453 | AR167: 6604.186812 | AS167: 98.93413971 | AY167: 140 | AZ167: 140 | BA167: 0 | BB167: 30 | BC167: 30 | BD167: 0 | BE167: 0 | BF167: 60000 | BG167: 23.76130167 | BI167: 140 | BJ167: 66.6 | BK167: 5.5 | BL167: 61.1 | BM167: 6.169011643 | BN167: 54.93098836 | BO167: 4057.74344 | BP167: 52.7500897 | BQ167: 140 | BR167: 76.53 | BS167: 6.5 | BT167: 70.03 | BU167: 8.421248391 | BV167: 61.60875161 | BW167: 5257.074442 | BX167: 60.61508055 | BY167: 140 | BZ167: 80.33 | CA167: 7 | CB167: 73.33 | CC167: 10.31138481 | CD167: 63.01861519 | CE167: 6123.812273 | CF167: 63.62484543 | CG167: 0 | CH167: 0 | CI167: 0 | CJ167: 0 | CK167: 0 | CL167: 0 | CM167: 0 | CN167: 0 | CO167: 140 | CP167: 650.6565183 | CQ167: 53.5 | CR167: 597.1565183 | CS167: 69.24818191 | CT167: 527.9083364 | CU167: 41021.00081 | CV167: 0 | CW167: 597.1565183 | CX167: 1127.176518
B168: 141 | C168: 1127.176518 | D168: 120 | E168: 1007.176518 | F168: 107.6962861 | G168: 899.4802323 | H168: 126256.4616 | I168: -1007.176518 | J168: -1127.176518 | S168: 141 | T168: 141 | U168: 33.54 | V168: 2.5 | W168: 31.04 | X168: 1.512233377 | Y168: 29.52776662 | Z168: 1180.258935 | AA168: 26.52093371 | AC168: 141 | AD168: 64.61 | AE168: 5 | AF168: 59.61 | AG168: 3.843116524 | AH168: 55.76688348 | AI168: 2826.57051 | AJ168: 51.0887754 | AL168: 141 | AM168: 124.91 | AN168: 10 | AO168: 114.91 | AP168: 9.355931317 | AQ168: 105.5540687 | AR168: 6498.632743 | AS168: 98.76952384 | AY168: 141 | AZ168: 141 | BA168: 0 | BB168: 30 | BC168: 30 | BD168: 0 | BE168: 0 | BF168: 60000 | BG168: 23.72176539 | BI168: 141 | BJ168: 66.6 | BK168: 5.5 | BL168: 61.1 | BM168: 6.08661516 | BN168: 55.01338484 | BO168: 4002.730055 | BP168: 52.66231917 | BQ168: 141 | BR168: 76.53 | BS168: 6.5 | BT168: 70.03 | BU168: 8.323701201 | BV168: 61.7062988 | BW168: 5195.368144 | BX168: 60.51422352 | BY168: 141 | BZ168: 80.33 | CA168: 7 | CB168: 73.33 | CC168: 10.20635379 | CD168: 63.12364621 | CE168: 6060.688627 | CF168: 63.51898047 | CG168: 0 | CH168: 0 | CI168: 0 | CJ168: 0 | CK168: 0 | CL168: 0 | CM168: 0 | CN168: 0 | CO168: 141 | CP168: 650.6565183 | CQ168: 53.5 | CR168: 597.1565183 | CS168: 68.36833468 | CT168: 528.7881837 | CU168: 40492.21263 | CV168: 0 | CW168: 597.1565183 | CX168: 1127.176518
B169: 142 | C169: 1127.176518 | D169: 120 | E169: 1007.176518 | F169: 106.2687441 | G169: 900.9077742 | H169: 125355.5539 | I169: -1007.176518 | J169: -1127.176518 | S169: 142 | T169: 142 | U169: 33.54 | V169: 2.5 | W169: 31.04 | X169: 1.475323669 | Y169: 29.56467633 | Z169: 1150.694259 | AA169: 26.4768057 | AC169: 142 | AD169: 64.61 | AE169: 5 | AF169: 59.61 | AG169: 3.76876068 | AH169: 55.84123932 | AI169: 2770.72927 | AJ169: 51.00376912 | AL169: 142 | AM169: 124.91 | AN169: 10 | AO169: 114.91 | AP169: 9.206396386 | AQ169: 105.7036036 | AR169: 6392.92914 | AS169: 98.60518187 | AY169: 142 | AZ169: 142 | BA169: 0 | BB169: 30 | BC169: 30 | BD169: 0 | BE169: 0 | BF169: 60000 | BG169: 23.6822949 | BI169: 142 | BJ169: 66.6 | BK169: 5.5 | BL169: 61.1 | BM169: 6.004095083 | BN169: 55.09590492 | BO169: 3947.63415 | BP169: 52.57469468 | BQ169: 142 | BR169: 76.53 | BS169: 6.5 | BT169: 70.03 | BU169: 8.225999561 | BV169: 61.80400044 | BW169: 5133.564143 | BX169: 60.41353429 | BY169: 142 | BZ169: 80.33 | CA169: 7 | CB169: 73.33 | CC169: 10.10114771 | CD169: 63.22885229 | CE169: 5997.459775 | CF169: 63.41329165 | CG169: 0 | CH169: 0 | CI169: 0 | CJ169: 0 | CK169: 0 | CL169: 0 | CM169: 0 | CN169: 0 | CO169: 142 | CP169: 650.6565183 | CQ169: 53.5 | CR169: 597.1565183 | CS169: 67.48702105 | CT169: 529.6694973 | CU169: 39962.54313 | CV169: 0 | CW169: 597.1565183 | CX169: 1127.176518
B170: 143 | C170: 1127.176518 | D170: 120 | E170: 1007.176518 | F170: 104.8389224 | G170: 902.3375959 | H170: 124453.2163 | I170: -1007.176518 | J170: -1127.176518 | S170: 143 | T170: 143 | U170: 33.54 | V170: 2.5 | W170: 31.04 | X170: 1.438367823 | Y170: 29.60163218 | Z170: 1121.092627 | AA170: 26.43275111 | AC170: 143 | AD170: 64.61 | AE170: 5 | AF170: 59.61 | AG170: 3.694305694 | AH170: 55.91569431 | AI170: 2714.813576 | AJ170: 50.91890428 | AL170: 143 | AM170: 124.91 | AN170: 10 | AO170: 114.91 | AP170: 9.056649615 | AQ170: 105.8533504 | AR170: 6287.075789 | AS170: 98.44111335 | AY170: 143 | AZ170: 143 | BA170: 0 | BB170: 30 | BC170: 30 | BD170: 0 | BE170: 0 | BF170: 60000 | BG170: 23.64289008 | BI170: 143 | BJ170: 66.6 | BK170: 5.5 | BL170: 61.1 | BM170: 5.921451226 | BN170: 55.17854877 | BO170: 3892.455602 | BP170: 52.48721599 | BQ170: 143 | BR170: 76.53 | BS170: 6.5 | BT170: 70.03 | BU170: 8.128143227 | BV170: 61.90185677 | BW170: 5071.662286 | BX170: 60.3130126 | BY170: 143 | BZ170: 80.33 | CA170: 7 | CB170: 73.33 | CC170: 9.995766291 | CD170: 63.33423371 | CE170: 5934.125541 | CF170: 63.30777868 | CG170: 0 | CH170: 0 | CI170: 0 | CJ170: 0 | CK170: 0 | CL170: 0 | CM170: 0 | CN170: 0 | CO170: 143 | CP170: 650.6565183 | CQ170: 53.5 | CR170: 597.1565183 | CS170: 66.60423855 | CT170: 530.5522798 | CU170: 39431.99085 | CV170: 0 | CW170: 597.1565183 | CX170: 1127.176518
B171: 144 | C171: 1127.176518 | D171: 120 | E171: 1007.176518 | F171: 103.4068173 | G171: 903.7697011 | H171: 123549.4466 | I171: -1007.176518 | J171: -1127.176518 | S171: 144 | T171: 144 | U171: 33.54 | V171: 2.5 | W171: 31.04 | X171: 1.401365783 | Y171: 29.63863422 | Z171: 1091.453992 | AA171: 26.38876983 | AC171: 144 | AD171: 64.61 | AE171: 5 | AF171: 59.61 | AG171: 3.619751435 | AH171: 55.99024857 | AI171: 2658.823327 | AJ171: 50.83418064 | AL171: 144 | AM171: 124.91 | AN171: 10 | AO171: 114.91 | AP171: 8.906690702 | AQ171: 106.0033093 | AR171: 6181.07248 | AS171: 98.27731782 | AY171: 144 | AZ171: 144 | BA171: 0 | BB171: 30 | BC171: 30 | BD171: 0 | BE171: 0 | BF171: 60000 | BG171: 23.60355083 | BI171: 144 | BJ171: 66.6 | BK171: 5.5 | BL171: 61.1 | BM171: 5.838683402 | BN171: 55.2613166 | BO171: 3837.194285 | BP171: 52.39988285 | BQ171: 144 | BR171: 76.53 | BS171: 6.5 | BT171: 70.03 | BU171: 8.030131954 | BV171: 61.99986805 | BW171: 5009.662418 | BX171: 60.21265817 | BY171: 144 | BZ171: 80.33 | CA171: 7 | CB171: 73.33 | CC171: 9.890209235 | CD171: 63.43979076 | CE171: 5870.68575 | CF171: 63.20244128 | CG171: 0 | CH171: 0 | CI171: 0 | CJ171: 0 | CK171: 0 | CL171: 0 | CM171: 0 | CN171: 0 | CO171: 144 | CP171: 650.6565183 | CQ171: 53.5 | CR171: 597.1565183 | CS171: 65.71998475 | CT171: 531.4365336 | CU171: 38900.55432 | CV171: 0 | CW171: 597.1565183 | CX171: 1127.176518
B172: 145 | C172: 1127.176518 | D172: 120 | E172: 1007.176518 | F172: 101.972425 | G172: 905.2040934 | H172: 122644.2425 | I172: -1007.176518 | J172: -1127.176518 | S172: 145 | T172: 145 | U172: 33.54 | V172: 2.5 | W172: 31.04 | X172: 1.36431749 | Y172: 29.67568251 | Z172: 1061.77831 | AA172: 26.34486173 | AC172: 145 | AD172: 64.61 | AE172: 5 | AF172: 59.61 | AG172: 3.54509777 | AH172: 56.06490223 | AI172: 2602.758425 | AJ172: 50.74959798 | AL172: 145 | AM172: 124.91 | AN172: 10 | AO172: 114.91 | AP172: 8.756519347 | AQ172: 106.1534807 | AR172: 6074.918999 | AS172: 98.11379482 | AY172: 145 | AZ172: 145 | BA172: 0 | BB172: 30 | BC172: 30 | BD172: 0 | BE172: 0 | BF172: 60000 | BG172: 23.56427704 | BI172: 145 | BJ172: 66.6 | BK172: 5.5 | BL172: 61.1 | BM172: 5.755791427 | BN172: 55.34420857 | BO172: 3781.850076 | BP172: 52.31269502 | BQ172: 145 | BR172: 76.53 | BS172: 6.5 | BT172: 70.03 | BU172: 7.931965496 | BV172: 62.0980345 | BW172: 4947.564384 | BX172: 60.11247072 | BY172: 145 | BZ172: 80.33 | CA172: 7 | CB172: 73.33 | CC172: 9.78447625 | CD172: 63.54552375 | CE172: 5807.140227 | CF172: 63.09727915 | CG172: 0 | CH172: 0 | CI172: 0 | CJ172: 0 | CK172: 0 | CL172: 0 | CM172: 0 | CN172: 0 | CO172: 145 | CP172: 650.6565183 | CQ172: 53.5 | CR172: 597.1565183 | CS172: 64.83425719 | CT172: 532.3222611 | CU172: 38368.23206 | CV172: 0 | CW172: 597.1565183 | CX172: 1127.176518
B173: 146 | C173: 1127.176518 | D173: 120 | E173: 1007.176518 | F173: 100.5357419 | G173: 906.6407764 | H173: 121737.6017 | I173: -1007.176518 | J173: -1127.176518 | S173: 146 | T173: 146 | U173: 33.54 | V173: 2.5 | W173: 31.04 | X173: 1.327222887 | Y173: 29.71277711 | Z173: 1032.065533 | AA173: 26.30102668 | AC173: 146 | AD173: 64.61 | AE173: 5 | AF173: 59.61 | AG173: 3.470344567 | AH173: 56.13965543 | AI173: 2546.61877 | AJ173: 50.66515605 | AL173: 146 | AM173: 124.91 | AN173: 10 | AO173: 114.91 | AP173: 8.606135249 | AQ173: 106.3038648 | AR173: 5968.615135 | AS173: 97.95054392 | AY173: 146 | AZ173: 146 | BA173: 0 | BB173: 30 | BC173: 30 | BD173: 0 | BE173: 0 | BF173: 60000 | BG173: 23.52506859 | BI173: 146 | BJ173: 66.6 | BK173: 5.5 | BL173: 61.1 | BM173: 5.672775115 | BN173: 55.42722489 | BO173: 3726.422852 | BP173: 52.22565227 | BQ173: 146 | BR173: 76.53 | BS173: 6.5 | BT173: 70.03 | BU173: 7.833643608 | BV173: 62.19635639 | BW173: 4885.368028 | BX173: 60.01244997 | BY173: 146 | BZ173: 80.33 | CA173: 7 | CB173: 73.33 | CC173: 9.678567044 | CD173: 63.65143296 | CE173: 5743.488794 | CF173: 62.99229199 | CG173: 0 | CH173: 0 | CI173: 0 | CJ173: 0 | CK173: 0 | CL173: 0 | CM173: 0 | CN173: 0 | CO173: 146 | CP173: 650.6565183 | CQ173: 53.5 | CR173: 597.1565183 | CS173: 63.94705343 | CT173: 533.2094649 | CU173: 37835.02259 | CV173: 0 | CW173: 597.1565183 | CX173: 1127.176518
B174: 147 | C174: 1127.176518 | D174: 120 | E174: 1007.176518 | F174: 99.09676434 | G174: 908.079754 | H174: 120829.5219 | I174: -1007.176518 | J174: -1127.176518 | S174: 147 | T174: 147 | U174: 33.54 | V174: 2.5 | W174: 31.04 | X174: 1.290081916 | Y174: 29.74991808 | Z174: 1002.315615 | AA174: 26.25726458 | AC174: 147 | AD174: 64.61 | AE174: 5 | AF174: 59.61 | AG174: 3.395491693 | AH174: 56.21450831 | AI174: 2490.404262 | AJ174: 50.58085463 | AL174: 147 | AM174: 124.91 | AN174: 10 | AO174: 114.91 | AP174: 8.455538107 | AQ174: 106.4544619 | AR174: 5862.160673 | AS174: 97.78756464 | AY174: 147 | AZ174: 147 | BA174: 0 | BB174: 30 | BC174: 30 | BD174: 0 | BE174: 0 | BF174: 60000 | BG174: 23.48592538 | BI174: 147 | BJ174: 66.6 | BK174: 5.5 | BL174: 61.1 | BM174: 5.589634277 | BN174: 55.51036572 | BO174: 3670.912486 | BP174: 52.13875435 | BQ174: 147 | BR174: 76.53 | BS174: 6.5 | BT174: 70.03 | BU174: 7.735166044 | BV174: 62.29483396 | BW174: 4823.073194 | BX174: 59.91259565 | BY174: 147 | BZ174: 80.33 | CA174: 7 | CB174: 73.33 | CC174: 9.572481323 | CD174: 63.75751868 | CE174: 5679.731275 | CF174: 62.88747953 | CG174: 0 | CH174: 0 | CI174: 0 | CJ174: 0 | CK174: 0 | CL174: 0 | CM174: 0 | CN174: 0 | CO174: 147 | CP174: 650.6565183 | CQ174: 53.5 | CR174: 597.1565183 | CS174: 63.05837098 | CT174: 534.0981474 | CU174: 37300.92444 | CV174: 0 | CW174: 597.1565183 | CX174: 1127.176518
B175: 148 | C175: 1127.176518 | D175: 120 | E175: 1007.176518 | F175: 97.65548864 | G175: 909.5210297 | H175: 119920.0009 | I175: -1007.176518 | J175: -1127.176518 | S175: 148 | T175: 148 | U175: 33.54 | V175: 2.5 | W175: 31.04 | X175: 1.252894518 | Y175: 29.78710548 | Z175: 972.5285092 | AA175: 26.21357528 | AC175: 148 | AD175: 64.61 | AE175: 5 | AF175: 59.61 | AG175: 3.320539015 | AH175: 56.28946098 | AI175: 2434.114801 | AJ175: 50.49669347 | AL175: 148 | AM175: 124.91 | AN175: 10 | AO175: 114.91 | AP175: 8.30472762 | AQ175: 106.6052724 | AR175: 5755.5554 | AS175: 97.62485655 | AY175: 148 | AZ175: 148 | BA175: 0 | BB175: 30 | BC175: 30 | BD175: 0 | BE175: 0 | BF175: 60000 | BG175: 23.4468473 | BI175: 148 | BJ175: 66.6 | BK175: 5.5 | BL175: 61.1 | BM175: 5.506368729 | BN175: 55.59363127 | BO175: 3615.318855 | BP175: 52.05200101 | BQ175: 148 | BR175: 76.53 | BS175: 6.5 | BT175: 70.03 | BU175: 7.636532556 | BV175: 62.39346744 | BW175: 4760.679726 | BX175: 59.81290747 | BY175: 148 | BZ175: 80.33 | CA175: 7 | CB175: 73.33 | CC175: 9.466218791 | CD175: 63.86378121 | CE175: 5615.867494 | CF175: 62.78284146 | CG175: 0 | CH175: 0 | CI175: 0 | CJ175: 0 | CK175: 0 | CL175: 0 | CM175: 0 | CN175: 0 | CO175: 148 | CP175: 650.6565183 | CQ175: 53.5 | CR175: 597.1565183 | CS175: 62.16820741 | CT175: 534.9883109 | CU175: 36765.93613 | CV175: 0 | CW175: 597.1565183 | CX175: 1127.176518
B176: 149 | C176: 1127.176518 | D176: 120 | E176: 1007.176518 | F176: 96.21191108 | G176: 910.9646073 | H176: 119009.0363 | I176: -1007.176518 | J176: -1127.176518 | S176: 149 | T176: 149 | U176: 33.54 | V176: 2.5 | W176: 31.04 | X176: 1.215660637 | Y176: 29.82433936 | Z176: 942.7041698 | AA176: 26.16995869 | AC176: 149 | AD176: 64.61 | AE176: 5 | AF176: 59.61 | AG176: 3.245486401 | AH176: 56.3645136 | AI176: 2377.750287 | AJ176: 50.41267235 | AL176: 149 | AM176: 124.91 | AN176: 10 | AO176: 114.91 | AP176: 8.153703484 | AQ176: 106.7562965 | AR176: 5648.799104 | AS176: 97.46241918 | AY176: 149 | AZ176: 149 | BA176: 0 | BB176: 30 | BC176: 30 | BD176: 0 | BE176: 0 | BF176: 60000 | BG176: 23.40783424 | BI176: 149 | BJ176: 66.6 | BK176: 5.5 | BL176: 61.1 | BM176: 5.422978282 | BN176: 55.67702172 | BO176: 3559.641833 | BP176: 51.96539202 | BQ176: 149 | BR176: 76.53 | BS176: 6.5 | BT176: 70.03 | BU176: 7.5377429 | BV176: 62.4922571 | BW176: 4698.187469 | BX176: 59.71338516 | BY176: 149 | BZ176: 80.33 | CA176: 7 | CB176: 73.33 | CC176: 9.359779156 | CD176: 63.97022084 | CE176: 5551.897273 | CF176: 62.6783775 | CG176: 0 | CH176: 0 | CI176: 0 | CJ176: 0 | CK176: 0 | CL176: 0 | CM176: 0 | CN176: 0 | CO176: 149 | CP176: 650.6565183 | CQ176: 53.5 | CR176: 597.1565183 | CS176: 61.27656022 | CT176: 535.8799581 | CU176: 36230.05617 | CV176: 0 | CW176: 597.1565183 | CX176: 1127.176518
B177: 150 | C177: 1127.176518 | D177: 120 | E177: 1007.176518 | F177: 94.76602798 | G177: 912.4104904 | H177: 118096.6258 | I177: -1007.176518 | J177: -1127.176518 | S177: 150 | T177: 150 | U177: 33.54 | V177: 2.5 | W177: 31.04 | X177: 1.178380212 | Y177: 29.86161979 | Z177: 912.8425501 | AA177: 26.12641466 | AC177: 150 | AD177: 64.61 | AE177: 5 | AF177: 59.61 | AG177: 3.170333716 | AH177: 56.43966628 | AI177: 2321.310621 | AJ177: 50.32879103 | AL177: 150 | AM177: 124.91 | AN177: 10 | AO177: 114.91 | AP177: 8.002465397 | AQ177: 106.9075346 | AR177: 5541.891569 | AS177: 97.3002521 | AY177: 150 | AZ177: 150 | BA177: 0 | BB177: 30 | BC177: 30 | BD177: 0 | BE177: 0 | BF177: 60000 | BG177: 23.3688861 | BI177: 150 | BJ177: 66.6 | BK177: 5.5 | BL177: 61.1 | BM177: 5.339462749 | BN177: 55.76053725 | BO177: 3503.881296 | BP177: 51.87892715 | BQ177: 150 | BR177: 76.53 | BS177: 6.5 | BT177: 70.03 | BU177: 7.438796826 | BV177: 62.59120317 | BW177: 4635.596266 | BX177: 59.61402844 | BY177: 150 | BZ177: 80.33 | CA177: 7 | CB177: 73.33 | CC177: 9.253162121 | CD177: 64.07683788 | CE177: 5487.820435 | CF177: 62.57408735 | CG177: 0 | CH177: 0 | CI177: 0 | CJ177: 0 | CK177: 0 | CL177: 0 | CM177: 0 | CN177: 0 | CO177: 150 | CP177: 650.6565183 | CQ177: 53.5 | CR177: 597.1565183 | CS177: 60.38342696 | CT177: 536.7730914 | CU177: 35693.28308 | CV177: 0 | CW177: 597.1565183 | CX177: 1127.176518
B178: 151 | C178: 1127.176518 | D178: 120 | E178: 1007.176518 | F178: 93.31783563 | G178: 913.8586827 | H178: 117182.7671 | I178: -1007.176518 | J178: -1127.176518 | S178: 151 | T178: 151 | U178: 33.54 | V178: 2.5 | W178: 31.04 | X178: 1.141053188 | Y178: 29.89894681 | Z178: 882.9436032 | AA178: 26.08294309 | AC178: 151 | AD178: 64.61 | AE178: 5 | AF178: 59.61 | AG178: 3.095080828 | AH178: 56.51491917 | AI178: 2264.795701 | AJ178: 50.24504928 | AL178: 151 | AM178: 124.91 | AN178: 10 | AO178: 114.91 | AP178: 7.851013057 | AQ178: 107.0589869 | AR178: 5434.832582 | AS178: 97.13835484 | AY178: 151 | AZ178: 151 | BA178: 0 | BB178: 30 | BC178: 30 | BD178: 0 | BE178: 0 | BF178: 60000 | BG178: 23.33000276 | BI178: 151 | BJ178: 66.6 | BK178: 5.5 | BL178: 61.1 | BM178: 5.255821943 | BN178: 55.84417806 | BO178: 3448.037118 | BP178: 51.79260613 | BQ178: 151 | BR178: 76.53 | BS178: 6.5 | BT178: 70.03 | BU178: 7.339694088 | BV178: 62.69030591 | BW178: 4572.90596 | BX178: 59.51483705 | BY178: 151 | BZ178: 80.33 | CA178: 7 | CB178: 73.33 | CC178: 9.146367392 | CD178: 64.18363261 | CE178: 5423.636802 | CF178: 62.46997073 | CG178: 0 | CH178: 0 | CI178: 0 | CJ178: 0 | CK178: 0 | CL178: 0 | CM178: 0 | CN178: 0 | CO178: 151 | CP178: 650.6565183 | CQ178: 53.5 | CR178: 597.1565183 | CS178: 59.48880514 | CT178: 537.6677132 | CU178: 35155.61537 | CV178: 0 | CW178: 597.1565183 | CX178: 1127.176518
B179: 152 | C179: 1127.176518 | D179: 120 | E179: 1007.176518 | F179: 91.86733033 | G179: 915.309188 | H179: 116267.4579 | I179: -1007.176518 | J179: -1127.176518 | S179: 152 | T179: 152 | U179: 33.54 | V179: 2.5 | W179: 31.04 | X179: 1.103679504 | Y179: 29.9363205 | Z179: 853.0072827 | AA179: 26.03954385 | AC179: 152 | AD179: 64.61 | AE179: 5 | AF179: 59.61 | AG179: 3.019727602 | AH179: 56.5902724 | AI179: 2208.205429 | AJ179: 50.16144687 | AL179: 152 | AM179: 124.91 | AN179: 10 | AO179: 114.91 | AP179: 7.699346158 | AQ179: 107.2106538 | AR179: 5327.621929 | AS179: 96.97672696 | AY179: 152 | AZ179: 152 | BA179: 0 | BB179: 30 | BC179: 30 | BD179: 0 | BE179: 0 | BF179: 60000 | BG179: 23.29118412 | BI179: 152 | BJ179: 66.6 | BK179: 5.5 | BL179: 61.1 | BM179: 5.172055676 | BN179: 55.92794432 | BO179: 3392.109173 | BP179: 51.70642875 | BQ179: 152 | BR179: 76.53 | BS179: 6.5 | BT179: 70.03 | BU179: 7.240434437 | BV179: 62.78956556 | BW179: 4510.116394 | BX179: 59.4158107 | BY179: 152 | BZ179: 80.33 | CA179: 7 | CB179: 73.33 | CC179: 9.039394671 | CD179: 64.29060533 | CE179: 5359.346197 | CF179: 62.36602735 | CG179: 0 | CH179: 0 | CI179: 0 | CJ179: 0 | CK179: 0 | CL179: 0 | CM179: 0 | CN179: 0 | CO179: 152 | CP179: 650.6565183 | CQ179: 53.5 | CR179: 597.1565183 | CS179: 58.59269228 | CT179: 538.5638261 | CU179: 34617.05154 | CV179: 0 | CW179: 597.1565183 | CX179: 1127.176518
B180: 153 | C180: 1127.176518 | D180: 120 | E180: 1007.176518 | F180: 90.41450836 | G180: 916.76201 | H180: 115350.6959 | I180: -1007.176518 | J180: -1127.176518 | S180: 153 | T180: 153 | U180: 33.54 | V180: 2.5 | W180: 31.04 | X180: 1.066259103 | Y180: 29.9737409 | Z180: 823.0335418 | AA180: 25.99621682 | AC180: 153 | AD180: 64.61 | AE180: 5 | AF180: 59.61 | AG180: 2.944273905 | AH180: 56.66572609 | AI180: 2151.539703 | AJ180: 50.07798357 | AL180: 153 | AM180: 124.91 | AN180: 10 | AO180: 114.91 | AP180: 7.547464399 | AQ180: 107.3625356 | AR180: 5220.259393 | AS180: 96.81536801 | AY180: 153 | AZ180: 153 | BA180: 0 | BB180: 30 | BC180: 30 | BD180: 0 | BE180: 0 | BF180: 60000 | BG180: 23.25243007 | BI180: 153 | BJ180: 66.6 | BK180: 5.5 | BL180: 61.1 | BM180: 5.08816376 | BN180: 56.01183624 | BO180: 3336.097337 | BP180: 51.62039476 | BQ180: 153 | BR180: 76.53 | BS180: 6.5 | BT180: 70.03 | BU180: 7.141017624 | BV180: 62.88898238 | BW180: 4447.227412 | BX180: 59.31694912 | BY180: 153 | BZ180: 80.33 | CA180: 7 | CB180: 73.33 | CC180: 8.932243662 | CD180: 64.39775634 | CE180: 5294.948441 | CF180: 62.26225693 | CG180: 0 | CH180: 0 | CI180: 0 | CJ180: 0 | CK180: 0 | CL180: 0 | CM180: 0 | CN180: 0 | CO180: 153 | CP180: 650.6565183 | CQ180: 53.5 | CR180: 597.1565183 | CS180: 57.69508591 | CT180: 539.4614324 | CU180: 34077.59011 | CV180: 0 | CW180: 597.1565183 | CX180: 1127.176518
B181: 154 | C181: 1127.176518 | D181: 120 | E181: 1007.176518 | F181: 88.959366 | G181: 918.2171523 | H181: 114432.4788 | I181: -1007.176518 | J181: -1127.176518 | S181: 154 | T181: 154 | U181: 33.54 | V181: 2.5 | W181: 31.04 | X181: 1.028791927 | Y181: 30.01120807 | Z181: 793.0223338 | AA181: 25.95296189 | AC181: 154 | AD181: 64.61 | AE181: 5 | AF181: 59.61 | AG181: 2.868719604 | AH181: 56.7412804 | AI181: 2094.798423 | AJ181: 49.99465914 | AL181: 154 | AM181: 124.91 | AN181: 10 | AO181: 114.91 | AP181: 7.395367473 | AQ181: 107.5146325 | AR181: 5112.74476 | AS181: 96.65427755 | AY181: 154 | AZ181: 154 | BA181: 0 | BB181: 30 | BC181: 30 | BD181: 0 | BE181: 0 | BF181: 60000 | BG181: 23.21374051 | BI181: 154 | BJ181: 66.6 | BK181: 5.5 | BL181: 61.1 | BM181: 5.004146005 | BN181: 56.09585399 | BO181: 3280.001483 | BP181: 51.53450392 | BQ181: 154 | BR181: 76.53 | BS181: 6.5 | BT181: 70.03 | BU181: 7.041443402 | BV181: 62.9885566 | BW181: 4384.238855 | BX181: 59.21825203 | BY181: 154 | BZ181: 80.33 | CA181: 7 | CB181: 73.33 | CC181: 8.824914068 | CD181: 64.50508593 | CE181: 5230.443355 | CF181: 62.15865916 | CG181: 0 | CH181: 0 | CI181: 0 | CJ181: 0 | CK181: 0 | CL181: 0 | CM181: 0 | CN181: 0 | CO181: 154 | CP181: 650.6565183 | CQ181: 53.5 | CR181: 597.1565183 | CS181: 56.79598352 | CT181: 540.3605348 | CU181: 33537.22958 | CV181: 0 | CW181: 597.1565183 | CX181: 1127.176518
B182: 155 | C182: 1127.176518 | D182: 120 | E182: 1007.176518 | F182: 87.50189952 | G182: 919.6746188 | H182: 113512.8042 | I182: -1007.176518 | J182: -1127.176518 | S182: 155 | T182: 155 | U182: 33.54 | V182: 2.5 | W182: 31.04 | X182: 0.9912779172 | Y182: 30.04872208 | Z182: 762.9736117 | AA182: 25.90977892 | AC182: 155 | AD182: 64.61 | AE182: 5 | AF182: 59.61 | AG182: 2.793064563 | AH182: 56.81693544 | AI182: 2037.981487 | AJ182: 49.91147335 | AL182: 155 | AM182: 124.91 | AN182: 10 | AO182: 114.91 | AP182: 7.243055077 | AQ182: 107.6669449 | AR182: 5005.077815 | AS182: 96.49345513 | AY182: 155 | AZ182: 155 | BA182: 0 | BB182: 30 | BC182: 30 | BD182: 0 | BE182: 0 | BF182: 60000 | BG182: 23.17511531 | BI182: 155 | BJ182: 66.6 | BK182: 5.5 | BL182: 61.1 | BM182: 4.920002224 | BN182: 56.17999778 | BO182: 3223.821485 | BP182: 51.448756 | BQ182: 155 | BR182: 76.53 | BS182: 6.5 | BT182: 70.03 | BU182: 6.941711521 | BV182: 63.08828848 | BW182: 4321.150567 | BX182: 59.11971916 | BY182: 155 | BZ182: 80.33 | CA182: 7 | CB182: 73.33 | CC182: 8.717405591 | CD182: 64.61259441 | CE182: 5165.83076 | CF182: 62.05523377 | CG182: 0 | CH182: 0 | CI182: 0 | CJ182: 0 | CK182: 0 | CL182: 0 | CM182: 0 | CN182: 0 | CO182: 155 | CP182: 650.6565183 | CQ182: 53.5 | CR182: 597.1565183 | CS182: 55.89538263 | CT182: 541.2611357 | CU182: 32995.96844 | CV182: 0 | CW182: 597.1565183 | CX182: 1127.176518
B183: 156 | C183: 1127.176518 | D183: 120 | E183: 1007.176518 | F183: 86.0421052 | G183: 921.1344131 | H183: 112591.6698 | I183: -1007.176518 | J183: -1127.176518 | S183: 156 | T183: 156 | U183: 33.54 | V183: 2.5 | W183: 31.04 | X183: 0.9537170146 | Y183: 30.08628299 | Z183: 732.8873287 | AA183: 25.86666781 | AC183: 156 | AD183: 64.61 | AE183: 5 | AF183: 59.61 | AG183: 2.71730865 | AH183: 56.89269135 | AI183: 1981.088796 | AJ183: 49.82842597 | AL183: 156 | AM183: 124.91 | AN183: 10 | AO183: 114.91 | AP183: 7.090526905 | AQ183: 107.8194731 | AR183: 4897.258342 | AS183: 96.33290029 | AY183: 156 | AZ183: 156 | BA183: 0 | BB183: 30 | BC183: 30 | BD183: 0 | BE183: 0 | BF183: 60000 | BG183: 23.13655439 | BI183: 156 | BJ183: 66.6 | BK183: 5.5 | BL183: 61.1 | BM183: 4.835732228 | BN183: 56.26426777 | BO183: 3167.557217 | BP183: 51.36315074 | BQ183: 156 | BR183: 76.53 | BS183: 6.5 | BT183: 70.03 | BU183: 6.841821731 | BV183: 63.18817827 | BW183: 4257.962389 | BX183: 59.02135025 | BY183: 156 | BZ183: 80.33 | CA183: 7 | CB183: 73.33 | CC183: 8.609717934 | CD183: 64.72028207 | CE183: 5101.110478 | CF183: 61.95198047 | CG183: 0 | CH183: 0 | CI183: 0 | CJ183: 0 | CK183: 0 | CL183: 0 | CM183: 0 | CN183: 0 | CO183: 156 | CP183: 650.6565183 | CQ183: 53.5 | CR183: 597.1565183 | CS183: 54.99328073 | CT183: 542.1632376 | CU183: 32453.8052 | CV183: 0 | CW183: 597.1565183 | CX183: 1127.176518
B184: 157 | C184: 1127.176518 | D184: 120 | E184: 1007.176518 | F184: 84.57997928 | G184: 922.5965391 | H184: 111669.0732 | I184: -1007.176518 | J184: -1127.176518 | S184: 157 | T184: 157 | U184: 33.54 | V184: 2.5 | W184: 31.04 | X184: 0.9161091609 | Y184: 30.12389084 | Z184: 702.7634379 | AA184: 25.82362843 | AC184: 157 | AD184: 64.61 | AE184: 5 | AF184: 59.61 | AG184: 2.641451728 | AH184: 56.96854827 | AI184: 1924.120248 | AJ184: 49.74551678 | AL184: 157 | AM184: 124.91 | AN184: 10 | AO184: 114.91 | AP184: 6.937782652 | AQ184: 107.9722173 | AR184: 4789.286125 | AS184: 96.17261261 | AY184: 157 | AZ184: 157 | BA184: 0 | BB184: 30 | BC184: 30 | BD184: 0 | BE184: 0 | BF184: 60000 | BG184: 23.09805763 | BI184: 157 | BJ184: 66.6 | BK184: 5.5 | BL184: 61.1 | BM184: 4.751335826 | BN184: 56.34866417 | BO184: 3111.208553 | BP184: 51.27768793 | BQ184: 157 | BR184: 76.53 | BS184: 6.5 | BT184: 70.03 | BU184: 6.741773782 | BV184: 63.28822622 | BW184: 4194.674162 | BX184: 58.92314501 | BY184: 157 | BZ184: 80.33 | CA184: 7 | CB184: 73.33 | CC184: 8.501850797 | CD184: 64.8281492 | CE184: 5036.282329 | CF184: 61.84889897 | CG184: 0 | CH184: 0 | CI184: 0 | CJ184: 0 | CK184: 0 | CL184: 0 | CM184: 0 | CN184: 0 | CO184: 157 | CP184: 650.6565183 | CQ184: 53.5 | CR184: 597.1565183 | CS184: 54.08967534 | CT184: 543.066843 | CU184: 31910.73836 | CV184: 0 | CW184: 597.1565183 | CX184: 1127.176518
B185: 158 | C185: 1127.176518 | D185: 120 | E185: 1007.176518 | F185: 83.11551804 | G185: 924.0610003 | H185: 110745.0122 | I185: -1007.176518 | J185: -1127.176518 | S185: 158 | T185: 158 | U185: 33.54 | V185: 2.5 | W185: 31.04 | X185: 0.8784542973 | Y185: 30.1615457 | Z185: 672.6018922 | AA185: 25.78066066 | AC185: 158 | AD185: 64.61 | AE185: 5 | AF185: 59.61 | AG185: 2.565493663 | AH185: 57.04450634 | AI185: 1867.075741 | AJ185: 49.66274553 | AL185: 158 | AM185: 124.91 | AN185: 10 | AO185: 114.91 | AP185: 6.78482201 | AQ185: 108.125178 | AR185: 4681.160947 | AS185: 96.01259162 | AY185: 158 | AZ185: 158 | BA185: 0 | BB185: 30 | BC185: 30 | BD185: 0 | BE185: 0 | BF185: 60000 | BG185: 23.05962492 | BI185: 158 | BJ185: 66.6 | BK185: 5.5 | BL185: 61.1 | BM185: 4.66681283 | BN185: 56.43318717 | BO185: 3054.775366 | BP185: 51.19236732 | BQ185: 158 | BR185: 76.53 | BS185: 6.5 | BT185: 70.03 | BU185: 6.641567424 | BV185: 63.38843258 | BW185: 4131.28573 | BX185: 58.82510317 | BY185: 158 | BZ185: 80.33 | CA185: 7 | CB185: 73.33 | CC185: 8.393803882 | CD185: 64.93619612 | CE185: 4971.346133 | CF185: 61.74598899 | CG185: 0 | CH185: 0 | CI185: 0 | CJ185: 0 | CK185: 0 | CL185: 0 | CM185: 0 | CN185: 0 | CO185: 158 | CP185: 650.6565183 | CQ185: 53.5 | CR185: 597.1565183 | CS185: 53.18456393 | CT185: 543.9719544 | CU185: 31366.76641 | CV185: 0 | CW185: 597.1565183 | CX185: 1127.176518
B186: 159 | C186: 1127.176518 | D186: 120 | E186: 1007.176518 | F186: 81.64871771 | G186: 925.5278006 | H186: 109819.4844 | I186: -1007.176518 | J186: -1127.176518 | S186: 159 | T186: 159 | U186: 33.54 | V186: 2.5 | W186: 31.04 | X186: 0.8407523652 | Y186: 30.19924763 | Z186: 642.4026445 | AA186: 25.73776438 | AC186: 159 | AD186: 64.61 | AE186: 5 | AF186: 59.61 | AG186: 2.489434322 | AH186: 57.12056568 | AI186: 1809.955176 | AJ186: 49.58011201 | AL186: 159 | AM186: 124.91 | AN186: 10 | AO186: 114.91 | AP186: 6.631644675 | AQ186: 108.2783553 | AR186: 4572.882592 | AS186: 95.85283689 | AY186: 159 | AZ186: 159 | BA186: 0 | BB186: 30 | BC186: 30 | BD186: 0 | BE186: 0 | BF186: 60000 | BG186: 23.02125616 | BI186: 159 | BJ186: 66.6 | BK186: 5.5 | BL186: 61.1 | BM186: 4.582163049 | BN186: 56.51783695 | BO186: 2998.257529 | BP186: 51.10718867 | BQ186: 159 | BR186: 76.53 | BS186: 6.5 | BT186: 70.03 | BU186: 6.541202406 | BV186: 63.48879759 | BW186: 4067.796932 | BX186: 58.72722446 | BY186: 159 | BZ186: 80.33 | CA186: 7 | CB186: 73.33 | CC186: 8.285576888 | CD186: 65.04442311 | CE186: 4906.30171 | CF186: 61.64325024 | CG186: 0 | CH186: 0 | CI186: 0 | CJ186: 0 | CK186: 0 | CL186: 0 | CM186: 0 | CN186: 0 | CO186: 159 | CP186: 650.6565183 | CQ186: 53.5 | CR186: 597.1565183 | CS186: 52.27794401 | CT186: 544.8785743 | CU186: 30821.88783 | CV186: 0 | CW186: 597.1565183 | CX186: 1127.176518
B187: 160 | C187: 1127.176518 | D187: 120 | E187: 1007.176518 | F187: 80.17957455 | G187: 926.9969438 | H187: 108892.4875 | I187: -1007.176518 | J187: -1127.176518 | S187: 160 | T187: 160 | U187: 33.54 | V187: 2.5 | W187: 31.04 | X187: 0.8030033057 | Y187: 30.23699669 | Z187: 612.1656478 | AA187: 25.69493949 | AC187: 160 | AD187: 64.61 | AE187: 5 | AF187: 59.61 | AG187: 2.413273567 | AH187: 57.19672643 | AI187: 1752.758449 | AJ187: 49.49761599 | AL187: 160 | AM187: 124.91 | AN187: 10 | AO187: 114.91 | AP187: 6.478250338 | AQ187: 108.4317497 | AR187: 4464.450842 | AS187: 95.69334798 | AY187: 160 | AZ187: 160 | BA187: 0 | BB187: 30 | BC187: 30 | BD187: 0 | BE187: 0 | BF187: 60000 | BG187: 22.98295124 | BI187: 160 | BJ187: 66.6 | BK187: 5.5 | BL187: 61.1 | BM187: 4.497386294 | BN187: 56.60261371 | BO187: 2941.654915 | BP187: 51.02215175 | BQ187: 160 | BR187: 76.53 | BS187: 6.5 | BT187: 70.03 | BU187: 6.440678476 | BV187: 63.58932152 | BW187: 4004.207611 | BX187: 58.62950861 | BY187: 160 | BZ187: 80.33 | CA187: 7 | CB187: 73.33 | CC187: 8.177169516 | CD187: 65.15283048 | CE187: 4841.148879 | CF187: 61.54068244 | CG187: 0 | CH187: 0 | CI187: 0 | CJ187: 0 | CK187: 0 | CL187: 0 | CM187: 0 | CN187: 0 | CO187: 160 | CP187: 650.6565183 | CQ187: 53.5 | CR187: 597.1565183 | CS187: 51.36981305 | CT187: 545.7867053 | CU187: 30276.10113 | CV187: 0 | CW187: 597.1565183 | CX187: 1127.176518
B188: 161 | C188: 1127.176518 | D188: 120 | E188: 1007.176518 | F188: 78.70808478 | G188: 928.4684336 | H188: 107964.019 | I188: -1007.176518 | J188: -1127.176518 | S188: 161 | T188: 161 | U188: 33.54 | V188: 2.5 | W188: 31.04 | X188: 0.7652070598 | Y188: 30.27479294 | Z188: 581.8908549 | AA188: 25.65218584 | AC188: 161 | AD188: 64.61 | AE188: 5 | AF188: 59.61 | AG188: 2.337011265 | AH188: 57.27298873 | AI188: 1695.48546 | AJ188: 49.41525722 | AL188: 161 | AM188: 124.91 | AN188: 10 | AO188: 114.91 | AP188: 6.324638693 | AQ188: 108.5853613 | AR188: 4355.865481 | AS188: 95.53412444 | AY188: 161 | AZ188: 161 | BA188: 0 | BB188: 30 | BC188: 30 | BD188: 0 | BE188: 0 | BF188: 60000 | BG188: 22.94471006 | BI188: 161 | BJ188: 66.6 | BK188: 5.5 | BL188: 61.1 | BM188: 4.412482373 | BN188: 56.68751763 | BO188: 2884.967398 | BP188: 50.93725632 | BQ188: 161 | BR188: 76.53 | BS188: 6.5 | BT188: 70.03 | BU188: 6.339995384 | BV188: 63.69000462 | BW188: 3940.517606 | BX188: 58.53195535 | BY188: 161 | BZ188: 80.33 | CA188: 7 | CB188: 73.33 | CC188: 8.068581466 | CD188: 65.26141853 | CE188: 4775.887461 | CF188: 61.43828529 | CG188: 0 | CH188: 0 | CI188: 0 | CJ188: 0 | CK188: 0 | CL188: 0 | CM188: 0 | CN188: 0 | CO188: 161 | CP188: 650.6565183 | CQ188: 53.5 | CR188: 597.1565183 | CS188: 50.46016854 | CT188: 546.6963498 | CU188: 29729.40478 | CV188: 0 | CW188: 597.1565183 | CX188: 1127.176518
B189: 162 | C189: 1127.176518 | D189: 120 | E189: 1007.176518 | F189: 77.23424465 | G189: 929.9422737 | H189: 107034.0768 | I189: -1007.176518 | J189: -1127.176518 | S189: 162 | T189: 162 | U189: 33.54 | V189: 2.5 | W189: 31.04 | X189: 0.7273635686 | Y189: 30.31263643 | Z189: 551.5782185 | AA189: 25.60950334 | AC189: 162 | AD189: 64.61 | AE189: 5 | AF189: 59.61 | AG189: 2.26064728 | AH189: 57.34935272 | AI189: 1638.136108 | AJ189: 49.3330355 | AL189: 162 | AM189: 124.91 | AN189: 10 | AO189: 114.91 | AP189: 6.170809431 | AQ189: 108.7391906 | AR189: 4247.12629 | AS189: 95.37516583 | AY189: 162 | AZ189: 162 | BA189: 0 | BB189: 30 | BC189: 30 | BD189: 0 | BE189: 0 | BF189: 60000 | BG189: 22.9065325 | BI189: 162 | BJ189: 66.6 | BK189: 5.5 | BL189: 61.1 | BM189: 4.327451097 | BN189: 56.7725489 | BO189: 2828.194849 | BP189: 50.85250215 | BQ189: 162 | BR189: 76.53 | BS189: 6.5 | BT189: 70.03 | BU189: 6.239152876 | BV189: 63.79084712 | BW189: 3876.726759 | BX189: 58.43456441 | BY189: 162 | BZ189: 80.33 | CA189: 7 | CB189: 73.33 | CC189: 7.959812435 | CD189: 65.37018757 | CE189: 4710.517273 | CF189: 61.33605853 | CG189: 0 | CH189: 0 | CI189: 0 | CJ189: 0 | CK189: 0 | CL189: 0 | CM189: 0 | CN189: 0 | CO189: 162 | CP189: 650.6565183 | CQ189: 53.5 | CR189: 597.1565183 | CS189: 49.54900796 | CT189: 547.6075104 | CU189: 29181.79727 | CV189: 0 | CW189: 597.1565183 | CX189: 1127.176518
B190: 163 | C190: 1127.176518 | D190: 120 | E190: 1007.176518 | F190: 75.75805037 | G190: 931.418468 | H190: 106102.6583 | I190: -1007.176518 | J190: -1127.176518 | S190: 163 | T190: 163 | U190: 33.54 | V190: 2.5 | W190: 31.04 | X190: 0.6894727731 | Y190: 30.35052723 | Z190: 521.2276912 | AA190: 25.56689185 | AC190: 163 | AD190: 64.61 | AE190: 5 | AF190: 59.61 | AG190: 2.184181477 | AH190: 57.42581852 | AI190: 1580.710289 | AJ190: 49.25095058 | AL190: 163 | AM190: 124.91 | AN190: 10 | AO190: 114.91 | AP190: 6.016762244 | AQ190: 108.8932378 | AR190: 4138.233052 | AS190: 95.21647171 | AY190: 163 | AZ190: 163 | BA190: 0 | BB190: 30 | BC190: 30 | BD190: 0 | BE190: 0 | BF190: 60000 | BG190: 22.86841847 | BI190: 163 | BJ190: 66.6 | BK190: 5.5 | BL190: 61.1 | BM190: 4.242292273 | BN190: 56.85770773 | BO190: 2771.337141 | BP190: 50.76788901 | BQ190: 163 | BR190: 76.53 | BS190: 6.5 | BT190: 70.03 | BU190: 6.138150702 | BV190: 63.8918493 | BW190: 3812.83491 | BX190: 58.33733552 | BY190: 163 | BZ190: 80.33 | CA190: 7 | CB190: 73.33 | CC190: 7.850862122 | CD190: 65.47913788 | CE190: 4645.038135 | CF190: 61.23400186 | CG190: 0 | CH190: 0 | CI190: 0 | CJ190: 0 | CK190: 0 | CL190: 0 | CM190: 0 | CN190: 0 | CO190: 163 | CP190: 650.6565183 | CQ190: =IF($S190>$CO$24,0,IF($AT$22=1,TRUNC($CP$24*$P$10*$N$10/12,2)+TRUNC($CP$24*$Q$10*$O$10/12,2),IF($AT$22=2,TRUNC(CU189*$P$10*$N$10/12,2)+TRUNC(CU189*$Q$10*$O$10/12,2),TRUNC(CU189*$P$10*$N$10/12,2)+TRUNC(CU189*$Q$10*$O$10/12,2)))) -> 53.5 | CR190: =IF($S190>$F$402,0,IF($AT$22<>3,CW190,IF(CO190=$CO$24,CT190+CS190,CP190-CQ190))) -> 597.1565183 | CS190: =IF($S190>$CO$24,0,CU189*$CQ$24/12) -> 48.63632878 | CT190: =IF($S190>$CO$24,0,(IF(CO190=$CO$24,CU189,CR190-CS190))) -> 548.5201896 | CU190: =IF($S190>$CO$24,0,CU189-CT190) -> 28633.27708 | CV190: =IF($AT$22=2,CQ190*((1+($CQ$24/12))^(-CO190)),0) -> 0 | CW190: =IF($S190>$F$402,0,IF($AT$22<>2,$H$402-U190-AD190-AM190-BB190-BJ190-BR190-BZ190-CH190,$H$402-U190-AD190-AM190-BB190-BJ190-BR190-BZ190-CH190-CQ190)) -> 597.1565183 | CX190: =U190+AD190+AM190+BB190+BJ190+BR190+BZ190+CH190+CP190 -> 1127.176518
B191: 164 | C191: 1127.176518 | D191: 120 | E191: 1007.176518 | F191: 74.27949816 | G191: 932.8970202 | H191: 105169.7613 | I191: -1007.176518 | J191: -1127.176518 | S191: 164 | T191: 164 | U191: 33.54 | V191: 2.5 | W191: 31.04 | X191: 0.651534614 | Y191: 30.38846539 | Z191: 490.8392259 | AA191: 25.52435127 | AC191: 164 | AD191: 64.61 | AE191: 5 | AF191: 59.61 | AG191: 2.107613719 | AH191: 57.50238628 | AI191: 1523.207903 | AJ191: 49.16900224 | AL191: 164 | AM191: 124.91 | AN191: 10 | AO191: 114.91 | AP191: 5.862496824 | AQ191: 109.0475032 | AR191: 4029.185549 | AS191: 95.05804164 | AY191: 164 | AZ191: 164 | BA191: 0 | BB191: 30 | BC191: 30 | BD191: 0 | BE191: 0 | BF191: 60000 | BG191: 22.83036786 | BI191: 164 | BJ191: 66.6 | BK191: 5.5 | BL191: 61.1 | BM191: 4.157005712 | BN191: 56.94299429 | BO191: 2714.394147 | BP191: 50.68341664 | BQ191: 164 | BR191: 76.53 | BS191: 6.5 | BT191: 70.03 | BU191: 6.036988607 | BV191: 63.99301139 | BW191: 3748.841898 | BX191: 58.24026841 | BY191: 164 | BZ191: 80.33 | CA191: 7 | CB191: 73.33 | CC191: 7.741730226 | CD191: 65.58826977 | CE191: 4579.449866 | CF191: 61.132115 | CG191: 0 | CH191: 0 | CI191: 0 | CJ191: 0 | CK191: 0 | CL191: 0 | CM191: 0 | CN191: 0 | CO191: 164 | CP191: 650.6565183 | CQ191: 53.5 | CR191: 597.1565183 | CS191: 47.72212846 | CT191: 549.4343899 | CU191: 28083.84269 | CV191: 0 | CW191: 597.1565183 | CX191: 1127.176518
B192: 165 | C192: 1127.176518 | D192: 120 | E192: 1007.176518 | F192: 72.79858424 | G192: 934.3779341 | H192: 104235.3833 | I192: -1007.176518 | J192: -1127.176518 | S192: 165 | T192: 165 | U192: 33.54 | V192: 2.5 | W192: 31.04 | X192: 0.6135490323 | Y192: 30.42645097 | Z192: 460.4127749 | AA192: 25.48188146 | AC192: 165 | AD192: 64.61 | AE192: 5 | AF192: 59.61 | AG192: 2.03094387 | AH192: 57.57905613 | AI192: 1465.628847 | AJ192: 49.08719026 | AL192: 165 | AM192: 124.91 | AN192: 10 | AO192: 114.91 | AP192: 5.708012861 | AQ192: 109.2019871 | AR192: 3919.983562 | AS192: 94.89987518 | AY192: 165 | AZ192: 165 | BA192: 0 | BB192: 30 | BC192: 30 | BD192: 0 | BE192: 0 | BF192: 60000 | BG192: 22.79238056 | BI192: 165 | BJ192: 66.6 | BK192: 5.5 | BL192: 61.1 | BM192: 4.07159122 | BN192: 57.02840878 | BO192: 2657.365738 | BP192: 50.59908484 | BQ192: 165 | BR192: 76.53 | BS192: 6.5 | BT192: 70.03 | BU192: 5.935666339 | BV192: 64.09433366 | BW192: 3684.747565 | BX192: 58.1433628 | BY192: 165 | BZ192: 80.33 | CA192: 7 | CB192: 73.33 | CC192: 7.632416443 | CD192: 65.69758356 | CE192: 4513.752282 | CF192: 61.03039767 | CG192: 0 | CH192: 0 | CI192: 0 | CJ192: 0 | CK192: 0 | CL192: 0 | CM192: 0 | CN192: 0 | CO192: 165 | CP192: 650.6565183 | CQ192: 53.5 | CR192: 597.1565183 | CS192: 46.80640448 | CT192: 550.3501139 | CU192: 27533.49257 | CV192: 0 | CW192: 597.1565183 | CX192: 1127.176518
B193: 166 | C193: 1127.176518 | D193: 120 | E193: 1007.176518 | F193: 71.31530482 | G193: 935.8612135 | H193: 103299.5221 | I193: -1007.176518 | J193: -1127.176518 | S193: 166 | T193: 166 | U193: 33.54 | V193: 2.5 | W193: 31.04 | X193: 0.5755159686 | Y193: 30.46448403 | Z193: 429.9482909 | AA193: 25.43948233 | AC193: 166 | AD193: 64.61 | AE193: 5 | AF193: 59.61 | AG193: 1.954171796 | AH193: 57.6558282 | AI193: 1407.973018 | AJ193: 49.0055144 | AL193: 166 | AM193: 124.91 | AN193: 10 | AO193: 114.91 | AP193: 5.553310046 | AQ193: 109.35669 | AR193: 3810.626872 | AS193: 94.74197189 | AY193: 166 | AZ193: 166 | BA193: 0 | BB193: 30 | BC193: 30 | BD193: 0 | BE193: 0 | BF193: 60000 | BG193: 22.75445646 | BI193: 166 | BJ193: 66.6 | BK193: 5.5 | BL193: 61.1 | BM193: 3.986048607 | BN193: 57.11395139 | BO193: 2600.251787 | BP193: 50.51489335 | BQ193: 166 | BR193: 76.53 | BS193: 6.5 | BT193: 70.03 | BU193: 5.834183644 | BV193: 64.19581636 | BW193: 3620.551748 | BX193: 58.04661844 | BY193: 166 | BZ193: 80.33 | CA193: 7 | CB193: 73.33 | CC193: 7.52292047 | CD193: 65.80707953 | CE193: 4447.945203 | CF193: 60.92884959 | CG193: 0 | CH193: 0 | CI193: 0 | CJ193: 0 | CK193: 0 | CL193: 0 | CM193: 0 | CN193: 0 | CO193: 166 | CP193: 650.6565183 | CQ193: 53.5 | CR193: 597.1565183 | CS193: 45.88915429 | CT193: 551.2673641 | CU193: 26982.22521 | CV193: 0 | CW193: 597.1565183 | CX193: 1127.176518
B194: 167 | C194: 1127.176518 | D194: 120 | E194: 1007.176518 | F194: 69.82965609 | G194: 937.3468623 | H194: 102362.1753 | I194: -1007.176518 | J194: -1127.176518 | S194: 167 | T194: 167 | U194: 33.54 | V194: 2.5 | W194: 31.04 | X194: 0.5374353636 | Y194: 30.50256464 | Z194: 399.4457262 | AA194: 25.39715374 | AC194: 167 | AD194: 64.61 | AE194: 5 | AF194: 59.61 | AG194: 1.877297358 | AH194: 57.73270264 | AI194: 1350.240316 | AJ194: 48.92397445 | AL194: 167 | AM194: 124.91 | AN194: 10 | AO194: 114.91 | AP194: 5.398388069 | AQ194: 109.5116119 | AR194: 3701.11526 | AS194: 94.58433134 | AY194: 167 | AZ194: 167 | BA194: 0 | BB194: 30 | BC194: 30 | BD194: 0 | BE194: 0 | BF194: 60000 | BG194: 22.71659547 | BI194: 167 | BJ194: 66.6 | BK194: 5.5 | BL194: 61.1 | BM194: 3.90037768 | BN194: 57.19962232 | BO194: 2543.052164 | BP194: 50.43084194 | BQ194: 167 | BR194: 76.53 | BS194: 6.5 | BT194: 70.03 | BU194: 5.732540268 | BV194: 64.29745973 | BW194: 3556.254289 | BX194: 57.95003505 | BY194: 167 | BZ194: 80.33 | CA194: 7 | CB194: 73.33 | CC194: 7.413242004 | CD194: 65.916758 | CE194: 4382.028445 | CF194: 60.82747047 | CG194: 0 | CH194: 0 | CI194: 0 | CJ194: 0 | CK194: 0 | CL194: 0 | CM194: 0 | CN194: 0 | CO194: 167 | CP194: 650.6565183 | CQ194: 53.5 | CR194: 597.1565183 | CS194: 44.97037535 | CT194: 552.186143 | CU194: 26430.03907 | CV194: 0 | CW194: 597.1565183 | CX194: 1127.176518
B195: 168 | C195: 1127.176518 | D195: 120 | E195: 1007.176518 | F195: 68.34163425 | G195: 938.8348841 | H195: 101423.3404 | I195: -1007.176518 | J195: -1127.176518 | S195: 168 | T195: 168 | U195: 33.54 | V195: 2.5 | W195: 31.04 | X195: 0.4993071578 | Y195: 30.54069284 | Z195: 368.9050334 | AA195: 25.35489558 | AC195: 168 | AD195: 64.61 | AE195: 5 | AF195: 59.61 | AG195: 1.800320421 | AH195: 57.80967958 | AI195: 1292.430636 | AJ195: 48.84257016 | AL195: 168 | AM195: 124.91 | AN195: 10 | AO195: 114.91 | AP195: 5.243246619 | AQ195: 109.6667534 | AR195: 3591.448507 | AS195: 94.42695309 | AY195: 168 | AZ195: 168 | BA195: 0 | BB195: 30 | BC195: 30 | BD195: 0 | BE195: 0 | BF195: 60000 | BG195: 22.67879747 | BI195: 168 | BJ195: 66.6 | BK195: 5.5 | BL195: 61.1 | BM195: 3.814578247 | BN195: 57.28542175 | BO195: 2485.766743 | BP195: 50.34693039 | BQ195: 168 | BR195: 76.53 | BS195: 6.5 | BT195: 70.03 | BU195: 5.630735957 | BV195: 64.39926404 | BW195: 3491.855025 | BX195: 57.85361236 | BY195: 168 | BZ195: 80.33 | CA195: 7 | CB195: 73.33 | CC195: 7.303380741 | CD195: 66.02661926 | CE195: 4316.001825 | CF195: 60.72626004 | CG195: 0 | CH195: 0 | CI195: 0 | CJ195: 0 | CK195: 0 | CL195: 0 | CM195: 0 | CN195: 0 | CO195: 168 | CP195: 650.6565183 | CQ195: 53.5 | CR195: 597.1565183 | CS195: 44.05006511 | CT195: 553.1064532 | CU195: 25876.93261 | CV195: 0 | CW195: 597.1565183 | CX195: 1127.176518
B196: 169 | C196: 1127.176518 | D196: 120 | E196: 1007.176518 | F196: 66.85123549 | G196: 940.3252829 | H196: 100483.0151 | I196: -1007.176518 | J196: -1127.176518 | S196: 169 | T196: 169 | U196: 33.54 | V196: 2.5 | W196: 31.04 | X196: 0.4611312917 | Y196: 30.57886871 | Z196: 338.3261647 | AA196: 25.31270773 | AC196: 169 | AD196: 64.61 | AE196: 5 | AF196: 59.61 | AG196: 1.723240848 | AH196: 57.88675915 | AI196: 1234.543877 | AJ196: 48.76130133 | AL196: 169 | AM196: 124.91 | AN196: 10 | AO196: 114.91 | AP196: 5.087885385 | AQ196: 109.8221146 | AR196: 3481.626392 | AS196: 94.26983669 | AY196: 169 | AZ196: 169 | BA196: 0 | BB196: 30 | BC196: 30 | BD196: 0 | BE196: 0 | BF196: 60000 | BG196: 22.64106237 | BI196: 169 | BJ196: 66.6 | BK196: 5.5 | BL196: 61.1 | BM196: 3.728650114 | BN196: 57.37134989 | BO196: 2428.395393 | BP196: 50.26315846 | BQ196: 169 | BR196: 76.53 | BS196: 6.5 | BT196: 70.03 | BU196: 5.528770455 | BV196: 64.50122954 | BW196: 3427.353795 | BX196: 57.75735011 | BY196: 169 | BZ196: 80.33 | CA196: 7 | CB196: 73.33 | CC196: 7.193336375 | CD196: 66.13666362 | CE196: 4249.865162 | CF196: 60.62521801 | CG196: 0 | CH196: 0 | CI196: 0 | CJ196: 0 | CK196: 0 | CL196: 0 | CM196: 0 | CN196: 0 | CO196: 169 | CP196: 650.6565183 | CQ196: 53.5 | CR196: 597.1565183 | CS196: 43.12822102 | CT196: 554.0282973 | CU196: 25322.90431 | CV196: 0 | CW196: 597.1565183 | CX196: 1127.176518
B197: 170 | C197: 1127.176518 | D197: 120 | E197: 1007.176518 | F197: 65.35845599 | G197: 941.8180624 | H197: 99541.19704 | I197: -1007.176518 | J197: -1127.176518 | S197: 170 | T197: 170 | U197: 33.54 | V197: 2.5 | W197: 31.04 | X197: 0.4229077058 | Y197: 30.61709229 | Z197: 307.7090724 | AA197: 25.27059008 | AC197: 170 | AD197: 64.61 | AE197: 5 | AF197: 59.61 | AG197: 1.646058503 | AH197: 57.9639415 | AI197: 1176.579936 | AJ197: 48.68016771 | AL197: 170 | AM197: 124.91 | AN197: 10 | AO197: 114.91 | AP197: 4.932304056 | AQ197: 109.9776959 | AR197: 3371.648696 | AS197: 94.11298172 | AY197: 170 | AZ197: 170 | BA197: 0 | BB197: 30 | BC197: 30 | BD197: 0 | BE197: 0 | BF197: 60000 | BG197: 22.60339005 | BI197: 170 | BJ197: 66.6 | BK197: 5.5 | BL197: 61.1 | BM197: 3.642593089 | BN197: 57.45740691 | BO197: 2370.937986 | BP197: 50.17952592 | BQ197: 170 | BR197: 76.53 | BS197: 6.5 | BT197: 70.03 | BU197: 5.426643509 | BV197: 64.60335649 | BW197: 3362.750438 | BX197: 57.66124803 | BY197: 170 | BZ197: 80.33 | CA197: 7 | CB197: 73.33 | CC197: 7.083108603 | CD197: 66.2468914 | CE197: 4183.61827 | CF197: 60.5243441 | CG197: 0 | CH197: 0 | CI197: 0 | CJ197: 0 | CK197: 0 | CL197: 0 | CM197: 0 | CN197: 0 | CO197: 170 | CP197: 650.6565183 | CQ197: 53.5 | CR197: 597.1565183 | CS197: 42.20484052 | CT197: 554.9516778 | CU197: 24767.95264 | CV197: 0 | CW197: 597.1565183 | CX197: 1127.176518
B198: 171 | C198: 1127.176518 | D198: 120 | E198: 1007.176518 | F198: 63.86329193 | G198: 943.3132264 | H198: 98597.88381 | I198: -1007.176518 | J198: -1127.176518 | S198: 171 | T198: 171 | U198: 33.54 | V198: 2.5 | W198: 31.04 | X198: 0.3846363405 | Y198: 30.65536366 | Z198: 277.0537087 | AA198: 25.22854251 | AC198: 171 | AD198: 64.61 | AE198: 5 | AF198: 59.61 | AG198: 1.568773248 | AH198: 58.04122675 | AI198: 1118.538709 | AJ198: 48.5991691 | AL198: 171 | AM198: 124.91 | AN198: 10 | AO198: 114.91 | AP198: 4.77650232 | AQ198: 110.1334977 | AR198: 3261.515199 | AS198: 93.95638774 | AY198: 171 | AZ198: 171 | BA198: 0 | BB198: 30 | BC198: 30 | BD198: 0 | BE198: 0 | BF198: 60000 | BG198: 22.56578042 | BI198: 171 | BJ198: 66.6 | BK198: 5.5 | BL198: 61.1 | BM198: 3.556406979 | BN198: 57.54359302 | BO198: 2313.394393 | BP198: 50.09603253 | BQ198: 171 | BR198: 76.53 | BS198: 6.5 | BT198: 70.03 | BU198: 5.324354861 | BV198: 64.70564514 | BW198: 3298.044793 | BX198: 57.56530585 | BY198: 171 | BZ198: 80.33 | CA198: 7 | CB198: 73.33 | CC198: 6.972697117 | CD198: 66.35730288 | CE198: 4117.260967 | CF198: 60.42363804 | CG198: 0 | CH198: 0 | CI198: 0 | CJ198: 0 | CK198: 0 | CL198: 0 | CM198: 0 | CN198: 0 | CO198: 171 | CP198: 650.6565183 | CQ198: 53.5 | CR198: 597.1565183 | CS198: 41.27992106 | CT198: 555.8765973 | CU198: 24212.07604 | CV198: 0 | CW198: 597.1565183 | CX198: 1127.176518
B199: 172 | C199: 1127.176518 | D199: 120 | E199: 1007.176518 | F199: 62.36573947 | G199: 944.8107789 | H199: 97653.07303 | I199: -1007.176518 | J199: -1127.176518 | S199: 172 | T199: 172 | U199: 33.54 | V199: 2.5 | W199: 31.04 | X199: 0.3463171359 | Y199: 30.69368286 | Z199: 246.3600258 | AA199: 25.1865649 | AC199: 172 | AD199: 64.61 | AE199: 5 | AF199: 59.61 | AG199: 1.491384945 | AH199: 58.11861505 | AI199: 1060.420094 | AJ199: 48.51830526 | AL199: 172 | AM199: 124.91 | AN199: 10 | AO199: 114.91 | AP199: 4.620479865 | AQ199: 110.2895201 | AR199: 3151.225678 | AS199: 93.80005432 | AY199: 172 | AZ199: 172 | BA199: 0 | BB199: 30 | BC199: 30 | BD199: 0 | BE199: 0 | BF199: 60000 | BG199: 22.52823336 | BI199: 172 | BJ199: 66.6 | BK199: 5.5 | BL199: 61.1 | BM199: 3.470091589 | BN199: 57.62990841 | BO199: 2255.764484 | BP199: 50.01267807 | BQ199: 172 | BR199: 76.53 | BS199: 6.5 | BT199: 70.03 | BU199: 5.221904256 | BV199: 64.80809574 | BW199: 3233.236698 | BX199: 57.46952331 | BY199: 172 | BZ199: 80.33 | CA199: 7 | CB199: 73.33 | CC199: 6.862101612 | CD199: 66.46789839 | CE199: 4050.793069 | CF199: 60.32309954 | CG199: 0 | CH199: 0 | CI199: 0 | CJ199: 0 | CK199: 0 | CL199: 0 | CM199: 0 | CN199: 0 | CO199: 172 | CP199: 650.6565183 | CQ199: 53.5 | CR199: 597.1565183 | CS199: 40.35346007 | CT199: 556.8030583 | CU199: 23655.27298 | CV199: 0 | CW199: 597.1565183 | CX199: 1127.176518
B200: 173 | C200: 1127.176518 | D200: 120 | E200: 1007.176518 | F200: 60.86579478 | G200: 946.3107236 | H200: 96706.76231 | I200: -1007.176518 | J200: -1127.176518 | S200: 173 | T200: 173 | U200: 33.54 | V200: 2.5 | W200: 31.04 | X200: 0.3079500323 | Y200: 30.73204997 | Z200: 215.6279759 | AA200: 25.14465714 | AC200: 173 | AD200: 64.61 | AE200: 5 | AF200: 59.61 | AG200: 1.413893458 | AH200: 58.19610654 | AI200: 1002.223987 | AJ200: 48.43757596 | AL200: 173 | AM200: 124.91 | AN200: 10 | AO200: 114.91 | AP200: 4.464236378 | AQ200: 110.4457636 | AR200: 3040.779915 | AS200: 93.64398102 | AY200: 173 | AZ200: 173 | BA200: 0 | BB200: 30 | BC200: 30 | BD200: 0 | BE200: 0 | BF200: 60000 | BG200: 22.49074878 | BI200: 173 | BJ200: 66.6 | BK200: 5.5 | BL200: 61.1 | BM200: 3.383646727 | BN200: 57.71635327 | BO200: 2198.048131 | BP200: 49.9294623 | BQ200: 173 | BR200: 76.53 | BS200: 6.5 | BT200: 70.03 | BU200: 5.119291438 | BV200: 64.91070856 | BW200: 3168.325989 | BX200: 57.37390015 | BY200: 173 | BZ200: 80.33 | CA200: 7 | CB200: 73.33 | CC200: 6.751321782 | CD200: 66.57867822 | CE200: 3984.214391 | CF200: 60.22272832 | CG200: 0 | CH200: 0 | CI200: 0 | CJ200: 0 | CK200: 0 | CL200: 0 | CM200: 0 | CN200: 0 | CO200: 173 | CP200: 650.6565183 | CQ200: 53.5 | CR200: 597.1565183 | CS200: 39.42545497 | CT200: 557.7310634 | CU200: 23097.54192 | CV200: 0 | CW200: 597.1565183 | CX200: 1127.176518
B201: 174 | C201: 1127.176518 | D201: 120 | E201: 1007.176518 | F201: 59.36345403 | G201: 947.8130643 | H201: 95758.94924 | I201: -1007.176518 | J201: -1127.176518 | S201: 174 | T201: 174 | U201: 33.54 | V201: 2.5 | W201: 31.04 | X201: 0.2695349698 | Y201: 30.77046503 | Z201: 184.8575108 | AA201: 25.10281911 | AC201: 174 | AD201: 64.61 | AE201: 5 | AF201: 59.61 | AG201: 1.33629865 | AH201: 58.27370135 | AI201: 943.9502859 | AJ201: 48.35698099 | AL201: 174 | AM201: 124.91 | AN201: 10 | AO201: 114.91 | AP201: 4.307771546 | AQ201: 110.6022285 | AR201: 2930.177686 | AS201: 93.4881674 | AY201: 174 | AZ201: 174 | BA201: 0 | BB201: 30 | BC201: 30 | BD201: 0 | BE201: 0 | BF201: 60000 | BG201: 22.45332657 | BI201: 174 | BJ201: 66.6 | BK201: 5.5 | BL201: 61.1 | BM201: 3.297072197 | BN201: 57.8029278 | BO201: 2140.245203 | BP201: 49.84638499 | BQ201: 174 | BR201: 76.53 | BS201: 6.5 | BT201: 70.03 | BU201: 5.016516149 | BV201: 65.01348385 | BW201: 3103.312505 | BX201: 57.27843609 | BY201: 174 | BZ201: 80.33 | CA201: 7 | CB201: 73.33 | CC201: 6.640357318 | CD201: 66.68964268 | CE201: 3917.524748 | CF201: 60.12252412 | CG201: 0 | CH201: 0 | CI201: 0 | CJ201: 0 | CK201: 0 | CL201: 0 | CM201: 0 | CN201: 0 | CO201: 174 | CP201: 650.6565183 | CQ201: 53.5 | CR201: 597.1565183 | CS201: 38.4959032 | CT201: 558.6606151 | CU201: 22538.8813 | CV201: 0 | CW201: 597.1565183 | CX201: 1127.176518
... 200 more rows

Sheet Feuil2

Sheet Feuil3
